Workbook

Sheet Title Page
S3: IED Derogation Cost-Benefit Analysis Tool
S6: Version Number: | Y6: =MAX('Version History'!$D:$D) -> 6.17
S7: Last Update: | X7: Last Update: | Y7: =MAX('Version History'!F:F) -> 2017-09-29
M12: Copyright and important notice for all users:
M13: This model is the copyright of the Environment Agency. It was originally prepared by Ricardo-AEA under contract 'Development of IED derogation cost-benefit analysis tool and user guidance' (ED60335) dated 7 November 2014 and has been refined by the Environment Agency since. The contents of this model may not be reproduced in whole or in part, nor passed to any organisation or person without the specific prior written permission of the Environment Agency.
M14: All users of this model are accordingly advised to undertake their own review of its assumptions, calculations and results before making any decision or entering into any commitment based on the information herein. No representation, warranty or undertaking (expressed or implied) is made by the Environment Agency or Ricardo-AEA for the adequacy, completeness or accuracy of the model or the assumptions on which it is based. The Environment Agency and Ricardo-AEA accept no liability whatsoever to any third party for any loss or damage arising from any interpretation or use of the information contained in this model, or reliance on any views expressed therein.

Sheet Technical trail
D3: Your Input Version History
D4: Version Number | E4: Done By | F4: Date | G4: Description of changes from previous version

Sheet Version History
D3: Tool Version History
D4: Version Number | E4: Done By | F4: Date | G4: Description of changes from previous version
D5: 1 | E5: Ricardo AEA | F5: 2015-01-09 | G5: Initial version of model created for user testing
D6: 2 | E6: Ricardo AEA | F6: 2015-01-29 | G6: Version updated for EA and user testing comments
D7: 2.1 | E7: Matt Georges | F7: 2015-02-26 | G7: The following changes were made by Matt Georges (EA): 1. PV costs changed to include only upfront costs, O&M costs, waste disposal costs and energy consumption costs. PV benefits changed to include only emissions to air and GHG emissions. 2. Reference to 2015 in the uplift factor cells in the calculation worksheets was altered to reference to the cell in which the year of the appraisal is entered (D24 in the data input - general worksheet). 3. The Results worksheet was altered to make the ranking based on incremental NPV the major output from the tool and to make this clearer to the user. 4. Various minor editing changes. 5. Reference to damage costs associated with accidents was removed on the advice of EA regulatory colleagues. 6. Worksheets were protected.
D8: 2.2 | E8: Matt Georges | F8: 2015-03-31 | G8: The following changes were made by Matt Georges (EA): 1. The Results worksheet was altered to make the ranking based on NPV the major output from the tool. 2. 'PM' changed to 'PM10' in data input worksheets. 3. Benefit-Cost Ratio and incremental NPV removed from Results and Analysis worksheets to provide greater clarity as to the key result metric. 4. Comparator changed to the applicant's 'preferred' option.
D9: 2.3 | E9: Matt Georges | F9: 2015-04-14 | G9: The following changes were made by Matt Georges (EA): 1. Changes to Results sheet made in v 2.2 reversed. 2. Changes to comparator in v2.2 reversed. 3. 'PM' changed to 'PM10' in damage costs worksheet.
D10: 2.4 | E10: Anna Maria Giacomello | F10: 2015-04-23 | G10: The following changes were made by Anna Maria Giacomello (EA): 1. the layout of the Results sheet was changed to show the ranking of options whose NPVs have been derived net of BAU costs and benefits. The NPV for BAT is now calculated as net of the costs and benefits of the preferred option. 2. the terms used across the spreadsheet have been checked for consistency. 3. the sensitivity and scenario sheets have both been changed to make them consistent with the new layout in the Results sheet.
D11: 2.5 | E11: Matt Georges | F11: 2015-04-30 | G11: Changes made by Matt Georges (EA): PV benefits in Results sheet altered to be positive not negative. Notation in Damage Costs sheet changed from PM to PM10 to match rest of the tool.
D12: 2.6 | E12: Matt Georges | F12: 2015-05-20 | G12: Changes made by Matt Georges (EA): User Guide and cell comments updated to include reference to BAU rather than full derogation scenario. Clarifications made to User Guide and Results tabs. Uplift factor formula corrected in row 192 of Calc_B. Ranking same as central scenario forumlas changed in Sensitivity Analysis and Scenrio Analysis tabs. Message in each data input tab that is linked to whether financing costs are entered manually or not altered to refer to correct rows.
D13: 2.7 | E13: Matt Georges | F13: 2015-06-03 | G13: User Input cells in Case Description tab unlocked. [Matt Georges]
D14: 2.8 | E14: Matt Georges | F14: 2015-06-09 | G14: Formula in cell E11 in Results sheet corrected. [Matt Georges]
D15: 2.9 | E15: Matt Georges | F15: 2015-06-09 | G15: Major changes made to Results sheet by Scott Latham under instruction of Matt Georges. Including correction of Summary Results formulas and display of sensitivity and scenario analysis results.
D16: 3 | E16: Matt Georges | F16: 2015-06-16 | G16: Version name changed for internal EA publication purposes. [Matt Georges]
D17: 4 | E17: Matt Georges | F17: 2015-06-22 | G17: Changes made to rows 215 and 226 in the Calc_Scenario sheets to ensure the Low and High WACC sensitivity analysis works with manually entered financing costs [Matt Georges]. This version was released externally on 22nd June 2015.
D18: 5 | E18: Matt Georges | F18: 2015-07-31 | G18: B8 in Results reworded to improve clarity. Tab colours changed to improve visibility for users with colour blindness.
D19: 6 | E19: Scott Latham | F19: 2015-09-15 | G19: Major Rebuild of tool to make the user interface more navigable - reworking of all worksheets to adapt to changes in names and layout
G20: Removed Location related damage costs functionality from tool on request from Matt. Data entry removed from General Input worksheet, Relevant cells removed from 'Damage Costs' worksheet, and all Calculation worksheets - Calc_BAU - Calc_Option6 VLOOKUPS updated to look at adjusted 'IGCB best estimate' rather than look location value
G21: Damage Costs worksheet changed - moved from 3 tables into 1 larger, with inclusion of options to have different cost for NOX if PM10 also included in appraisal. Formulas changed in CALC sheets to account for this new option with IF statements where PM10 exists
G22: Removed all cells and references to 'Accidents' across all worksheets as deemed to no longer be suitable for the tool
G23: Made exchange rate row titles clearer in the Assumptions tab reworded to '£1 buys X US dollars'
G24: Corrected hyperlinks in Data Guides worksheet
G25: Made it easier to include new pollutants in 'Damage Costs' worksheet, and split out NOX into 5 categories.
G26: Merged Chart worksheet into Results worksheet
G27: Set uplift factor on each Options Calc sheet to point at a single value on Discoutn and deflators worksheet (h5)
D28: 6.01 | E28: Matt Georges | F28: 2015-10-13
D29: 6.02 | E29: Matt Georges | F29: 2015-10-14 | G29: Update to the GDP deflator and exchange rate values
D30: 6.03 | E30: Scott Latham | F30: 2015-11-30 | G30: Re-inserted uplift rate into 'Damage Costs' formulas
G31: Renamed appraisal summary to Summary Results - redesigned with new table and layout. Most questions removed from this worksheet
G32: Conditional formatting added to 'Data Input - Qualitative' worksheet - Negative/Positive colour coding
G33: Emissions to soil’ and ‘Valuation of wider environmental impacts’ removed from all worksheets and CALC worksheets
G34: Added conditional formatting to each Option input worksheet to hide #.14, #.15, #.16 depending on whether Yes/No is selected in drop down menu
G35: Fixed text wrapping, and some locked/unlocked issues across all worksheets
G36: Changed 'Cost of capital (financing)' on all Options worksheets. 'Total upfront investment cost for first installation only' now automatically calculated in CALC workshets for each option (formulas amended to account for this change). 'Repayment period (If entered manually)' line removed as served no function in the tool.
G37: BAU Worksheet and Calc reinstated - but in different standalone way. Tool remains using preferred options as comparison for all other options rather than BAU as before
G38: Redesign to Summary appraisal worksheet
G39: Damage Costs now have MIN and MAX features as requested by Matt Georges, so that High and Low benefits are taken into account and max and min figures pulled out. CALC worksheets for each option updated to reflect this - VLOOKUPs replaced with INDEX/MATCH
G40: Added table of Pollutants to Scenario and Sensitivity Analysis worksheets
D41: 6.04 | E41: Matt Georges | F41: 2015-12-03 | G41: Added 2015 damage cost values, descriptions of the purpose of the sheet in most worksheets and corrected the tick and cross options in the Appraisal Summary worksheet.
D42: 6.05 | E42: Scott Latham | F42: 2015-12-04 | G42: Removed 2 columns from damage cost sheet
G43: Added Macro which allows user to copy from one worksheet to another, with user form. Workbook must now be macro enabled.
G44: Minor changes to other worksheets, text values etc..
D45: 6.06 | E45: Matt Georges | F45: 2015-12-11 | G45: In the Data Input-General sheet: conditional formatting in cells F27-30 removed; data validation altered for row 27 so min. Year is now 1940; last year of initial operations formulas corrected. Data Input- Options sheets: Decimal places and negative numbers allowed in data validation; air pollutant emissions rounded to 2 decimal places. Results sheet: Formulas changed to correct rankings when BAU and proposed derogation options are equal and when some options have been left blank.
D46: 6.07 | E46: Matt Georges | F46: 2016-01-21 | G46: Corrected a small bug with the PM10 ESI damage costs label. Updated all data derived from Green Book supplementary guidance: valuation of energy use and greenhouse gas emissions for appraisal. Ran test using real world data.
D47: 6.08 | E47: Matt Georges | F47: 2016-01-29 | G47: Altered cells D23, D198 and D211 in all 'Calc_' sheets to include reference to cell F30 in 'Data Input - General'. Changed H15 in 'Results' worksheet to always read zero. All references to "including wider environmental benefits" removed from 'Sensitivity Analysis' and 'Sensitivity Calcs' worksheets. Corrected name of proposed option in Lists worksheet. Ran final test using real world data.
D48: 6.09 | E48: Matt Georges | F48: 2016-02-02 | G48: Updated uder guide and inserted it into the tool.
D49: 6.1 | E49: Matt Georges | F49: 2016-03-04 | G49: Added title page link to each data input sheet; changed location of the 'view underlying calculations' and 'skip to summary' texts in each data input sheet; corrected formula in cells D23 of the underlying calculations sheets; reordered the links in the title page following user feedback; removed data validation for cells containing date when BAT is met in Step 1 worksheet.
D50: 6.11 | E50: Matt Georges | F50: 2016-03-07 | G50: Updated user guide and inserted it into the tool.
D51: 6.12 | E51: Matt Georges | F51: 2016-04-14 | G51: Changes to bring tool into line with Gov.UK publication guidelines. Hyperlink buttons changed to make them more user-friendly for those with colour blindness. Minor changes to layout of landing page. New, shorter user guide addded.
D52: 6.13 | E52: Scott Latham | F52: 2016-09-13 | G52: Removed water part of scenario analysis from all sheets + calc sheets
G53: User interface re-design to make it flow better and look tidier
G54: Hyperlinks to the calcs sheets – made these easier to find. Fixed hyperlinks throughout sheets
G55: Added functionality to allow refurbishment costs to be added to data input sheets - capital costs section. Added formulas to support this to CALC sheets.
G56: Unlocked 'Add new pollutant' part of tool so that people can add / remove pollutants to Damage Costs sheet
G57: Fixed labelling of options in summary worksheet
G58: Corrected formula in Sensitivity Analysis CALC worksheet
G59: Added cell to sum the total upfront investment costs without discounting in each of the data input sheets
D60: 6.14 | E60: Scott Latham | F60: 2016-09-21 | G60: Added Admin sheet and moved admin functionality there, so users can see Version History without entering password
G61: All data input worksheets (BAU - Option 5) - added line to SUM of total non-discounted Operating/Maintenance costs
G62: Removed all rows relating to 'emissions for water' from data input worksheets (BAU - Option 5)
G63: Added button to view Scenario analysis on each data input sheet (BAU - Option 5), and back buttons to each of these sheets onto Scenario Analysis sheet
G64: Improvement to Results worksheet look and feel
G65: Correction to GHG drop down menu and auto calcs on data input worksheets (BAU - Option 5)
G66: Removed all trace of water from tool
D67: 6.15 | E67: Matt Georges | F67: 2017-01-18 | G67: Tested Scott's changes; made minor change to Start button on home page; added units to the Summary worksheet; added a 'Your Input Version History' button to the home page. Removed water calculations from the Sensitivity and Scenario Analysis sections of the data calculation worksheets (cells P219:S225, F227:I233, O237:O244, P246:S252, F254:I260). Moved the Ranking Summary at the bottom of the Scenario Analysis Calcs worksheet to the Scenaio Analysis worksheet. Changed cells K29 and K30 in Sensitivity Analysis worksheet to reflect the formulas in cells K14:K27. Changed the wording in cells D23, D34, D47 and D58 of the Results worksheet from "...produce a different conclusion..." to "...produce the same conclusion...". Moved the detailed results section to the top of the Results worksheet. Moved the Uncertainty percentage input cells closer to the relevant input rows in the data inputs worksheets. Changed the formula in row 29 of the calculation sheets to stop the annual cost of an initial payment continuing when a major refurbishment cost is added. Set print settings to allow each worksheet to be printed on one page.
D68: 6.16 | E68: Matt Georges/ Scott Latham | F68: 2017-07-10 | G68: Altered the formulas in rows 50 and 61 in the detailed results worksheet so that they point to the max and min values in the sensitivity analysis worksheet. Chnaged the formulas in cells D186 and D197 in the scenario calcs sheets so that they each refer to the correct section of the Data In put - General woksheet.
G69: Fixed VBA code for copying between spreadsheets
G70: Fixed conditional formatting on data input sheets so that correct cells were hiding when yes/no selected. Formatting had broken somehow.
G71: Fixed formulas in all option calc sheets for WACC, was pointing at wrong cells in Data input general worksheet. Also now takes into account whether first investment has been made.
G72: Amended VOCs damage costs
G73: Amended column W in Damage Costs so that the minimum includes options that are zero.
G74: Added a new section into each calculation worksheet to combine the highest capital cost with the highest WACC and the lowest capital cost with the lowest WACC to give the correct result to the Scenario Analysis.
D75: 6.17 | E75: Matt Georges | F75: 2017-09-29 | G75: Damage costs sheet altered to correct the forumlas in the columns picking up the minimum and maximum values used. Also the uplift rate was removed from the sheet and form all calculations using it as this is already done in the Calcs worksheets and was causing an increase in the damage cost valuations.

Sheet Admin
D3: Admin Tools
D5: LOCK PASSWORD | E5: Qaz@OP74

Sheet User Guide
C3: IED Tool - User Guidance
C6: To view the current version of the user guide please visit:
C7: https://www.gov.uk/government/publications/industrial-emissions-directive-derogation-cost-benefit-analysis-tool

Sheet Underlying Data List
C3: Underlying Data / Assumptions
C5: # | D5: Name (Click to see) | E5: Description
C6: 1 | D6: Energy Prices | E6: These are UK Government projections for the prices of different fuels over the long term.
C7: 2 | D7: Damage Costs | E7: These are values produced by the UK Government and the European Environment Agency to enable calculation of the benefits of reducing emissions of certain air pollutants.
C8: 3 | D8: Carbon Prices | E8: These are UK Government projections for the price of emissions of carbon dioxide over the long term. These enable calculation of the benefits of reducing emissions of greenhouse gases.
C9: 4 | D9: Emission Factors | E9: These are UK Government factors that allow the conversion of the consumption of a unit of fuel into an amount of emissions of carbon dioxide equivalent.
C10: 5 | D10: Discount and Deflators | E10: The discount rate is used to express costs and benefits from different years in the same terms. The GDP deflator allows inflation to be stripped out of the analysis. To understand these two different concepts further see the links below:
E11: http://grist.org/article/discount-rates-a-boring-thing-you-should-know-about-with-otters/
E12: https://www.gov.uk/government/collections/gdp-deflators-at-market-prices-and-money-gdp
C13: 6 | D13: Assumptions | E13: This sheet sets out the underlying assumptions for some of the other datasets such as deflators and emission factors.
C14: 7 | D14: Data Guide | E14: This contains references for the data used in the tool.

Sheet Appraisal Summary
B1: ="---- Summary Results ----" -> ---- Summary Results ----
C6: 1.1 | D6: Please state the grounds on which the application for IED derogation is made | F6: Technical | L6: (Select from dropdown)
C8: 1.2 | D8: Name of applicant's proposed option | F8: Technical derogation for 36 months.
C10: Outcome of CBA
D12: Are the environmental benefits of meeting the BAT-AEL(s) higher than the costs of doing so in comparison to the proposed derogation option?
F14: ='Data Input - General'!G24 -> Proposed derogation | H14: ='Data Input - General'!H24 -> BAT-AEL | J14: ='Data Input - General'!I24 -> Waste off | L14: ='Data Input - General'!J24 ->  | N14: ='Data Input - General'!K24 -> 
D15: Central | E15: £millions | F15: =Results!H15 -> 0 | G15: =IF(H15>=$F15,1,0) -> 0 | H15: =Results!I15 -> -17.45297026 | I15: =IF(J15>=$F15,1,0) -> 0 | J15: =Results!J15 -> -3.010181526 | K15: =IF(L15>=$F15,1,0) -> 1 | L15: =Results!K15 ->  | M15: =IF(N15>=$F15,1,0) -> 1 | N15: =Results!L15 -> 
D16: Sensitivity Analysis
D17: ="Lowest NPV for BAT-AEL is caused by: " & 'Sensitivity Analysis'!N12 -> Lowest NPV for BAT-AEL is caused by: High upfront investment costs | E17: £millions | F17: =Results!H50 -> 0 | G17: =IF(H17>=$F17,1,0) -> 0 | H17: =Results!I50 -> -22.52509005 | I17: 0 | J17: =Results!J50 -> -3.328128815 | K17: =IF(L17>=$F17,1,0) -> 1 | L17: =Results!K50 ->  | M17: =IF(N17>=$F17,1,0) -> 1 | N17: =Results!L50 -> 
D18: ="Highest NPV for BAT-AEL is caused by: " & 'Sensitivity Analysis'!N13 -> Highest NPV for BAT-AEL is caused by: Low upfront investment costs | E18: £millions | F18: =Results!H61 -> 0 | G18: 0 | H18: =Results!I61 -> -12.38085046 | I18: 0 | J18: =Results!J61 -> -2.732149134 | K18: =IF(L18>=$F18,1,0) -> 1 | L18: =Results!K61 ->  | M18: =IF(N18>=$F18,1,0) -> 1 | N18: =Results!L61 -> 
D19: Scenario Analysis
D20: =Results!D73 -> Lowest NPV for each option using highest costs and lowest benefits | E20: £millions | F20: =Results!H74 -> 0 | G20: 0 | H20: =Results!I74 -> -23.5598437 | I20: 0 | J20: =Results!J74 -> -7.611213918 | K20: =IF(L20>=$F20,1,0) -> 1 | L20: =Results!K74 ->  | M20: =IF(N20>=$F20,1,0) -> 1 | N20: =Results!L74 -> 
D21: =Results!D84 -> Highest NPV for each option using lowest costs and highest benefits | E21: £millions | F21: =Results!H85 -> 0 | G21: 0 | H21: =Results!I85 -> -11.75899834 | I21: 0 | J21: =Results!J85 -> -12.13772828 | K21: =IF(L21>=$F21,1,0) -> 1 | L21: =Results!K85 ->  | M21: =IF(N21>=$F21,1,0) -> 1 | N21: =Results!L85 -> 

Sheet Results
B1: ="---- Detailed Results for Cost Benefit Analysis ----" -> ---- Detailed Results for Cost Benefit Analysis ----
F5: Click to go back to Data Entry >
F6: Option Name | G6: ='Data Input - General'!F24 -> Business as Usual (BAU) | H6: ='Data Input - General'!G24 -> Proposed derogation | I6: ='Data Input - General'!H24 -> BAT-AEL | J6: ='Data Input - General'!I24 -> Waste off | K6: ='Data Input - General'!J24 ->  | L6: ='Data Input - General'!K24 -> 
C8: Summary
D10: Are the costs of meeting BAT-AELs outweighed by the monetised benefits in comparison to the Proposed derogation (i.e. Is NPV greater than 0)? | I10: =IF(AND(I35=0),"",IF(I35=0,"No",IF(I35>0,2,0))) -> 0
D12: What is the difference between the NPV of the BAT-AEL option and the NPV of the Proposed derogation? | H12: =$I$35 -> -17.45297026
D14: Central NPV
D15: Central NPV under sensitivity testing | H15: =0 -> 0 | I15: =IF(I35=0,"",I35) -> -17.45297026 | J15: =IF(J35=0,"",J35) -> -3.010181526 | K15: =IF(K35=0,"",K35) ->  | L15: =IF(L35=0,"",L35) -> 
D16: What are the rankings of the different options? | H16: =IFERROR(RANK(H15,$H$15:$L$15),"No Rank") -> 1 | I16: =IFERROR(RANK(I15,$H$15:$L$15),"No Rank") -> 3 | J16: 2 | K16: No Rank | L16: No Rank
C19: Detailed Results
D21: To define disproportionality
D22: Present value of costs and benefits calculated net of Proposed derogation
D24: Upfront investment costs | F24: £m | I24: =IF(I$6="",0,I39-$H39) -> 16.90706597 | J24: 0 | K24: 0 | L24: 0
D25: Operating costs | F25: £m | I25: 0.5603273962 | J25: -0.6625813999 | K25: 0 | L25: 0
D26: Waste | F26: £m | I26: 0 | J26: 0 | K26: 0 | L26: 0
D27: Energy consumption | F27: £m | I27: 0 | J27: 1.840723212 | K27: 0 | L27: 0
D28: Air pollutant emissions | F28: £m | I28: -0.01442311081 | J28: -0.01937290555 | K28: 0 | L28: 0
D29: GHG emissions | F29: £m | I29: 0 | J29: 1.85141262 | K29: 0 | L29: 0
D31: Option Name
D32: PV costs | F32: £m | I32: =SUM(I24:I27) -> 17.46739337 | J32: =SUM(J24:J27) -> 1.178141812 | K32: 0 | L32: 0
D33: PV benefits | F33: £m | I33: =SUM(I28:I29)*-1 -> 0.01442311081 | J33: =SUM(J28:J29)*-1 -> -1.832039714 | K33: =SUM(K28:K29)*-1 -> 0 | L33: 0
D35: These are the NPVs to report in the derogation application NPV | F35: £m | I35: =(I33-I32) -> -17.45297026 | J35: =(J33-J32) -> -3.010181526 | K35: =(K33-K32) -> 0 | L35: =(L33-L32) -> 0
D36: NPV | F36: £m
D37: Absolute costs and benefits for each of the options including Proposed derogation
D39: Upfront investment costs | E39: (?) | F39: £m | G39: =Calc_BAU!D261 -> 5.655358585 | H39: =Calc_Proposed!D261 -> 0 | I39: =Calc_BAT!D261 -> 16.90706597 | J39: =Calc_Option3!D261 -> 0 | K39: =Calc_Option4!D261 -> 0 | L39: =Calc_Option5!D261 -> 0
D40: Operating costs | F40: £m | G40: =Calc_BAU!D262 -> 1.778635995 | H40: =Calc_Proposed!D262 -> 2.441217395 | I40: =Calc_BAT!D262 -> 3.001544791 | J40: =Calc_Option3!D262 -> 1.778635995 | K40: =Calc_Option4!D262 -> 0.001 | L40: =Calc_Option5!D262 -> 0
D41: Waste | F41: £m | G41: =Calc_BAU!D263 -> 0 | H41: =Calc_Proposed!D263 -> 0 | I41: =Calc_BAT!D263 -> 0 | J41: =Calc_Option3!D263 -> 0 | K41: =Calc_Option4!D263 -> 0 | L41: =Calc_Option5!D263 -> 0
D42: Energy consumption | F42: £m | G42: =Calc_BAU!D264 -> 11.91983163 | H42: =Calc_Proposed!D264 -> 11.91983163 | I42: =Calc_BAT!D264 -> 11.91983163 | J42: =Calc_Option3!D264 -> 13.76055484 | K42: =Calc_Option4!D264 -> 5.09320817e-07 | L42: =Calc_Option5!D264 -> 0
D43: Air pollutant emissions | F43: £m | G43: =Calc_BAU!D265 -> 0.0452015926 | H43: =Calc_Proposed!D265 -> 0.03301606859 | I43: =Calc_BAT!D265 -> 0.01859295777 | J43: =Calc_Option3!D265 -> 0.01364316304 | K43: =Calc_Option4!D265 -> 0 | L43: =Calc_Option5!D265 -> 0
D44: GHG emissions | F44: £m | G44: =Calc_BAU!D266 -> 14.0939919 | H44: =Calc_Proposed!D266 -> 15.98398179 | I44: =Calc_BAT!D266 -> 15.98398179 | J44: =Calc_Option3!D266 -> 17.83539441 | K44: =Calc_Option4!D266 -> 1.85358613e-08 | L44: =Calc_Option5!D266 -> 0
C47: Sensitivity Analysis Results
D49: ="Lowest NPV for BAT-AEL is caused by: " & 'Sensitivity Analysis'!N12 -> Lowest NPV for BAT-AEL is caused by: High upfront investment costs
D50: Lowest NPV under sensitivity testing | H50: =H15 -> 0 | I50: =VLOOKUP(VLOOKUP(1,'Sensitivity Analysis'!$M$16:$O$28,3,FALSE),'Sensitivity Analysis'!$D$14:$I$27,3,FALSE) -> -22.52509005 | J50: =IF(VLOOKUP(VLOOKUP(1,'Sensitivity Analysis'!$T$16:$V$28,3,FALSE),'Sensitivity Analysis'!$D$14:$I$27,4,FALSE)=0,"",VLOOKUP(VLOOKUP(1,'Sensitivity Analysis'!$T$16:$V$28,3,FALSE),'Sensitivity Analysis'!$D$14:$I$27,4,FALSE)) -> -3.328128815 | K50: =IF(VLOOKUP(VLOOKUP(1,'Sensitivity Analysis'!$AA$16:$AC$28,3,FALSE),'Sensitivity Analysis'!$D$14:$I$27,5,FALSE)=0,"",VLOOKUP(VLOOKUP(1,'Sensitivity Analysis'!$AA$16:$AC$28,3,FALSE),'Sensitivity Analysis'!$D$14:$I$27,5,FALSE)) ->  | L50: =IF(VLOOKUP(VLOOKUP(1,'Sensitivity Analysis'!$AH$16:$AJ$28,3,FALSE),'Sensitivity Analysis'!$D$14:$I$27,6,FALSE)=0,"",VLOOKUP(VLOOKUP(1,'Sensitivity Analysis'!$AH$16:$AJ$28,3,FALSE),'Sensitivity Analysis'!$D$14:$I$27,6,FALSE)) -> 
D52: Does the comparison between the NPV of the BAT-AEL and the NPV of the Proposed derogation produce the same conclusion under this sensitivity test? | H52: =IF('Sensitivity Analysis'!$K$28="Yes",2,0) -> 2
D54: What is the difference between the NPV of the BAT-AEL option and the NPV of the Proposed derogation under this sensitivity test? | H54: ='Sensitivity Analysis'!$F$28 -> -22.52509005
D56: What are the rankings of the different options? | H56: =IFERROR(RANK(H50,$H$50:$L$50),"No Rank") -> 1 | I56: =IFERROR(RANK(I50,$H$50:$L$50),"No Rank") -> 3 | J56: 2 | K56: No Rank | L56: No Rank
D58: Is this ranking the same as the central assessment? | H58: =IF(AND(H16=H56,I16=I56,J16=J56,K16=K56,L16=L56),2,0) -> 2
D60: ="Highest NPV for BAT-AEL is caused by: " & 'Sensitivity Analysis'!N13 -> Highest NPV for BAT-AEL is caused by: Low upfront investment costs
D61: Highest NPV under sensitivity testing | H61: =H15 -> 0 | I61: =VLOOKUP(VLOOKUP(1,'Sensitivity Analysis'!$N$16:$O$28,2,FALSE),'Sensitivity Analysis'!$D$14:$I$27,3,FALSE) -> -12.38085046 | J61: =IF(VLOOKUP(VLOOKUP(1,'Sensitivity Analysis'!$U$16:$V$28,2,FALSE),'Sensitivity Analysis'!$D$14:$I$27,4,FALSE)=0,"",VLOOKUP(VLOOKUP(1,'Sensitivity Analysis'!$U$16:$V$28,2,FALSE),'Sensitivity Analysis'!$D$14:$I$27,4,FALSE)) -> -2.732149134 | K61: =IF(VLOOKUP(VLOOKUP(1,'Sensitivity Analysis'!$AB$16:$AC$28,2,FALSE),'Sensitivity Analysis'!$D$14:$I$27,5,FALSE)=0,"",VLOOKUP(VLOOKUP(1,'Sensitivity Analysis'!$AB$16:$AC$28,2,FALSE),'Sensitivity Analysis'!$D$14:$I$27,5,FALSE)) ->  | L61: =IF(VLOOKUP(VLOOKUP(1,'Sensitivity Analysis'!$AI$16:$AJ$28,2,FALSE),'Sensitivity Analysis'!$D$14:$I$27,6,FALSE)=0,"",VLOOKUP(VLOOKUP(1,'Sensitivity Analysis'!$AI$16:$AJ$28,2,FALSE),'Sensitivity Analysis'!$D$14:$I$27,6,FALSE)) -> 
D63: Does the comparison between the NPV of the BAT-AEL and the NPV of the Proposed derogation produce the same conclusion under this sensitivity test? | H63: =IF('Sensitivity Analysis'!K29="Yes",2,0) -> 2
D65: What is the difference between the NPV of the BAT-AEL option and the NPV of the Proposed derogation under this sensitivity test? | H65: ='Sensitivity Analysis'!F29 -> -12.38085046
D67: What are the rankings of the different options? | H67: =IFERROR(RANK(H61,$H$61:$L$61),"No Rank") -> 1 | I67: =IFERROR(RANK(I61,$H$61:$L$61),"No Rank") -> 3 | J67: 2 | K67: No Rank | L67: No Rank
D69: Is this ranking the same as the central assessment? | H69: =IF(AND(H16=H67,I16=I67,J16=J67,K16=K67,L16=L67),2,0) -> 2
C71: Scenario Analysis Results
D73: Lowest NPV for each option using highest costs and lowest benefits
D74: Lowest NPV under scenario testing | H74: =H15 -> 0 | I74: =IF(VLOOKUP('Scenario Analysis'!D11,'Scenario Analysis'!D11:J11,4,FALSE)=0,"",VLOOKUP('Scenario Analysis'!D11,'Scenario Analysis'!D11:J11,4,FALSE)) -> -23.5598437 | J74: =IF(VLOOKUP('Scenario Analysis'!D11,'Scenario Analysis'!D11:J11,5,FALSE)=0,"",VLOOKUP('Scenario Analysis'!D11,'Scenario Analysis'!D11:J11,5,FALSE)) -> -7.611213918 | K74: =IF(VLOOKUP('Scenario Analysis'!D11,'Scenario Analysis'!D11:J11,6,FALSE)=0,"",VLOOKUP('Scenario Analysis'!D11,'Scenario Analysis'!D11:J11,6,FALSE)) ->  | L74: =IF(VLOOKUP('Scenario Analysis'!D11,'Scenario Analysis'!D11:J11,7,FALSE)=0,"",VLOOKUP('Scenario Analysis'!D11,'Scenario Analysis'!D11:J11,7,FALSE)) -> 
D76: Does the comparison between the NPV of the BAT-AEL and the NPV of the Proposed derogation produce the same conclusion under this scenario test? | H76: =IF('Scenario Analysis'!L11='Scenario Analysis'!L9,2,0) -> 2
D78: What is the difference between the NPV of the BAT-AEL option and the NPV of the Proposed derogation under this scenario test? | H78: ='Scenario Analysis'!G11 -> -23.5598437
D80: What are the rankings of the different options? | H80: =IFERROR(RANK(H74,$H$74:$L$74),"No Rank") -> 1 | I80: =IFERROR(RANK(I74,$H$74:$L$74),"No Rank") -> 3 | J80: =IFERROR(RANK(J74,$H$74:$L$74),"No Rank") -> 2 | K80: =IFERROR(RANK(K74,$H$74:$L$74),"No Rank") -> No Rank | L80: =IFERROR(RANK(L74,$H$74:$L$74),"No Rank") -> No Rank
D82: Is this ranking the same as the central assessment? | H82: =IF(AND(H16=H80,I16=I80,J16=J80,K16=K80,L16=L80),2,0) -> 2
D84: Highest NPV for each option using lowest costs and highest benefits
D85: Highest NPV under scenario testing | H85: =H15 -> 0 | I85: =IF(VLOOKUP('Scenario Analysis'!D12,'Scenario Analysis'!D12:J12,4,FALSE)=0,"",VLOOKUP('Scenario Analysis'!D12,'Scenario Analysis'!D12:J12,4,FALSE)) -> -11.75899834 | J85: =IF(VLOOKUP('Scenario Analysis'!D12,'Scenario Analysis'!D12:J12,5,FALSE)=0,"",VLOOKUP('Scenario Analysis'!D12,'Scenario Analysis'!D12:J12,5,FALSE)) -> -12.13772828 | K85: =IF(VLOOKUP('Scenario Analysis'!D12,'Scenario Analysis'!D12:J12,6,FALSE)=0,"",VLOOKUP('Scenario Analysis'!D12,'Scenario Analysis'!D12:J12,6,FALSE)) ->  | L85: =IF(VLOOKUP('Scenario Analysis'!D12,'Scenario Analysis'!D12:J12,7,FALSE)=0,"",VLOOKUP('Scenario Analysis'!D12,'Scenario Analysis'!D12:J12,7,FALSE)) -> 
D87: Does the comparison between the NPV of the BAT-AEL and the NPV of the Proposed derogation produce the same conclusion under this scenario test? | H87: =IF('Scenario Analysis'!L19="No",2,0) -> 2
D89: What is the difference between the NPV of the BAT-AEL option and the NPV of the Proposed derogation under this scenario test? | H89: ='Scenario Analysis'!G12 -> -11.75899834
D91: What are the rankings of the different options? | H91: =IFERROR(RANK(H85,$H$85:$L$85),"No Rank") -> 1 | I91: =IFERROR(RANK(I85,$H$85:$L$85),"No Rank") -> 2 | J91: 3 | K91: No Rank | L91: No Rank
D93: Is this ranking the same as the central assessment? | H93: =IF(AND(H16=H91,I16=I91,J16=J91,K16=K91,L16=L91),2,0) -> 0

Sheet Sensitivity Analysis
B1: ="---- Sensitivity Analysis ----" -> ---- Sensitivity Analysis ----
D7: Sensitivity Tests
F9: NPV (£m) net of Preferred option | M9: Used by Results Worksheet
D11: Option name | F11: =Results!I6 -> BAT-AEL | G11: =Results!J6 -> Waste off | H11: =Results!K6 ->  | I11: =Results!L6 ->  | K11: Is BAT's NPV sign the same as central? | M11: =F11 -> BAT-AEL | T11: =G11 -> Waste off | AA11: =H11 ->  | AH11: =I11 -> 
D12: Central (base case) | F12: =Results!I15 -> -17.45297026 | G12: =Results!J15 -> -3.010181526 | H12: =Results!K15 ->  | I12: =Results!L15 ->  | M12: LOW | N12: =INDEX(D14:D27,MATCH(F28,F14:F27,0)) -> High upfront investment costs | T12: LOW | U12: =INDEX(D14:D27,MATCH(G28,G14:G27,0)) -> High energy price | AA12: LOW | AB12: =INDEX(D14:D27,MATCH(H28,H14:H27,0)) -> Low upfront investment costs | AH12: LOW | AI12: =INDEX(D14:D27,MATCH(I28,I14:I27,0)) -> Low upfront investment costs
M13: HIGH | N13: =INDEX(D14:D27,MATCH(F29,F14:F27,0)) -> Low upfront investment costs | T13: HIGH | U13: =INDEX(D14:D27,MATCH(G29,G14:G27,0)) -> Low energy price | AA13: HIGH | AB13: =INDEX(D14:D27,MATCH(H29,H14:H27,0)) -> Low upfront investment costs | AH13: HIGH | AI13: =INDEX(D14:D27,MATCH(I29,I14:I27,0)) -> Low upfront investment costs
D14: Low upfront investment costs | F14: =INDEX('Sensitivity Calcs'!$F$73:$Q$76,MATCH('Sensitivity Analysis'!F$11,'Sensitivity Calcs'!$C$73:$C$76,0),MATCH('Sensitivity Analysis'!$D14,'Sensitivity Calcs'!$F$5:$Q$5,0)) -> -12.38085046 | G14: =INDEX('Sensitivity Calcs'!$F$73:$Q$76,MATCH('Sensitivity Analysis'!G$11,'Sensitivity Calcs'!$C$73:$C$76,0),MATCH('Sensitivity Analysis'!$D14,'Sensitivity Calcs'!$F$5:$Q$5,0)) -> -3.010181526 | H14: =INDEX('Sensitivity Calcs'!$F$73:$Q$76,MATCH('Sensitivity Analysis'!H$11,'Sensitivity Calcs'!$C$73:$C$76,0),MATCH('Sensitivity Analysis'!$D14,'Sensitivity Calcs'!$F$5:$Q$5,0)) -> 0 | I14: =INDEX('Sensitivity Calcs'!$F$73:$Q$76,MATCH('Sensitivity Analysis'!I$11,'Sensitivity Calcs'!$C$73:$C$76,0),MATCH('Sensitivity Analysis'!$D14,'Sensitivity Calcs'!$F$5:$Q$5,0)) -> 0 | K14: =IF(OR(AND(F$12<0,F14<0),AND(F$12>0,F14>0)),"Yes",IF(OR(F$12=0,F14=0),"","No")) -> Yes
D15: High upfront investment costs | F15: =INDEX('Sensitivity Calcs'!$F$73:$Q$76,MATCH('Sensitivity Analysis'!F$11,'Sensitivity Calcs'!$C$73:$C$76,0),MATCH('Sensitivity Analysis'!$D15,'Sensitivity Calcs'!$F$5:$Q$5,0)) -> -22.52509005 | G15: =INDEX('Sensitivity Calcs'!$F$73:$Q$76,MATCH('Sensitivity Analysis'!G$11,'Sensitivity Calcs'!$C$73:$C$76,0),MATCH('Sensitivity Analysis'!$D15,'Sensitivity Calcs'!$F$5:$Q$5,0)) -> -3.010181526 | H15: =INDEX('Sensitivity Calcs'!$F$73:$Q$76,MATCH('Sensitivity Analysis'!H$11,'Sensitivity Calcs'!$C$73:$C$76,0),MATCH('Sensitivity Analysis'!$D15,'Sensitivity Calcs'!$F$5:$Q$5,0)) -> 0 | I15: =INDEX('Sensitivity Calcs'!$F$73:$Q$76,MATCH('Sensitivity Analysis'!I$11,'Sensitivity Calcs'!$C$73:$C$76,0),MATCH('Sensitivity Analysis'!$D15,'Sensitivity Calcs'!$F$5:$Q$5,0)) -> 0 | K15: =IF(OR(AND(F$12<0,F15<0),AND(F$12>0,F15>0)),"Yes",IF(OR(F$12=0,F15=0),"","No")) -> Yes | M15: LOW | N15: HIGH | T15: LOW | U15: HIGH | AA15: LOW | AB15: HIGH | AH15: LOW | AI15: HIGH
D16: Low operating costs | F16: =INDEX('Sensitivity Calcs'!$F$73:$Q$76,MATCH('Sensitivity Analysis'!F$11,'Sensitivity Calcs'!$C$73:$C$76,0),MATCH('Sensitivity Analysis'!$D16,'Sensitivity Calcs'!$F$5:$Q$5,0)) -> -17.34090478 | G16: =INDEX('Sensitivity Calcs'!$F$73:$Q$76,MATCH('Sensitivity Analysis'!G$11,'Sensitivity Calcs'!$C$73:$C$76,0),MATCH('Sensitivity Analysis'!$D16,'Sensitivity Calcs'!$F$5:$Q$5,0)) -> -3.142697806 | H16: =INDEX('Sensitivity Calcs'!$F$73:$Q$76,MATCH('Sensitivity Analysis'!H$11,'Sensitivity Calcs'!$C$73:$C$76,0),MATCH('Sensitivity Analysis'!$D16,'Sensitivity Calcs'!$F$5:$Q$5,0)) -> 0 | I16: =INDEX('Sensitivity Calcs'!$F$73:$Q$76,MATCH('Sensitivity Analysis'!I$11,'Sensitivity Calcs'!$C$73:$C$76,0),MATCH('Sensitivity Analysis'!$D16,'Sensitivity Calcs'!$F$5:$Q$5,0)) -> 0 | K16: Yes | M16: =IF(O16=$N$12,1,0) -> 0 | N16: =IF(O16=$N$13,1,0) -> 1 | O16: Low upfront investment costs | T16: =IF(V16=$U$12,1,0) -> 0 | U16: =IF(V16=$U$13,1,0) -> 0 | V16: Low upfront investment costs | AA16: =IF(AC16=$AB$12,1,0) -> 1 | AB16: =IF(AC16=$AB$13,1,0) -> 1 | AC16: Low upfront investment costs | AH16: =IF(AJ16=$AI$12,1,0) -> 1 | AI16: =IF(AJ16=$AI$13,1,0) -> 1 | AJ16: Low upfront investment costs
D17: High operating costs | F17: =INDEX('Sensitivity Calcs'!$F$73:$Q$76,MATCH('Sensitivity Analysis'!F$11,'Sensitivity Calcs'!$C$73:$C$76,0),MATCH('Sensitivity Analysis'!$D17,'Sensitivity Calcs'!$F$5:$Q$5,0)) -> -17.56503573 | G17: =INDEX('Sensitivity Calcs'!$F$73:$Q$76,MATCH('Sensitivity Analysis'!G$11,'Sensitivity Calcs'!$C$73:$C$76,0),MATCH('Sensitivity Analysis'!$D17,'Sensitivity Calcs'!$F$5:$Q$5,0)) -> -2.877665247 | H17: =INDEX('Sensitivity Calcs'!$F$73:$Q$76,MATCH('Sensitivity Analysis'!H$11,'Sensitivity Calcs'!$C$73:$C$76,0),MATCH('Sensitivity Analysis'!$D17,'Sensitivity Calcs'!$F$5:$Q$5,0)) -> 0 | I17: =INDEX('Sensitivity Calcs'!$F$73:$Q$76,MATCH('Sensitivity Analysis'!I$11,'Sensitivity Calcs'!$C$73:$C$76,0),MATCH('Sensitivity Analysis'!$D17,'Sensitivity Calcs'!$F$5:$Q$5,0)) -> 0 | K17: Yes | M17: =IF(O17=$N$12,1,0) -> 1 | N17: =IF(O17=$N$13,1,0) -> 0 | O17: High upfront investment costs | T17: =IF(V17=$U$12,1,0) -> 0 | U17: =IF(V17=$U$13,1,0) -> 0 | V17: High upfront investment costs | AA17: =IF(AC17=$AB$12,1,0) -> 0 | AB17: =IF(AC17=$AB$13,1,0) -> 0 | AC17: High upfront investment costs | AH17: =IF(AJ17=$AI$12,1,0) -> 0 | AI17: =IF(AJ17=$AI$13,1,0) -> 0 | AJ17: High upfront investment costs
D18: Low energy price | F18: =INDEX('Sensitivity Calcs'!$F$73:$Q$76,MATCH('Sensitivity Analysis'!F$11,'Sensitivity Calcs'!$C$73:$C$76,0),MATCH('Sensitivity Analysis'!$D18,'Sensitivity Calcs'!$F$5:$Q$5,0)) -> -17.45297026 | G18: =INDEX('Sensitivity Calcs'!$F$73:$Q$76,MATCH('Sensitivity Analysis'!G$11,'Sensitivity Calcs'!$C$73:$C$76,0),MATCH('Sensitivity Analysis'!$D18,'Sensitivity Calcs'!$F$5:$Q$5,0)) -> -2.732149134 | H18: =INDEX('Sensitivity Calcs'!$F$73:$Q$76,MATCH('Sensitivity Analysis'!H$11,'Sensitivity Calcs'!$C$73:$C$76,0),MATCH('Sensitivity Analysis'!$D18,'Sensitivity Calcs'!$F$5:$Q$5,0)) -> 0 | I18: =INDEX('Sensitivity Calcs'!$F$73:$Q$76,MATCH('Sensitivity Analysis'!I$11,'Sensitivity Calcs'!$C$73:$C$76,0),MATCH('Sensitivity Analysis'!$D18,'Sensitivity Calcs'!$F$5:$Q$5,0)) -> 0 | K18: Yes | M18: 0 | N18: 0 | O18: Low operating costs | T18: 0 | U18: 0 | V18: Low operating costs | AA18: 0 | AB18: 0 | AC18: Low operating costs | AH18: 0 | AI18: 0 | AJ18: Low operating costs
D19: High energy price | F19: =INDEX('Sensitivity Calcs'!$F$73:$Q$76,MATCH('Sensitivity Analysis'!F$11,'Sensitivity Calcs'!$C$73:$C$76,0),MATCH('Sensitivity Analysis'!$D19,'Sensitivity Calcs'!$F$5:$Q$5,0)) -> -17.45297026 | G19: =INDEX('Sensitivity Calcs'!$F$73:$Q$76,MATCH('Sensitivity Analysis'!G$11,'Sensitivity Calcs'!$C$73:$C$76,0),MATCH('Sensitivity Analysis'!$D19,'Sensitivity Calcs'!$F$5:$Q$5,0)) -> -3.328128815 | H19: =INDEX('Sensitivity Calcs'!$F$73:$Q$76,MATCH('Sensitivity Analysis'!H$11,'Sensitivity Calcs'!$C$73:$C$76,0),MATCH('Sensitivity Analysis'!$D19,'Sensitivity Calcs'!$F$5:$Q$5,0)) -> 0 | I19: =INDEX('Sensitivity Calcs'!$F$73:$Q$76,MATCH('Sensitivity Analysis'!I$11,'Sensitivity Calcs'!$C$73:$C$76,0),MATCH('Sensitivity Analysis'!$D19,'Sensitivity Calcs'!$F$5:$Q$5,0)) -> 0 | K19: Yes | M19: 0 | N19: 0 | O19: High operating costs | T19: 0 | U19: 0 | V19: High operating costs | AA19: 0 | AB19: 0 | AC19: High operating costs | AH19: 0 | AI19: 0 | AJ19: High operating costs
D20: Low damage costs | F20: =INDEX('Sensitivity Calcs'!$F$73:$Q$76,MATCH('Sensitivity Analysis'!F$11,'Sensitivity Calcs'!$C$73:$C$76,0),MATCH('Sensitivity Analysis'!$D20,'Sensitivity Calcs'!$F$5:$Q$5,0)) -> -17.4639652 | G20: =INDEX('Sensitivity Calcs'!$F$73:$Q$76,MATCH('Sensitivity Analysis'!G$11,'Sensitivity Calcs'!$C$73:$C$76,0),MATCH('Sensitivity Analysis'!$D20,'Sensitivity Calcs'!$F$5:$Q$5,0)) -> -3.024949777 | H20: =INDEX('Sensitivity Calcs'!$F$73:$Q$76,MATCH('Sensitivity Analysis'!H$11,'Sensitivity Calcs'!$C$73:$C$76,0),MATCH('Sensitivity Analysis'!$D20,'Sensitivity Calcs'!$F$5:$Q$5,0)) -> 0 | I20: =INDEX('Sensitivity Calcs'!$F$73:$Q$76,MATCH('Sensitivity Analysis'!I$11,'Sensitivity Calcs'!$C$73:$C$76,0),MATCH('Sensitivity Analysis'!$D20,'Sensitivity Calcs'!$F$5:$Q$5,0)) -> 0 | K20: Yes | M20: 0 | N20: 0 | O20: Low energy price | T20: 0 | U20: 1 | V20: Low energy price | AA20: 0 | AB20: 0 | AC20: Low energy price | AH20: 0 | AI20: 0 | AJ20: Low energy price
D21: High damage costs | F21: =INDEX('Sensitivity Calcs'!$F$73:$Q$76,MATCH('Sensitivity Analysis'!F$11,'Sensitivity Calcs'!$C$73:$C$76,0),MATCH('Sensitivity Analysis'!$D21,'Sensitivity Calcs'!$F$5:$Q$5,0)) -> -17.4263267 | G21: =INDEX('Sensitivity Calcs'!$F$73:$Q$76,MATCH('Sensitivity Analysis'!G$11,'Sensitivity Calcs'!$C$73:$C$76,0),MATCH('Sensitivity Analysis'!$D21,'Sensitivity Calcs'!$F$5:$Q$5,0)) -> -2.974394307 | H21: =INDEX('Sensitivity Calcs'!$F$73:$Q$76,MATCH('Sensitivity Analysis'!H$11,'Sensitivity Calcs'!$C$73:$C$76,0),MATCH('Sensitivity Analysis'!$D21,'Sensitivity Calcs'!$F$5:$Q$5,0)) -> 0 | I21: =INDEX('Sensitivity Calcs'!$F$73:$Q$76,MATCH('Sensitivity Analysis'!I$11,'Sensitivity Calcs'!$C$73:$C$76,0),MATCH('Sensitivity Analysis'!$D21,'Sensitivity Calcs'!$F$5:$Q$5,0)) -> 0 | K21: Yes | M21: 0 | N21: 0 | O21: High energy price | T21: 1 | U21: 0 | V21: High energy price | AA21: 0 | AB21: 0 | AC21: High energy price | AH21: 0 | AI21: 0 | AJ21: High energy price
D22: EEA damage costs | F22: =INDEX('Sensitivity Calcs'!$F$73:$Q$76,MATCH('Sensitivity Analysis'!F$11,'Sensitivity Calcs'!$C$73:$C$76,0),MATCH('Sensitivity Analysis'!$D22,'Sensitivity Calcs'!$F$5:$Q$5,0)) -> -17.44472163 | G22: =INDEX('Sensitivity Calcs'!$F$73:$Q$76,MATCH('Sensitivity Analysis'!G$11,'Sensitivity Calcs'!$C$73:$C$76,0),MATCH('Sensitivity Analysis'!$D22,'Sensitivity Calcs'!$F$5:$Q$5,0)) -> -2.999102093 | H22: =INDEX('Sensitivity Calcs'!$F$73:$Q$76,MATCH('Sensitivity Analysis'!H$11,'Sensitivity Calcs'!$C$73:$C$76,0),MATCH('Sensitivity Analysis'!$D22,'Sensitivity Calcs'!$F$5:$Q$5,0)) -> 0 | I22: =INDEX('Sensitivity Calcs'!$F$73:$Q$76,MATCH('Sensitivity Analysis'!I$11,'Sensitivity Calcs'!$C$73:$C$76,0),MATCH('Sensitivity Analysis'!$D22,'Sensitivity Calcs'!$F$5:$Q$5,0)) -> 0 | K22: Yes | M22: 0 | N22: 0 | O22: Low damage costs | T22: 0 | U22: 0 | V22: Low damage costs | AA22: 0 | AB22: 0 | AC22: Low damage costs | AH22: 0 | AI22: 0 | AJ22: Low damage costs
D23: Low WACC | F23: =INDEX('Sensitivity Calcs'!$F$73:$Q$76,MATCH('Sensitivity Analysis'!F$11,'Sensitivity Calcs'!$C$73:$C$76,0),MATCH('Sensitivity Analysis'!$D23,'Sensitivity Calcs'!$F$5:$Q$5,0)) -> -16.76442817 | G23: =INDEX('Sensitivity Calcs'!$F$73:$Q$76,MATCH('Sensitivity Analysis'!G$11,'Sensitivity Calcs'!$C$73:$C$76,0),MATCH('Sensitivity Analysis'!$D23,'Sensitivity Calcs'!$F$5:$Q$5,0)) -> -3.010181526 | H23: =INDEX('Sensitivity Calcs'!$F$73:$Q$76,MATCH('Sensitivity Analysis'!H$11,'Sensitivity Calcs'!$C$73:$C$76,0),MATCH('Sensitivity Analysis'!$D23,'Sensitivity Calcs'!$F$5:$Q$5,0)) -> 0 | I23: =INDEX('Sensitivity Calcs'!$F$73:$Q$76,MATCH('Sensitivity Analysis'!I$11,'Sensitivity Calcs'!$C$73:$C$76,0),MATCH('Sensitivity Analysis'!$D23,'Sensitivity Calcs'!$F$5:$Q$5,0)) -> 0 | K23: Yes | M23: 0 | N23: 0 | O23: High damage costs | T23: 0 | U23: 0 | V23: High damage costs | AA23: 0 | AB23: 0 | AC23: High damage costs | AH23: 0 | AI23: 0 | AJ23: High damage costs
D24: High WACC | F24: =INDEX('Sensitivity Calcs'!$F$73:$Q$76,MATCH('Sensitivity Analysis'!F$11,'Sensitivity Calcs'!$C$73:$C$76,0),MATCH('Sensitivity Analysis'!$D24,'Sensitivity Calcs'!$F$5:$Q$5,0)) -> -18.15427274 | G24: =INDEX('Sensitivity Calcs'!$F$73:$Q$76,MATCH('Sensitivity Analysis'!G$11,'Sensitivity Calcs'!$C$73:$C$76,0),MATCH('Sensitivity Analysis'!$D24,'Sensitivity Calcs'!$F$5:$Q$5,0)) -> -3.010181526 | H24: =INDEX('Sensitivity Calcs'!$F$73:$Q$76,MATCH('Sensitivity Analysis'!H$11,'Sensitivity Calcs'!$C$73:$C$76,0),MATCH('Sensitivity Analysis'!$D24,'Sensitivity Calcs'!$F$5:$Q$5,0)) -> 0 | I24: =INDEX('Sensitivity Calcs'!$F$73:$Q$76,MATCH('Sensitivity Analysis'!I$11,'Sensitivity Calcs'!$C$73:$C$76,0),MATCH('Sensitivity Analysis'!$D24,'Sensitivity Calcs'!$F$5:$Q$5,0)) -> 0 | K24: Yes | M24: 0 | N24: 0 | O24: EEA damage costs | T24: 0 | U24: 0 | V24: EEA damage costs | AA24: 0 | AB24: 0 | AC24: EEA damage costs | AH24: 0 | AI24: 0 | AJ24: EEA damage costs
M25: 0 | N25: 0 | O25: Low WACC | T25: 0 | U25: 0 | V25: Low WACC | AA25: 0 | AB25: 0 | AC25: Low WACC | AH25: 0 | AI25: 0 | AJ25: Low WACC
M26: 0 | N26: 0 | O26: High WACC | T26: 0 | U26: 0 | V26: High WACC | AA26: 0 | AB26: 0 | AC26: High WACC | AH26: 0 | AI26: 0 | AJ26: High WACC
D28: Range Low | F28: =MIN(F14:F24) -> -22.52509005 | G28: =MIN(G14:G24) -> -3.328128815 | H28: =MIN(H14:H24) -> 0 | I28: =MIN(I14:I24) -> 0 | K28: =IF(OR(AND(F$12<0,F28<0),AND(F$12>0,F28>0)),"Yes",IF(OR(F$12=0,F28=0),"","No")) -> Yes
D29: Range High | F29: =MAX(F14:F24) -> -12.38085046 | G29: =MAX(G14:G24) -> -2.732149134 | H29: =MAX(H14:H24) -> 0 | I29: =MAX(I14:I24) -> 0 | K29: =IF(OR(AND(F$12<0,F29<0),AND(F$12>0,F29>0)),"Yes",IF(OR(F$12=0,F29=0),"","No")) -> Yes
D31: Option ranking
D32: Option name | F32: =Results!I6 -> BAT-AEL | G32: =Results!J6 -> Waste off | H32: =Results!K6 ->  | I32: =Results!L6 ->  | K32: Ranking same as central assessment?
D33: Central (base case) | F33: =Results!I16 -> 3 | G33: =Results!J16 -> 2 | H33: =Results!K16 -> No Rank | I33: =Results!L16 -> No Rank
D35: Low upfront investment costs | F35: =INDEX('Sensitivity Calcs'!$F$81:$Q$84,MATCH('Sensitivity Analysis'!F$32,'Sensitivity Calcs'!$C$81:$C$84,0),MATCH('Sensitivity Analysis'!$D35,'Sensitivity Calcs'!$F$5:$Q$5,0)) -> 2 | G35: =INDEX('Sensitivity Calcs'!$F$81:$Q$84,MATCH('Sensitivity Analysis'!G$32,'Sensitivity Calcs'!$C$81:$C$84,0),MATCH('Sensitivity Analysis'!$D35,'Sensitivity Calcs'!$F$5:$Q$5,0)) -> 1 | H35: =INDEX('Sensitivity Calcs'!$F$81:$Q$84,MATCH('Sensitivity Analysis'!H$32,'Sensitivity Calcs'!$C$81:$C$84,0),MATCH('Sensitivity Analysis'!$D35,'Sensitivity Calcs'!$F$5:$Q$5,0)) -> No rank | I35: =INDEX('Sensitivity Calcs'!$F$81:$Q$84,MATCH('Sensitivity Analysis'!I$32,'Sensitivity Calcs'!$C$81:$C$84,0),MATCH('Sensitivity Analysis'!$D35,'Sensitivity Calcs'!$F$5:$Q$5,0)) -> No rank | K35: =IF(SUM('Sensitivity Calcs'!$F89:$I89)=4,"Yes","No") -> No
D36: High upfront investment costs | F36: =INDEX('Sensitivity Calcs'!$F$81:$Q$84,MATCH('Sensitivity Analysis'!F$32,'Sensitivity Calcs'!$C$81:$C$84,0),MATCH('Sensitivity Analysis'!$D36,'Sensitivity Calcs'!$F$5:$Q$5,0)) -> 2 | G36: =INDEX('Sensitivity Calcs'!$F$81:$Q$84,MATCH('Sensitivity Analysis'!G$32,'Sensitivity Calcs'!$C$81:$C$84,0),MATCH('Sensitivity Analysis'!$D36,'Sensitivity Calcs'!$F$5:$Q$5,0)) -> 1 | H36: =INDEX('Sensitivity Calcs'!$F$81:$Q$84,MATCH('Sensitivity Analysis'!H$32,'Sensitivity Calcs'!$C$81:$C$84,0),MATCH('Sensitivity Analysis'!$D36,'Sensitivity Calcs'!$F$5:$Q$5,0)) -> No rank | I36: =INDEX('Sensitivity Calcs'!$F$81:$Q$84,MATCH('Sensitivity Analysis'!I$32,'Sensitivity Calcs'!$C$81:$C$84,0),MATCH('Sensitivity Analysis'!$D36,'Sensitivity Calcs'!$F$5:$Q$5,0)) -> No rank | K36: =IF(SUM('Sensitivity Calcs'!$F90:$I90)=4,"Yes","No") -> No
D37: Low operating costs | F37: =INDEX('Sensitivity Calcs'!$F$81:$Q$84,MATCH('Sensitivity Analysis'!F$32,'Sensitivity Calcs'!$C$81:$C$84,0),MATCH('Sensitivity Analysis'!$D37,'Sensitivity Calcs'!$F$5:$Q$5,0)) -> 2 | G37: =INDEX('Sensitivity Calcs'!$F$81:$Q$84,MATCH('Sensitivity Analysis'!G$32,'Sensitivity Calcs'!$C$81:$C$84,0),MATCH('Sensitivity Analysis'!$D37,'Sensitivity Calcs'!$F$5:$Q$5,0)) -> 1 | H37: =INDEX('Sensitivity Calcs'!$F$81:$Q$84,MATCH('Sensitivity Analysis'!H$32,'Sensitivity Calcs'!$C$81:$C$84,0),MATCH('Sensitivity Analysis'!$D37,'Sensitivity Calcs'!$F$5:$Q$5,0)) -> No rank | I37: =INDEX('Sensitivity Calcs'!$F$81:$Q$84,MATCH('Sensitivity Analysis'!I$32,'Sensitivity Calcs'!$C$81:$C$84,0),MATCH('Sensitivity Analysis'!$D37,'Sensitivity Calcs'!$F$5:$Q$5,0)) -> No rank | K37: =IF(SUM('Sensitivity Calcs'!$F91:$I91)=4,"Yes","No") -> No
D38: High operating costs | F38: =INDEX('Sensitivity Calcs'!$F$81:$Q$84,MATCH('Sensitivity Analysis'!F$32,'Sensitivity Calcs'!$C$81:$C$84,0),MATCH('Sensitivity Analysis'!$D38,'Sensitivity Calcs'!$F$5:$Q$5,0)) -> 2 | G38: =INDEX('Sensitivity Calcs'!$F$81:$Q$84,MATCH('Sensitivity Analysis'!G$32,'Sensitivity Calcs'!$C$81:$C$84,0),MATCH('Sensitivity Analysis'!$D38,'Sensitivity Calcs'!$F$5:$Q$5,0)) -> 1 | H38: =INDEX('Sensitivity Calcs'!$F$81:$Q$84,MATCH('Sensitivity Analysis'!H$32,'Sensitivity Calcs'!$C$81:$C$84,0),MATCH('Sensitivity Analysis'!$D38,'Sensitivity Calcs'!$F$5:$Q$5,0)) -> No rank | I38: =INDEX('Sensitivity Calcs'!$F$81:$Q$84,MATCH('Sensitivity Analysis'!I$32,'Sensitivity Calcs'!$C$81:$C$84,0),MATCH('Sensitivity Analysis'!$D38,'Sensitivity Calcs'!$F$5:$Q$5,0)) -> No rank | K38: =IF(SUM('Sensitivity Calcs'!$F92:$I92)=4,"Yes","No") -> No
D39: Low energy price | F39: =INDEX('Sensitivity Calcs'!$F$81:$Q$84,MATCH('Sensitivity Analysis'!F$32,'Sensitivity Calcs'!$C$81:$C$84,0),MATCH('Sensitivity Analysis'!$D39,'Sensitivity Calcs'!$F$5:$Q$5,0)) -> 2 | G39: =INDEX('Sensitivity Calcs'!$F$81:$Q$84,MATCH('Sensitivity Analysis'!G$32,'Sensitivity Calcs'!$C$81:$C$84,0),MATCH('Sensitivity Analysis'!$D39,'Sensitivity Calcs'!$F$5:$Q$5,0)) -> 1 | H39: =INDEX('Sensitivity Calcs'!$F$81:$Q$84,MATCH('Sensitivity Analysis'!H$32,'Sensitivity Calcs'!$C$81:$C$84,0),MATCH('Sensitivity Analysis'!$D39,'Sensitivity Calcs'!$F$5:$Q$5,0)) -> No rank | I39: =INDEX('Sensitivity Calcs'!$F$81:$Q$84,MATCH('Sensitivity Analysis'!I$32,'Sensitivity Calcs'!$C$81:$C$84,0),MATCH('Sensitivity Analysis'!$D39,'Sensitivity Calcs'!$F$5:$Q$5,0)) -> No rank | K39: =IF(SUM('Sensitivity Calcs'!$F93:$I93)=4,"Yes","No") -> No
D40: High energy price | F40: =INDEX('Sensitivity Calcs'!$F$81:$Q$84,MATCH('Sensitivity Analysis'!F$32,'Sensitivity Calcs'!$C$81:$C$84,0),MATCH('Sensitivity Analysis'!$D40,'Sensitivity Calcs'!$F$5:$Q$5,0)) -> 2 | G40: =INDEX('Sensitivity Calcs'!$F$81:$Q$84,MATCH('Sensitivity Analysis'!G$32,'Sensitivity Calcs'!$C$81:$C$84,0),MATCH('Sensitivity Analysis'!$D40,'Sensitivity Calcs'!$F$5:$Q$5,0)) -> 1 | H40: =INDEX('Sensitivity Calcs'!$F$81:$Q$84,MATCH('Sensitivity Analysis'!H$32,'Sensitivity Calcs'!$C$81:$C$84,0),MATCH('Sensitivity Analysis'!$D40,'Sensitivity Calcs'!$F$5:$Q$5,0)) -> No rank | I40: =INDEX('Sensitivity Calcs'!$F$81:$Q$84,MATCH('Sensitivity Analysis'!I$32,'Sensitivity Calcs'!$C$81:$C$84,0),MATCH('Sensitivity Analysis'!$D40,'Sensitivity Calcs'!$F$5:$Q$5,0)) -> No rank | K40: =IF(SUM('Sensitivity Calcs'!$F94:$I94)=4,"Yes","No") -> No
D41: Low damage costs | F41: =INDEX('Sensitivity Calcs'!$F$81:$Q$84,MATCH('Sensitivity Analysis'!F$32,'Sensitivity Calcs'!$C$81:$C$84,0),MATCH('Sensitivity Analysis'!$D41,'Sensitivity Calcs'!$F$5:$Q$5,0)) -> 2 | G41: =INDEX('Sensitivity Calcs'!$F$81:$Q$84,MATCH('Sensitivity Analysis'!G$32,'Sensitivity Calcs'!$C$81:$C$84,0),MATCH('Sensitivity Analysis'!$D41,'Sensitivity Calcs'!$F$5:$Q$5,0)) -> 1 | H41: =INDEX('Sensitivity Calcs'!$F$81:$Q$84,MATCH('Sensitivity Analysis'!H$32,'Sensitivity Calcs'!$C$81:$C$84,0),MATCH('Sensitivity Analysis'!$D41,'Sensitivity Calcs'!$F$5:$Q$5,0)) -> No rank | I41: =INDEX('Sensitivity Calcs'!$F$81:$Q$84,MATCH('Sensitivity Analysis'!I$32,'Sensitivity Calcs'!$C$81:$C$84,0),MATCH('Sensitivity Analysis'!$D41,'Sensitivity Calcs'!$F$5:$Q$5,0)) -> No rank | K41: =IF(SUM('Sensitivity Calcs'!$F95:$I95)=4,"Yes","No") -> No
D42: High damage costs | F42: =INDEX('Sensitivity Calcs'!$F$81:$Q$84,MATCH('Sensitivity Analysis'!F$32,'Sensitivity Calcs'!$C$81:$C$84,0),MATCH('Sensitivity Analysis'!$D42,'Sensitivity Calcs'!$F$5:$Q$5,0)) -> 2 | G42: =INDEX('Sensitivity Calcs'!$F$81:$Q$84,MATCH('Sensitivity Analysis'!G$32,'Sensitivity Calcs'!$C$81:$C$84,0),MATCH('Sensitivity Analysis'!$D42,'Sensitivity Calcs'!$F$5:$Q$5,0)) -> 1 | H42: =INDEX('Sensitivity Calcs'!$F$81:$Q$84,MATCH('Sensitivity Analysis'!H$32,'Sensitivity Calcs'!$C$81:$C$84,0),MATCH('Sensitivity Analysis'!$D42,'Sensitivity Calcs'!$F$5:$Q$5,0)) -> No rank | I42: =INDEX('Sensitivity Calcs'!$F$81:$Q$84,MATCH('Sensitivity Analysis'!I$32,'Sensitivity Calcs'!$C$81:$C$84,0),MATCH('Sensitivity Analysis'!$D42,'Sensitivity Calcs'!$F$5:$Q$5,0)) -> No rank | K42: =IF(SUM('Sensitivity Calcs'!$F96:$I96)=4,"Yes","No") -> No
D43: EEA damage costs | F43: =INDEX('Sensitivity Calcs'!$F$81:$Q$84,MATCH('Sensitivity Analysis'!F$32,'Sensitivity Calcs'!$C$81:$C$84,0),MATCH('Sensitivity Analysis'!$D43,'Sensitivity Calcs'!$F$5:$Q$5,0)) -> 2 | G43: =INDEX('Sensitivity Calcs'!$F$81:$Q$84,MATCH('Sensitivity Analysis'!G$32,'Sensitivity Calcs'!$C$81:$C$84,0),MATCH('Sensitivity Analysis'!$D43,'Sensitivity Calcs'!$F$5:$Q$5,0)) -> 1 | H43: =INDEX('Sensitivity Calcs'!$F$81:$Q$84,MATCH('Sensitivity Analysis'!H$32,'Sensitivity Calcs'!$C$81:$C$84,0),MATCH('Sensitivity Analysis'!$D43,'Sensitivity Calcs'!$F$5:$Q$5,0)) -> No rank | I43: =INDEX('Sensitivity Calcs'!$F$81:$Q$84,MATCH('Sensitivity Analysis'!I$32,'Sensitivity Calcs'!$C$81:$C$84,0),MATCH('Sensitivity Analysis'!$D43,'Sensitivity Calcs'!$F$5:$Q$5,0)) -> No rank | K43: =IF(SUM('Sensitivity Calcs'!$F97:$I97)=4,"Yes","No") -> No
D44: Low WACC | F44: =INDEX('Sensitivity Calcs'!$F$81:$Q$84,MATCH('Sensitivity Analysis'!F$32,'Sensitivity Calcs'!$C$81:$C$84,0),MATCH('Sensitivity Analysis'!$D44,'Sensitivity Calcs'!$F$5:$Q$5,0)) -> 2 | G44: =INDEX('Sensitivity Calcs'!$F$81:$Q$84,MATCH('Sensitivity Analysis'!G$32,'Sensitivity Calcs'!$C$81:$C$84,0),MATCH('Sensitivity Analysis'!$D44,'Sensitivity Calcs'!$F$5:$Q$5,0)) -> 1 | H44: =INDEX('Sensitivity Calcs'!$F$81:$Q$84,MATCH('Sensitivity Analysis'!H$32,'Sensitivity Calcs'!$C$81:$C$84,0),MATCH('Sensitivity Analysis'!$D44,'Sensitivity Calcs'!$F$5:$Q$5,0)) -> No rank | I44: =INDEX('Sensitivity Calcs'!$F$81:$Q$84,MATCH('Sensitivity Analysis'!I$32,'Sensitivity Calcs'!$C$81:$C$84,0),MATCH('Sensitivity Analysis'!$D44,'Sensitivity Calcs'!$F$5:$Q$5,0)) -> No rank | K44: =IF(SUM('Sensitivity Calcs'!$F98:$I98)=4,"Yes","No") -> No
D45: High WACC | F45: =INDEX('Sensitivity Calcs'!$F$81:$Q$84,MATCH('Sensitivity Analysis'!F$32,'Sensitivity Calcs'!$C$81:$C$84,0),MATCH('Sensitivity Analysis'!$D45,'Sensitivity Calcs'!$F$5:$Q$5,0)) -> 2 | G45: =INDEX('Sensitivity Calcs'!$F$81:$Q$84,MATCH('Sensitivity Analysis'!G$32,'Sensitivity Calcs'!$C$81:$C$84,0),MATCH('Sensitivity Analysis'!$D45,'Sensitivity Calcs'!$F$5:$Q$5,0)) -> 1 | H45: =INDEX('Sensitivity Calcs'!$F$81:$Q$84,MATCH('Sensitivity Analysis'!H$32,'Sensitivity Calcs'!$C$81:$C$84,0),MATCH('Sensitivity Analysis'!$D45,'Sensitivity Calcs'!$F$5:$Q$5,0)) -> No rank | I45: =INDEX('Sensitivity Calcs'!$F$81:$Q$84,MATCH('Sensitivity Analysis'!I$32,'Sensitivity Calcs'!$C$81:$C$84,0),MATCH('Sensitivity Analysis'!$D45,'Sensitivity Calcs'!$F$5:$Q$5,0)) -> No rank | K45: =IF(SUM('Sensitivity Calcs'!$F99:$I99)=4,"Yes","No") -> No
D47: Maximum and minimum damage costs used for each pollutant
I49: NOX when combined with PM10
D50: ='Damage costs'!C35 -> Diesel particulate matter | G50: ='Damage costs'!V15 -> MAX Used | H50: ='Damage costs'!X15 -> MIN Used | I50: ='Damage costs'!Z15 -> MAX Used | J50: ='Damage costs'!AB15 -> MIN Used
D51: ='Damage costs'!C16 -> NOX Domestic | G51: ='Damage costs'!V16 -> High central range | H51: ='Damage costs'!X16 -> EEA | I51: =IF(LEFT(D51,3)="NOX",'Damage costs'!Z16,"") -> High central range | J51: =IF(LEFT(D51,3)="NOX",'Damage costs'!AB16,"") -> Low central range
D52: ='Damage costs'!C17 -> NOX Agriculture | G52: ='Damage costs'!V17 -> High central range | H52: ='Damage costs'!X17 -> Low central range | I52: =IF(LEFT(D52,3)="NOX",'Damage costs'!Z17,"") -> High central range | J52: =IF(LEFT(D52,3)="NOX",'Damage costs'!AB17,"") -> Low central range
D53: ='Damage costs'!C18 -> NOX Waste | G53: ='Damage costs'!V18 -> High central range | H53: ='Damage costs'!X18 -> EEA | I53: =IF(LEFT(D53,3)="NOX",'Damage costs'!Z18,"") -> High central range | J53: =IF(LEFT(D53,3)="NOX",'Damage costs'!AB18,"") -> Low central range
D54: ='Damage costs'!C19 -> NOX Industry | G54: ='Damage costs'!V19 -> High central range | H54: ='Damage costs'!X19 -> EEA | I54: =IF(LEFT(D54,3)="NOX",'Damage costs'!Z19,"") -> High central range | J54: =IF(LEFT(D54,3)="NOX",'Damage costs'!AB19,"") -> Low central range
D55: ='Damage costs'!C20 -> NOX ESI | G55: ='Damage costs'!V20 -> EEA | H55: ='Damage costs'!X20 -> Low central range | I55: =IF(LEFT(D55,3)="NOX",'Damage costs'!Z20,"") -> High central range | J55: =IF(LEFT(D55,3)="NOX",'Damage costs'!AB20,"") -> Low central range
D56: ='Damage costs'!C21 -> SOX | G56: ='Damage costs'!V21 -> EEA | H56: ='Damage costs'!X21 -> Low central range | I56: =IF(LEFT(D56,3)="NOX",'Damage costs'!Z21,"") ->  | J56: =IF(LEFT(D56,3)="NOX",'Damage costs'!AB21,"") -> 
D57: ='Damage costs'!C22 -> PM10 Domestic | G57: ='Damage costs'!V22 -> High central range | H57: ='Damage costs'!X22 -> EEA | I57: =IF(LEFT(D57,3)="NOX",'Damage costs'!Z22,"") ->  | J57: =IF(LEFT(D57,3)="NOX",'Damage costs'!AB22,"") -> 
D58: ='Damage costs'!C23 -> PM10 Agriculture | G58: ='Damage costs'!V23 -> EEA | H58: ='Damage costs'!X23 -> Low central range | I58: =IF(LEFT(D58,3)="NOX",'Damage costs'!Z23,"") ->  | J58: =IF(LEFT(D58,3)="NOX",'Damage costs'!AB23,"") -> 
D59: ='Damage costs'!C24 -> PM10 Waste | G59: ='Damage costs'!V24 -> High central range | H59: ='Damage costs'!X24 -> EEA | I59: =IF(LEFT(D59,3)="NOX",'Damage costs'!Z24,"") ->  | J59: =IF(LEFT(D59,3)="NOX",'Damage costs'!AB24,"") -> 
D60: ='Damage costs'!C25 -> PM10 Industry | G60: ='Damage costs'!V25 -> High central range | H60: ='Damage costs'!X25 -> EEA | I60: =IF(LEFT(D60,3)="NOX",'Damage costs'!Z25,"") ->  | J60: =IF(LEFT(D60,3)="NOX",'Damage costs'!AB25,"") -> 
D61: ='Damage costs'!C26 -> PM10 ESI | G61: ='Damage costs'!V26 -> EEA | H61: ='Damage costs'!X26 -> Low central range | I61: =IF(LEFT(D61,3)="NOX",'Damage costs'!Z26,"") ->  | J61: =IF(LEFT(D61,3)="NOX",'Damage costs'!AB26,"") -> 
D62: ='Damage costs'!C27 -> Ammonia | G62: ='Damage costs'!V27 -> EEA | H62: ='Damage costs'!X27 -> Low central range | I62: =IF(LEFT(D62,3)="NOX",'Damage costs'!Z27,"") ->  | J62: =IF(LEFT(D62,3)="NOX",'Damage costs'!AB27,"") -> 
D63: ='Damage costs'!C28 -> Arsenic | G63: ='Damage costs'!V28 -> EEA | H63: ='Damage costs'!X28 -> Low central range | I63: =IF(LEFT(D63,3)="NOX",'Damage costs'!Z28,"") ->  | J63: =IF(LEFT(D63,3)="NOX",'Damage costs'!AB28,"") -> 
D64: ='Damage costs'!C29 -> Cadmium | G64: ='Damage costs'!V29 -> EEA | H64: ='Damage costs'!X29 -> Low central range | I64: =IF(LEFT(D64,3)="NOX",'Damage costs'!Z29,"") ->  | J64: =IF(LEFT(D64,3)="NOX",'Damage costs'!AB29,"") -> 
D65: ='Damage costs'!C30 -> Chromium | G65: ='Damage costs'!V30 -> EEA | H65: ='Damage costs'!X30 -> Low central range | I65: =IF(LEFT(D65,3)="NOX",'Damage costs'!Z30,"") ->  | J65: =IF(LEFT(D65,3)="NOX",'Damage costs'!AB30,"") -> 
D66: ='Damage costs'!C31 -> Nickel | G66: ='Damage costs'!V31 -> EEA | H66: ='Damage costs'!X31 -> Low central range | I66: =IF(LEFT(D66,3)="NOX",'Damage costs'!Z31,"") ->  | J66: =IF(LEFT(D66,3)="NOX",'Damage costs'!AB31,"") -> 
D67: ='Damage costs'!C32 -> 1, 3 Butadiene | G67: ='Damage costs'!V32 -> EEA | H67: ='Damage costs'!X32 -> Low central range | I67: =IF(LEFT(D67,3)="NOX",'Damage costs'!Z32,"") ->  | J67: =IF(LEFT(D67,3)="NOX",'Damage costs'!AB32,"") -> 
D68: ='Damage costs'!C33 -> Benzene | G68: ='Damage costs'!V33 -> EEA | H68: ='Damage costs'!X33 -> Low central range | I68: =IF(LEFT(D68,3)="NOX",'Damage costs'!Z33,"") ->  | J68: =IF(LEFT(D68,3)="NOX",'Damage costs'!AB33,"") -> 
D69: ='Damage costs'!C34 -> PAH | G69: ='Damage costs'!V34 -> EEA | H69: ='Damage costs'!X34 -> Low central range | I69: =IF(LEFT(D69,3)="NOX",'Damage costs'!Z34,"") ->  | J69: =IF(LEFT(D69,3)="NOX",'Damage costs'!AB34,"") -> 
D70: ='Damage costs'!C35 -> Diesel particulate matter | G70: ='Damage costs'!V35 -> EEA | H70: ='Damage costs'!X35 -> Low central range | I70: =IF(LEFT(D70,3)="NOX",'Damage costs'!Z35,"") ->  | J70: =IF(LEFT(D70,3)="NOX",'Damage costs'!AB35,"") -> 
D71: ='Damage costs'!C36 -> Formaldehyde | G71: ='Damage costs'!V36 -> EEA | H71: ='Damage costs'!X36 -> Low central range | I71: =IF(LEFT(D71,3)="NOX",'Damage costs'!Z36,"") ->  | J71: =IF(LEFT(D71,3)="NOX",'Damage costs'!AB36,"") -> 
D72: ='Damage costs'!C37 -> Dioxins/furans | G72: ='Damage costs'!V37 -> EEA | H72: ='Damage costs'!X37 -> Low central range | I72: =IF(LEFT(D72,3)="NOX",'Damage costs'!Z37,"") ->  | J72: =IF(LEFT(D72,3)="NOX",'Damage costs'!AB37,"") -> 
D73: =IF('Damage costs'!C38<>"Insert New Pollutant Here",'Damage costs'!C38,"") -> VOCs | G73: =IF(D73<>"",'Damage costs'!V38,"") -> EEA | H73: =IF(D73<>"",'Damage costs'!X38,"") -> Low central range | I73: =IF(LEFT(D73,3)="NOX",'Damage costs'!Z38,"") ->  | J73: =IF(LEFT(D73,3)="NOX",'Damage costs'!AB38,"") -> 
D74: =IF('Damage costs'!C39<>"Insert New Pollutant Here",'Damage costs'!C39,"") -> Sox 2019 | G74: =IF(D74<>"",'Damage costs'!V39,"") -> High central range | H74: =IF(D74<>"",'Damage costs'!X39,"") -> Low central range | I74: =IF(LEFT(D74,3)="NOX",'Damage costs'!Z39,"") ->  | J74: =IF(LEFT(D74,3)="NOX",'Damage costs'!AB39,"") -> 
D75: =IF('Damage costs'!C40<>"Insert New Pollutant Here",'Damage costs'!C40,"") ->  | G75: =IF(D75<>"",'Damage costs'!V40,"") ->  | H75: =IF(D75<>"",'Damage costs'!X40,"") ->  | I75: =IF(LEFT(D75,3)="NOX",'Damage costs'!Z40,"") ->  | J75: =IF(LEFT(D75,3)="NOX",'Damage costs'!AB40,"") -> 
D76: =IF('Damage costs'!C41<>"Insert New Pollutant Here",'Damage costs'!C41,"") ->  | G76: =IF(D76<>"",'Damage costs'!V41,"") ->  | H76: =IF(D76<>"",'Damage costs'!X41,"") ->  | I76: =IF(LEFT(D76,3)="NOX",'Damage costs'!Z41,"") ->  | J76: =IF(LEFT(D76,3)="NOX",'Damage costs'!AB41,"") -> 
D77: =IF('Damage costs'!C42<>"Insert New Pollutant Here",'Damage costs'!C42,"") ->  | G77: =IF(D77<>"",'Damage costs'!V42,"") ->  | H77: =IF(D77<>"",'Damage costs'!X42,"") ->  | I77: =IF(LEFT(D77,3)="NOX",'Damage costs'!Z42,"") ->  | J77: =IF(LEFT(D77,3)="NOX",'Damage costs'!AB42,"") -> 
D78: =IF('Damage costs'!C43<>"Insert New Pollutant Here",'Damage costs'!C43,"") ->  | G78: =IF(D78<>"",'Damage costs'!V43,"") ->  | H78: =IF(D78<>"",'Damage costs'!X43,"") ->  | I78: =IF(LEFT(D78,3)="NOX",'Damage costs'!Z43,"") ->  | J78: =IF(LEFT(D78,3)="NOX",'Damage costs'!AB43,"") -> 
D81: Sensitivity analysis (Tipping point analysis for BAT-AEL) | G81: (?)
D83: Parameter | F83: Goal-seek cell | G83: Goal-seek target (NPV=0) | H83: Original value (£m) | I83: Tipping value (£m) | J83: % change
D84: BAT Installation costs | G84: ='Sensitivity Calcs'!$G$127 -> -17.45297026 | H84: =Results!I39 -> 16.90706597 | J84: =IFERROR(I84/H84,0) -> 0
D85: BAT Operating costs | G85: ='Sensitivity Calcs'!$G$127 -> -17.45297026 | H85: =Results!I40 -> 3.001544791 | J85: =IFERROR(I85/H85,0) -> 0
D86: BAT Energy Cost | G86: ='Sensitivity Calcs'!$G$127 -> -17.45297026 | H86: =Results!I42 -> 11.91983163 | J86: 0
D87: BAT air quality impacts | G87: ='Sensitivity Calcs'!$G$127 -> -17.45297026 | H87: =Results!I43 -> 0.01859295777 | J87: 0
D88: BAT emission impacts | G88: ='Sensitivity Calcs'!$G$127 -> -17.45297026 | H88: =Results!I44 -> 15.98398179 | J88: 0
D89: WACC | F89: See cell E18 in 'Data input - General' | G89: ='Sensitivity Calcs'!$G$127 -> -17.45297026 | H89: ='Data Input - General'!G16 -> 0.065 | J89: 0

Sheet Scenario Analysis
B1: ="---- Scenario Analysis ----" -> ---- Scenario Analysis ----
G7: NPV (£m) at net of preferred option
D8: Option name | G8: =Results!I6 -> BAT-AEL | H8: =Results!J6 -> Waste off | I8: =Results!K6 ->  | J8: =Results!L6 ->  | L8: Are the benefits of meeting BAT less than the costs?
D9: Central (base case) | G9: =Results!I15 -> -17.45297026 | H9: =Results!J15 -> -3.010181526 | I9: =Results!K15 ->  | J9: =Results!L15 ->  | L9: =IF(G9<0,"Yes",IF(G9=0,"","No")) -> Yes
D11: High Costs Low Benefits | E11: 1 | G11: =INDEX('Scenario Calcs'!$F$73:$G$76,MATCH('Scenario Analysis'!G$8,'Scenario Calcs'!$C$73:$C$76,0),MATCH('Scenario Analysis'!$E11,'Scenario Calcs'!$F$6:$G$6,0)) -> -23.5598437 | H11: =INDEX('Scenario Calcs'!$F$73:$G$76,MATCH('Scenario Analysis'!H$8,'Scenario Calcs'!$C$73:$C$76,0),MATCH('Scenario Analysis'!$E11,'Scenario Calcs'!$F$6:$G$6,0)) -> -7.611213918 | I11: =INDEX('Scenario Calcs'!$F$73:$G$76,MATCH('Scenario Analysis'!I$8,'Scenario Calcs'!$C$73:$C$76,0),MATCH('Scenario Analysis'!$E11,'Scenario Calcs'!$F$6:$G$6,0)) -> 0 | J11: =INDEX('Scenario Calcs'!$F$73:$G$76,MATCH('Scenario Analysis'!J$8,'Scenario Calcs'!$C$73:$C$76,0),MATCH('Scenario Analysis'!$E11,'Scenario Calcs'!$F$6:$G$6,0)) -> 0 | L11: =IF(G11<0,"Yes",IF(G11=0,"","No")) -> Yes
D12: Low Costs High Benefits | E12: 2 | G12: =INDEX('Scenario Calcs'!$F$73:$G$76,MATCH('Scenario Analysis'!G$8,'Scenario Calcs'!$C$73:$C$76,0),MATCH('Scenario Analysis'!$E12,'Scenario Calcs'!$F$6:$G$6,0)) -> -11.75899834 | H12: =INDEX('Scenario Calcs'!$F$73:$G$76,MATCH('Scenario Analysis'!H$8,'Scenario Calcs'!$C$73:$C$76,0),MATCH('Scenario Analysis'!$E12,'Scenario Calcs'!$F$6:$G$6,0)) -> -12.13772828 | I12: =INDEX('Scenario Calcs'!$F$73:$G$76,MATCH('Scenario Analysis'!I$8,'Scenario Calcs'!$C$73:$C$76,0),MATCH('Scenario Analysis'!$E12,'Scenario Calcs'!$F$6:$G$6,0)) -> 0 | J12: =INDEX('Scenario Calcs'!$F$73:$G$76,MATCH('Scenario Analysis'!J$8,'Scenario Calcs'!$C$73:$C$76,0),MATCH('Scenario Analysis'!$E12,'Scenario Calcs'!$F$6:$G$6,0)) -> 0 | L12: Yes
D15: Option ranking | G15: =Results!I6 -> BAT-AEL | H15: =Results!J6 -> Waste off | I15: =Results!K6 ->  | J15: =Results!L6 ->  | L15: Ranking same as central assessment?
D16: Central (base case) | G16: =Results!I16 -> 3 | H16: =Results!J16 -> 2 | I16: =Results!K16 -> No Rank | J16: =Results!L16 -> No Rank
O17: ='Scenario Analysis'!G8 -> BAT-AEL | P17: ='Scenario Analysis'!H8 -> Waste off
D18: High Costs Low Benefits | E18: 1 | G18: =INDEX('Scenario Calcs'!$F$81:$G$84,MATCH('Scenario Analysis'!G$8,'Scenario Calcs'!$C$81:$C$84,0),MATCH('Scenario Analysis'!$E18,'Scenario Calcs'!$F$6:$G$6,0)) -> 2 | H18: =INDEX('Scenario Calcs'!$F$81:$G$84,MATCH('Scenario Analysis'!H$8,'Scenario Calcs'!$C$81:$C$84,0),MATCH('Scenario Analysis'!$E18,'Scenario Calcs'!$F$6:$G$6,0)) -> 1 | I18: =INDEX('Scenario Calcs'!$F$81:$G$84,MATCH('Scenario Analysis'!I$8,'Scenario Calcs'!$C$81:$C$84,0),MATCH('Scenario Analysis'!$E18,'Scenario Calcs'!$F$6:$G$6,0)) -> No rank | J18: =INDEX('Scenario Calcs'!$F$81:$G$84,MATCH('Scenario Analysis'!J$8,'Scenario Calcs'!$C$81:$C$84,0),MATCH('Scenario Analysis'!$E18,'Scenario Calcs'!$F$6:$G$6,0)) -> No rank | L18: =IF(SUM('Scenario Analysis'!$O18:$P18)=4,"Yes","No") -> No | N18: ='Scenario Analysis'!D18 -> High Costs Low Benefits | O18: =IF('Scenario Analysis'!G18='Scenario Analysis'!G$16,1,0) -> 0 | P18: =IF('Scenario Analysis'!H18='Scenario Analysis'!H$16,1,0) -> 0
D19: Low Costs High Benefits | E19: 2 | G19: =INDEX('Scenario Calcs'!$F$81:$G$84,MATCH('Scenario Analysis'!G$8,'Scenario Calcs'!$C$81:$C$84,0),MATCH('Scenario Analysis'!$E19,'Scenario Calcs'!$F$6:$G$6,0)) -> 1 | H19: =INDEX('Scenario Calcs'!$F$81:$G$84,MATCH('Scenario Analysis'!H$8,'Scenario Calcs'!$C$81:$C$84,0),MATCH('Scenario Analysis'!$E19,'Scenario Calcs'!$F$6:$G$6,0)) -> 2 | I19: =INDEX('Scenario Calcs'!$F$81:$G$84,MATCH('Scenario Analysis'!I$8,'Scenario Calcs'!$C$81:$C$84,0),MATCH('Scenario Analysis'!$E19,'Scenario Calcs'!$F$6:$G$6,0)) -> No rank | J19: =INDEX('Scenario Calcs'!$F$81:$G$84,MATCH('Scenario Analysis'!J$8,'Scenario Calcs'!$C$81:$C$84,0),MATCH('Scenario Analysis'!$E19,'Scenario Calcs'!$F$6:$G$6,0)) -> No rank | L19: =IF(SUM('Scenario Analysis'!$O19:$P19)=4,"Yes","No") -> No | N19: ='Scenario Analysis'!D19 -> Low Costs High Benefits | O19: =IF('Scenario Analysis'!G19='Scenario Analysis'!G$16,1,0) -> 0 | P19: =IF('Scenario Analysis'!H19='Scenario Analysis'!H$16,1,0) -> 1
D21: Maximum and minimum damage costs used for each pollutant
I23: NOX when combined with PM10
D24: ='Damage costs'!C15 -> Pollutant | G24: ='Damage costs'!V15 -> MAX Used | H24: ='Damage costs'!X15 -> MIN Used | I24: ='Damage costs'!Z15 -> MAX Used | J24: ='Damage costs'!AB15 -> MIN Used
D25: ='Damage costs'!C16 -> NOX Domestic | G25: ='Damage costs'!V16 -> High central range | H25: ='Damage costs'!X16 -> EEA | I25: =IF(LEFT(D25,3)="NOX",'Damage costs'!Z16,"") -> High central range | J25: =IF(LEFT(D25,3)="NOX",'Damage costs'!AB16,"") -> Low central range
D26: ='Damage costs'!C17 -> NOX Agriculture | G26: ='Damage costs'!V17 -> High central range | H26: ='Damage costs'!X17 -> Low central range | I26: =IF(LEFT(D26,3)="NOX",'Damage costs'!Z17,"") -> High central range | J26: =IF(LEFT(D26,3)="NOX",'Damage costs'!AB17,"") -> Low central range
D27: ='Damage costs'!C18 -> NOX Waste | G27: ='Damage costs'!V18 -> High central range | H27: ='Damage costs'!X18 -> EEA | I27: =IF(LEFT(D27,3)="NOX",'Damage costs'!Z18,"") -> High central range | J27: =IF(LEFT(D27,3)="NOX",'Damage costs'!AB18,"") -> Low central range
D28: ='Damage costs'!C19 -> NOX Industry | G28: ='Damage costs'!V19 -> High central range | H28: ='Damage costs'!X19 -> EEA | I28: =IF(LEFT(D28,3)="NOX",'Damage costs'!Z19,"") -> High central range | J28: =IF(LEFT(D28,3)="NOX",'Damage costs'!AB19,"") -> Low central range
D29: ='Damage costs'!C20 -> NOX ESI | G29: ='Damage costs'!V20 -> EEA | H29: ='Damage costs'!X20 -> Low central range | I29: =IF(LEFT(D29,3)="NOX",'Damage costs'!Z20,"") -> High central range | J29: =IF(LEFT(D29,3)="NOX",'Damage costs'!AB20,"") -> Low central range
D30: ='Damage costs'!C21 -> SOX | G30: ='Damage costs'!V21 -> EEA | H30: ='Damage costs'!X21 -> Low central range | I30: =IF(LEFT(D30,3)="NOX",'Damage costs'!Z21,"") ->  | J30: =IF(LEFT(D30,3)="NOX",'Damage costs'!AB21,"") -> 
D31: ='Damage costs'!C22 -> PM10 Domestic | G31: ='Damage costs'!V22 -> High central range | H31: ='Damage costs'!X22 -> EEA | I31: =IF(LEFT(D31,3)="NOX",'Damage costs'!Z22,"") ->  | J31: =IF(LEFT(D31,3)="NOX",'Damage costs'!AB22,"") -> 
D32: ='Damage costs'!C23 -> PM10 Agriculture | G32: ='Damage costs'!V23 -> EEA | H32: ='Damage costs'!X23 -> Low central range | I32: =IF(LEFT(D32,3)="NOX",'Damage costs'!Z23,"") ->  | J32: =IF(LEFT(D32,3)="NOX",'Damage costs'!AB23,"") -> 
D33: ='Damage costs'!C24 -> PM10 Waste | G33: ='Damage costs'!V24 -> High central range | H33: ='Damage costs'!X24 -> EEA | I33: =IF(LEFT(D33,3)="NOX",'Damage costs'!Z24,"") ->  | J33: =IF(LEFT(D33,3)="NOX",'Damage costs'!AB24,"") -> 
D34: ='Damage costs'!C25 -> PM10 Industry | G34: ='Damage costs'!V25 -> High central range | H34: ='Damage costs'!X25 -> EEA | I34: =IF(LEFT(D34,3)="NOX",'Damage costs'!Z25,"") ->  | J34: =IF(LEFT(D34,3)="NOX",'Damage costs'!AB25,"") -> 
D35: ='Damage costs'!C26 -> PM10 ESI | G35: ='Damage costs'!V26 -> EEA | H35: ='Damage costs'!X26 -> Low central range | I35: =IF(LEFT(D35,3)="NOX",'Damage costs'!Z26,"") ->  | J35: =IF(LEFT(D35,3)="NOX",'Damage costs'!AB26,"") -> 
D36: ='Damage costs'!C27 -> Ammonia | G36: ='Damage costs'!V27 -> EEA | H36: ='Damage costs'!X27 -> Low central range | I36: =IF(LEFT(D36,3)="NOX",'Damage costs'!Z27,"") ->  | J36: =IF(LEFT(D36,3)="NOX",'Damage costs'!AB27,"") -> 
D37: ='Damage costs'!C28 -> Arsenic | G37: ='Damage costs'!V28 -> EEA | H37: ='Damage costs'!X28 -> Low central range | I37: =IF(LEFT(D37,3)="NOX",'Damage costs'!Z28,"") ->  | J37: =IF(LEFT(D37,3)="NOX",'Damage costs'!AB28,"") -> 
D38: ='Damage costs'!C29 -> Cadmium | G38: ='Damage costs'!V29 -> EEA | H38: ='Damage costs'!X29 -> Low central range | I38: =IF(LEFT(D38,3)="NOX",'Damage costs'!Z29,"") ->  | J38: =IF(LEFT(D38,3)="NOX",'Damage costs'!AB29,"") -> 
D39: ='Damage costs'!C30 -> Chromium | G39: ='Damage costs'!V30 -> EEA | H39: ='Damage costs'!X30 -> Low central range | I39: =IF(LEFT(D39,3)="NOX",'Damage costs'!Z30,"") ->  | J39: =IF(LEFT(D39,3)="NOX",'Damage costs'!AB30,"") -> 
D40: ='Damage costs'!C31 -> Nickel | G40: ='Damage costs'!V31 -> EEA | H40: ='Damage costs'!X31 -> Low central range | I40: =IF(LEFT(D40,3)="NOX",'Damage costs'!Z31,"") ->  | J40: =IF(LEFT(D40,3)="NOX",'Damage costs'!AB31,"") -> 
D41: ='Damage costs'!C32 -> 1, 3 Butadiene | G41: ='Damage costs'!V32 -> EEA | H41: ='Damage costs'!X32 -> Low central range | I41: =IF(LEFT(D41,3)="NOX",'Damage costs'!Z32,"") ->  | J41: =IF(LEFT(D41,3)="NOX",'Damage costs'!AB32,"") -> 
D42: ='Damage costs'!C33 -> Benzene | G42: ='Damage costs'!V33 -> EEA | H42: ='Damage costs'!X33 -> Low central range | I42: =IF(LEFT(D42,3)="NOX",'Damage costs'!Z33,"") ->  | J42: =IF(LEFT(D42,3)="NOX",'Damage costs'!AB33,"") -> 
D43: ='Damage costs'!C34 -> PAH | G43: ='Damage costs'!V34 -> EEA | H43: ='Damage costs'!X34 -> Low central range | I43: =IF(LEFT(D43,3)="NOX",'Damage costs'!Z34,"") ->  | J43: =IF(LEFT(D43,3)="NOX",'Damage costs'!AB34,"") -> 
D44: ='Damage costs'!C35 -> Diesel particulate matter | G44: ='Damage costs'!V35 -> EEA | H44: ='Damage costs'!X35 -> Low central range | I44: =IF(LEFT(D44,3)="NOX",'Damage costs'!Z35,"") ->  | J44: =IF(LEFT(D44,3)="NOX",'Damage costs'!AB35,"") -> 
D45: ='Damage costs'!C36 -> Formaldehyde | G45: ='Damage costs'!V36 -> EEA | H45: ='Damage costs'!X36 -> Low central range | I45: =IF(LEFT(D45,3)="NOX",'Damage costs'!Z36,"") ->  | J45: =IF(LEFT(D45,3)="NOX",'Damage costs'!AB36,"") -> 
D46: ='Damage costs'!C37 -> Dioxins/furans | G46: ='Damage costs'!V37 -> EEA | H46: ='Damage costs'!X37 -> Low central range | I46: =IF(LEFT(D46,3)="NOX",'Damage costs'!Z37,"") ->  | J46: =IF(LEFT(D46,3)="NOX",'Damage costs'!AB37,"") -> 
D47: =IF('Damage costs'!C38<>"Insert New Pollutant Here",'Damage costs'!C38,"") -> VOCs | G47: =IF(D47<>"",'Damage costs'!V38,"") -> EEA | H47: =IF(D47<>"",'Damage costs'!X38,"") -> Low central range | I47: =IF(LEFT(D47,3)="NOX",'Damage costs'!Z38,"") ->  | J47: =IF(LEFT(D47,3)="NOX",'Damage costs'!AB38,"") -> 
D48: =IF('Damage costs'!C39<>"Insert New Pollutant Here",'Damage costs'!C39,"") -> Sox 2019 | G48: =IF(D48<>"",'Damage costs'!V39,"") -> High central range | H48: =IF(D48<>"",'Damage costs'!X39,"") -> Low central range | I48: =IF(LEFT(D48,3)="NOX",'Damage costs'!Z39,"") ->  | J48: =IF(LEFT(D48,3)="NOX",'Damage costs'!AB39,"") -> 
D49: =IF('Damage costs'!C40<>"Insert New Pollutant Here",'Damage costs'!C40,"") ->  | G49: =IF(D49<>"",'Damage costs'!V40,"") ->  | H49: =IF(D49<>"",'Damage costs'!X40,"") ->  | I49: =IF(LEFT(D49,3)="NOX",'Damage costs'!Z40,"") ->  | J49: =IF(LEFT(D49,3)="NOX",'Damage costs'!AB40,"") -> 
D50: =IF('Damage costs'!C41<>"Insert New Pollutant Here",'Damage costs'!C41,"") ->  | G50: =IF(D50<>"",'Damage costs'!V41,"") ->  | H50: =IF(D50<>"",'Damage costs'!X41,"") ->  | I50: =IF(LEFT(D50,3)="NOX",'Damage costs'!Z41,"") ->  | J50: =IF(LEFT(D50,3)="NOX",'Damage costs'!AB41,"") -> 
D51: =IF('Damage costs'!C42<>"Insert New Pollutant Here",'Damage costs'!C42,"") ->  | G51: =IF(D51<>"",'Damage costs'!V42,"") ->  | H51: =IF(D51<>"",'Damage costs'!X42,"") ->  | I51: =IF(LEFT(D51,3)="NOX",'Damage costs'!Z42,"") ->  | J51: =IF(LEFT(D51,3)="NOX",'Damage costs'!AB42,"") -> 
D52: =IF('Damage costs'!C43<>"Insert New Pollutant Here",'Damage costs'!C43,"") ->  | G52: =IF(D52<>"",'Damage costs'!V43,"") ->  | H52: =IF(D52<>"",'Damage costs'!X43,"") ->  | I52: =IF(LEFT(D52,3)="NOX",'Damage costs'!Z43,"") ->  | J52: =IF(LEFT(D52,3)="NOX",'Damage costs'!AB43,"") -> 

Sheet Data Input - Case description
B1: ="---- Step 1 - Derogation Case Description ----" -> ---- Step 1 - Derogation Case Description ----
C6: 1.1 | D6: What is the objective of this appraisal? | F6: To help in defining whether BAT is disproportionately costly
C8: 1.2 | D8: Permit ID Number | F8: BL3269IH
C10: 1.3 | D10: Name of activity or process under consideration (to which BAT is applied) | F10: Production of Lime / Dolime products.
C12: 1.4 | D12: Description of activity or process under consideration (to which BAT is applied) | E12: (?) | F12: W1 kiln operation for the production of sintered dolime
C14: 1.5 | D14: Does BAT replace all or part of an existing technology, all or part of a new technology, or is it added to an existing or new technology? | E14: (?) | F14: Replace existing | K14: (Select from dropdown)
C16: 1.6 | D16: Please provide details of the options considered in the table to the right | E16: (?) | F16: Option No. | G16: Option name | H16: Technology name | I16: Description of technology and how this impacts on process | J16: Details of option considered | K16: Does technology achieve BAT? | L16: If so, when is BAT achieved?
G17: Business as Usual (BAU) | H17: Current situation | I17: The levels of SO2 and HCl are above the BAT AEL. This is due to the fuel mix and technology used to produce the Sintered Dolime products. Due to its high calcination temperature >1800C, a rotary kiln is used to calcine the feed stone and solid fuels are required to maintain a stable process, which inherently has higher emissions associated with it. | J17: There is no Natural Gas available to the site, therefore the development of other ‘alternative’ fuels is currently key to the business. Focusing on fuels with very low Sulphur and Chloride contents, but are able to deliver the correct amount of energy. We are also looking in to the introduction of a gas conditioning tower, to scrub the emissions. However, this will cause issues with the kiln back end process temperature and is currently under review. | K17: No
E18: 1 | F18: 1 | G18: Proposed derogation | H18: Elongation of current situation for further 3 years (really same as BAU) | I18: BAU under a derogation - above BAT levels for SOX / HCl | J18: The time during the derogation period will be spent trialling new lower emission fuels and identifying the correct capital investments with regards to abatement equipment. Initial focus has been on fuels with very low Sulphur and Chloride contents, but are able to deliver the correct amount of energy. | K18: No
E19: 1 | F19: 2 | G19: BAT-AEL | I19: Ultimately, if the injection trials are not successful, then the business will install the required abatement equipment and therefore the business would expect to achieve the BAT associated AELs - Installation of bag filter, quench tower/associated scrubbing. | J19: However, please note that the quarry reserves are expected to run out in 2026/27 dependant on the success of feed stone blending. Therefore, the quarry reserves limit lifespan of installation. | K19: Yes | L19: 2023-01-01
E20: =IF(ISBLANK(G20),0,1) -> 1 | F20: 3 | G20: Waste off | I20: The consequences of the derogation not being approved would increase the operating costs of the business. Which ultimately will increase the product cost in an already competitive market, along with reducing the amount waste derived materials we recycle back in to a kiln fuel each year. | J20: Use 100% fossil fuels for production of Sintered Dolime. Note quarry reserves limit lifespan of installation. | K20: Yes | L20: 2020-01-01
E21: =IF(ISBLANK(G21),0,1) -> 0 | F21: 4
E22: 0 | F22: 5

Sheet Data Input - Qualitative
B1: ="---- Step 2 - Qualitative Assessment of Environmental Impacts ----" -> ---- Step 2 - Qualitative Assessment of Environmental Impacts ----
D7: Environmental impact category | E7: Applicable? | F7: Description of impact (?) | G7: How significant is this impact? (?) | H7: Comment on significance
C9: 2.1 | D9: Business as Usual (BAU)
D11: Air pollutant emissions | F11: SO2 higher than BAT ELV | G11: Small negative | H11: Proposed ELV 1500 mg/m3
D12: Greenhouse gas emissions
D13: Emissions to water
D14: Emissions to land or soil
D15: Noise
D16: Visual
D17: Odour
D18: Waste
D19: Other (please specify) | F19: HCl and GRPIII are higher than BAT ELV | G19: Small negative | H19: Proposed ELV 200 mg/m3 - 2.6 mg/m3 respectively.
C21: 2.2 | D21: Option 1 | E21: =IF('Data Input - Case description'!$G$18="","",'Data Input - Case description'!$G$18) -> Proposed derogation | G21: **
D23: Air pollutant emissions | F23: SO2 higher than BAT ELV - same as BAU | G23: Small negative | H23: Proposed ELV 1500 mg/m3
D24: Greenhouse gas emissions
D25: Emissions to water
D26: Emissions to land or soil
D27: Noise
D28: Visual
D29: Odour
D30: Waste
D31: Other (please specify) | F31: HCl and GRPIII are higher than BAT ELV | G31: Small negative | H31: Proposed ELV 200 mg/m3 - 2.6 mg/m3 respectively.
C33: 2.3 | D33: Option 2 | E33: =IF('Data Input - Case description'!$G$19="","",'Data Input - Case description'!$G$19) -> BAT-AEL
D35: Air pollutant emissions | F35: SO2 ELV compliant with BAT | G35: Small positive | H35: ELV 400 mg/m3
D36: Greenhouse gas emissions
D37: Emissions to water
D38: Emissions to land or soil
D39: Noise
D40: Visual
D41: Odour
D42: Waste
D43: Other (please specify) | F43: HCl and GRPIII are compliant with BAT ELV | G43: Small positive | H43: ELV 10 mg/m3 - 0.5 mg/m3 respectively.
C46: 2.4 | D46: Option 3 | E46: =IF('Data Input - Case description'!$G$20="","",'Data Input - Case description'!$G$20) -> Waste off
D48: Air pollutant emissions | F48: SO2 ELV compliant with BAT | G48: Small positive | H48: ELV 400 mg/m3
D49: Greenhouse gas emissions
D50: Emissions to water
D51: Emissions to land or soil
D52: Noise
D53: Visual
D54: Odour
D55: Waste
D56: Other (please specify) | F56: HCl and GRPIII are compliant with BAT ELV | G56: Small positive | H56: ELV 10 mg/m3 - 0.5 mg/m3 respectively.
C58: 2.5 | D58: Option 4 | E58: =IF('Data Input - Case description'!$G$21="","",'Data Input - Case description'!$G$21) -> 
D60: Air pollutant emissions
D61: Greenhouse gas emissions
D62: Emissions to water
D63: Emissions to land or soil
D64: Noise
D65: Visual
D66: Odour
D67: Waste
D68: Other (please specify)
C70: 2.6 | D70: Option 5 | E70: =IF('Data Input - Case description'!$G$22="","",'Data Input - Case description'!$G$22) -> 
D72: Air pollutant emissions
D73: Greenhouse gas emissions
D74: Emissions to water
D75: Emissions to land or soil
D76: Noise
D77: Visual
D78: Odour
D79: Waste
D80: Other (please specify)

Sheet Data Input - General
B1: ="---- Step 3 - General Data Input ----" -> ---- Step 3 - General Data Input ----
D6: Pre-appraisal parameters
C8: 3.1 | D8: Is Installation located in an AQMA? | F8: No | G8: (Select from dropdown)
C10: 3.2 | D10: Do fuel-combustion related GHG emissions from the site fall within the scope of the EU ETS? | F10: Yes | G10: (Select from dropdown)
C12: 3.3 | D12: Do 'process-related' (i.e. non fuel-combustion) GHG emissions from the site fall within the scope of the EU ETS? | F12: Yes | G12: (Select from dropdown)
F14: Uncertainty bound
F15: Low | G15: Central | H15: High
C16: 3.4 | D16: What is the weighted average cost of capital (WACC) at which the investments considered will be funded? | E16: (?) | F16: 0.06 | G16: 0.065 | H16: 0.07 | I16: %
C18: 3.5 | D18: Please explain your choice of WACC | F18: Internal company guidelines for year 2017
D20: Option appraisal periods
C22: 3.6 | D22: Year that work on derogation application began (Year 0) | E22: (?) | F22: 2019
F23: ='Data Input - Case description'!F14:J14 -> Replace existing
F24: Business as Usual (BAU) | G24: =IF('Data Input - Case description'!$G$18="","",'Data Input - Case description'!$G$18) -> Proposed derogation | H24: =IF('Data Input - Case description'!$G$19="","",'Data Input - Case description'!$G$19) -> BAT-AEL | I24: =IF('Data Input - Case description'!$G$20="","",'Data Input - Case description'!$G$20) -> Waste off | J24: =IF('Data Input - Case description'!$G$21="","",'Data Input - Case description'!$G$21) ->  | K24: =IF('Data Input - Case description'!$G$22="","",'Data Input - Case description'!$G$22) -> 
C25: 3.7 | D25: First installation year (or if technology already installed leave 3.8, 3.9 and 3.10 blank and just fill in 3.11) | E25: (?) | H25: 2023 | I25: 2020
C26: 3.8 | D26: Length of time to complete installation (Years) | H26: 1
C27: 3.9 | D27: Lifetime of technology once fully installed (Years) | H27: 20
C28: 3.10 | D28: Lifetime of technology remaining as of first appraisal year (only fill this in if your BAU technology is already installed) (Years) | E28: (?) | F28: 30
D30: Last year of initial operation (Auto calculated value) | F30: =IF(SUM(F25:F28)=0,"",IF(F25=0,ROUNDUP($F$22+F28,0),ROUNDUP(F25+F26-1+F27,0))) -> 2049 | G30: =IF(SUM(G25:G28)=0,"",IF(G25=0,ROUNDUP($F$22+G28,0),ROUNDUP(G25+G26-1+G27,0))) ->  | H30: =IF(SUM(H25:H28)=0,"",IF(H25=0,ROUNDUP($F$22+H28,0),ROUNDUP(H25+H26-1+H27,0))) -> 2043 | I30: 2019
D32: Does asset need to be 'renewed' over the appraisal period? (Auto calculated value) | E32: (?) | F32: =IF(F24="","",IF('Data Input - General'!F$30<MAX('Data Input - General'!$F$30:$K$30),"Yes","No")) -> No | G32: =IF(H24="","",IF('Data Input - General'!G$30<MAX('Data Input - General'!$F$30:$K$30),"Yes","No")) -> No | H32: =IF(G24="","",IF('Data Input - General'!H$30<MAX('Data Input - General'!$F$30:$K$30),"Yes","No")) -> Yes | I32: =IF(I24="","",IF('Data Input - General'!I$30<MAX('Data Input - General'!$F$30:$K$30),"Yes","No")) -> Yes | J32: =IF(J24="","",IF('Data Input - General'!J$30<MAX('Data Input - General'!$F$30:$K$30),"Yes","No")) ->  | K32: =IF(K24="","",IF('Data Input - General'!K$30<MAX('Data Input - General'!$F$30:$K$30),"Yes","No")) -> 
D34: Last year of appraisal period (Auto calculated value) | E34: (?) | F34: =MAX(F30:K30) -> 2049 | G34: =IF(AND(F34>2100,F34<>0),"Note: Tool is only able to produce CBA with appraisal period between 2010 and 2100","") -> 
C36: 3.11 | D36: Rationale for appraisal period chosen | F36: Kiln and current ESP can be maintained in a good condition with continuing maintenance and minor capital investment. Reserves of dolomite stone beyond 2025 are not available.

Sheet Data Input - BAU
B1: ="---- Step 4 - Data Input - Business as Usual (BAU) ----" -> ---- Step 4 - Data Input - Business as Usual (BAU) ----
H5: =IF(AND(SUM(H30,H50,H79,H100,H117,H128,#REF!)<>0,H7=0),1,0) ->  | I5: =IF(AND(SUM(I30,I50,I79,I100,I117,I128,#REF!)<>0,I7=0),1,0) ->  | J5: =IF(AND(SUM(J30,J50,J79,J100,J117,J128,#REF!)<>0,J7=0),1,0) ->  | K5: =IF(AND(SUM(K30,K50,K79,K100,K117,K128,#REF!)<>0,K7=0),1,0) ->  | L5: =IF(AND(SUM(L30,L50,L79,L100,L117,L128,#REF!)<>0,L7=0),1,0) ->  | M5: =IF(AND(SUM(M30,M50,M79,M100,M117,M128,#REF!)<>0,M7=0),1,0) ->  | N5: =IF(AND(SUM(N30,N50,N79,N100,N117,N128,#REF!)<>0,N7=0),1,0) ->  | O5: =IF(AND(SUM(O30,O50,O79,O100,O117,O128,#REF!)<>0,O7=0),1,0) ->  | P5: =IF(AND(SUM(P30,P50,P79,P100,P117,P128,#REF!)<>0,P7=0),1,0) ->  | Q5: =IF(AND(SUM(Q30,Q50,Q79,Q100,Q117,Q128,#REF!)<>0,Q7=0),1,0) ->  | R5: =IF(AND(SUM(R30,R50,R79,R100,R117,R128,#REF!)<>0,R7=0),1,0) ->  | S5: =IF(AND(SUM(S30,S50,S79,S100,S117,S128,#REF!)<>0,S7=0),1,0) ->  | T5: =IF(AND(SUM(T30,T50,T79,T100,T117,T128,#REF!)<>0,T7=0),1,0) ->  | U5: =IF(AND(SUM(U30,U50,U79,U100,U117,U128,#REF!)<>0,U7=0),1,0) ->  | V5: =IF(AND(SUM(V30,V50,V79,V100,V117,V128,#REF!)<>0,V7=0),1,0) ->  | W5: =IF(AND(SUM(W30,W50,W79,W100,W117,W128,#REF!)<>0,W7=0),1,0) ->  | X5: =IF(AND(SUM(X30,X50,X79,X100,X117,X128,#REF!)<>0,X7=0),1,0) ->  | Y5: =IF(AND(SUM(Y30,Y50,Y79,Y100,Y117,Y128,#REF!)<>0,Y7=0),1,0) ->  | Z5: =IF(AND(SUM(Z30,Z50,Z79,Z100,Z117,Z128,#REF!)<>0,Z7=0),1,0) ->  | AA5: =IF(AND(SUM(AA30,AA50,AA79,AA100,AA117,AA128,#REF!)<>0,AA7=0),1,0) ->  | AB5: =IF(AND(SUM(AB30,AB50,AB79,AB100,AB117,AB128,#REF!)<>0,AB7=0),1,0) ->  | AC5: =IF(AND(SUM(AC30,AC50,AC79,AC100,AC117,AC128,#REF!)<>0,AC7=0),1,0) ->  | AD5: =IF(AND(SUM(AD30,AD50,AD79,AD100,AD117,AD128,#REF!)<>0,AD7=0),1,0) ->  | AE5: =IF(AND(SUM(AE30,AE50,AE79,AE100,AE117,AE128,#REF!)<>0,AE7=0),1,0) ->  | AF5: =IF(AND(SUM(AF30,AF50,AF79,AF100,AF117,AF128,#REF!)<>0,AF7=0),1,0) ->  | AG5: =IF(AND(SUM(AG30,AG50,AG79,AG100,AG117,AG128,#REF!)<>0,AG7=0),1,0) ->  | AH5: =IF(AND(SUM(AH30,AH50,AH79,AH100,AH117,AH128,#REF!)<>0,AH7=0),1,0) ->  | AI5: =IF(AND(SUM(AI30,AI50,AI79,AI100,AI117,AI128,#REF!)<>0,AI7=0),1,0) ->  | AJ5: =IF(AND(SUM(AJ30,AJ50,AJ79,AJ100,AJ117,AJ128,#REF!)<>0,AJ7=0),1,0) ->  | AK5: =IF(AND(SUM(AK30,AK50,AK79,AK100,AK117,AK128,#REF!)<>0,AK7=0),1,0) ->  | AL5: =IF(AND(SUM(AL30,AL50,AL79,AL100,AL117,AL128,#REF!)<>0,AL7=0),1,0) ->  | AM5: =IF(AND(SUM(AM30,AM50,AM79,AM100,AM117,AM128,#REF!)<>0,AM7=0),1,0) ->  | AN5: =IF(AND(SUM(AN30,AN50,AN79,AN100,AN117,AN128,#REF!)<>0,AN7=0),1,0) ->  | AO5: =IF(AND(SUM(AO30,AO50,AO79,AO100,AO117,AO128,#REF!)<>0,AO7=0),1,0) ->  | AP5: =IF(AND(SUM(AP30,AP50,AP79,AP100,AP117,AP128,#REF!)<>0,AP7=0),1,0) ->  | AQ5: =IF(AND(SUM(AQ30,AQ50,AQ79,AQ100,AQ117,AQ128,#REF!)<>0,AQ7=0),1,0) ->  | AR5: =IF(AND(SUM(AR30,AR50,AR79,AR100,AR117,AR128,#REF!)<>0,AR7=0),1,0) ->  | AS5: =IF(AND(SUM(AS30,AS50,AS79,AS100,AS117,AS128,#REF!)<>0,AS7=0),1,0) ->  | AT5: =IF(AND(SUM(AT30,AT50,AT79,AT100,AT117,AT128,#REF!)<>0,AT7=0),1,0) ->  | AU5: =IF(AND(SUM(AU30,AU50,AU79,AU100,AU117,AU128,#REF!)<>0,AU7=0),1,0) ->  | AV5: =IF(AND(SUM(AV30,AV50,AV79,AV100,AV117,AV128,#REF!)<>0,AV7=0),1,0) ->  | AW5: =IF(AND(SUM(AW30,AW50,AW79,AW100,AW117,AW128,#REF!)<>0,AW7=0),1,0) ->  | AX5: =IF(AND(SUM(AX30,AX50,AX79,AX100,AX117,AX128,#REF!)<>0,AX7=0),1,0) ->  | AY5: =IF(AND(SUM(AY30,AY50,AY79,AY100,AY117,AY128,#REF!)<>0,AY7=0),1,0) ->  | AZ5: =IF(AND(SUM(AZ30,AZ50,AZ79,AZ100,AZ117,AZ128,#REF!)<>0,AZ7=0),1,0) ->  | BA5: =IF(AND(SUM(BA30,BA50,BA79,BA100,BA117,BA128,#REF!)<>0,BA7=0),1,0) ->  | BB5: =IF(AND(SUM(BB30,BB50,BB79,BB100,BB117,BB128,#REF!)<>0,BB7=0),1,0) ->  | BC5: =IF(AND(SUM(BC30,BC50,BC79,BC100,BC117,BC128,#REF!)<>0,BC7=0),1,0) ->  | BD5: =IF(AND(SUM(BD30,BD50,BD79,BD100,BD117,BD128,#REF!)<>0,BD7=0),1,0) ->  | BE5: =IF(AND(SUM(BE30,BE50,BE79,BE100,BE117,BE128,#REF!)<>0,BE7=0),1,0) ->  | BF5: =IF(AND(SUM(BF30,BF50,BF79,BF100,BF117,BF128,#REF!)<>0,BF7=0),1,0) ->  | BG5: =IF(AND(SUM(BG30,BG50,BG79,BG100,BG117,BG128,#REF!)<>0,BG7=0),1,0) ->  | BH5: =IF(AND(SUM(BH30,BH50,BH79,BH100,BH117,BH128,#REF!)<>0,BH7=0),1,0) ->  | BI5: =IF(AND(SUM(BI30,BI50,BI79,BI100,BI117,BI128,#REF!)<>0,BI7=0),1,0) ->  | BJ5: =IF(AND(SUM(BJ30,BJ50,BJ79,BJ100,BJ117,BJ128,#REF!)<>0,BJ7=0),1,0) ->  | BK5: =IF(AND(SUM(BK30,BK50,BK79,BK100,BK117,BK128,#REF!)<>0,BK7=0),1,0) ->  | BL5: =IF(AND(SUM(BL30,BL50,BL79,BL100,BL117,BL128,#REF!)<>0,BL7=0),1,0) ->  | BM5: =IF(AND(SUM(BM30,BM50,BM79,BM100,BM117,BM128,#REF!)<>0,BM7=0),1,0) ->  | BN5: =IF(AND(SUM(BN30,BN50,BN79,BN100,BN117,BN128,#REF!)<>0,BN7=0),1,0) ->  | BO5: =IF(AND(SUM(BO30,BO50,BO79,BO100,BO117,BO128,#REF!)<>0,BO7=0),1,0) ->  | BP5: =IF(AND(SUM(BP30,BP50,BP79,BP100,BP117,BP128,#REF!)<>0,BP7=0),1,0) ->  | BQ5: =IF(AND(SUM(BQ30,BQ50,BQ79,BQ100,BQ117,BQ128,#REF!)<>0,BQ7=0),1,0) ->  | BR5: =IF(AND(SUM(BR30,BR50,BR79,BR100,BR117,BR128,#REF!)<>0,BR7=0),1,0) ->  | BS5: =IF(AND(SUM(BS30,BS50,BS79,BS100,BS117,BS128,#REF!)<>0,BS7=0),1,0) ->  | BT5: =IF(AND(SUM(BT30,BT50,BT79,BT100,BT117,BT128,#REF!)<>0,BT7=0),1,0) ->  | BU5: =IF(AND(SUM(BU30,BU50,BU79,BU100,BU117,BU128,#REF!)<>0,BU7=0),1,0) ->  | BV5: =IF(AND(SUM(BV30,BV50,BV79,BV100,BV117,BV128,#REF!)<>0,BV7=0),1,0) ->  | BW5: =IF(AND(SUM(BW30,BW50,BW79,BW100,BW117,BW128,#REF!)<>0,BW7=0),1,0) ->  | BX5: =IF(AND(SUM(BX30,BX50,BX79,BX100,BX117,BX128,#REF!)<>0,BX7=0),1,0) ->  | BY5: =IF(AND(SUM(BY30,BY50,BY79,BY100,BY117,BY128,#REF!)<>0,BY7=0),1,0) ->  | BZ5: =IF(AND(SUM(BZ30,BZ50,BZ79,BZ100,BZ117,BZ128,#REF!)<>0,BZ7=0),1,0) ->  | CA5: =IF(AND(SUM(CA30,CA50,CA79,CA100,CA117,CA128,#REF!)<>0,CA7=0),1,0) ->  | CB5: =IF(AND(SUM(CB30,CB50,CB79,CB100,CB117,CB128,#REF!)<>0,CB7=0),1,0) ->  | CC5: =IF(AND(SUM(CC30,CC50,CC79,CC100,CC117,CC128,#REF!)<>0,CC7=0),1,0) ->  | CD5: =IF(AND(SUM(CD30,CD50,CD79,CD100,CD117,CD128,#REF!)<>0,CD7=0),1,0) ->  | CE5: =IF(AND(SUM(CE30,CE50,CE79,CE100,CE117,CE128,#REF!)<>0,CE7=0),1,0) ->  | CF5: =IF(AND(SUM(CF30,CF50,CF79,CF100,CF117,CF128,#REF!)<>0,CF7=0),1,0) ->  | CG5: =IF(AND(SUM(CG30,CG50,CG79,CG100,CG117,CG128,#REF!)<>0,CG7=0),1,0) ->  | CH5: =IF(AND(SUM(CH30,CH50,CH79,CH100,CH117,CH128,#REF!)<>0,CH7=0),1,0) ->  | CI5: =IF(AND(SUM(CI30,CI50,CI79,CI100,CI117,CI128,#REF!)<>0,CI7=0),1,0) ->  | CJ5: =IF(AND(SUM(CJ30,CJ50,CJ79,CJ100,CJ117,CJ128,#REF!)<>0,CJ7=0),1,0) ->  | CK5: =IF(AND(SUM(CK30,CK50,CK79,CK100,CK117,CK128,#REF!)<>0,CK7=0),1,0) ->  | CL5: =IF(AND(SUM(CL30,CL50,CL79,CL100,CL117,CL128,#REF!)<>0,CL7=0),1,0) ->  | CM5: =IF(AND(SUM(CM30,CM50,CM79,CM100,CM117,CM128,#REF!)<>0,CM7=0),1,0) ->  | CN5: =IF(AND(SUM(CN30,CN50,CN79,CN100,CN117,CN128,#REF!)<>0,CN7=0),1,0) ->  | CO5: =IF(AND(SUM(CO30,CO50,CO79,CO100,CO117,CO128,#REF!)<>0,CO7=0),1,0) ->  | CP5: =IF(AND(SUM(CP30,CP50,CP79,CP100,CP117,CP128,#REF!)<>0,CP7=0),1,0) ->  | CQ5: =IF(AND(SUM(CQ30,CQ50,CQ79,CQ100,CQ117,CQ128,#REF!)<>0,CQ7=0),1,0) ->  | CR5: =IF(AND(SUM(CR30,CR50,CR79,CR100,CR117,CR128,#REF!)<>0,CR7=0),1,0) ->  | CS5: =IF(AND(SUM(CS30,CS50,CS79,CS100,CS117,CS128,#REF!)<>0,CS7=0),1,0) ->  | CT5: =IF(AND(SUM(CT30,CT50,CT79,CT100,CT117,CT128,#REF!)<>0,CT7=0),1,0) ->  | CU5: =IF(AND(SUM(CU30,CU50,CU79,CU100,CU117,CU128,#REF!)<>0,CU7=0),1,0) ->  | CV5: =IF(AND(SUM(CV30,CV50,CV79,CV100,CV117,CV128,#REF!)<>0,CV7=0),1,0) ->  | CW5: =IF(AND(SUM(CW30,CW50,CW79,CW100,CW117,CW128,#REF!)<>0,CW7=0),1,0) ->  | CX5: =IF(AND(SUM(CX30,CX50,CX79,CX100,CX117,CX128,#REF!)<>0,CX7=0),1,0) ->  | CY5: =IF(AND(SUM(CY30,CY50,CY79,CY100,CY117,CY128,#REF!)<>0,CY7=0),1,0) ->  | CZ5: =IF(AND(SUM(CZ30,CZ50,CZ79,CZ100,CZ117,CZ128,#REF!)<>0,CZ7=0),1,0) ->  | DA5: =IF(AND(SUM(DA30,DA50,DA79,DA100,DA117,DA128,#REF!)<>0,DA7=0),1,0) ->  | DB5: =IF(AND(SUM(DB30,DB50,DB79,DB100,DB117,DB128,#REF!)<>0,DB7=0),1,0) ->  | DC5: =IF(AND(SUM(DC30,DC50,DC79,DC100,DC117,DC128,#REF!)<>0,DC7=0),1,0) -> 
F6: Year number | H6: 0 | I6: 1 | J6: 2 | K6: 3 | L6: 4 | M6: 5 | N6: 6 | O6: 7 | P6: 8 | Q6: 9 | R6: 10 | S6: 11 | T6: 12 | U6: 13 | V6: 14 | W6: 15 | X6: 16 | Y6: 17 | Z6: 18 | AA6: 19 | AB6: 20 | AC6: 21 | AD6: 22 | AE6: 23 | AF6: 24 | AG6: 25 | AH6: 26 | AI6: 27 | AJ6: 28 | AK6: 29 | AL6: 30 | AM6: 31 | AN6: 32 | AO6: 33 | AP6: 34 | AQ6: 35 | AR6: 36 | AS6: 37 | AT6: 38 | AU6: 39 | AV6: 40 | AW6: 41 | AX6: 42 | AY6: 43 | AZ6: 44 | BA6: 45 | BB6: 46 | BC6: 47 | BD6: 48 | BE6: 49 | BF6: 50 | BG6: 51 | BH6: 52 | BI6: 53 | BJ6: 54 | BK6: 55 | BL6: 56 | BM6: 57 | BN6: 58 | BO6: 59 | BP6: 60 | BQ6: 61 | BR6: 62 | BS6: 63 | BT6: 64 | BU6: 65 | BV6: 66 | BW6: 67 | BX6: 68 | BY6: 69 | BZ6: 70 | CA6: 71 | CB6: 72 | CC6: 73 | CD6: 74 | CE6: 75 | CF6: 76 | CG6: 77 | CH6: 78 | CI6: 79 | CJ6: 80 | CK6: 81 | CL6: 82 | CM6: 83 | CN6: 84 | CO6: 85 | CP6: 86 | CQ6: 87 | CR6: 88 | CS6: 89 | CT6: 90 | CU6: 91 | CV6: 92 | CW6: 93 | CX6: 94 | CY6: 95 | CZ6: 96 | DA6: 97 | DB6: 98 | DC6: 99
F7: Year | H7: =IF($C$9=0,"",IF(H$6+'Data Input - General'!$F$22>'Data Input - General'!$F$34,0,'Data Input - BAU'!H$6+'Data Input - General'!$F$22)) -> 2019 | I7: =IF($C$9=0,"",IF(I$6+'Data Input - General'!$F$22>'Data Input - General'!$F$34,0,'Data Input - BAU'!I$6+'Data Input - General'!$F$22)) -> 2020 | J7: =IF($C$9=0,"",IF(J$6+'Data Input - General'!$F$22>'Data Input - General'!$F$34,0,'Data Input - BAU'!J$6+'Data Input - General'!$F$22)) -> 2021 | K7: =IF($C$9=0,"",IF(K$6+'Data Input - General'!$F$22>'Data Input - General'!$F$34,0,'Data Input - BAU'!K$6+'Data Input - General'!$F$22)) -> 2022 | L7: =IF($C$9=0,"",IF(L$6+'Data Input - General'!$F$22>'Data Input - General'!$F$34,0,'Data Input - BAU'!L$6+'Data Input - General'!$F$22)) -> 2023 | M7: =IF($C$9=0,"",IF(M$6+'Data Input - General'!$F$22>'Data Input - General'!$F$34,0,'Data Input - BAU'!M$6+'Data Input - General'!$F$22)) -> 2024 | N7: =IF($C$9=0,"",IF(N$6+'Data Input - General'!$F$22>'Data Input - General'!$F$34,0,'Data Input - BAU'!N$6+'Data Input - General'!$F$22)) -> 2025 | O7: =IF($C$9=0,"",IF(O$6+'Data Input - General'!$F$22>'Data Input - General'!$F$34,0,'Data Input - BAU'!O$6+'Data Input - General'!$F$22)) -> 2026 | P7: =IF($C$9=0,"",IF(P$6+'Data Input - General'!$F$22>'Data Input - General'!$F$34,0,'Data Input - BAU'!P$6+'Data Input - General'!$F$22)) -> 2027 | Q7: =IF($C$9=0,"",IF(Q$6+'Data Input - General'!$F$22>'Data Input - General'!$F$34,0,'Data Input - BAU'!Q$6+'Data Input - General'!$F$22)) -> 2028 | R7: =IF($C$9=0,"",IF(R$6+'Data Input - General'!$F$22>'Data Input - General'!$F$34,0,'Data Input - BAU'!R$6+'Data Input - General'!$F$22)) -> 2029 | S7: =IF($C$9=0,"",IF(S$6+'Data Input - General'!$F$22>'Data Input - General'!$F$34,0,'Data Input - BAU'!S$6+'Data Input - General'!$F$22)) -> 2030 | T7: =IF($C$9=0,"",IF(T$6+'Data Input - General'!$F$22>'Data Input - General'!$F$34,0,'Data Input - BAU'!T$6+'Data Input - General'!$F$22)) -> 2031 | U7: =IF($C$9=0,"",IF(U$6+'Data Input - General'!$F$22>'Data Input - General'!$F$34,0,'Data Input - BAU'!U$6+'Data Input - General'!$F$22)) -> 2032 | V7: =IF($C$9=0,"",IF(V$6+'Data Input - General'!$F$22>'Data Input - General'!$F$34,0,'Data Input - BAU'!V$6+'Data Input - General'!$F$22)) -> 2033 | W7: =IF($C$9=0,"",IF(W$6+'Data Input - General'!$F$22>'Data Input - General'!$F$34,0,'Data Input - BAU'!W$6+'Data Input - General'!$F$22)) -> 2034 | X7: =IF($C$9=0,"",IF(X$6+'Data Input - General'!$F$22>'Data Input - General'!$F$34,0,'Data Input - BAU'!X$6+'Data Input - General'!$F$22)) -> 2035 | Y7: =IF($C$9=0,"",IF(Y$6+'Data Input - General'!$F$22>'Data Input - General'!$F$34,0,'Data Input - BAU'!Y$6+'Data Input - General'!$F$22)) -> 2036 | Z7: =IF($C$9=0,"",IF(Z$6+'Data Input - General'!$F$22>'Data Input - General'!$F$34,0,'Data Input - BAU'!Z$6+'Data Input - General'!$F$22)) -> 2037 | AA7: =IF($C$9=0,"",IF(AA$6+'Data Input - General'!$F$22>'Data Input - General'!$F$34,0,'Data Input - BAU'!AA$6+'Data Input - General'!$F$22)) -> 2038 | AB7: =IF($C$9=0,"",IF(AB$6+'Data Input - General'!$F$22>'Data Input - General'!$F$34,0,'Data Input - BAU'!AB$6+'Data Input - General'!$F$22)) -> 2039 | AC7: =IF($C$9=0,"",IF(AC$6+'Data Input - General'!$F$22>'Data Input - General'!$F$34,0,'Data Input - BAU'!AC$6+'Data Input - General'!$F$22)) -> 2040 | AD7: =IF($C$9=0,"",IF(AD$6+'Data Input - General'!$F$22>'Data Input - General'!$F$34,0,'Data Input - BAU'!AD$6+'Data Input - General'!$F$22)) -> 2041 | AE7: =IF($C$9=0,"",IF(AE$6+'Data Input - General'!$F$22>'Data Input - General'!$F$34,0,'Data Input - BAU'!AE$6+'Data Input - General'!$F$22)) -> 2042 | AF7: =IF($C$9=0,"",IF(AF$6+'Data Input - General'!$F$22>'Data Input - General'!$F$34,0,'Data Input - BAU'!AF$6+'Data Input - General'!$F$22)) -> 2043 | AG7: =IF($C$9=0,"",IF(AG$6+'Data Input - General'!$F$22>'Data Input - General'!$F$34,0,'Data Input - BAU'!AG$6+'Data Input - General'!$F$22)) -> 2044 | AH7: =IF($C$9=0,"",IF(AH$6+'Data Input - General'!$F$22>'Data Input - General'!$F$34,0,'Data Input - BAU'!AH$6+'Data Input - General'!$F$22)) -> 2045 | AI7: =IF($C$9=0,"",IF(AI$6+'Data Input - General'!$F$22>'Data Input - General'!$F$34,0,'Data Input - BAU'!AI$6+'Data Input - General'!$F$22)) -> 2046 | AJ7: =IF($C$9=0,"",IF(AJ$6+'Data Input - General'!$F$22>'Data Input - General'!$F$34,0,'Data Input - BAU'!AJ$6+'Data Input - General'!$F$22)) -> 2047 | AK7: =IF($C$9=0,"",IF(AK$6+'Data Input - General'!$F$22>'Data Input - General'!$F$34,0,'Data Input - BAU'!AK$6+'Data Input - General'!$F$22)) -> 2048 | AL7: =IF($C$9=0,"",IF(AL$6+'Data Input - General'!$F$22>'Data Input - General'!$F$34,0,'Data Input - BAU'!AL$6+'Data Input - General'!$F$22)) -> 2049 | AM7: =IF($C$9=0,"",IF(AM$6+'Data Input - General'!$F$22>'Data Input - General'!$F$34,0,'Data Input - BAU'!AM$6+'Data Input - General'!$F$22)) -> 0 | AN7: =IF($C$9=0,"",IF(AN$6+'Data Input - General'!$F$22>'Data Input - General'!$F$34,0,'Data Input - BAU'!AN$6+'Data Input - General'!$F$22)) -> 0 | AO7: =IF($C$9=0,"",IF(AO$6+'Data Input - General'!$F$22>'Data Input - General'!$F$34,0,'Data Input - BAU'!AO$6+'Data Input - General'!$F$22)) -> 0 | AP7: =IF($C$9=0,"",IF(AP$6+'Data Input - General'!$F$22>'Data Input - General'!$F$34,0,'Data Input - BAU'!AP$6+'Data Input - General'!$F$22)) -> 0 | AQ7: =IF($C$9=0,"",IF(AQ$6+'Data Input - General'!$F$22>'Data Input - General'!$F$34,0,'Data Input - BAU'!AQ$6+'Data Input - General'!$F$22)) -> 0 | AR7: =IF($C$9=0,"",IF(AR$6+'Data Input - General'!$F$22>'Data Input - General'!$F$34,0,'Data Input - BAU'!AR$6+'Data Input - General'!$F$22)) -> 0 | AS7: =IF($C$9=0,"",IF(AS$6+'Data Input - General'!$F$22>'Data Input - General'!$F$34,0,'Data Input - BAU'!AS$6+'Data Input - General'!$F$22)) -> 0 | AT7: =IF($C$9=0,"",IF(AT$6+'Data Input - General'!$F$22>'Data Input - General'!$F$34,0,'Data Input - BAU'!AT$6+'Data Input - General'!$F$22)) -> 0 | AU7: =IF($C$9=0,"",IF(AU$6+'Data Input - General'!$F$22>'Data Input - General'!$F$34,0,'Data Input - BAU'!AU$6+'Data Input - General'!$F$22)) -> 0 | AV7: =IF($C$9=0,"",IF(AV$6+'Data Input - General'!$F$22>'Data Input - General'!$F$34,0,'Data Input - BAU'!AV$6+'Data Input - General'!$F$22)) -> 0 | AW7: =IF($C$9=0,"",IF(AW$6+'Data Input - General'!$F$22>'Data Input - General'!$F$34,0,'Data Input - BAU'!AW$6+'Data Input - General'!$F$22)) -> 0 | AX7: =IF($C$9=0,"",IF(AX$6+'Data Input - General'!$F$22>'Data Input - General'!$F$34,0,'Data Input - BAU'!AX$6+'Data Input - General'!$F$22)) -> 0 | AY7: =IF($C$9=0,"",IF(AY$6+'Data Input - General'!$F$22>'Data Input - General'!$F$34,0,'Data Input - BAU'!AY$6+'Data Input - General'!$F$22)) -> 0 | AZ7: =IF($C$9=0,"",IF(AZ$6+'Data Input - General'!$F$22>'Data Input - General'!$F$34,0,'Data Input - BAU'!AZ$6+'Data Input - General'!$F$22)) -> 0 | BA7: =IF($C$9=0,"",IF(BA$6+'Data Input - General'!$F$22>'Data Input - General'!$F$34,0,'Data Input - BAU'!BA$6+'Data Input - General'!$F$22)) -> 0 | BB7: =IF($C$9=0,"",IF(BB$6+'Data Input - General'!$F$22>'Data Input - General'!$F$34,0,'Data Input - BAU'!BB$6+'Data Input - General'!$F$22)) -> 0 | BC7: =IF($C$9=0,"",IF(BC$6+'Data Input - General'!$F$22>'Data Input - General'!$F$34,0,'Data Input - BAU'!BC$6+'Data Input - General'!$F$22)) -> 0 | BD7: =IF($C$9=0,"",IF(BD$6+'Data Input - General'!$F$22>'Data Input - General'!$F$34,0,'Data Input - BAU'!BD$6+'Data Input - General'!$F$22)) -> 0 | BE7: =IF($C$9=0,"",IF(BE$6+'Data Input - General'!$F$22>'Data Input - General'!$F$34,0,'Data Input - BAU'!BE$6+'Data Input - General'!$F$22)) -> 0 | BF7: =IF($C$9=0,"",IF(BF$6+'Data Input - General'!$F$22>'Data Input - General'!$F$34,0,'Data Input - BAU'!BF$6+'Data Input - General'!$F$22)) -> 0 | BG7: =IF($C$9=0,"",IF(BG$6+'Data Input - General'!$F$22>'Data Input - General'!$F$34,0,'Data Input - BAU'!BG$6+'Data Input - General'!$F$22)) -> 0 | BH7: =IF($C$9=0,"",IF(BH$6+'Data Input - General'!$F$22>'Data Input - General'!$F$34,0,'Data Input - BAU'!BH$6+'Data Input - General'!$F$22)) -> 0 | BI7: =IF($C$9=0,"",IF(BI$6+'Data Input - General'!$F$22>'Data Input - General'!$F$34,0,'Data Input - BAU'!BI$6+'Data Input - General'!$F$22)) -> 0 | BJ7: =IF($C$9=0,"",IF(BJ$6+'Data Input - General'!$F$22>'Data Input - General'!$F$34,0,'Data Input - BAU'!BJ$6+'Data Input - General'!$F$22)) -> 0 | BK7: =IF($C$9=0,"",IF(BK$6+'Data Input - General'!$F$22>'Data Input - General'!$F$34,0,'Data Input - BAU'!BK$6+'Data Input - General'!$F$22)) -> 0 | BL7: =IF($C$9=0,"",IF(BL$6+'Data Input - General'!$F$22>'Data Input - General'!$F$34,0,'Data Input - BAU'!BL$6+'Data Input - General'!$F$22)) -> 0 | BM7: =IF($C$9=0,"",IF(BM$6+'Data Input - General'!$F$22>'Data Input - General'!$F$34,0,'Data Input - BAU'!BM$6+'Data Input - General'!$F$22)) -> 0 | BN7: =IF($C$9=0,"",IF(BN$6+'Data Input - General'!$F$22>'Data Input - General'!$F$34,0,'Data Input - BAU'!BN$6+'Data Input - General'!$F$22)) -> 0 | BO7: =IF($C$9=0,"",IF(BO$6+'Data Input - General'!$F$22>'Data Input - General'!$F$34,0,'Data Input - BAU'!BO$6+'Data Input - General'!$F$22)) -> 0 | BP7: =IF($C$9=0,"",IF(BP$6+'Data Input - General'!$F$22>'Data Input - General'!$F$34,0,'Data Input - BAU'!BP$6+'Data Input - General'!$F$22)) -> 0 | BQ7: =IF($C$9=0,"",IF(BQ$6+'Data Input - General'!$F$22>'Data Input - General'!$F$34,0,'Data Input - BAU'!BQ$6+'Data Input - General'!$F$22)) -> 0 | BR7: =IF($C$9=0,"",IF(BR$6+'Data Input - General'!$F$22>'Data Input - General'!$F$34,0,'Data Input - BAU'!BR$6+'Data Input - General'!$F$22)) -> 0 | BS7: =IF($C$9=0,"",IF(BS$6+'Data Input - General'!$F$22>'Data Input - General'!$F$34,0,'Data Input - BAU'!BS$6+'Data Input - General'!$F$22)) -> 0 | BT7: =IF($C$9=0,"",IF(BT$6+'Data Input - General'!$F$22>'Data Input - General'!$F$34,0,'Data Input - BAU'!BT$6+'Data Input - General'!$F$22)) -> 0 | BU7: =IF($C$9=0,"",IF(BU$6+'Data Input - General'!$F$22>'Data Input - General'!$F$34,0,'Data Input - BAU'!BU$6+'Data Input - General'!$F$22)) -> 0 | BV7: =IF($C$9=0,"",IF(BV$6+'Data Input - General'!$F$22>'Data Input - General'!$F$34,0,'Data Input - BAU'!BV$6+'Data Input - General'!$F$22)) -> 0 | BW7: =IF($C$9=0,"",IF(BW$6+'Data Input - General'!$F$22>'Data Input - General'!$F$34,0,'Data Input - BAU'!BW$6+'Data Input - General'!$F$22)) -> 0 | BX7: =IF($C$9=0,"",IF(BX$6+'Data Input - General'!$F$22>'Data Input - General'!$F$34,0,'Data Input - BAU'!BX$6+'Data Input - General'!$F$22)) -> 0 | BY7: =IF($C$9=0,"",IF(BY$6+'Data Input - General'!$F$22>'Data Input - General'!$F$34,0,'Data Input - BAU'!BY$6+'Data Input - General'!$F$22)) -> 0 | BZ7: =IF($C$9=0,"",IF(BZ$6+'Data Input - General'!$F$22>'Data Input - General'!$F$34,0,'Data Input - BAU'!BZ$6+'Data Input - General'!$F$22)) -> 0 | CA7: =IF($C$9=0,"",IF(CA$6+'Data Input - General'!$F$22>'Data Input - General'!$F$34,0,'Data Input - BAU'!CA$6+'Data Input - General'!$F$22)) -> 0 | CB7: =IF($C$9=0,"",IF(CB$6+'Data Input - General'!$F$22>'Data Input - General'!$F$34,0,'Data Input - BAU'!CB$6+'Data Input - General'!$F$22)) -> 0 | CC7: =IF($C$9=0,"",IF(CC$6+'Data Input - General'!$F$22>'Data Input - General'!$F$34,0,'Data Input - BAU'!CC$6+'Data Input - General'!$F$22)) -> 0 | CD7: =IF($C$9=0,"",IF(CD$6+'Data Input - General'!$F$22>'Data Input - General'!$F$34,0,'Data Input - BAU'!CD$6+'Data Input - General'!$F$22)) -> 0 | CE7: =IF($C$9=0,"",IF(CE$6+'Data Input - General'!$F$22>'Data Input - General'!$F$34,0,'Data Input - BAU'!CE$6+'Data Input - General'!$F$22)) -> 0 | CF7: =IF($C$9=0,"",IF(CF$6+'Data Input - General'!$F$22>'Data Input - General'!$F$34,0,'Data Input - BAU'!CF$6+'Data Input - General'!$F$22)) -> 0 | CG7: =IF($C$9=0,"",IF(CG$6+'Data Input - General'!$F$22>'Data Input - General'!$F$34,0,'Data Input - BAU'!CG$6+'Data Input - General'!$F$22)) -> 0 | CH7: =IF($C$9=0,"",IF(CH$6+'Data Input - General'!$F$22>'Data Input - General'!$F$34,0,'Data Input - BAU'!CH$6+'Data Input - General'!$F$22)) -> 0 | CI7: =IF($C$9=0,"",IF(CI$6+'Data Input - General'!$F$22>'Data Input - General'!$F$34,0,'Data Input - BAU'!CI$6+'Data Input - General'!$F$22)) -> 0 | CJ7: =IF($C$9=0,"",IF(CJ$6+'Data Input - General'!$F$22>'Data Input - General'!$F$34,0,'Data Input - BAU'!CJ$6+'Data Input - General'!$F$22)) -> 0 | CK7: =IF($C$9=0,"",IF(CK$6+'Data Input - General'!$F$22>'Data Input - General'!$F$34,0,'Data Input - BAU'!CK$6+'Data Input - General'!$F$22)) -> 0 | CL7: =IF($C$9=0,"",IF(CL$6+'Data Input - General'!$F$22>'Data Input - General'!$F$34,0,'Data Input - BAU'!CL$6+'Data Input - General'!$F$22)) -> 0 | CM7: =IF($C$9=0,"",IF(CM$6+'Data Input - General'!$F$22>'Data Input - General'!$F$34,0,'Data Input - BAU'!CM$6+'Data Input - General'!$F$22)) -> 0 | CN7: =IF($C$9=0,"",IF(CN$6+'Data Input - General'!$F$22>'Data Input - General'!$F$34,0,'Data Input - BAU'!CN$6+'Data Input - General'!$F$22)) -> 0 | CO7: =IF($C$9=0,"",IF(CO$6+'Data Input - General'!$F$22>'Data Input - General'!$F$34,0,'Data Input - BAU'!CO$6+'Data Input - General'!$F$22)) -> 0 | CP7: =IF($C$9=0,"",IF(CP$6+'Data Input - General'!$F$22>'Data Input - General'!$F$34,0,'Data Input - BAU'!CP$6+'Data Input - General'!$F$22)) -> 0 | CQ7: =IF($C$9=0,"",IF(CQ$6+'Data Input - General'!$F$22>'Data Input - General'!$F$34,0,'Data Input - BAU'!CQ$6+'Data Input - General'!$F$22)) -> 0 | CR7: =IF($C$9=0,"",IF(CR$6+'Data Input - General'!$F$22>'Data Input - General'!$F$34,0,'Data Input - BAU'!CR$6+'Data Input - General'!$F$22)) -> 0 | CS7: =IF($C$9=0,"",IF(CS$6+'Data Input - General'!$F$22>'Data Input - General'!$F$34,0,'Data Input - BAU'!CS$6+'Data Input - General'!$F$22)) -> 0 | CT7: =IF($C$9=0,"",IF(CT$6+'Data Input - General'!$F$22>'Data Input - General'!$F$34,0,'Data Input - BAU'!CT$6+'Data Input - General'!$F$22)) -> 0 | CU7: =IF($C$9=0,"",IF(CU$6+'Data Input - General'!$F$22>'Data Input - General'!$F$34,0,'Data Input - BAU'!CU$6+'Data Input - General'!$F$22)) -> 0 | CV7: =IF($C$9=0,"",IF(CV$6+'Data Input - General'!$F$22>'Data Input - General'!$F$34,0,'Data Input - BAU'!CV$6+'Data Input - General'!$F$22)) -> 0 | CW7: =IF($C$9=0,"",IF(CW$6+'Data Input - General'!$F$22>'Data Input - General'!$F$34,0,'Data Input - BAU'!CW$6+'Data Input - General'!$F$22)) -> 0 | CX7: =IF($C$9=0,"",IF(CX$6+'Data Input - General'!$F$22>'Data Input - General'!$F$34,0,'Data Input - BAU'!CX$6+'Data Input - General'!$F$22)) -> 0 | CY7: =IF($C$9=0,"",IF(CY$6+'Data Input - General'!$F$22>'Data Input - General'!$F$34,0,'Data Input - BAU'!CY$6+'Data Input - General'!$F$22)) -> 0 | CZ7: =IF($C$9=0,"",IF(CZ$6+'Data Input - General'!$F$22>'Data Input - General'!$F$34,0,'Data Input - BAU'!CZ$6+'Data Input - General'!$F$22)) -> 0 | DA7: =IF($C$9=0,"",IF(DA$6+'Data Input - General'!$F$22>'Data Input - General'!$F$34,0,'Data Input - BAU'!DA$6+'Data Input - General'!$F$22)) -> 0 | DB7: =IF($C$9=0,"",IF(DB$6+'Data Input - General'!$F$22>'Data Input - General'!$F$34,0,'Data Input - BAU'!DB$6+'Data Input - General'!$F$22)) -> 0 | DC7: =IF($C$9=0,"",IF(DC$6+'Data Input - General'!$F$22>'Data Input - General'!$F$34,0,'Data Input - BAU'!DC$6+'Data Input - General'!$F$22)) -> 0
C9: BAU | E9: (?)
C11: Upfront investment costs | E11: (?)
D13: Equipment
C14: 4.1 | D14: Primary emission control equipment | E14: £000's | H14: 20 | I14: 20 | J14: 20 | K14: 20 | L14: 20 | M14: 20 | N14: 20 | O14: 20
C15: 4.2 | D15: Auxiliary equipment | E15: £000's | H15: 450 | I15: 450 | J15: 450 | K15: 450 | L15: 450 | M15: 450 | N15: 450 | O15: 450
C16: 4.3 | D16: Instrumentation | E16: £000's | H16: 6 | I16: 6 | J16: 6 | K16: 6 | L16: 6 | M16: 6 | N16: 6 | O16: 6
C17: 4.4 | D17: Modifications to existing equipment | E17: £000's
C18: 4.5 | D18: Major refurbishment | E18: £000's
D19: Set-up costs
C20: 4.6 | D20: Land | E20: £000's
C21: 4.7 | D21: Site preparation | E21: £000's
C22: 4.8 | D22: Civils | E22: £000's
C23: 4.9 | D23: Materials | E23: £000's
C24: 4.10 | D24: Other (please specify) | E24: £000's
D25: Other capex
C26: 4.11 | D26: Residual value of existing technology (where replaced) | E26: £000's
C27: 4.12 | D27: Project planning (if not in civils) | E27: £000's
C28: 4.13 | D28: Other (please specify) | E28: £000's
D30: Total upfront investment costs by year (non-discounted) | E30: £000's | F30: (Auto calculated value) | H30: =SUM(H14:H29) -> 476 | I30: =SUM(I14:I29) -> 476 | J30: =SUM(J14:J29) -> 476 | K30: =SUM(K14:K29) -> 476 | L30: =SUM(L14:L29) -> 476 | M30: 476 | N30: 476 | O30: 476 | P30: 0 | Q30: 0 | R30: 0 | S30: 0 | T30: 0 | U30: 0 | V30: 0 | W30: 0 | X30: 0 | Y30: 0 | Z30: 0 | AA30: 0 | AB30: 0 | AC30: 0 | AD30: 0 | AE30: 0 | AF30: 0 | AG30: 0 | AH30: 0 | AI30: 0 | AJ30: 0 | AK30: 0 | AL30: 0 | AM30: 0 | AN30: 0 | AO30: 0 | AP30: 0 | AQ30: 0 | AR30: 0 | AS30: 0 | AT30: 0 | AU30: 0 | AV30: 0 | AW30: 0 | AX30: 0 | AY30: 0 | AZ30: 0 | BA30: 0 | BB30: 0 | BC30: 0 | BD30: 0 | BE30: 0 | BF30: 0 | BG30: 0 | BH30: 0 | BI30: 0 | BJ30: 0 | BK30: 0 | BL30: 0 | BM30: 0 | BN30: 0 | BO30: 0 | BP30: 0 | BQ30: 0 | BR30: 0 | BS30: 0 | BT30: 0 | BU30: 0 | BV30: 0 | BW30: 0 | BX30: =SUM(BX14:BX29) -> 0 | BY30: 0 | BZ30: 0 | CA30: 0 | CB30: 0 | CC30: 0 | CD30: 0 | CE30: 0 | CF30: 0 | CG30: 0 | CH30: 0 | CI30: 0 | CJ30: 0 | CK30: 0 | CL30: 0 | CM30: 0 | CN30: 0 | CO30: 0 | CP30: 0 | CQ30: 0 | CR30: 0 | CS30: 0 | CT30: 0 | CU30: 0 | CV30: 0 | CW30: 0 | CX30: 0 | CY30: 0 | CZ30: 0 | DA30: 0 | DB30: 0 | DC30: 0
D32: Total upfront investment costs for all years (non-discounted) | F32: (Auto calculated value) | H32: =SUM(H30:DC30) -> 3808
C34: 4.14 | D34: Uncertainty range around upfront investment costs | E34: +/-%
D36: Cost of capital (financing) | E36: (?)
C37: 4.15 | D37: Enter financing costs manually? | F37: No | H37: <(Select from dropdown)
C39: 4.16 | D39: Financing costs - WACC (if entered manually) (?) | E39: £000's
C41: 4.17 | D41: Financing costs - Low WACC (if entered manually) | E41: £000's
C42: 4.18 | D42: Financing costs - High WACC (if entered manually) | E42: £000's
C44: Operating Costs | E44: (?)
C46: 4.19 | D46: Labour (?) | E46: £000's | H46: 50 | I46: 50 | J46: 50 | K46: 50 | L46: 50 | M46: 50 | N46: 50 | O46: 50
C47: 4.20 | D47: Maintenance | E47: £000's | H47: 200 | I47: 200 | J47: 200 | K47: 200 | L47: 200 | M47: 200 | N47: 200 | O47: 200
C48: 4.21 | D48: test1 | E48: £000's
D50: Total operating and maintenance costs by year (non-discounted) | E50: £000's | F50: (Auto calculated value) | H50: =SUM(H46:H49) -> 250 | I50: =SUM(I46:I49) -> 250 | J50: 250 | K50: 250 | L50: 250 | M50: 250 | N50: 250 | O50: 250 | P50: 0 | Q50: 0 | R50: 0 | S50: 0 | T50: 0 | U50: 0 | V50: 0 | W50: 0 | X50: 0 | Y50: 0 | Z50: 0 | AA50: 0 | AB50: 0 | AC50: 0 | AD50: 0 | AE50: 0 | AF50: 0 | AG50: 0 | AH50: 0 | AI50: 0 | AJ50: 0 | AK50: 0 | AL50: 0 | AM50: 0 | AN50: 0 | AO50: 0 | AP50: 0 | AQ50: 0 | AR50: 0 | AS50: 0 | AT50: 0 | AU50: 0 | AV50: 0 | AW50: 0 | AX50: 0 | AY50: 0 | AZ50: 0 | BA50: 0 | BB50: 0 | BC50: 0 | BD50: 0 | BE50: 0 | BF50: 0 | BG50: 0 | BH50: 0 | BI50: 0 | BJ50: 0 | BK50: 0 | BL50: 0 | BM50: 0 | BN50: 0 | BO50: 0 | BP50: 0 | BQ50: 0 | BR50: 0 | BS50: 0 | BT50: 0 | BU50: =SUM(BU46:BU49) -> 0 | BV50: 0 | BW50: 0 | BX50: 0 | BY50: 0 | BZ50: 0 | CA50: 0 | CB50: 0 | CC50: 0 | CD50: 0 | CE50: 0 | CF50: 0 | CG50: 0 | CH50: 0 | CI50: 0 | CJ50: 0 | CK50: 0 | CL50: 0 | CM50: 0 | CN50: 0 | CO50: 0 | CP50: 0 | CQ50: 0 | CR50: 0 | CS50: 0 | CT50: 0 | CU50: 0 | CV50: 0 | CW50: 0 | CX50: 0 | CY50: 0 | CZ50: 0 | DA50: 0 | DB50: 0 | DC50: 0
D52: Total operating and maintenance costs for all years (non-discounted) | F52: (Auto calculated value) | H52: =SUM(H50:DC50) -> 2000
C54: 4.22 | D54: Uncertainty range around operating costs | E54: +/-% | F54: 0.2
C56: Waste output | E56: (?)
D58: Volume of waste
C59: 4.23 | D59: Non-haz waste, reused | E59: Tonnes
C60: 4.24 | D60: Non-haz waste, recycled | E60: Tonnes
C61: 4.25 | D61: Non-haz waste, otherwise recovered | E61: Tonnes
C62: 4.26 | D62: Non-haz waste, disposed | E62: Tonnes
C63: 4.27 | D63: Haz waste, reused | E63: Tonnes
C64: 4.28 | D64: Haz waste, recycled | E64: Tonnes
C65: 4.29 | D65: Haz waste, otherwise recovered | E65: Tonnes
C66: 4.30 | D66: Haz waste, disposed | E66: Tonnes
C67: 4.31 | D67: Test 2 | E67: Tonnes | G67: (?)
D68: Net cost of waste output
C69: 4.32 | D69: Non-haz waste, reused | E69: £000's
C70: 4.33 | D70: Non-haz waste, recycled | E70: £000's
C71: 4.34 | D71: Non-haz waste, otherwise recovered | E71: £000's
C72: 4.35 | D72: Non-haz waste, disposed | E72: £000's
C73: 4.36 | D73: Haz waste, reused | E73: £000's
C74: 4.37 | D74: Haz waste, recycled | E74: £000's
C75: 4.38 | D75: Haz waste, otherwise recovered | E75: £000's
C76: 4.39 | D76: Haz waste, disposed | E76: £000's
C77: 4.40 | D77: Other (please specify) | E77: £000's
D79: Total cost of waste output | E79: £000's | F79: (Auto calculated value) | H79: =SUM(H69:H78) -> 0 | I79: =SUM(I69:I78) -> 0 | J79: =SUM(J69:J78) -> 0 | K79: =SUM(K69:K78) -> 0 | L79: =SUM(L69:L78) -> 0 | M79: 0 | N79: 0 | O79: 0 | P79: 0 | Q79: 0 | R79: 0 | S79: 0 | T79: 0 | U79: 0 | V79: 0 | W79: 0 | X79: 0 | Y79: 0 | Z79: 0 | AA79: 0 | AB79: 0 | AC79: 0 | AD79: 0 | AE79: 0 | AF79: 0 | AG79: 0 | AH79: 0 | AI79: 0 | AJ79: 0 | AK79: 0 | AL79: 0 | AM79: 0 | AN79: 0 | AO79: 0 | AP79: 0 | AQ79: 0 | AR79: 0 | AS79: 0 | AT79: 0 | AU79: 0 | AV79: 0 | AW79: 0 | AX79: 0 | AY79: 0 | AZ79: 0 | BA79: 0 | BB79: 0 | BC79: 0 | BD79: 0 | BE79: 0 | BF79: 0 | BG79: 0 | BH79: 0 | BI79: 0 | BJ79: 0 | BK79: 0 | BL79: 0 | BM79: 0 | BN79: 0 | BO79: 0 | BP79: 0 | BQ79: 0 | BR79: 0 | BS79: 0 | BT79: 0 | BU79: 0 | BV79: 0 | BW79: 0 | BX79: =SUM(BX69:BX78) -> 0 | BY79: 0 | BZ79: 0 | CA79: 0 | CB79: 0 | CC79: 0 | CD79: 0 | CE79: 0 | CF79: 0 | CG79: 0 | CH79: 0 | CI79: 0 | CJ79: 0 | CK79: 0 | CL79: 0 | CM79: 0 | CN79: 0 | CO79: 0 | CP79: 0 | CQ79: 0 | CR79: 0 | CS79: 0 | CT79: 0 | CU79: 0 | CV79: 0 | CW79: 0 | CX79: 0 | CY79: 0 | CZ79: 0 | DA79: 0 | DB79: 0 | DC79: 0
C81: Energy Consumption
D83: Quantity of energy consumed
C84: 4.41 | D84: Electricity | E84: kWh | H84: 4000000 | I84: 4000000 | J84: 4000000 | K84: 4000000 | L84: 4000000 | M84: 4000000 | N84: 4000000 | O84: 4000000
C85: 4.42 | D85: Natural Gas | E85: kWh | H85: 0 | I85: 0 | J85: 0 | K85: 0 | L85: 0 | M85: 0 | N85: 0 | O85: 0
C86: 4.43 | D86: Coal | E86: kWh | H86: 121624465 | I86: 121624465 | J86: 121624465 | K86: 121624465 | L86: 121624465 | M86: 121624465 | N86: 121624465 | O86: 121624465
C87: 4.44 | D87: Gas Oil | E87: litres | H87: 200000 | I87: 200000 | J87: 200000 | K87: 200000 | L87: 200000 | M87: 200000 | N87: 200000 | O87: 200000
C88: 4.45 | D88: Road - Petrol | E88: litres
C89: 4.46 | D89: Road - Diesel | E89: litres
C90: 4.47 | E90: kWh
D91: Value of energy consumed | E91: (?)
D92: =D84 -> Electricity | E92: £000's | F92: (Auto calculated value) | H92: =IFERROR(H84*INDEX('Energy Prices'!$F$12:$CR$17,MATCH('Data Input - BAU'!$D92,'Energy Prices'!$C$12:$C$17,0),MATCH('Data Input - BAU'!H$7,'Energy Prices'!$F$11:$CR$11,0))/100000,"") -> 446.0466361 | I92: =IFERROR(I84*INDEX('Energy Prices'!$F$12:$CR$17,MATCH('Data Input - BAU'!$D92,'Energy Prices'!$C$12:$C$17,0),MATCH('Data Input - BAU'!I$7,'Energy Prices'!$F$11:$CR$11,0))/100000,"") -> 465.6976766 | J92: =IFERROR(J84*INDEX('Energy Prices'!$F$12:$CR$17,MATCH('Data Input - BAU'!$D92,'Energy Prices'!$C$12:$C$17,0),MATCH('Data Input - BAU'!J$7,'Energy Prices'!$F$11:$CR$11,0))/100000,"") -> 498.4554411 | K92: =IFERROR(K84*INDEX('Energy Prices'!$F$12:$CR$17,MATCH('Data Input - BAU'!$D92,'Energy Prices'!$C$12:$C$17,0),MATCH('Data Input - BAU'!K$7,'Energy Prices'!$F$11:$CR$11,0))/100000,"") -> 509.256976 | L92: =IFERROR(L84*INDEX('Energy Prices'!$F$12:$CR$17,MATCH('Data Input - BAU'!$D92,'Energy Prices'!$C$12:$C$17,0),MATCH('Data Input - BAU'!L$7,'Energy Prices'!$F$11:$CR$11,0))/100000,"") -> 520.1761292 | M92: =IFERROR(M84*INDEX('Energy Prices'!$F$12:$CR$17,MATCH('Data Input - BAU'!$D92,'Energy Prices'!$C$12:$C$17,0),MATCH('Data Input - BAU'!M$7,'Energy Prices'!$F$11:$CR$11,0))/100000,"") -> 556.394623 | N92: =IFERROR(N84*INDEX('Energy Prices'!$F$12:$CR$17,MATCH('Data Input - BAU'!$D92,'Energy Prices'!$C$12:$C$17,0),MATCH('Data Input - BAU'!N$7,'Energy Prices'!$F$11:$CR$11,0))/100000,"") -> 580.4604165 | O92: =IFERROR(O84*INDEX('Energy Prices'!$F$12:$CR$17,MATCH('Data Input - BAU'!$D92,'Energy Prices'!$C$12:$C$17,0),MATCH('Data Input - BAU'!O$7,'Energy Prices'!$F$11:$CR$11,0))/100000,"") -> 584.2976631 | P92: =IFERROR(P84*INDEX('Energy Prices'!$F$12:$CR$17,MATCH('Data Input - BAU'!$D92,'Energy Prices'!$C$12:$C$17,0),MATCH('Data Input - BAU'!P$7,'Energy Prices'!$F$11:$CR$11,0))/100000,"") -> 0 | Q92: =IFERROR(Q84*INDEX('Energy Prices'!$F$12:$CR$17,MATCH('Data Input - BAU'!$D92,'Energy Prices'!$C$12:$C$17,0),MATCH('Data Input - BAU'!Q$7,'Energy Prices'!$F$11:$CR$11,0))/100000,"") -> 0 | R92: =IFERROR(R84*INDEX('Energy Prices'!$F$12:$CR$17,MATCH('Data Input - BAU'!$D92,'Energy Prices'!$C$12:$C$17,0),MATCH('Data Input - BAU'!R$7,'Energy Prices'!$F$11:$CR$11,0))/100000,"") -> 0 | S92: =IFERROR(S84*INDEX('Energy Prices'!$F$12:$CR$17,MATCH('Data Input - BAU'!$D92,'Energy Prices'!$C$12:$C$17,0),MATCH('Data Input - BAU'!S$7,'Energy Prices'!$F$11:$CR$11,0))/100000,"") -> 0 | T92: =IFERROR(T84*INDEX('Energy Prices'!$F$12:$CR$17,MATCH('Data Input - BAU'!$D92,'Energy Prices'!$C$12:$C$17,0),MATCH('Data Input - BAU'!T$7,'Energy Prices'!$F$11:$CR$11,0))/100000,"") -> 0 | U92: =IFERROR(U84*INDEX('Energy Prices'!$F$12:$CR$17,MATCH('Data Input - BAU'!$D92,'Energy Prices'!$C$12:$C$17,0),MATCH('Data Input - BAU'!U$7,'Energy Prices'!$F$11:$CR$11,0))/100000,"") -> 0 | V92: =IFERROR(V84*INDEX('Energy Prices'!$F$12:$CR$17,MATCH('Data Input - BAU'!$D92,'Energy Prices'!$C$12:$C$17,0),MATCH('Data Input - BAU'!V$7,'Energy Prices'!$F$11:$CR$11,0))/100000,"") -> 0 | W92: =IFERROR(W84*INDEX('Energy Prices'!$F$12:$CR$17,MATCH('Data Input - BAU'!$D92,'Energy Prices'!$C$12:$C$17,0),MATCH('Data Input - BAU'!W$7,'Energy Prices'!$F$11:$CR$11,0))/100000,"") -> 0 | X92: =IFERROR(X84*INDEX('Energy Prices'!$F$12:$CR$17,MATCH('Data Input - BAU'!$D92,'Energy Prices'!$C$12:$C$17,0),MATCH('Data Input - BAU'!X$7,'Energy Prices'!$F$11:$CR$11,0))/100000,"") -> 0 | Y92: =IFERROR(Y84*INDEX('Energy Prices'!$F$12:$CR$17,MATCH('Data Input - BAU'!$D92,'Energy Prices'!$C$12:$C$17,0),MATCH('Data Input - BAU'!Y$7,'Energy Prices'!$F$11:$CR$11,0))/100000,"") -> 0 | Z92: =IFERROR(Z84*INDEX('Energy Prices'!$F$12:$CR$17,MATCH('Data Input - BAU'!$D92,'Energy Prices'!$C$12:$C$17,0),MATCH('Data Input - BAU'!Z$7,'Energy Prices'!$F$11:$CR$11,0))/100000,"") -> 0 | AA92: =IFERROR(AA84*INDEX('Energy Prices'!$F$12:$CR$17,MATCH('Data Input - BAU'!$D92,'Energy Prices'!$C$12:$C$17,0),MATCH('Data Input - BAU'!AA$7,'Energy Prices'!$F$11:$CR$11,0))/100000,"") -> 0 | AB92: =IFERROR(AB84*INDEX('Energy Prices'!$F$12:$CR$17,MATCH('Data Input - BAU'!$D92,'Energy Prices'!$C$12:$C$17,0),MATCH('Data Input - BAU'!AB$7,'Energy Prices'!$F$11:$CR$11,0))/100000,"") -> 0 | AC92: =IFERROR(AC84*INDEX('Energy Prices'!$F$12:$CR$17,MATCH('Data Input - BAU'!$D92,'Energy Prices'!$C$12:$C$17,0),MATCH('Data Input - BAU'!AC$7,'Energy Prices'!$F$11:$CR$11,0))/100000,"") -> 0 | AD92: =IFERROR(AD84*INDEX('Energy Prices'!$F$12:$CR$17,MATCH('Data Input - BAU'!$D92,'Energy Prices'!$C$12:$C$17,0),MATCH('Data Input - BAU'!AD$7,'Energy Prices'!$F$11:$CR$11,0))/100000,"") -> 0 | AE92: =IFERROR(AE84*INDEX('Energy Prices'!$F$12:$CR$17,MATCH('Data Input - BAU'!$D92,'Energy Prices'!$C$12:$C$17,0),MATCH('Data Input - BAU'!AE$7,'Energy Prices'!$F$11:$CR$11,0))/100000,"") -> 0 | AF92: =IFERROR(AF84*INDEX('Energy Prices'!$F$12:$CR$17,MATCH('Data Input - BAU'!$D92,'Energy Prices'!$C$12:$C$17,0),MATCH('Data Input - BAU'!AF$7,'Energy Prices'!$F$11:$CR$11,0))/100000,"") -> 0 | AG92: =IFERROR(AG84*INDEX('Energy Prices'!$F$12:$CR$17,MATCH('Data Input - BAU'!$D92,'Energy Prices'!$C$12:$C$17,0),MATCH('Data Input - BAU'!AG$7,'Energy Prices'!$F$11:$CR$11,0))/100000,"") -> 0 | AH92: =IFERROR(AH84*INDEX('Energy Prices'!$F$12:$CR$17,MATCH('Data Input - BAU'!$D92,'Energy Prices'!$C$12:$C$17,0),MATCH('Data Input - BAU'!AH$7,'Energy Prices'!$F$11:$CR$11,0))/100000,"") -> 0 | AI92: =IFERROR(AI84*INDEX('Energy Prices'!$F$12:$CR$17,MATCH('Data Input - BAU'!$D92,'Energy Prices'!$C$12:$C$17,0),MATCH('Data Input - BAU'!AI$7,'Energy Prices'!$F$11:$CR$11,0))/100000,"") -> 0 | AJ92: =IFERROR(AJ84*INDEX('Energy Prices'!$F$12:$CR$17,MATCH('Data Input - BAU'!$D92,'Energy Prices'!$C$12:$C$17,0),MATCH('Data Input - BAU'!AJ$7,'Energy Prices'!$F$11:$CR$11,0))/100000,"") -> 0 | AK92: =IFERROR(AK84*INDEX('Energy Prices'!$F$12:$CR$17,MATCH('Data Input - BAU'!$D92,'Energy Prices'!$C$12:$C$17,0),MATCH('Data Input - BAU'!AK$7,'Energy Prices'!$F$11:$CR$11,0))/100000,"") -> 0 | AL92: =IFERROR(AL84*INDEX('Energy Prices'!$F$12:$CR$17,MATCH('Data Input - BAU'!$D92,'Energy Prices'!$C$12:$C$17,0),MATCH('Data Input - BAU'!AL$7,'Energy Prices'!$F$11:$CR$11,0))/100000,"") -> 0 | AM92: =IFERROR(AM84*INDEX('Energy Prices'!$F$12:$CR$17,MATCH('Data Input - BAU'!$D92,'Energy Prices'!$C$12:$C$17,0),MATCH('Data Input - BAU'!AM$7,'Energy Prices'!$F$11:$CR$11,0))/100000,"") ->  | AN92: =IFERROR(AN84*INDEX('Energy Prices'!$F$12:$CR$17,MATCH('Data Input - BAU'!$D92,'Energy Prices'!$C$12:$C$17,0),MATCH('Data Input - BAU'!AN$7,'Energy Prices'!$F$11:$CR$11,0))/100000,"") ->  | AO92: =IFERROR(AO84*INDEX('Energy Prices'!$F$12:$CR$17,MATCH('Data Input - BAU'!$D92,'Energy Prices'!$C$12:$C$17,0),MATCH('Data Input - BAU'!AO$7,'Energy Prices'!$F$11:$CR$11,0))/100000,"") ->  | AP92: =IFERROR(AP84*INDEX('Energy Prices'!$F$12:$CR$17,MATCH('Data Input - BAU'!$D92,'Energy Prices'!$C$12:$C$17,0),MATCH('Data Input - BAU'!AP$7,'Energy Prices'!$F$11:$CR$11,0))/100000,"") ->  | AQ92: =IFERROR(AQ84*INDEX('Energy Prices'!$F$12:$CR$17,MATCH('Data Input - BAU'!$D92,'Energy Prices'!$C$12:$C$17,0),MATCH('Data Input - BAU'!AQ$7,'Energy Prices'!$F$11:$CR$11,0))/100000,"") ->  | AR92: =IFERROR(AR84*INDEX('Energy Prices'!$F$12:$CR$17,MATCH('Data Input - BAU'!$D92,'Energy Prices'!$C$12:$C$17,0),MATCH('Data Input - BAU'!AR$7,'Energy Prices'!$F$11:$CR$11,0))/100000,"") ->  | AS92: =IFERROR(AS84*INDEX('Energy Prices'!$F$12:$CR$17,MATCH('Data Input - BAU'!$D92,'Energy Prices'!$C$12:$C$17,0),MATCH('Data Input - BAU'!AS$7,'Energy Prices'!$F$11:$CR$11,0))/100000,"") ->  | AT92: =IFERROR(AT84*INDEX('Energy Prices'!$F$12:$CR$17,MATCH('Data Input - BAU'!$D92,'Energy Prices'!$C$12:$C$17,0),MATCH('Data Input - BAU'!AT$7,'Energy Prices'!$F$11:$CR$11,0))/100000,"") ->  | AU92: =IFERROR(AU84*INDEX('Energy Prices'!$F$12:$CR$17,MATCH('Data Input - BAU'!$D92,'Energy Prices'!$C$12:$C$17,0),MATCH('Data Input - BAU'!AU$7,'Energy Prices'!$F$11:$CR$11,0))/100000,"") ->  | AV92: =IFERROR(AV84*INDEX('Energy Prices'!$F$12:$CR$17,MATCH('Data Input - BAU'!$D92,'Energy Prices'!$C$12:$C$17,0),MATCH('Data Input - BAU'!AV$7,'Energy Prices'!$F$11:$CR$11,0))/100000,"") ->  | AW92: =IFERROR(AW84*INDEX('Energy Prices'!$F$12:$CR$17,MATCH('Data Input - BAU'!$D92,'Energy Prices'!$C$12:$C$17,0),MATCH('Data Input - BAU'!AW$7,'Energy Prices'!$F$11:$CR$11,0))/100000,"") ->  | AX92: =IFERROR(AX84*INDEX('Energy Prices'!$F$12:$CR$17,MATCH('Data Input - BAU'!$D92,'Energy Prices'!$C$12:$C$17,0),MATCH('Data Input - BAU'!AX$7,'Energy Prices'!$F$11:$CR$11,0))/100000,"") ->  | AY92: =IFERROR(AY84*INDEX('Energy Prices'!$F$12:$CR$17,MATCH('Data Input - BAU'!$D92,'Energy Prices'!$C$12:$C$17,0),MATCH('Data Input - BAU'!AY$7,'Energy Prices'!$F$11:$CR$11,0))/100000,"") ->  | AZ92: =IFERROR(AZ84*INDEX('Energy Prices'!$F$12:$CR$17,MATCH('Data Input - BAU'!$D92,'Energy Prices'!$C$12:$C$17,0),MATCH('Data Input - BAU'!AZ$7,'Energy Prices'!$F$11:$CR$11,0))/100000,"") ->  | BA92: =IFERROR(BA84*INDEX('Energy Prices'!$F$12:$CR$17,MATCH('Data Input - BAU'!$D92,'Energy Prices'!$C$12:$C$17,0),MATCH('Data Input - BAU'!BA$7,'Energy Prices'!$F$11:$CR$11,0))/100000,"") ->  | BB92: =IFERROR(BB84*INDEX('Energy Prices'!$F$12:$CR$17,MATCH('Data Input - BAU'!$D92,'Energy Prices'!$C$12:$C$17,0),MATCH('Data Input - BAU'!BB$7,'Energy Prices'!$F$11:$CR$11,0))/100000,"") ->  | BC92: =IFERROR(BC84*INDEX('Energy Prices'!$F$12:$CR$17,MATCH('Data Input - BAU'!$D92,'Energy Prices'!$C$12:$C$17,0),MATCH('Data Input - BAU'!BC$7,'Energy Prices'!$F$11:$CR$11,0))/100000,"") ->  | BD92: =IFERROR(BD84*INDEX('Energy Prices'!$F$12:$CR$17,MATCH('Data Input - BAU'!$D92,'Energy Prices'!$C$12:$C$17,0),MATCH('Data Input - BAU'!BD$7,'Energy Prices'!$F$11:$CR$11,0))/100000,"") ->  | BE92: =IFERROR(BE84*INDEX('Energy Prices'!$F$12:$CR$17,MATCH('Data Input - BAU'!$D92,'Energy Prices'!$C$12:$C$17,0),MATCH('Data Input - BAU'!BE$7,'Energy Prices'!$F$11:$CR$11,0))/100000,"") ->  | BF92: =IFERROR(BF84*INDEX('Energy Prices'!$F$12:$CR$17,MATCH('Data Input - BAU'!$D92,'Energy Prices'!$C$12:$C$17,0),MATCH('Data Input - BAU'!BF$7,'Energy Prices'!$F$11:$CR$11,0))/100000,"") ->  | BG92: =IFERROR(BG84*INDEX('Energy Prices'!$F$12:$CR$17,MATCH('Data Input - BAU'!$D92,'Energy Prices'!$C$12:$C$17,0),MATCH('Data Input - BAU'!BG$7,'Energy Prices'!$F$11:$CR$11,0))/100000,"") ->  | BH92: =IFERROR(BH84*INDEX('Energy Prices'!$F$12:$CR$17,MATCH('Data Input - BAU'!$D92,'Energy Prices'!$C$12:$C$17,0),MATCH('Data Input - BAU'!BH$7,'Energy Prices'!$F$11:$CR$11,0))/100000,"") ->  | BI92: =IFERROR(BI84*INDEX('Energy Prices'!$F$12:$CR$17,MATCH('Data Input - BAU'!$D92,'Energy Prices'!$C$12:$C$17,0),MATCH('Data Input - BAU'!BI$7,'Energy Prices'!$F$11:$CR$11,0))/100000,"") ->  | BJ92: =IFERROR(BJ84*INDEX('Energy Prices'!$F$12:$CR$17,MATCH('Data Input - BAU'!$D92,'Energy Prices'!$C$12:$C$17,0),MATCH('Data Input - BAU'!BJ$7,'Energy Prices'!$F$11:$CR$11,0))/100000,"") ->  | BK92: =IFERROR(BK84*INDEX('Energy Prices'!$F$12:$CR$17,MATCH('Data Input - BAU'!$D92,'Energy Prices'!$C$12:$C$17,0),MATCH('Data Input - BAU'!BK$7,'Energy Prices'!$F$11:$CR$11,0))/100000,"") ->  | BL92: =IFERROR(BL84*INDEX('Energy Prices'!$F$12:$CR$17,MATCH('Data Input - BAU'!$D92,'Energy Prices'!$C$12:$C$17,0),MATCH('Data Input - BAU'!BL$7,'Energy Prices'!$F$11:$CR$11,0))/100000,"") ->  | BM92: =IFERROR(BM84*INDEX('Energy Prices'!$F$12:$CR$17,MATCH('Data Input - BAU'!$D92,'Energy Prices'!$C$12:$C$17,0),MATCH('Data Input - BAU'!BM$7,'Energy Prices'!$F$11:$CR$11,0))/100000,"") ->  | BN92: =IFERROR(BN84*INDEX('Energy Prices'!$F$12:$CR$17,MATCH('Data Input - BAU'!$D92,'Energy Prices'!$C$12:$C$17,0),MATCH('Data Input - BAU'!BN$7,'Energy Prices'!$F$11:$CR$11,0))/100000,"") ->  | BO92: =IFERROR(BO84*INDEX('Energy Prices'!$F$12:$CR$17,MATCH('Data Input - BAU'!$D92,'Energy Prices'!$C$12:$C$17,0),MATCH('Data Input - BAU'!BO$7,'Energy Prices'!$F$11:$CR$11,0))/100000,"") ->  | BP92: =IFERROR(BP84*INDEX('Energy Prices'!$F$12:$CR$17,MATCH('Data Input - BAU'!$D92,'Energy Prices'!$C$12:$C$17,0),MATCH('Data Input - BAU'!BP$7,'Energy Prices'!$F$11:$CR$11,0))/100000,"") ->  | BQ92: =IFERROR(BQ84*INDEX('Energy Prices'!$F$12:$CR$17,MATCH('Data Input - BAU'!$D92,'Energy Prices'!$C$12:$C$17,0),MATCH('Data Input - BAU'!BQ$7,'Energy Prices'!$F$11:$CR$11,0))/100000,"") ->  | BR92: =IFERROR(BR84*INDEX('Energy Prices'!$F$12:$CR$17,MATCH('Data Input - BAU'!$D92,'Energy Prices'!$C$12:$C$17,0),MATCH('Data Input - BAU'!BR$7,'Energy Prices'!$F$11:$CR$11,0))/100000,"") ->  | BS92: =IFERROR(BS84*INDEX('Energy Prices'!$F$12:$CR$17,MATCH('Data Input - BAU'!$D92,'Energy Prices'!$C$12:$C$17,0),MATCH('Data Input - BAU'!BS$7,'Energy Prices'!$F$11:$CR$11,0))/100000,"") ->  | BT92: =IFERROR(BT84*INDEX('Energy Prices'!$F$12:$CR$17,MATCH('Data Input - BAU'!$D92,'Energy Prices'!$C$12:$C$17,0),MATCH('Data Input - BAU'!BT$7,'Energy Prices'!$F$11:$CR$11,0))/100000,"") ->  | BU92: =IFERROR(BU84*INDEX('Energy Prices'!$F$12:$CR$17,MATCH('Data Input - BAU'!$D92,'Energy Prices'!$C$12:$C$17,0),MATCH('Data Input - BAU'!BU$7,'Energy Prices'!$F$11:$CR$11,0))/100000,"") ->  | BV92: =IFERROR(BV84*INDEX('Energy Prices'!$F$12:$CR$17,MATCH('Data Input - BAU'!$D92,'Energy Prices'!$C$12:$C$17,0),MATCH('Data Input - BAU'!BV$7,'Energy Prices'!$F$11:$CR$11,0))/100000,"") ->  | BW92: =IFERROR(BW84*INDEX('Energy Prices'!$F$12:$CR$17,MATCH('Data Input - BAU'!$D92,'Energy Prices'!$C$12:$C$17,0),MATCH('Data Input - BAU'!BW$7,'Energy Prices'!$F$11:$CR$11,0))/100000,"") ->  | BX92: =IFERROR(BX84*INDEX('Energy Prices'!$F$12:$CR$17,MATCH('Data Input - BAU'!$D92,'Energy Prices'!$C$12:$C$17,0),MATCH('Data Input - BAU'!BX$7,'Energy Prices'!$F$11:$CR$11,0))/100000,"") ->  | BY92: =IFERROR(BY84*INDEX('Energy Prices'!$F$12:$CR$17,MATCH('Data Input - BAU'!$D92,'Energy Prices'!$C$12:$C$17,0),MATCH('Data Input - BAU'!BY$7,'Energy Prices'!$F$11:$CR$11,0))/100000,"") ->  | BZ92: =IFERROR(BZ84*INDEX('Energy Prices'!$F$12:$CR$17,MATCH('Data Input - BAU'!$D92,'Energy Prices'!$C$12:$C$17,0),MATCH('Data Input - BAU'!BZ$7,'Energy Prices'!$F$11:$CR$11,0))/100000,"") ->  | CA92: =IFERROR(CA84*INDEX('Energy Prices'!$F$12:$CR$17,MATCH('Data Input - BAU'!$D92,'Energy Prices'!$C$12:$C$17,0),MATCH('Data Input - BAU'!CA$7,'Energy Prices'!$F$11:$CR$11,0))/100000,"") ->  | CB92: =IFERROR(CB84*INDEX('Energy Prices'!$F$12:$CR$17,MATCH('Data Input - BAU'!$D92,'Energy Prices'!$C$12:$C$17,0),MATCH('Data Input - BAU'!CB$7,'Energy Prices'!$F$11:$CR$11,0))/100000,"") ->  | CC92: =IFERROR(CC84*INDEX('Energy Prices'!$F$12:$CR$17,MATCH('Data Input - BAU'!$D92,'Energy Prices'!$C$12:$C$17,0),MATCH('Data Input - BAU'!CC$7,'Energy Prices'!$F$11:$CR$11,0))/100000,"") ->  | CD92: =IFERROR(CD84*INDEX('Energy Prices'!$F$12:$CR$17,MATCH('Data Input - BAU'!$D92,'Energy Prices'!$C$12:$C$17,0),MATCH('Data Input - BAU'!CD$7,'Energy Prices'!$F$11:$CR$11,0))/100000,"") ->  | CE92: =IFERROR(CE84*INDEX('Energy Prices'!$F$12:$CR$17,MATCH('Data Input - BAU'!$D92,'Energy Prices'!$C$12:$C$17,0),MATCH('Data Input - BAU'!CE$7,'Energy Prices'!$F$11:$CR$11,0))/100000,"") ->  | CF92: =IFERROR(CF84*INDEX('Energy Prices'!$F$12:$CR$17,MATCH('Data Input - BAU'!$D92,'Energy Prices'!$C$12:$C$17,0),MATCH('Data Input - BAU'!CF$7,'Energy Prices'!$F$11:$CR$11,0))/100000,"") ->  | CG92: =IFERROR(CG84*INDEX('Energy Prices'!$F$12:$CR$17,MATCH('Data Input - BAU'!$D92,'Energy Prices'!$C$12:$C$17,0),MATCH('Data Input - BAU'!CG$7,'Energy Prices'!$F$11:$CR$11,0))/100000,"") ->  | CH92: =IFERROR(CH84*INDEX('Energy Prices'!$F$12:$CR$17,MATCH('Data Input - BAU'!$D92,'Energy Prices'!$C$12:$C$17,0),MATCH('Data Input - BAU'!CH$7,'Energy Prices'!$F$11:$CR$11,0))/100000,"") ->  | CI92: =IFERROR(CI84*INDEX('Energy Prices'!$F$12:$CR$17,MATCH('Data Input - BAU'!$D92,'Energy Prices'!$C$12:$C$17,0),MATCH('Data Input - BAU'!CI$7,'Energy Prices'!$F$11:$CR$11,0))/100000,"") ->  | CJ92: =IFERROR(CJ84*INDEX('Energy Prices'!$F$12:$CR$17,MATCH('Data Input - BAU'!$D92,'Energy Prices'!$C$12:$C$17,0),MATCH('Data Input - BAU'!CJ$7,'Energy Prices'!$F$11:$CR$11,0))/100000,"") ->  | CK92: =IFERROR(CK84*INDEX('Energy Prices'!$F$12:$CR$17,MATCH('Data Input - BAU'!$D92,'Energy Prices'!$C$12:$C$17,0),MATCH('Data Input - BAU'!CK$7,'Energy Prices'!$F$11:$CR$11,0))/100000,"") ->  | CL92: =IFERROR(CL84*INDEX('Energy Prices'!$F$12:$CR$17,MATCH('Data Input - BAU'!$D92,'Energy Prices'!$C$12:$C$17,0),MATCH('Data Input - BAU'!CL$7,'Energy Prices'!$F$11:$CR$11,0))/100000,"") ->  | CM92: =IFERROR(CM84*INDEX('Energy Prices'!$F$12:$CR$17,MATCH('Data Input - BAU'!$D92,'Energy Prices'!$C$12:$C$17,0),MATCH('Data Input - BAU'!CM$7,'Energy Prices'!$F$11:$CR$11,0))/100000,"") ->  | CN92: =IFERROR(CN84*INDEX('Energy Prices'!$F$12:$CR$17,MATCH('Data Input - BAU'!$D92,'Energy Prices'!$C$12:$C$17,0),MATCH('Data Input - BAU'!CN$7,'Energy Prices'!$F$11:$CR$11,0))/100000,"") ->  | CO92: =IFERROR(CO84*INDEX('Energy Prices'!$F$12:$CR$17,MATCH('Data Input - BAU'!$D92,'Energy Prices'!$C$12:$C$17,0),MATCH('Data Input - BAU'!CO$7,'Energy Prices'!$F$11:$CR$11,0))/100000,"") ->  | CP92: =IFERROR(CP84*INDEX('Energy Prices'!$F$12:$CR$17,MATCH('Data Input - BAU'!$D92,'Energy Prices'!$C$12:$C$17,0),MATCH('Data Input - BAU'!CP$7,'Energy Prices'!$F$11:$CR$11,0))/100000,"") ->  | CQ92: =IFERROR(CQ84*INDEX('Energy Prices'!$F$12:$CR$17,MATCH('Data Input - BAU'!$D92,'Energy Prices'!$C$12:$C$17,0),MATCH('Data Input - BAU'!CQ$7,'Energy Prices'!$F$11:$CR$11,0))/100000,"") ->  | CR92: =IFERROR(CR84*INDEX('Energy Prices'!$F$12:$CR$17,MATCH('Data Input - BAU'!$D92,'Energy Prices'!$C$12:$C$17,0),MATCH('Data Input - BAU'!CR$7,'Energy Prices'!$F$11:$CR$11,0))/100000,"") ->  | CS92: =IFERROR(CS84*INDEX('Energy Prices'!$F$12:$CR$17,MATCH('Data Input - BAU'!$D92,'Energy Prices'!$C$12:$C$17,0),MATCH('Data Input - BAU'!CS$7,'Energy Prices'!$F$11:$CR$11,0))/100000,"") ->  | CT92: =IFERROR(CT84*INDEX('Energy Prices'!$F$12:$CR$17,MATCH('Data Input - BAU'!$D92,'Energy Prices'!$C$12:$C$17,0),MATCH('Data Input - BAU'!CT$7,'Energy Prices'!$F$11:$CR$11,0))/100000,"") ->  | CU92: =IFERROR(CU84*INDEX('Energy Prices'!$F$12:$CR$17,MATCH('Data Input - BAU'!$D92,'Energy Prices'!$C$12:$C$17,0),MATCH('Data Input - BAU'!CU$7,'Energy Prices'!$F$11:$CR$11,0))/100000,"") ->  | CV92: =IFERROR(CV84*INDEX('Energy Prices'!$F$12:$CR$17,MATCH('Data Input - BAU'!$D92,'Energy Prices'!$C$12:$C$17,0),MATCH('Data Input - BAU'!CV$7,'Energy Prices'!$F$11:$CR$11,0))/100000,"") ->  | CW92: =IFERROR(CW84*INDEX('Energy Prices'!$F$12:$CR$17,MATCH('Data Input - BAU'!$D92,'Energy Prices'!$C$12:$C$17,0),MATCH('Data Input - BAU'!CW$7,'Energy Prices'!$F$11:$CR$11,0))/100000,"") ->  | CX92: =IFERROR(CX84*INDEX('Energy Prices'!$F$12:$CR$17,MATCH('Data Input - BAU'!$D92,'Energy Prices'!$C$12:$C$17,0),MATCH('Data Input - BAU'!CX$7,'Energy Prices'!$F$11:$CR$11,0))/100000,"") ->  | CY92: =IFERROR(CY84*INDEX('Energy Prices'!$F$12:$CR$17,MATCH('Data Input - BAU'!$D92,'Energy Prices'!$C$12:$C$17,0),MATCH('Data Input - BAU'!CY$7,'Energy Prices'!$F$11:$CR$11,0))/100000,"") ->  | CZ92: =IFERROR(CZ84*INDEX('Energy Prices'!$F$12:$CR$17,MATCH('Data Input - BAU'!$D92,'Energy Prices'!$C$12:$C$17,0),MATCH('Data Input - BAU'!CZ$7,'Energy Prices'!$F$11:$CR$11,0))/100000,"") ->  | DA92: =IFERROR(DA84*INDEX('Energy Prices'!$F$12:$CR$17,MATCH('Data Input - BAU'!$D92,'Energy Prices'!$C$12:$C$17,0),MATCH('Data Input - BAU'!DA$7,'Energy Prices'!$F$11:$CR$11,0))/100000,"") ->  | DB92: =IFERROR(DB84*INDEX('Energy Prices'!$F$12:$CR$17,MATCH('Data Input - BAU'!$D92,'Energy Prices'!$C$12:$C$17,0),MATCH('Data Input - BAU'!DB$7,'Energy Prices'!$F$11:$CR$11,0))/100000,"") ->  | DC92: =IFERROR(DC84*INDEX('Energy Prices'!$F$12:$CR$17,MATCH('Data Input - BAU'!$D92,'Energy Prices'!$C$12:$C$17,0),MATCH('Data Input - BAU'!DC$7,'Energy Prices'!$F$11:$CR$11,0))/100000,"") -> 
D93: =D85 -> Natural Gas | E93: £000's | F93: (Auto calculated value) | H93: =IFERROR(H85*INDEX('Energy Prices'!$F$12:$CR$17,MATCH('Data Input - BAU'!$D93,'Energy Prices'!$C$12:$C$17,0),MATCH('Data Input - BAU'!H$7,'Energy Prices'!$F$11:$CR$11,0))/100000,"") -> 0 | I93: =IFERROR(I85*INDEX('Energy Prices'!$F$12:$CR$17,MATCH('Data Input - BAU'!$D93,'Energy Prices'!$C$12:$C$17,0),MATCH('Data Input - BAU'!I$7,'Energy Prices'!$F$11:$CR$11,0))/100000,"") -> 0 | J93: =IFERROR(J85*INDEX('Energy Prices'!$F$12:$CR$17,MATCH('Data Input - BAU'!$D93,'Energy Prices'!$C$12:$C$17,0),MATCH('Data Input - BAU'!J$7,'Energy Prices'!$F$11:$CR$11,0))/100000,"") -> 0 | K93: =IFERROR(K85*INDEX('Energy Prices'!$F$12:$CR$17,MATCH('Data Input - BAU'!$D93,'Energy Prices'!$C$12:$C$17,0),MATCH('Data Input - BAU'!K$7,'Energy Prices'!$F$11:$CR$11,0))/100000,"") -> 0 | L93: =IFERROR(L85*INDEX('Energy Prices'!$F$12:$CR$17,MATCH('Data Input - BAU'!$D93,'Energy Prices'!$C$12:$C$17,0),MATCH('Data Input - BAU'!L$7,'Energy Prices'!$F$11:$CR$11,0))/100000,"") -> 0 | M93: =IFERROR(M85*INDEX('Energy Prices'!$F$12:$CR$17,MATCH('Data Input - BAU'!$D93,'Energy Prices'!$C$12:$C$17,0),MATCH('Data Input - BAU'!M$7,'Energy Prices'!$F$11:$CR$11,0))/100000,"") -> 0 | N93: =IFERROR(N85*INDEX('Energy Prices'!$F$12:$CR$17,MATCH('Data Input - BAU'!$D93,'Energy Prices'!$C$12:$C$17,0),MATCH('Data Input - BAU'!N$7,'Energy Prices'!$F$11:$CR$11,0))/100000,"") -> 0 | O93: =IFERROR(O85*INDEX('Energy Prices'!$F$12:$CR$17,MATCH('Data Input - BAU'!$D93,'Energy Prices'!$C$12:$C$17,0),MATCH('Data Input - BAU'!O$7,'Energy Prices'!$F$11:$CR$11,0))/100000,"") -> 0 | P93: =IFERROR(P85*INDEX('Energy Prices'!$F$12:$CR$17,MATCH('Data Input - BAU'!$D93,'Energy Prices'!$C$12:$C$17,0),MATCH('Data Input - BAU'!P$7,'Energy Prices'!$F$11:$CR$11,0))/100000,"") -> 0 | Q93: =IFERROR(Q85*INDEX('Energy Prices'!$F$12:$CR$17,MATCH('Data Input - BAU'!$D93,'Energy Prices'!$C$12:$C$17,0),MATCH('Data Input - BAU'!Q$7,'Energy Prices'!$F$11:$CR$11,0))/100000,"") -> 0 | R93: =IFERROR(R85*INDEX('Energy Prices'!$F$12:$CR$17,MATCH('Data Input - BAU'!$D93,'Energy Prices'!$C$12:$C$17,0),MATCH('Data Input - BAU'!R$7,'Energy Prices'!$F$11:$CR$11,0))/100000,"") -> 0 | S93: =IFERROR(S85*INDEX('Energy Prices'!$F$12:$CR$17,MATCH('Data Input - BAU'!$D93,'Energy Prices'!$C$12:$C$17,0),MATCH('Data Input - BAU'!S$7,'Energy Prices'!$F$11:$CR$11,0))/100000,"") -> 0 | T93: =IFERROR(T85*INDEX('Energy Prices'!$F$12:$CR$17,MATCH('Data Input - BAU'!$D93,'Energy Prices'!$C$12:$C$17,0),MATCH('Data Input - BAU'!T$7,'Energy Prices'!$F$11:$CR$11,0))/100000,"") -> 0 | U93: =IFERROR(U85*INDEX('Energy Prices'!$F$12:$CR$17,MATCH('Data Input - BAU'!$D93,'Energy Prices'!$C$12:$C$17,0),MATCH('Data Input - BAU'!U$7,'Energy Prices'!$F$11:$CR$11,0))/100000,"") -> 0 | V93: =IFERROR(V85*INDEX('Energy Prices'!$F$12:$CR$17,MATCH('Data Input - BAU'!$D93,'Energy Prices'!$C$12:$C$17,0),MATCH('Data Input - BAU'!V$7,'Energy Prices'!$F$11:$CR$11,0))/100000,"") -> 0 | W93: =IFERROR(W85*INDEX('Energy Prices'!$F$12:$CR$17,MATCH('Data Input - BAU'!$D93,'Energy Prices'!$C$12:$C$17,0),MATCH('Data Input - BAU'!W$7,'Energy Prices'!$F$11:$CR$11,0))/100000,"") -> 0 | X93: =IFERROR(X85*INDEX('Energy Prices'!$F$12:$CR$17,MATCH('Data Input - BAU'!$D93,'Energy Prices'!$C$12:$C$17,0),MATCH('Data Input - BAU'!X$7,'Energy Prices'!$F$11:$CR$11,0))/100000,"") -> 0 | Y93: =IFERROR(Y85*INDEX('Energy Prices'!$F$12:$CR$17,MATCH('Data Input - BAU'!$D93,'Energy Prices'!$C$12:$C$17,0),MATCH('Data Input - BAU'!Y$7,'Energy Prices'!$F$11:$CR$11,0))/100000,"") -> 0 | Z93: =IFERROR(Z85*INDEX('Energy Prices'!$F$12:$CR$17,MATCH('Data Input - BAU'!$D93,'Energy Prices'!$C$12:$C$17,0),MATCH('Data Input - BAU'!Z$7,'Energy Prices'!$F$11:$CR$11,0))/100000,"") -> 0 | AA93: =IFERROR(AA85*INDEX('Energy Prices'!$F$12:$CR$17,MATCH('Data Input - BAU'!$D93,'Energy Prices'!$C$12:$C$17,0),MATCH('Data Input - BAU'!AA$7,'Energy Prices'!$F$11:$CR$11,0))/100000,"") -> 0 | AB93: =IFERROR(AB85*INDEX('Energy Prices'!$F$12:$CR$17,MATCH('Data Input - BAU'!$D93,'Energy Prices'!$C$12:$C$17,0),MATCH('Data Input - BAU'!AB$7,'Energy Prices'!$F$11:$CR$11,0))/100000,"") -> 0 | AC93: =IFERROR(AC85*INDEX('Energy Prices'!$F$12:$CR$17,MATCH('Data Input - BAU'!$D93,'Energy Prices'!$C$12:$C$17,0),MATCH('Data Input - BAU'!AC$7,'Energy Prices'!$F$11:$CR$11,0))/100000,"") -> 0 | AD93: =IFERROR(AD85*INDEX('Energy Prices'!$F$12:$CR$17,MATCH('Data Input - BAU'!$D93,'Energy Prices'!$C$12:$C$17,0),MATCH('Data Input - BAU'!AD$7,'Energy Prices'!$F$11:$CR$11,0))/100000,"") -> 0 | AE93: =IFERROR(AE85*INDEX('Energy Prices'!$F$12:$CR$17,MATCH('Data Input - BAU'!$D93,'Energy Prices'!$C$12:$C$17,0),MATCH('Data Input - BAU'!AE$7,'Energy Prices'!$F$11:$CR$11,0))/100000,"") -> 0 | AF93: =IFERROR(AF85*INDEX('Energy Prices'!$F$12:$CR$17,MATCH('Data Input - BAU'!$D93,'Energy Prices'!$C$12:$C$17,0),MATCH('Data Input - BAU'!AF$7,'Energy Prices'!$F$11:$CR$11,0))/100000,"") -> 0 | AG93: =IFERROR(AG85*INDEX('Energy Prices'!$F$12:$CR$17,MATCH('Data Input - BAU'!$D93,'Energy Prices'!$C$12:$C$17,0),MATCH('Data Input - BAU'!AG$7,'Energy Prices'!$F$11:$CR$11,0))/100000,"") -> 0 | AH93: =IFERROR(AH85*INDEX('Energy Prices'!$F$12:$CR$17,MATCH('Data Input - BAU'!$D93,'Energy Prices'!$C$12:$C$17,0),MATCH('Data Input - BAU'!AH$7,'Energy Prices'!$F$11:$CR$11,0))/100000,"") -> 0 | AI93: =IFERROR(AI85*INDEX('Energy Prices'!$F$12:$CR$17,MATCH('Data Input - BAU'!$D93,'Energy Prices'!$C$12:$C$17,0),MATCH('Data Input - BAU'!AI$7,'Energy Prices'!$F$11:$CR$11,0))/100000,"") -> 0 | AJ93: =IFERROR(AJ85*INDEX('Energy Prices'!$F$12:$CR$17,MATCH('Data Input - BAU'!$D93,'Energy Prices'!$C$12:$C$17,0),MATCH('Data Input - BAU'!AJ$7,'Energy Prices'!$F$11:$CR$11,0))/100000,"") -> 0 | AK93: =IFERROR(AK85*INDEX('Energy Prices'!$F$12:$CR$17,MATCH('Data Input - BAU'!$D93,'Energy Prices'!$C$12:$C$17,0),MATCH('Data Input - BAU'!AK$7,'Energy Prices'!$F$11:$CR$11,0))/100000,"") -> 0 | AL93: =IFERROR(AL85*INDEX('Energy Prices'!$F$12:$CR$17,MATCH('Data Input - BAU'!$D93,'Energy Prices'!$C$12:$C$17,0),MATCH('Data Input - BAU'!AL$7,'Energy Prices'!$F$11:$CR$11,0))/100000,"") -> 0 | AM93: =IFERROR(AM85*INDEX('Energy Prices'!$F$12:$CR$17,MATCH('Data Input - BAU'!$D93,'Energy Prices'!$C$12:$C$17,0),MATCH('Data Input - BAU'!AM$7,'Energy Prices'!$F$11:$CR$11,0))/100000,"") ->  | AN93: =IFERROR(AN85*INDEX('Energy Prices'!$F$12:$CR$17,MATCH('Data Input - BAU'!$D93,'Energy Prices'!$C$12:$C$17,0),MATCH('Data Input - BAU'!AN$7,'Energy Prices'!$F$11:$CR$11,0))/100000,"") ->  | AO93: =IFERROR(AO85*INDEX('Energy Prices'!$F$12:$CR$17,MATCH('Data Input - BAU'!$D93,'Energy Prices'!$C$12:$C$17,0),MATCH('Data Input - BAU'!AO$7,'Energy Prices'!$F$11:$CR$11,0))/100000,"") ->  | AP93: =IFERROR(AP85*INDEX('Energy Prices'!$F$12:$CR$17,MATCH('Data Input - BAU'!$D93,'Energy Prices'!$C$12:$C$17,0),MATCH('Data Input - BAU'!AP$7,'Energy Prices'!$F$11:$CR$11,0))/100000,"") ->  | AQ93: =IFERROR(AQ85*INDEX('Energy Prices'!$F$12:$CR$17,MATCH('Data Input - BAU'!$D93,'Energy Prices'!$C$12:$C$17,0),MATCH('Data Input - BAU'!AQ$7,'Energy Prices'!$F$11:$CR$11,0))/100000,"") ->  | AR93: =IFERROR(AR85*INDEX('Energy Prices'!$F$12:$CR$17,MATCH('Data Input - BAU'!$D93,'Energy Prices'!$C$12:$C$17,0),MATCH('Data Input - BAU'!AR$7,'Energy Prices'!$F$11:$CR$11,0))/100000,"") ->  | AS93: =IFERROR(AS85*INDEX('Energy Prices'!$F$12:$CR$17,MATCH('Data Input - BAU'!$D93,'Energy Prices'!$C$12:$C$17,0),MATCH('Data Input - BAU'!AS$7,'Energy Prices'!$F$11:$CR$11,0))/100000,"") ->  | AT93: =IFERROR(AT85*INDEX('Energy Prices'!$F$12:$CR$17,MATCH('Data Input - BAU'!$D93,'Energy Prices'!$C$12:$C$17,0),MATCH('Data Input - BAU'!AT$7,'Energy Prices'!$F$11:$CR$11,0))/100000,"") ->  | AU93: =IFERROR(AU85*INDEX('Energy Prices'!$F$12:$CR$17,MATCH('Data Input - BAU'!$D93,'Energy Prices'!$C$12:$C$17,0),MATCH('Data Input - BAU'!AU$7,'Energy Prices'!$F$11:$CR$11,0))/100000,"") ->  | AV93: =IFERROR(AV85*INDEX('Energy Prices'!$F$12:$CR$17,MATCH('Data Input - BAU'!$D93,'Energy Prices'!$C$12:$C$17,0),MATCH('Data Input - BAU'!AV$7,'Energy Prices'!$F$11:$CR$11,0))/100000,"") ->  | AW93: =IFERROR(AW85*INDEX('Energy Prices'!$F$12:$CR$17,MATCH('Data Input - BAU'!$D93,'Energy Prices'!$C$12:$C$17,0),MATCH('Data Input - BAU'!AW$7,'Energy Prices'!$F$11:$CR$11,0))/100000,"") ->  | AX93: =IFERROR(AX85*INDEX('Energy Prices'!$F$12:$CR$17,MATCH('Data Input - BAU'!$D93,'Energy Prices'!$C$12:$C$17,0),MATCH('Data Input - BAU'!AX$7,'Energy Prices'!$F$11:$CR$11,0))/100000,"") ->  | AY93: =IFERROR(AY85*INDEX('Energy Prices'!$F$12:$CR$17,MATCH('Data Input - BAU'!$D93,'Energy Prices'!$C$12:$C$17,0),MATCH('Data Input - BAU'!AY$7,'Energy Prices'!$F$11:$CR$11,0))/100000,"") ->  | AZ93: =IFERROR(AZ85*INDEX('Energy Prices'!$F$12:$CR$17,MATCH('Data Input - BAU'!$D93,'Energy Prices'!$C$12:$C$17,0),MATCH('Data Input - BAU'!AZ$7,'Energy Prices'!$F$11:$CR$11,0))/100000,"") ->  | BA93: =IFERROR(BA85*INDEX('Energy Prices'!$F$12:$CR$17,MATCH('Data Input - BAU'!$D93,'Energy Prices'!$C$12:$C$17,0),MATCH('Data Input - BAU'!BA$7,'Energy Prices'!$F$11:$CR$11,0))/100000,"") ->  | BB93: =IFERROR(BB85*INDEX('Energy Prices'!$F$12:$CR$17,MATCH('Data Input - BAU'!$D93,'Energy Prices'!$C$12:$C$17,0),MATCH('Data Input - BAU'!BB$7,'Energy Prices'!$F$11:$CR$11,0))/100000,"") ->  | BC93: =IFERROR(BC85*INDEX('Energy Prices'!$F$12:$CR$17,MATCH('Data Input - BAU'!$D93,'Energy Prices'!$C$12:$C$17,0),MATCH('Data Input - BAU'!BC$7,'Energy Prices'!$F$11:$CR$11,0))/100000,"") ->  | BD93: =IFERROR(BD85*INDEX('Energy Prices'!$F$12:$CR$17,MATCH('Data Input - BAU'!$D93,'Energy Prices'!$C$12:$C$17,0),MATCH('Data Input - BAU'!BD$7,'Energy Prices'!$F$11:$CR$11,0))/100000,"") ->  | BE93: =IFERROR(BE85*INDEX('Energy Prices'!$F$12:$CR$17,MATCH('Data Input - BAU'!$D93,'Energy Prices'!$C$12:$C$17,0),MATCH('Data Input - BAU'!BE$7,'Energy Prices'!$F$11:$CR$11,0))/100000,"") ->  | BF93: =IFERROR(BF85*INDEX('Energy Prices'!$F$12:$CR$17,MATCH('Data Input - BAU'!$D93,'Energy Prices'!$C$12:$C$17,0),MATCH('Data Input - BAU'!BF$7,'Energy Prices'!$F$11:$CR$11,0))/100000,"") ->  | BG93: =IFERROR(BG85*INDEX('Energy Prices'!$F$12:$CR$17,MATCH('Data Input - BAU'!$D93,'Energy Prices'!$C$12:$C$17,0),MATCH('Data Input - BAU'!BG$7,'Energy Prices'!$F$11:$CR$11,0))/100000,"") ->  | BH93: =IFERROR(BH85*INDEX('Energy Prices'!$F$12:$CR$17,MATCH('Data Input - BAU'!$D93,'Energy Prices'!$C$12:$C$17,0),MATCH('Data Input - BAU'!BH$7,'Energy Prices'!$F$11:$CR$11,0))/100000,"") ->  | BI93: =IFERROR(BI85*INDEX('Energy Prices'!$F$12:$CR$17,MATCH('Data Input - BAU'!$D93,'Energy Prices'!$C$12:$C$17,0),MATCH('Data Input - BAU'!BI$7,'Energy Prices'!$F$11:$CR$11,0))/100000,"") ->  | BJ93: =IFERROR(BJ85*INDEX('Energy Prices'!$F$12:$CR$17,MATCH('Data Input - BAU'!$D93,'Energy Prices'!$C$12:$C$17,0),MATCH('Data Input - BAU'!BJ$7,'Energy Prices'!$F$11:$CR$11,0))/100000,"") ->  | BK93: =IFERROR(BK85*INDEX('Energy Prices'!$F$12:$CR$17,MATCH('Data Input - BAU'!$D93,'Energy Prices'!$C$12:$C$17,0),MATCH('Data Input - BAU'!BK$7,'Energy Prices'!$F$11:$CR$11,0))/100000,"") ->  | BL93: =IFERROR(BL85*INDEX('Energy Prices'!$F$12:$CR$17,MATCH('Data Input - BAU'!$D93,'Energy Prices'!$C$12:$C$17,0),MATCH('Data Input - BAU'!BL$7,'Energy Prices'!$F$11:$CR$11,0))/100000,"") ->  | BM93: =IFERROR(BM85*INDEX('Energy Prices'!$F$12:$CR$17,MATCH('Data Input - BAU'!$D93,'Energy Prices'!$C$12:$C$17,0),MATCH('Data Input - BAU'!BM$7,'Energy Prices'!$F$11:$CR$11,0))/100000,"") ->  | BN93: =IFERROR(BN85*INDEX('Energy Prices'!$F$12:$CR$17,MATCH('Data Input - BAU'!$D93,'Energy Prices'!$C$12:$C$17,0),MATCH('Data Input - BAU'!BN$7,'Energy Prices'!$F$11:$CR$11,0))/100000,"") ->  | BO93: =IFERROR(BO85*INDEX('Energy Prices'!$F$12:$CR$17,MATCH('Data Input - BAU'!$D93,'Energy Prices'!$C$12:$C$17,0),MATCH('Data Input - BAU'!BO$7,'Energy Prices'!$F$11:$CR$11,0))/100000,"") ->  | BP93: =IFERROR(BP85*INDEX('Energy Prices'!$F$12:$CR$17,MATCH('Data Input - BAU'!$D93,'Energy Prices'!$C$12:$C$17,0),MATCH('Data Input - BAU'!BP$7,'Energy Prices'!$F$11:$CR$11,0))/100000,"") ->  | BQ93: =IFERROR(BQ85*INDEX('Energy Prices'!$F$12:$CR$17,MATCH('Data Input - BAU'!$D93,'Energy Prices'!$C$12:$C$17,0),MATCH('Data Input - BAU'!BQ$7,'Energy Prices'!$F$11:$CR$11,0))/100000,"") ->  | BR93: =IFERROR(BR85*INDEX('Energy Prices'!$F$12:$CR$17,MATCH('Data Input - BAU'!$D93,'Energy Prices'!$C$12:$C$17,0),MATCH('Data Input - BAU'!BR$7,'Energy Prices'!$F$11:$CR$11,0))/100000,"") ->  | BS93: =IFERROR(BS85*INDEX('Energy Prices'!$F$12:$CR$17,MATCH('Data Input - BAU'!$D93,'Energy Prices'!$C$12:$C$17,0),MATCH('Data Input - BAU'!BS$7,'Energy Prices'!$F$11:$CR$11,0))/100000,"") ->  | BT93: =IFERROR(BT85*INDEX('Energy Prices'!$F$12:$CR$17,MATCH('Data Input - BAU'!$D93,'Energy Prices'!$C$12:$C$17,0),MATCH('Data Input - BAU'!BT$7,'Energy Prices'!$F$11:$CR$11,0))/100000,"") ->  | BU93: =IFERROR(BU85*INDEX('Energy Prices'!$F$12:$CR$17,MATCH('Data Input - BAU'!$D93,'Energy Prices'!$C$12:$C$17,0),MATCH('Data Input - BAU'!BU$7,'Energy Prices'!$F$11:$CR$11,0))/100000,"") ->  | BV93: =IFERROR(BV85*INDEX('Energy Prices'!$F$12:$CR$17,MATCH('Data Input - BAU'!$D93,'Energy Prices'!$C$12:$C$17,0),MATCH('Data Input - BAU'!BV$7,'Energy Prices'!$F$11:$CR$11,0))/100000,"") ->  | BW93: =IFERROR(BW85*INDEX('Energy Prices'!$F$12:$CR$17,MATCH('Data Input - BAU'!$D93,'Energy Prices'!$C$12:$C$17,0),MATCH('Data Input - BAU'!BW$7,'Energy Prices'!$F$11:$CR$11,0))/100000,"") ->  | BX93: =IFERROR(BX85*INDEX('Energy Prices'!$F$12:$CR$17,MATCH('Data Input - BAU'!$D93,'Energy Prices'!$C$12:$C$17,0),MATCH('Data Input - BAU'!BX$7,'Energy Prices'!$F$11:$CR$11,0))/100000,"") ->  | BY93: =IFERROR(BY85*INDEX('Energy Prices'!$F$12:$CR$17,MATCH('Data Input - BAU'!$D93,'Energy Prices'!$C$12:$C$17,0),MATCH('Data Input - BAU'!BY$7,'Energy Prices'!$F$11:$CR$11,0))/100000,"") ->  | BZ93: =IFERROR(BZ85*INDEX('Energy Prices'!$F$12:$CR$17,MATCH('Data Input - BAU'!$D93,'Energy Prices'!$C$12:$C$17,0),MATCH('Data Input - BAU'!BZ$7,'Energy Prices'!$F$11:$CR$11,0))/100000,"") ->  | CA93: =IFERROR(CA85*INDEX('Energy Prices'!$F$12:$CR$17,MATCH('Data Input - BAU'!$D93,'Energy Prices'!$C$12:$C$17,0),MATCH('Data Input - BAU'!CA$7,'Energy Prices'!$F$11:$CR$11,0))/100000,"") ->  | CB93: =IFERROR(CB85*INDEX('Energy Prices'!$F$12:$CR$17,MATCH('Data Input - BAU'!$D93,'Energy Prices'!$C$12:$C$17,0),MATCH('Data Input - BAU'!CB$7,'Energy Prices'!$F$11:$CR$11,0))/100000,"") ->  | CC93: =IFERROR(CC85*INDEX('Energy Prices'!$F$12:$CR$17,MATCH('Data Input - BAU'!$D93,'Energy Prices'!$C$12:$C$17,0),MATCH('Data Input - BAU'!CC$7,'Energy Prices'!$F$11:$CR$11,0))/100000,"") ->  | CD93: =IFERROR(CD85*INDEX('Energy Prices'!$F$12:$CR$17,MATCH('Data Input - BAU'!$D93,'Energy Prices'!$C$12:$C$17,0),MATCH('Data Input - BAU'!CD$7,'Energy Prices'!$F$11:$CR$11,0))/100000,"") ->  | CE93: =IFERROR(CE85*INDEX('Energy Prices'!$F$12:$CR$17,MATCH('Data Input - BAU'!$D93,'Energy Prices'!$C$12:$C$17,0),MATCH('Data Input - BAU'!CE$7,'Energy Prices'!$F$11:$CR$11,0))/100000,"") ->  | CF93: =IFERROR(CF85*INDEX('Energy Prices'!$F$12:$CR$17,MATCH('Data Input - BAU'!$D93,'Energy Prices'!$C$12:$C$17,0),MATCH('Data Input - BAU'!CF$7,'Energy Prices'!$F$11:$CR$11,0))/100000,"") ->  | CG93: =IFERROR(CG85*INDEX('Energy Prices'!$F$12:$CR$17,MATCH('Data Input - BAU'!$D93,'Energy Prices'!$C$12:$C$17,0),MATCH('Data Input - BAU'!CG$7,'Energy Prices'!$F$11:$CR$11,0))/100000,"") ->  | CH93: =IFERROR(CH85*INDEX('Energy Prices'!$F$12:$CR$17,MATCH('Data Input - BAU'!$D93,'Energy Prices'!$C$12:$C$17,0),MATCH('Data Input - BAU'!CH$7,'Energy Prices'!$F$11:$CR$11,0))/100000,"") ->  | CI93: =IFERROR(CI85*INDEX('Energy Prices'!$F$12:$CR$17,MATCH('Data Input - BAU'!$D93,'Energy Prices'!$C$12:$C$17,0),MATCH('Data Input - BAU'!CI$7,'Energy Prices'!$F$11:$CR$11,0))/100000,"") ->  | CJ93: =IFERROR(CJ85*INDEX('Energy Prices'!$F$12:$CR$17,MATCH('Data Input - BAU'!$D93,'Energy Prices'!$C$12:$C$17,0),MATCH('Data Input - BAU'!CJ$7,'Energy Prices'!$F$11:$CR$11,0))/100000,"") ->  | CK93: =IFERROR(CK85*INDEX('Energy Prices'!$F$12:$CR$17,MATCH('Data Input - BAU'!$D93,'Energy Prices'!$C$12:$C$17,0),MATCH('Data Input - BAU'!CK$7,'Energy Prices'!$F$11:$CR$11,0))/100000,"") ->  | CL93: =IFERROR(CL85*INDEX('Energy Prices'!$F$12:$CR$17,MATCH('Data Input - BAU'!$D93,'Energy Prices'!$C$12:$C$17,0),MATCH('Data Input - BAU'!CL$7,'Energy Prices'!$F$11:$CR$11,0))/100000,"") ->  | CM93: =IFERROR(CM85*INDEX('Energy Prices'!$F$12:$CR$17,MATCH('Data Input - BAU'!$D93,'Energy Prices'!$C$12:$C$17,0),MATCH('Data Input - BAU'!CM$7,'Energy Prices'!$F$11:$CR$11,0))/100000,"") ->  | CN93: =IFERROR(CN85*INDEX('Energy Prices'!$F$12:$CR$17,MATCH('Data Input - BAU'!$D93,'Energy Prices'!$C$12:$C$17,0),MATCH('Data Input - BAU'!CN$7,'Energy Prices'!$F$11:$CR$11,0))/100000,"") ->  | CO93: =IFERROR(CO85*INDEX('Energy Prices'!$F$12:$CR$17,MATCH('Data Input - BAU'!$D93,'Energy Prices'!$C$12:$C$17,0),MATCH('Data Input - BAU'!CO$7,'Energy Prices'!$F$11:$CR$11,0))/100000,"") ->  | CP93: =IFERROR(CP85*INDEX('Energy Prices'!$F$12:$CR$17,MATCH('Data Input - BAU'!$D93,'Energy Prices'!$C$12:$C$17,0),MATCH('Data Input - BAU'!CP$7,'Energy Prices'!$F$11:$CR$11,0))/100000,"") ->  | CQ93: =IFERROR(CQ85*INDEX('Energy Prices'!$F$12:$CR$17,MATCH('Data Input - BAU'!$D93,'Energy Prices'!$C$12:$C$17,0),MATCH('Data Input - BAU'!CQ$7,'Energy Prices'!$F$11:$CR$11,0))/100000,"") ->  | CR93: =IFERROR(CR85*INDEX('Energy Prices'!$F$12:$CR$17,MATCH('Data Input - BAU'!$D93,'Energy Prices'!$C$12:$C$17,0),MATCH('Data Input - BAU'!CR$7,'Energy Prices'!$F$11:$CR$11,0))/100000,"") ->  | CS93: =IFERROR(CS85*INDEX('Energy Prices'!$F$12:$CR$17,MATCH('Data Input - BAU'!$D93,'Energy Prices'!$C$12:$C$17,0),MATCH('Data Input - BAU'!CS$7,'Energy Prices'!$F$11:$CR$11,0))/100000,"") ->  | CT93: =IFERROR(CT85*INDEX('Energy Prices'!$F$12:$CR$17,MATCH('Data Input - BAU'!$D93,'Energy Prices'!$C$12:$C$17,0),MATCH('Data Input - BAU'!CT$7,'Energy Prices'!$F$11:$CR$11,0))/100000,"") ->  | CU93: =IFERROR(CU85*INDEX('Energy Prices'!$F$12:$CR$17,MATCH('Data Input - BAU'!$D93,'Energy Prices'!$C$12:$C$17,0),MATCH('Data Input - BAU'!CU$7,'Energy Prices'!$F$11:$CR$11,0))/100000,"") ->  | CV93: =IFERROR(CV85*INDEX('Energy Prices'!$F$12:$CR$17,MATCH('Data Input - BAU'!$D93,'Energy Prices'!$C$12:$C$17,0),MATCH('Data Input - BAU'!CV$7,'Energy Prices'!$F$11:$CR$11,0))/100000,"") ->  | CW93: =IFERROR(CW85*INDEX('Energy Prices'!$F$12:$CR$17,MATCH('Data Input - BAU'!$D93,'Energy Prices'!$C$12:$C$17,0),MATCH('Data Input - BAU'!CW$7,'Energy Prices'!$F$11:$CR$11,0))/100000,"") ->  | CX93: =IFERROR(CX85*INDEX('Energy Prices'!$F$12:$CR$17,MATCH('Data Input - BAU'!$D93,'Energy Prices'!$C$12:$C$17,0),MATCH('Data Input - BAU'!CX$7,'Energy Prices'!$F$11:$CR$11,0))/100000,"") ->  | CY93: =IFERROR(CY85*INDEX('Energy Prices'!$F$12:$CR$17,MATCH('Data Input - BAU'!$D93,'Energy Prices'!$C$12:$C$17,0),MATCH('Data Input - BAU'!CY$7,'Energy Prices'!$F$11:$CR$11,0))/100000,"") ->  | CZ93: =IFERROR(CZ85*INDEX('Energy Prices'!$F$12:$CR$17,MATCH('Data Input - BAU'!$D93,'Energy Prices'!$C$12:$C$17,0),MATCH('Data Input - BAU'!CZ$7,'Energy Prices'!$F$11:$CR$11,0))/100000,"") ->  | DA93: =IFERROR(DA85*INDEX('Energy Prices'!$F$12:$CR$17,MATCH('Data Input - BAU'!$D93,'Energy Prices'!$C$12:$C$17,0),MATCH('Data Input - BAU'!DA$7,'Energy Prices'!$F$11:$CR$11,0))/100000,"") ->  | DB93: =IFERROR(DB85*INDEX('Energy Prices'!$F$12:$CR$17,MATCH('Data Input - BAU'!$D93,'Energy Prices'!$C$12:$C$17,0),MATCH('Data Input - BAU'!DB$7,'Energy Prices'!$F$11:$CR$11,0))/100000,"") ->  | DC93: =IFERROR(DC85*INDEX('Energy Prices'!$F$12:$CR$17,MATCH('Data Input - BAU'!$D93,'Energy Prices'!$C$12:$C$17,0),MATCH('Data Input - BAU'!DC$7,'Energy Prices'!$F$11:$CR$11,0))/100000,"") -> 
D94: Coal | E94: £000's | F94: (Auto calculated value) | H94: =IFERROR(H86*INDEX('Energy Prices'!$F$12:$CR$17,MATCH('Data Input - BAU'!$D94,'Energy Prices'!$C$12:$C$17,0),MATCH('Data Input - BAU'!H$7,'Energy Prices'!$F$11:$CR$11,0))/100000,"") -> 937.7897618 | I94: =IFERROR(I86*INDEX('Energy Prices'!$F$12:$CR$17,MATCH('Data Input - BAU'!$D94,'Energy Prices'!$C$12:$C$17,0),MATCH('Data Input - BAU'!I$7,'Energy Prices'!$F$11:$CR$11,0))/100000,"") -> 967.0440744 | J94: =IFERROR(J86*INDEX('Energy Prices'!$F$12:$CR$17,MATCH('Data Input - BAU'!$D94,'Energy Prices'!$C$12:$C$17,0),MATCH('Data Input - BAU'!J$7,'Energy Prices'!$F$11:$CR$11,0))/100000,"") -> 996.3024943 | K94: =IFERROR(K86*INDEX('Energy Prices'!$F$12:$CR$17,MATCH('Data Input - BAU'!$D94,'Energy Prices'!$C$12:$C$17,0),MATCH('Data Input - BAU'!K$7,'Energy Prices'!$F$11:$CR$11,0))/100000,"") -> 1025.557232 | L94: =IFERROR(L86*INDEX('Energy Prices'!$F$12:$CR$17,MATCH('Data Input - BAU'!$D94,'Energy Prices'!$C$12:$C$17,0),MATCH('Data Input - BAU'!L$7,'Energy Prices'!$F$11:$CR$11,0))/100000,"") -> 1054.812157 | M94: =IFERROR(M86*INDEX('Energy Prices'!$F$12:$CR$17,MATCH('Data Input - BAU'!$D94,'Energy Prices'!$C$12:$C$17,0),MATCH('Data Input - BAU'!M$7,'Energy Prices'!$F$11:$CR$11,0))/100000,"") -> 1084.067272 | N94: =IFERROR(N86*INDEX('Energy Prices'!$F$12:$CR$17,MATCH('Data Input - BAU'!$D94,'Energy Prices'!$C$12:$C$17,0),MATCH('Data Input - BAU'!N$7,'Energy Prices'!$F$11:$CR$11,0))/100000,"") -> 1113.322577 | O94: =IFERROR(O86*INDEX('Energy Prices'!$F$12:$CR$17,MATCH('Data Input - BAU'!$D94,'Energy Prices'!$C$12:$C$17,0),MATCH('Data Input - BAU'!O$7,'Energy Prices'!$F$11:$CR$11,0))/100000,"") -> 1142.578075 | P94: =IFERROR(P86*INDEX('Energy Prices'!$F$12:$CR$17,MATCH('Data Input - BAU'!$D94,'Energy Prices'!$C$12:$C$17,0),MATCH('Data Input - BAU'!P$7,'Energy Prices'!$F$11:$CR$11,0))/100000,"") -> 0 | Q94: =IFERROR(Q86*INDEX('Energy Prices'!$F$12:$CR$17,MATCH('Data Input - BAU'!$D94,'Energy Prices'!$C$12:$C$17,0),MATCH('Data Input - BAU'!Q$7,'Energy Prices'!$F$11:$CR$11,0))/100000,"") -> 0 | R94: =IFERROR(R86*INDEX('Energy Prices'!$F$12:$CR$17,MATCH('Data Input - BAU'!$D94,'Energy Prices'!$C$12:$C$17,0),MATCH('Data Input - BAU'!R$7,'Energy Prices'!$F$11:$CR$11,0))/100000,"") -> 0 | S94: =IFERROR(S86*INDEX('Energy Prices'!$F$12:$CR$17,MATCH('Data Input - BAU'!$D94,'Energy Prices'!$C$12:$C$17,0),MATCH('Data Input - BAU'!S$7,'Energy Prices'!$F$11:$CR$11,0))/100000,"") -> 0 | T94: =IFERROR(T86*INDEX('Energy Prices'!$F$12:$CR$17,MATCH('Data Input - BAU'!$D94,'Energy Prices'!$C$12:$C$17,0),MATCH('Data Input - BAU'!T$7,'Energy Prices'!$F$11:$CR$11,0))/100000,"") -> 0 | U94: =IFERROR(U86*INDEX('Energy Prices'!$F$12:$CR$17,MATCH('Data Input - BAU'!$D94,'Energy Prices'!$C$12:$C$17,0),MATCH('Data Input - BAU'!U$7,'Energy Prices'!$F$11:$CR$11,0))/100000,"") -> 0 | V94: =IFERROR(V86*INDEX('Energy Prices'!$F$12:$CR$17,MATCH('Data Input - BAU'!$D94,'Energy Prices'!$C$12:$C$17,0),MATCH('Data Input - BAU'!V$7,'Energy Prices'!$F$11:$CR$11,0))/100000,"") -> 0 | W94: =IFERROR(W86*INDEX('Energy Prices'!$F$12:$CR$17,MATCH('Data Input - BAU'!$D94,'Energy Prices'!$C$12:$C$17,0),MATCH('Data Input - BAU'!W$7,'Energy Prices'!$F$11:$CR$11,0))/100000,"") -> 0 | X94: =IFERROR(X86*INDEX('Energy Prices'!$F$12:$CR$17,MATCH('Data Input - BAU'!$D94,'Energy Prices'!$C$12:$C$17,0),MATCH('Data Input - BAU'!X$7,'Energy Prices'!$F$11:$CR$11,0))/100000,"") -> 0 | Y94: =IFERROR(Y86*INDEX('Energy Prices'!$F$12:$CR$17,MATCH('Data Input - BAU'!$D94,'Energy Prices'!$C$12:$C$17,0),MATCH('Data Input - BAU'!Y$7,'Energy Prices'!$F$11:$CR$11,0))/100000,"") -> 0 | Z94: =IFERROR(Z86*INDEX('Energy Prices'!$F$12:$CR$17,MATCH('Data Input - BAU'!$D94,'Energy Prices'!$C$12:$C$17,0),MATCH('Data Input - BAU'!Z$7,'Energy Prices'!$F$11:$CR$11,0))/100000,"") -> 0 | AA94: =IFERROR(AA86*INDEX('Energy Prices'!$F$12:$CR$17,MATCH('Data Input - BAU'!$D94,'Energy Prices'!$C$12:$C$17,0),MATCH('Data Input - BAU'!AA$7,'Energy Prices'!$F$11:$CR$11,0))/100000,"") -> 0 | AB94: =IFERROR(AB86*INDEX('Energy Prices'!$F$12:$CR$17,MATCH('Data Input - BAU'!$D94,'Energy Prices'!$C$12:$C$17,0),MATCH('Data Input - BAU'!AB$7,'Energy Prices'!$F$11:$CR$11,0))/100000,"") -> 0 | AC94: =IFERROR(AC86*INDEX('Energy Prices'!$F$12:$CR$17,MATCH('Data Input - BAU'!$D94,'Energy Prices'!$C$12:$C$17,0),MATCH('Data Input - BAU'!AC$7,'Energy Prices'!$F$11:$CR$11,0))/100000,"") -> 0 | AD94: =IFERROR(AD86*INDEX('Energy Prices'!$F$12:$CR$17,MATCH('Data Input - BAU'!$D94,'Energy Prices'!$C$12:$C$17,0),MATCH('Data Input - BAU'!AD$7,'Energy Prices'!$F$11:$CR$11,0))/100000,"") -> 0 | AE94: =IFERROR(AE86*INDEX('Energy Prices'!$F$12:$CR$17,MATCH('Data Input - BAU'!$D94,'Energy Prices'!$C$12:$C$17,0),MATCH('Data Input - BAU'!AE$7,'Energy Prices'!$F$11:$CR$11,0))/100000,"") -> 0 | AF94: =IFERROR(AF86*INDEX('Energy Prices'!$F$12:$CR$17,MATCH('Data Input - BAU'!$D94,'Energy Prices'!$C$12:$C$17,0),MATCH('Data Input - BAU'!AF$7,'Energy Prices'!$F$11:$CR$11,0))/100000,"") -> 0 | AG94: =IFERROR(AG86*INDEX('Energy Prices'!$F$12:$CR$17,MATCH('Data Input - BAU'!$D94,'Energy Prices'!$C$12:$C$17,0),MATCH('Data Input - BAU'!AG$7,'Energy Prices'!$F$11:$CR$11,0))/100000,"") -> 0 | AH94: =IFERROR(AH86*INDEX('Energy Prices'!$F$12:$CR$17,MATCH('Data Input - BAU'!$D94,'Energy Prices'!$C$12:$C$17,0),MATCH('Data Input - BAU'!AH$7,'Energy Prices'!$F$11:$CR$11,0))/100000,"") -> 0 | AI94: =IFERROR(AI86*INDEX('Energy Prices'!$F$12:$CR$17,MATCH('Data Input - BAU'!$D94,'Energy Prices'!$C$12:$C$17,0),MATCH('Data Input - BAU'!AI$7,'Energy Prices'!$F$11:$CR$11,0))/100000,"") -> 0 | AJ94: =IFERROR(AJ86*INDEX('Energy Prices'!$F$12:$CR$17,MATCH('Data Input - BAU'!$D94,'Energy Prices'!$C$12:$C$17,0),MATCH('Data Input - BAU'!AJ$7,'Energy Prices'!$F$11:$CR$11,0))/100000,"") -> 0 | AK94: =IFERROR(AK86*INDEX('Energy Prices'!$F$12:$CR$17,MATCH('Data Input - BAU'!$D94,'Energy Prices'!$C$12:$C$17,0),MATCH('Data Input - BAU'!AK$7,'Energy Prices'!$F$11:$CR$11,0))/100000,"") -> 0 | AL94: =IFERROR(AL86*INDEX('Energy Prices'!$F$12:$CR$17,MATCH('Data Input - BAU'!$D94,'Energy Prices'!$C$12:$C$17,0),MATCH('Data Input - BAU'!AL$7,'Energy Prices'!$F$11:$CR$11,0))/100000,"") -> 0 | AM94: =IFERROR(AM86*INDEX('Energy Prices'!$F$12:$CR$17,MATCH('Data Input - BAU'!$D94,'Energy Prices'!$C$12:$C$17,0),MATCH('Data Input - BAU'!AM$7,'Energy Prices'!$F$11:$CR$11,0))/100000,"") ->  | AN94: =IFERROR(AN86*INDEX('Energy Prices'!$F$12:$CR$17,MATCH('Data Input - BAU'!$D94,'Energy Prices'!$C$12:$C$17,0),MATCH('Data Input - BAU'!AN$7,'Energy Prices'!$F$11:$CR$11,0))/100000,"") ->  | AO94: =IFERROR(AO86*INDEX('Energy Prices'!$F$12:$CR$17,MATCH('Data Input - BAU'!$D94,'Energy Prices'!$C$12:$C$17,0),MATCH('Data Input - BAU'!AO$7,'Energy Prices'!$F$11:$CR$11,0))/100000,"") ->  | AP94: =IFERROR(AP86*INDEX('Energy Prices'!$F$12:$CR$17,MATCH('Data Input - BAU'!$D94,'Energy Prices'!$C$12:$C$17,0),MATCH('Data Input - BAU'!AP$7,'Energy Prices'!$F$11:$CR$11,0))/100000,"") ->  | AQ94: =IFERROR(AQ86*INDEX('Energy Prices'!$F$12:$CR$17,MATCH('Data Input - BAU'!$D94,'Energy Prices'!$C$12:$C$17,0),MATCH('Data Input - BAU'!AQ$7,'Energy Prices'!$F$11:$CR$11,0))/100000,"") ->  | AR94: =IFERROR(AR86*INDEX('Energy Prices'!$F$12:$CR$17,MATCH('Data Input - BAU'!$D94,'Energy Prices'!$C$12:$C$17,0),MATCH('Data Input - BAU'!AR$7,'Energy Prices'!$F$11:$CR$11,0))/100000,"") ->  | AS94: =IFERROR(AS86*INDEX('Energy Prices'!$F$12:$CR$17,MATCH('Data Input - BAU'!$D94,'Energy Prices'!$C$12:$C$17,0),MATCH('Data Input - BAU'!AS$7,'Energy Prices'!$F$11:$CR$11,0))/100000,"") ->  | AT94: =IFERROR(AT86*INDEX('Energy Prices'!$F$12:$CR$17,MATCH('Data Input - BAU'!$D94,'Energy Prices'!$C$12:$C$17,0),MATCH('Data Input - BAU'!AT$7,'Energy Prices'!$F$11:$CR$11,0))/100000,"") ->  | AU94: =IFERROR(AU86*INDEX('Energy Prices'!$F$12:$CR$17,MATCH('Data Input - BAU'!$D94,'Energy Prices'!$C$12:$C$17,0),MATCH('Data Input - BAU'!AU$7,'Energy Prices'!$F$11:$CR$11,0))/100000,"") ->  | AV94: =IFERROR(AV86*INDEX('Energy Prices'!$F$12:$CR$17,MATCH('Data Input - BAU'!$D94,'Energy Prices'!$C$12:$C$17,0),MATCH('Data Input - BAU'!AV$7,'Energy Prices'!$F$11:$CR$11,0))/100000,"") ->  | AW94: =IFERROR(AW86*INDEX('Energy Prices'!$F$12:$CR$17,MATCH('Data Input - BAU'!$D94,'Energy Prices'!$C$12:$C$17,0),MATCH('Data Input - BAU'!AW$7,'Energy Prices'!$F$11:$CR$11,0))/100000,"") ->  | AX94: =IFERROR(AX86*INDEX('Energy Prices'!$F$12:$CR$17,MATCH('Data Input - BAU'!$D94,'Energy Prices'!$C$12:$C$17,0),MATCH('Data Input - BAU'!AX$7,'Energy Prices'!$F$11:$CR$11,0))/100000,"") ->  | AY94: =IFERROR(AY86*INDEX('Energy Prices'!$F$12:$CR$17,MATCH('Data Input - BAU'!$D94,'Energy Prices'!$C$12:$C$17,0),MATCH('Data Input - BAU'!AY$7,'Energy Prices'!$F$11:$CR$11,0))/100000,"") ->  | AZ94: =IFERROR(AZ86*INDEX('Energy Prices'!$F$12:$CR$17,MATCH('Data Input - BAU'!$D94,'Energy Prices'!$C$12:$C$17,0),MATCH('Data Input - BAU'!AZ$7,'Energy Prices'!$F$11:$CR$11,0))/100000,"") ->  | BA94: =IFERROR(BA86*INDEX('Energy Prices'!$F$12:$CR$17,MATCH('Data Input - BAU'!$D94,'Energy Prices'!$C$12:$C$17,0),MATCH('Data Input - BAU'!BA$7,'Energy Prices'!$F$11:$CR$11,0))/100000,"") ->  | BB94: =IFERROR(BB86*INDEX('Energy Prices'!$F$12:$CR$17,MATCH('Data Input - BAU'!$D94,'Energy Prices'!$C$12:$C$17,0),MATCH('Data Input - BAU'!BB$7,'Energy Prices'!$F$11:$CR$11,0))/100000,"") ->  | BC94: =IFERROR(BC86*INDEX('Energy Prices'!$F$12:$CR$17,MATCH('Data Input - BAU'!$D94,'Energy Prices'!$C$12:$C$17,0),MATCH('Data Input - BAU'!BC$7,'Energy Prices'!$F$11:$CR$11,0))/100000,"") ->  | BD94: =IFERROR(BD86*INDEX('Energy Prices'!$F$12:$CR$17,MATCH('Data Input - BAU'!$D94,'Energy Prices'!$C$12:$C$17,0),MATCH('Data Input - BAU'!BD$7,'Energy Prices'!$F$11:$CR$11,0))/100000,"") ->  | BE94: =IFERROR(BE86*INDEX('Energy Prices'!$F$12:$CR$17,MATCH('Data Input - BAU'!$D94,'Energy Prices'!$C$12:$C$17,0),MATCH('Data Input - BAU'!BE$7,'Energy Prices'!$F$11:$CR$11,0))/100000,"") ->  | BF94: =IFERROR(BF86*INDEX('Energy Prices'!$F$12:$CR$17,MATCH('Data Input - BAU'!$D94,'Energy Prices'!$C$12:$C$17,0),MATCH('Data Input - BAU'!BF$7,'Energy Prices'!$F$11:$CR$11,0))/100000,"") ->  | BG94: =IFERROR(BG86*INDEX('Energy Prices'!$F$12:$CR$17,MATCH('Data Input - BAU'!$D94,'Energy Prices'!$C$12:$C$17,0),MATCH('Data Input - BAU'!BG$7,'Energy Prices'!$F$11:$CR$11,0))/100000,"") ->  | BH94: =IFERROR(BH86*INDEX('Energy Prices'!$F$12:$CR$17,MATCH('Data Input - BAU'!$D94,'Energy Prices'!$C$12:$C$17,0),MATCH('Data Input - BAU'!BH$7,'Energy Prices'!$F$11:$CR$11,0))/100000,"") ->  | BI94: =IFERROR(BI86*INDEX('Energy Prices'!$F$12:$CR$17,MATCH('Data Input - BAU'!$D94,'Energy Prices'!$C$12:$C$17,0),MATCH('Data Input - BAU'!BI$7,'Energy Prices'!$F$11:$CR$11,0))/100000,"") ->  | BJ94: =IFERROR(BJ86*INDEX('Energy Prices'!$F$12:$CR$17,MATCH('Data Input - BAU'!$D94,'Energy Prices'!$C$12:$C$17,0),MATCH('Data Input - BAU'!BJ$7,'Energy Prices'!$F$11:$CR$11,0))/100000,"") ->  | BK94: =IFERROR(BK86*INDEX('Energy Prices'!$F$12:$CR$17,MATCH('Data Input - BAU'!$D94,'Energy Prices'!$C$12:$C$17,0),MATCH('Data Input - BAU'!BK$7,'Energy Prices'!$F$11:$CR$11,0))/100000,"") ->  | BL94: =IFERROR(BL86*INDEX('Energy Prices'!$F$12:$CR$17,MATCH('Data Input - BAU'!$D94,'Energy Prices'!$C$12:$C$17,0),MATCH('Data Input - BAU'!BL$7,'Energy Prices'!$F$11:$CR$11,0))/100000,"") ->  | BM94: =IFERROR(BM86*INDEX('Energy Prices'!$F$12:$CR$17,MATCH('Data Input - BAU'!$D94,'Energy Prices'!$C$12:$C$17,0),MATCH('Data Input - BAU'!BM$7,'Energy Prices'!$F$11:$CR$11,0))/100000,"") ->  | BN94: =IFERROR(BN86*INDEX('Energy Prices'!$F$12:$CR$17,MATCH('Data Input - BAU'!$D94,'Energy Prices'!$C$12:$C$17,0),MATCH('Data Input - BAU'!BN$7,'Energy Prices'!$F$11:$CR$11,0))/100000,"") ->  | BO94: =IFERROR(BO86*INDEX('Energy Prices'!$F$12:$CR$17,MATCH('Data Input - BAU'!$D94,'Energy Prices'!$C$12:$C$17,0),MATCH('Data Input - BAU'!BO$7,'Energy Prices'!$F$11:$CR$11,0))/100000,"") ->  | BP94: =IFERROR(BP86*INDEX('Energy Prices'!$F$12:$CR$17,MATCH('Data Input - BAU'!$D94,'Energy Prices'!$C$12:$C$17,0),MATCH('Data Input - BAU'!BP$7,'Energy Prices'!$F$11:$CR$11,0))/100000,"") ->  | BQ94: =IFERROR(BQ86*INDEX('Energy Prices'!$F$12:$CR$17,MATCH('Data Input - BAU'!$D94,'Energy Prices'!$C$12:$C$17,0),MATCH('Data Input - BAU'!BQ$7,'Energy Prices'!$F$11:$CR$11,0))/100000,"") ->  | BR94: =IFERROR(BR86*INDEX('Energy Prices'!$F$12:$CR$17,MATCH('Data Input - BAU'!$D94,'Energy Prices'!$C$12:$C$17,0),MATCH('Data Input - BAU'!BR$7,'Energy Prices'!$F$11:$CR$11,0))/100000,"") ->  | BS94: =IFERROR(BS86*INDEX('Energy Prices'!$F$12:$CR$17,MATCH('Data Input - BAU'!$D94,'Energy Prices'!$C$12:$C$17,0),MATCH('Data Input - BAU'!BS$7,'Energy Prices'!$F$11:$CR$11,0))/100000,"") ->  | BT94: =IFERROR(BT86*INDEX('Energy Prices'!$F$12:$CR$17,MATCH('Data Input - BAU'!$D94,'Energy Prices'!$C$12:$C$17,0),MATCH('Data Input - BAU'!BT$7,'Energy Prices'!$F$11:$CR$11,0))/100000,"") ->  | BU94: =IFERROR(BU86*INDEX('Energy Prices'!$F$12:$CR$17,MATCH('Data Input - BAU'!$D94,'Energy Prices'!$C$12:$C$17,0),MATCH('Data Input - BAU'!BU$7,'Energy Prices'!$F$11:$CR$11,0))/100000,"") ->  | BV94: =IFERROR(BV86*INDEX('Energy Prices'!$F$12:$CR$17,MATCH('Data Input - BAU'!$D94,'Energy Prices'!$C$12:$C$17,0),MATCH('Data Input - BAU'!BV$7,'Energy Prices'!$F$11:$CR$11,0))/100000,"") ->  | BW94: =IFERROR(BW86*INDEX('Energy Prices'!$F$12:$CR$17,MATCH('Data Input - BAU'!$D94,'Energy Prices'!$C$12:$C$17,0),MATCH('Data Input - BAU'!BW$7,'Energy Prices'!$F$11:$CR$11,0))/100000,"") ->  | BX94: =IFERROR(BX86*INDEX('Energy Prices'!$F$12:$CR$17,MATCH('Data Input - BAU'!$D94,'Energy Prices'!$C$12:$C$17,0),MATCH('Data Input - BAU'!BX$7,'Energy Prices'!$F$11:$CR$11,0))/100000,"") ->  | BY94: =IFERROR(BY86*INDEX('Energy Prices'!$F$12:$CR$17,MATCH('Data Input - BAU'!$D94,'Energy Prices'!$C$12:$C$17,0),MATCH('Data Input - BAU'!BY$7,'Energy Prices'!$F$11:$CR$11,0))/100000,"") ->  | BZ94: =IFERROR(BZ86*INDEX('Energy Prices'!$F$12:$CR$17,MATCH('Data Input - BAU'!$D94,'Energy Prices'!$C$12:$C$17,0),MATCH('Data Input - BAU'!BZ$7,'Energy Prices'!$F$11:$CR$11,0))/100000,"") ->  | CA94: =IFERROR(CA86*INDEX('Energy Prices'!$F$12:$CR$17,MATCH('Data Input - BAU'!$D94,'Energy Prices'!$C$12:$C$17,0),MATCH('Data Input - BAU'!CA$7,'Energy Prices'!$F$11:$CR$11,0))/100000,"") ->  | CB94: =IFERROR(CB86*INDEX('Energy Prices'!$F$12:$CR$17,MATCH('Data Input - BAU'!$D94,'Energy Prices'!$C$12:$C$17,0),MATCH('Data Input - BAU'!CB$7,'Energy Prices'!$F$11:$CR$11,0))/100000,"") ->  | CC94: =IFERROR(CC86*INDEX('Energy Prices'!$F$12:$CR$17,MATCH('Data Input - BAU'!$D94,'Energy Prices'!$C$12:$C$17,0),MATCH('Data Input - BAU'!CC$7,'Energy Prices'!$F$11:$CR$11,0))/100000,"") ->  | CD94: =IFERROR(CD86*INDEX('Energy Prices'!$F$12:$CR$17,MATCH('Data Input - BAU'!$D94,'Energy Prices'!$C$12:$C$17,0),MATCH('Data Input - BAU'!CD$7,'Energy Prices'!$F$11:$CR$11,0))/100000,"") ->  | CE94: =IFERROR(CE86*INDEX('Energy Prices'!$F$12:$CR$17,MATCH('Data Input - BAU'!$D94,'Energy Prices'!$C$12:$C$17,0),MATCH('Data Input - BAU'!CE$7,'Energy Prices'!$F$11:$CR$11,0))/100000,"") ->  | CF94: =IFERROR(CF86*INDEX('Energy Prices'!$F$12:$CR$17,MATCH('Data Input - BAU'!$D94,'Energy Prices'!$C$12:$C$17,0),MATCH('Data Input - BAU'!CF$7,'Energy Prices'!$F$11:$CR$11,0))/100000,"") ->  | CG94: =IFERROR(CG86*INDEX('Energy Prices'!$F$12:$CR$17,MATCH('Data Input - BAU'!$D94,'Energy Prices'!$C$12:$C$17,0),MATCH('Data Input - BAU'!CG$7,'Energy Prices'!$F$11:$CR$11,0))/100000,"") ->  | CH94: =IFERROR(CH86*INDEX('Energy Prices'!$F$12:$CR$17,MATCH('Data Input - BAU'!$D94,'Energy Prices'!$C$12:$C$17,0),MATCH('Data Input - BAU'!CH$7,'Energy Prices'!$F$11:$CR$11,0))/100000,"") ->  | CI94: =IFERROR(CI86*INDEX('Energy Prices'!$F$12:$CR$17,MATCH('Data Input - BAU'!$D94,'Energy Prices'!$C$12:$C$17,0),MATCH('Data Input - BAU'!CI$7,'Energy Prices'!$F$11:$CR$11,0))/100000,"") ->  | CJ94: =IFERROR(CJ86*INDEX('Energy Prices'!$F$12:$CR$17,MATCH('Data Input - BAU'!$D94,'Energy Prices'!$C$12:$C$17,0),MATCH('Data Input - BAU'!CJ$7,'Energy Prices'!$F$11:$CR$11,0))/100000,"") ->  | CK94: =IFERROR(CK86*INDEX('Energy Prices'!$F$12:$CR$17,MATCH('Data Input - BAU'!$D94,'Energy Prices'!$C$12:$C$17,0),MATCH('Data Input - BAU'!CK$7,'Energy Prices'!$F$11:$CR$11,0))/100000,"") ->  | CL94: =IFERROR(CL86*INDEX('Energy Prices'!$F$12:$CR$17,MATCH('Data Input - BAU'!$D94,'Energy Prices'!$C$12:$C$17,0),MATCH('Data Input - BAU'!CL$7,'Energy Prices'!$F$11:$CR$11,0))/100000,"") ->  | CM94: =IFERROR(CM86*INDEX('Energy Prices'!$F$12:$CR$17,MATCH('Data Input - BAU'!$D94,'Energy Prices'!$C$12:$C$17,0),MATCH('Data Input - BAU'!CM$7,'Energy Prices'!$F$11:$CR$11,0))/100000,"") ->  | CN94: =IFERROR(CN86*INDEX('Energy Prices'!$F$12:$CR$17,MATCH('Data Input - BAU'!$D94,'Energy Prices'!$C$12:$C$17,0),MATCH('Data Input - BAU'!CN$7,'Energy Prices'!$F$11:$CR$11,0))/100000,"") ->  | CO94: =IFERROR(CO86*INDEX('Energy Prices'!$F$12:$CR$17,MATCH('Data Input - BAU'!$D94,'Energy Prices'!$C$12:$C$17,0),MATCH('Data Input - BAU'!CO$7,'Energy Prices'!$F$11:$CR$11,0))/100000,"") ->  | CP94: =IFERROR(CP86*INDEX('Energy Prices'!$F$12:$CR$17,MATCH('Data Input - BAU'!$D94,'Energy Prices'!$C$12:$C$17,0),MATCH('Data Input - BAU'!CP$7,'Energy Prices'!$F$11:$CR$11,0))/100000,"") ->  | CQ94: =IFERROR(CQ86*INDEX('Energy Prices'!$F$12:$CR$17,MATCH('Data Input - BAU'!$D94,'Energy Prices'!$C$12:$C$17,0),MATCH('Data Input - BAU'!CQ$7,'Energy Prices'!$F$11:$CR$11,0))/100000,"") ->  | CR94: =IFERROR(CR86*INDEX('Energy Prices'!$F$12:$CR$17,MATCH('Data Input - BAU'!$D94,'Energy Prices'!$C$12:$C$17,0),MATCH('Data Input - BAU'!CR$7,'Energy Prices'!$F$11:$CR$11,0))/100000,"") ->  | CS94: =IFERROR(CS86*INDEX('Energy Prices'!$F$12:$CR$17,MATCH('Data Input - BAU'!$D94,'Energy Prices'!$C$12:$C$17,0),MATCH('Data Input - BAU'!CS$7,'Energy Prices'!$F$11:$CR$11,0))/100000,"") ->  | CT94: =IFERROR(CT86*INDEX('Energy Prices'!$F$12:$CR$17,MATCH('Data Input - BAU'!$D94,'Energy Prices'!$C$12:$C$17,0),MATCH('Data Input - BAU'!CT$7,'Energy Prices'!$F$11:$CR$11,0))/100000,"") ->  | CU94: =IFERROR(CU86*INDEX('Energy Prices'!$F$12:$CR$17,MATCH('Data Input - BAU'!$D94,'Energy Prices'!$C$12:$C$17,0),MATCH('Data Input - BAU'!CU$7,'Energy Prices'!$F$11:$CR$11,0))/100000,"") ->  | CV94: =IFERROR(CV86*INDEX('Energy Prices'!$F$12:$CR$17,MATCH('Data Input - BAU'!$D94,'Energy Prices'!$C$12:$C$17,0),MATCH('Data Input - BAU'!CV$7,'Energy Prices'!$F$11:$CR$11,0))/100000,"") ->  | CW94: =IFERROR(CW86*INDEX('Energy Prices'!$F$12:$CR$17,MATCH('Data Input - BAU'!$D94,'Energy Prices'!$C$12:$C$17,0),MATCH('Data Input - BAU'!CW$7,'Energy Prices'!$F$11:$CR$11,0))/100000,"") ->  | CX94: =IFERROR(CX86*INDEX('Energy Prices'!$F$12:$CR$17,MATCH('Data Input - BAU'!$D94,'Energy Prices'!$C$12:$C$17,0),MATCH('Data Input - BAU'!CX$7,'Energy Prices'!$F$11:$CR$11,0))/100000,"") ->  | CY94: =IFERROR(CY86*INDEX('Energy Prices'!$F$12:$CR$17,MATCH('Data Input - BAU'!$D94,'Energy Prices'!$C$12:$C$17,0),MATCH('Data Input - BAU'!CY$7,'Energy Prices'!$F$11:$CR$11,0))/100000,"") ->  | CZ94: =IFERROR(CZ86*INDEX('Energy Prices'!$F$12:$CR$17,MATCH('Data Input - BAU'!$D94,'Energy Prices'!$C$12:$C$17,0),MATCH('Data Input - BAU'!CZ$7,'Energy Prices'!$F$11:$CR$11,0))/100000,"") ->  | DA94: =IFERROR(DA86*INDEX('Energy Prices'!$F$12:$CR$17,MATCH('Data Input - BAU'!$D94,'Energy Prices'!$C$12:$C$17,0),MATCH('Data Input - BAU'!DA$7,'Energy Prices'!$F$11:$CR$11,0))/100000,"") ->  | DB94: =IFERROR(DB86*INDEX('Energy Prices'!$F$12:$CR$17,MATCH('Data Input - BAU'!$D94,'Energy Prices'!$C$12:$C$17,0),MATCH('Data Input - BAU'!DB$7,'Energy Prices'!$F$11:$CR$11,0))/100000,"") ->  | DC94: =IFERROR(DC86*INDEX('Energy Prices'!$F$12:$CR$17,MATCH('Data Input - BAU'!$D94,'Energy Prices'!$C$12:$C$17,0),MATCH('Data Input - BAU'!DC$7,'Energy Prices'!$F$11:$CR$11,0))/100000,"") -> 
D95: Gas Oil | E95: £000's | F95: (Auto calculated value) | H95: =IFERROR(H87*INDEX('Energy Prices'!$F$12:$CR$17,MATCH('Data Input - BAU'!$D95,'Energy Prices'!$C$12:$C$17,0),MATCH('Data Input - BAU'!H$7,'Energy Prices'!$F$11:$CR$11,0))/100000,"") -> 101.8641634 | I95: =IFERROR(I87*INDEX('Energy Prices'!$F$12:$CR$17,MATCH('Data Input - BAU'!$D95,'Energy Prices'!$C$12:$C$17,0),MATCH('Data Input - BAU'!I$7,'Energy Prices'!$F$11:$CR$11,0))/100000,"") -> 108.7893975 | J95: =IFERROR(J87*INDEX('Energy Prices'!$F$12:$CR$17,MATCH('Data Input - BAU'!$D95,'Energy Prices'!$C$12:$C$17,0),MATCH('Data Input - BAU'!J$7,'Energy Prices'!$F$11:$CR$11,0))/100000,"") -> 115.7339468 | K95: =IFERROR(K87*INDEX('Energy Prices'!$F$12:$CR$17,MATCH('Data Input - BAU'!$D95,'Energy Prices'!$C$12:$C$17,0),MATCH('Data Input - BAU'!K$7,'Energy Prices'!$F$11:$CR$11,0))/100000,"") -> 122.6638602 | L95: =IFERROR(L87*INDEX('Energy Prices'!$F$12:$CR$17,MATCH('Data Input - BAU'!$D95,'Energy Prices'!$C$12:$C$17,0),MATCH('Data Input - BAU'!L$7,'Energy Prices'!$F$11:$CR$11,0))/100000,"") -> 129.5871552 | M95: =IFERROR(M87*INDEX('Energy Prices'!$F$12:$CR$17,MATCH('Data Input - BAU'!$D95,'Energy Prices'!$C$12:$C$17,0),MATCH('Data Input - BAU'!M$7,'Energy Prices'!$F$11:$CR$11,0))/100000,"") -> 136.5116051 | N95: =IFERROR(N87*INDEX('Energy Prices'!$F$12:$CR$17,MATCH('Data Input - BAU'!$D95,'Energy Prices'!$C$12:$C$17,0),MATCH('Data Input - BAU'!N$7,'Energy Prices'!$F$11:$CR$11,0))/100000,"") -> 143.4372179 | O95: =IFERROR(O87*INDEX('Energy Prices'!$F$12:$CR$17,MATCH('Data Input - BAU'!$D95,'Energy Prices'!$C$12:$C$17,0),MATCH('Data Input - BAU'!O$7,'Energy Prices'!$F$11:$CR$11,0))/100000,"") -> 143.6094907 | P95: =IFERROR(P87*INDEX('Energy Prices'!$F$12:$CR$17,MATCH('Data Input - BAU'!$D95,'Energy Prices'!$C$12:$C$17,0),MATCH('Data Input - BAU'!P$7,'Energy Prices'!$F$11:$CR$11,0))/100000,"") -> 0 | Q95: =IFERROR(Q87*INDEX('Energy Prices'!$F$12:$CR$17,MATCH('Data Input - BAU'!$D95,'Energy Prices'!$C$12:$C$17,0),MATCH('Data Input - BAU'!Q$7,'Energy Prices'!$F$11:$CR$11,0))/100000,"") -> 0 | R95: =IFERROR(R87*INDEX('Energy Prices'!$F$12:$CR$17,MATCH('Data Input - BAU'!$D95,'Energy Prices'!$C$12:$C$17,0),MATCH('Data Input - BAU'!R$7,'Energy Prices'!$F$11:$CR$11,0))/100000,"") -> 0 | S95: =IFERROR(S87*INDEX('Energy Prices'!$F$12:$CR$17,MATCH('Data Input - BAU'!$D95,'Energy Prices'!$C$12:$C$17,0),MATCH('Data Input - BAU'!S$7,'Energy Prices'!$F$11:$CR$11,0))/100000,"") -> 0 | T95: =IFERROR(T87*INDEX('Energy Prices'!$F$12:$CR$17,MATCH('Data Input - BAU'!$D95,'Energy Prices'!$C$12:$C$17,0),MATCH('Data Input - BAU'!T$7,'Energy Prices'!$F$11:$CR$11,0))/100000,"") -> 0 | U95: =IFERROR(U87*INDEX('Energy Prices'!$F$12:$CR$17,MATCH('Data Input - BAU'!$D95,'Energy Prices'!$C$12:$C$17,0),MATCH('Data Input - BAU'!U$7,'Energy Prices'!$F$11:$CR$11,0))/100000,"") -> 0 | V95: =IFERROR(V87*INDEX('Energy Prices'!$F$12:$CR$17,MATCH('Data Input - BAU'!$D95,'Energy Prices'!$C$12:$C$17,0),MATCH('Data Input - BAU'!V$7,'Energy Prices'!$F$11:$CR$11,0))/100000,"") -> 0 | W95: =IFERROR(W87*INDEX('Energy Prices'!$F$12:$CR$17,MATCH('Data Input - BAU'!$D95,'Energy Prices'!$C$12:$C$17,0),MATCH('Data Input - BAU'!W$7,'Energy Prices'!$F$11:$CR$11,0))/100000,"") -> 0 | X95: =IFERROR(X87*INDEX('Energy Prices'!$F$12:$CR$17,MATCH('Data Input - BAU'!$D95,'Energy Prices'!$C$12:$C$17,0),MATCH('Data Input - BAU'!X$7,'Energy Prices'!$F$11:$CR$11,0))/100000,"") -> 0 | Y95: =IFERROR(Y87*INDEX('Energy Prices'!$F$12:$CR$17,MATCH('Data Input - BAU'!$D95,'Energy Prices'!$C$12:$C$17,0),MATCH('Data Input - BAU'!Y$7,'Energy Prices'!$F$11:$CR$11,0))/100000,"") -> 0 | Z95: =IFERROR(Z87*INDEX('Energy Prices'!$F$12:$CR$17,MATCH('Data Input - BAU'!$D95,'Energy Prices'!$C$12:$C$17,0),MATCH('Data Input - BAU'!Z$7,'Energy Prices'!$F$11:$CR$11,0))/100000,"") -> 0 | AA95: =IFERROR(AA87*INDEX('Energy Prices'!$F$12:$CR$17,MATCH('Data Input - BAU'!$D95,'Energy Prices'!$C$12:$C$17,0),MATCH('Data Input - BAU'!AA$7,'Energy Prices'!$F$11:$CR$11,0))/100000,"") -> 0 | AB95: =IFERROR(AB87*INDEX('Energy Prices'!$F$12:$CR$17,MATCH('Data Input - BAU'!$D95,'Energy Prices'!$C$12:$C$17,0),MATCH('Data Input - BAU'!AB$7,'Energy Prices'!$F$11:$CR$11,0))/100000,"") -> 0 | AC95: =IFERROR(AC87*INDEX('Energy Prices'!$F$12:$CR$17,MATCH('Data Input - BAU'!$D95,'Energy Prices'!$C$12:$C$17,0),MATCH('Data Input - BAU'!AC$7,'Energy Prices'!$F$11:$CR$11,0))/100000,"") -> 0 | AD95: =IFERROR(AD87*INDEX('Energy Prices'!$F$12:$CR$17,MATCH('Data Input - BAU'!$D95,'Energy Prices'!$C$12:$C$17,0),MATCH('Data Input - BAU'!AD$7,'Energy Prices'!$F$11:$CR$11,0))/100000,"") -> 0 | AE95: =IFERROR(AE87*INDEX('Energy Prices'!$F$12:$CR$17,MATCH('Data Input - BAU'!$D95,'Energy Prices'!$C$12:$C$17,0),MATCH('Data Input - BAU'!AE$7,'Energy Prices'!$F$11:$CR$11,0))/100000,"") -> 0 | AF95: =IFERROR(AF87*INDEX('Energy Prices'!$F$12:$CR$17,MATCH('Data Input - BAU'!$D95,'Energy Prices'!$C$12:$C$17,0),MATCH('Data Input - BAU'!AF$7,'Energy Prices'!$F$11:$CR$11,0))/100000,"") -> 0 | AG95: =IFERROR(AG87*INDEX('Energy Prices'!$F$12:$CR$17,MATCH('Data Input - BAU'!$D95,'Energy Prices'!$C$12:$C$17,0),MATCH('Data Input - BAU'!AG$7,'Energy Prices'!$F$11:$CR$11,0))/100000,"") -> 0 | AH95: =IFERROR(AH87*INDEX('Energy Prices'!$F$12:$CR$17,MATCH('Data Input - BAU'!$D95,'Energy Prices'!$C$12:$C$17,0),MATCH('Data Input - BAU'!AH$7,'Energy Prices'!$F$11:$CR$11,0))/100000,"") -> 0 | AI95: =IFERROR(AI87*INDEX('Energy Prices'!$F$12:$CR$17,MATCH('Data Input - BAU'!$D95,'Energy Prices'!$C$12:$C$17,0),MATCH('Data Input - BAU'!AI$7,'Energy Prices'!$F$11:$CR$11,0))/100000,"") -> 0 | AJ95: =IFERROR(AJ87*INDEX('Energy Prices'!$F$12:$CR$17,MATCH('Data Input - BAU'!$D95,'Energy Prices'!$C$12:$C$17,0),MATCH('Data Input - BAU'!AJ$7,'Energy Prices'!$F$11:$CR$11,0))/100000,"") -> 0 | AK95: =IFERROR(AK87*INDEX('Energy Prices'!$F$12:$CR$17,MATCH('Data Input - BAU'!$D95,'Energy Prices'!$C$12:$C$17,0),MATCH('Data Input - BAU'!AK$7,'Energy Prices'!$F$11:$CR$11,0))/100000,"") -> 0 | AL95: =IFERROR(AL87*INDEX('Energy Prices'!$F$12:$CR$17,MATCH('Data Input - BAU'!$D95,'Energy Prices'!$C$12:$C$17,0),MATCH('Data Input - BAU'!AL$7,'Energy Prices'!$F$11:$CR$11,0))/100000,"") -> 0 | AM95: =IFERROR(AM87*INDEX('Energy Prices'!$F$12:$CR$17,MATCH('Data Input - BAU'!$D95,'Energy Prices'!$C$12:$C$17,0),MATCH('Data Input - BAU'!AM$7,'Energy Prices'!$F$11:$CR$11,0))/100000,"") ->  | AN95: =IFERROR(AN87*INDEX('Energy Prices'!$F$12:$CR$17,MATCH('Data Input - BAU'!$D95,'Energy Prices'!$C$12:$C$17,0),MATCH('Data Input - BAU'!AN$7,'Energy Prices'!$F$11:$CR$11,0))/100000,"") ->  | AO95: =IFERROR(AO87*INDEX('Energy Prices'!$F$12:$CR$17,MATCH('Data Input - BAU'!$D95,'Energy Prices'!$C$12:$C$17,0),MATCH('Data Input - BAU'!AO$7,'Energy Prices'!$F$11:$CR$11,0))/100000,"") ->  | AP95: =IFERROR(AP87*INDEX('Energy Prices'!$F$12:$CR$17,MATCH('Data Input - BAU'!$D95,'Energy Prices'!$C$12:$C$17,0),MATCH('Data Input - BAU'!AP$7,'Energy Prices'!$F$11:$CR$11,0))/100000,"") ->  | AQ95: =IFERROR(AQ87*INDEX('Energy Prices'!$F$12:$CR$17,MATCH('Data Input - BAU'!$D95,'Energy Prices'!$C$12:$C$17,0),MATCH('Data Input - BAU'!AQ$7,'Energy Prices'!$F$11:$CR$11,0))/100000,"") ->  | AR95: =IFERROR(AR87*INDEX('Energy Prices'!$F$12:$CR$17,MATCH('Data Input - BAU'!$D95,'Energy Prices'!$C$12:$C$17,0),MATCH('Data Input - BAU'!AR$7,'Energy Prices'!$F$11:$CR$11,0))/100000,"") ->  | AS95: =IFERROR(AS87*INDEX('Energy Prices'!$F$12:$CR$17,MATCH('Data Input - BAU'!$D95,'Energy Prices'!$C$12:$C$17,0),MATCH('Data Input - BAU'!AS$7,'Energy Prices'!$F$11:$CR$11,0))/100000,"") ->  | AT95: =IFERROR(AT87*INDEX('Energy Prices'!$F$12:$CR$17,MATCH('Data Input - BAU'!$D95,'Energy Prices'!$C$12:$C$17,0),MATCH('Data Input - BAU'!AT$7,'Energy Prices'!$F$11:$CR$11,0))/100000,"") ->  | AU95: =IFERROR(AU87*INDEX('Energy Prices'!$F$12:$CR$17,MATCH('Data Input - BAU'!$D95,'Energy Prices'!$C$12:$C$17,0),MATCH('Data Input - BAU'!AU$7,'Energy Prices'!$F$11:$CR$11,0))/100000,"") ->  | AV95: =IFERROR(AV87*INDEX('Energy Prices'!$F$12:$CR$17,MATCH('Data Input - BAU'!$D95,'Energy Prices'!$C$12:$C$17,0),MATCH('Data Input - BAU'!AV$7,'Energy Prices'!$F$11:$CR$11,0))/100000,"") ->  | AW95: =IFERROR(AW87*INDEX('Energy Prices'!$F$12:$CR$17,MATCH('Data Input - BAU'!$D95,'Energy Prices'!$C$12:$C$17,0),MATCH('Data Input - BAU'!AW$7,'Energy Prices'!$F$11:$CR$11,0))/100000,"") ->  | AX95: =IFERROR(AX87*INDEX('Energy Prices'!$F$12:$CR$17,MATCH('Data Input - BAU'!$D95,'Energy Prices'!$C$12:$C$17,0),MATCH('Data Input - BAU'!AX$7,'Energy Prices'!$F$11:$CR$11,0))/100000,"") ->  | AY95: =IFERROR(AY87*INDEX('Energy Prices'!$F$12:$CR$17,MATCH('Data Input - BAU'!$D95,'Energy Prices'!$C$12:$C$17,0),MATCH('Data Input - BAU'!AY$7,'Energy Prices'!$F$11:$CR$11,0))/100000,"") ->  | AZ95: =IFERROR(AZ87*INDEX('Energy Prices'!$F$12:$CR$17,MATCH('Data Input - BAU'!$D95,'Energy Prices'!$C$12:$C$17,0),MATCH('Data Input - BAU'!AZ$7,'Energy Prices'!$F$11:$CR$11,0))/100000,"") ->  | BA95: =IFERROR(BA87*INDEX('Energy Prices'!$F$12:$CR$17,MATCH('Data Input - BAU'!$D95,'Energy Prices'!$C$12:$C$17,0),MATCH('Data Input - BAU'!BA$7,'Energy Prices'!$F$11:$CR$11,0))/100000,"") ->  | BB95: =IFERROR(BB87*INDEX('Energy Prices'!$F$12:$CR$17,MATCH('Data Input - BAU'!$D95,'Energy Prices'!$C$12:$C$17,0),MATCH('Data Input - BAU'!BB$7,'Energy Prices'!$F$11:$CR$11,0))/100000,"") ->  | BC95: =IFERROR(BC87*INDEX('Energy Prices'!$F$12:$CR$17,MATCH('Data Input - BAU'!$D95,'Energy Prices'!$C$12:$C$17,0),MATCH('Data Input - BAU'!BC$7,'Energy Prices'!$F$11:$CR$11,0))/100000,"") ->  | BD95: =IFERROR(BD87*INDEX('Energy Prices'!$F$12:$CR$17,MATCH('Data Input - BAU'!$D95,'Energy Prices'!$C$12:$C$17,0),MATCH('Data Input - BAU'!BD$7,'Energy Prices'!$F$11:$CR$11,0))/100000,"") ->  | BE95: =IFERROR(BE87*INDEX('Energy Prices'!$F$12:$CR$17,MATCH('Data Input - BAU'!$D95,'Energy Prices'!$C$12:$C$17,0),MATCH('Data Input - BAU'!BE$7,'Energy Prices'!$F$11:$CR$11,0))/100000,"") ->  | BF95: =IFERROR(BF87*INDEX('Energy Prices'!$F$12:$CR$17,MATCH('Data Input - BAU'!$D95,'Energy Prices'!$C$12:$C$17,0),MATCH('Data Input - BAU'!BF$7,'Energy Prices'!$F$11:$CR$11,0))/100000,"") ->  | BG95: =IFERROR(BG87*INDEX('Energy Prices'!$F$12:$CR$17,MATCH('Data Input - BAU'!$D95,'Energy Prices'!$C$12:$C$17,0),MATCH('Data Input - BAU'!BG$7,'Energy Prices'!$F$11:$CR$11,0))/100000,"") ->  | BH95: =IFERROR(BH87*INDEX('Energy Prices'!$F$12:$CR$17,MATCH('Data Input - BAU'!$D95,'Energy Prices'!$C$12:$C$17,0),MATCH('Data Input - BAU'!BH$7,'Energy Prices'!$F$11:$CR$11,0))/100000,"") ->  | BI95: =IFERROR(BI87*INDEX('Energy Prices'!$F$12:$CR$17,MATCH('Data Input - BAU'!$D95,'Energy Prices'!$C$12:$C$17,0),MATCH('Data Input - BAU'!BI$7,'Energy Prices'!$F$11:$CR$11,0))/100000,"") ->  | BJ95: =IFERROR(BJ87*INDEX('Energy Prices'!$F$12:$CR$17,MATCH('Data Input - BAU'!$D95,'Energy Prices'!$C$12:$C$17,0),MATCH('Data Input - BAU'!BJ$7,'Energy Prices'!$F$11:$CR$11,0))/100000,"") ->  | BK95: =IFERROR(BK87*INDEX('Energy Prices'!$F$12:$CR$17,MATCH('Data Input - BAU'!$D95,'Energy Prices'!$C$12:$C$17,0),MATCH('Data Input - BAU'!BK$7,'Energy Prices'!$F$11:$CR$11,0))/100000,"") ->  | BL95: =IFERROR(BL87*INDEX('Energy Prices'!$F$12:$CR$17,MATCH('Data Input - BAU'!$D95,'Energy Prices'!$C$12:$C$17,0),MATCH('Data Input - BAU'!BL$7,'Energy Prices'!$F$11:$CR$11,0))/100000,"") ->  | BM95: =IFERROR(BM87*INDEX('Energy Prices'!$F$12:$CR$17,MATCH('Data Input - BAU'!$D95,'Energy Prices'!$C$12:$C$17,0),MATCH('Data Input - BAU'!BM$7,'Energy Prices'!$F$11:$CR$11,0))/100000,"") ->  | BN95: =IFERROR(BN87*INDEX('Energy Prices'!$F$12:$CR$17,MATCH('Data Input - BAU'!$D95,'Energy Prices'!$C$12:$C$17,0),MATCH('Data Input - BAU'!BN$7,'Energy Prices'!$F$11:$CR$11,0))/100000,"") ->  | BO95: =IFERROR(BO87*INDEX('Energy Prices'!$F$12:$CR$17,MATCH('Data Input - BAU'!$D95,'Energy Prices'!$C$12:$C$17,0),MATCH('Data Input - BAU'!BO$7,'Energy Prices'!$F$11:$CR$11,0))/100000,"") ->  | BP95: =IFERROR(BP87*INDEX('Energy Prices'!$F$12:$CR$17,MATCH('Data Input - BAU'!$D95,'Energy Prices'!$C$12:$C$17,0),MATCH('Data Input - BAU'!BP$7,'Energy Prices'!$F$11:$CR$11,0))/100000,"") ->  | BQ95: =IFERROR(BQ87*INDEX('Energy Prices'!$F$12:$CR$17,MATCH('Data Input - BAU'!$D95,'Energy Prices'!$C$12:$C$17,0),MATCH('Data Input - BAU'!BQ$7,'Energy Prices'!$F$11:$CR$11,0))/100000,"") ->  | BR95: =IFERROR(BR87*INDEX('Energy Prices'!$F$12:$CR$17,MATCH('Data Input - BAU'!$D95,'Energy Prices'!$C$12:$C$17,0),MATCH('Data Input - BAU'!BR$7,'Energy Prices'!$F$11:$CR$11,0))/100000,"") ->  | BS95: =IFERROR(BS87*INDEX('Energy Prices'!$F$12:$CR$17,MATCH('Data Input - BAU'!$D95,'Energy Prices'!$C$12:$C$17,0),MATCH('Data Input - BAU'!BS$7,'Energy Prices'!$F$11:$CR$11,0))/100000,"") ->  | BT95: =IFERROR(BT87*INDEX('Energy Prices'!$F$12:$CR$17,MATCH('Data Input - BAU'!$D95,'Energy Prices'!$C$12:$C$17,0),MATCH('Data Input - BAU'!BT$7,'Energy Prices'!$F$11:$CR$11,0))/100000,"") ->  | BU95: =IFERROR(BU87*INDEX('Energy Prices'!$F$12:$CR$17,MATCH('Data Input - BAU'!$D95,'Energy Prices'!$C$12:$C$17,0),MATCH('Data Input - BAU'!BU$7,'Energy Prices'!$F$11:$CR$11,0))/100000,"") ->  | BV95: =IFERROR(BV87*INDEX('Energy Prices'!$F$12:$CR$17,MATCH('Data Input - BAU'!$D95,'Energy Prices'!$C$12:$C$17,0),MATCH('Data Input - BAU'!BV$7,'Energy Prices'!$F$11:$CR$11,0))/100000,"") ->  | BW95: =IFERROR(BW87*INDEX('Energy Prices'!$F$12:$CR$17,MATCH('Data Input - BAU'!$D95,'Energy Prices'!$C$12:$C$17,0),MATCH('Data Input - BAU'!BW$7,'Energy Prices'!$F$11:$CR$11,0))/100000,"") ->  | BX95: =IFERROR(BX87*INDEX('Energy Prices'!$F$12:$CR$17,MATCH('Data Input - BAU'!$D95,'Energy Prices'!$C$12:$C$17,0),MATCH('Data Input - BAU'!BX$7,'Energy Prices'!$F$11:$CR$11,0))/100000,"") ->  | BY95: =IFERROR(BY87*INDEX('Energy Prices'!$F$12:$CR$17,MATCH('Data Input - BAU'!$D95,'Energy Prices'!$C$12:$C$17,0),MATCH('Data Input - BAU'!BY$7,'Energy Prices'!$F$11:$CR$11,0))/100000,"") ->  | BZ95: =IFERROR(BZ87*INDEX('Energy Prices'!$F$12:$CR$17,MATCH('Data Input - BAU'!$D95,'Energy Prices'!$C$12:$C$17,0),MATCH('Data Input - BAU'!BZ$7,'Energy Prices'!$F$11:$CR$11,0))/100000,"") ->  | CA95: =IFERROR(CA87*INDEX('Energy Prices'!$F$12:$CR$17,MATCH('Data Input - BAU'!$D95,'Energy Prices'!$C$12:$C$17,0),MATCH('Data Input - BAU'!CA$7,'Energy Prices'!$F$11:$CR$11,0))/100000,"") ->  | CB95: =IFERROR(CB87*INDEX('Energy Prices'!$F$12:$CR$17,MATCH('Data Input - BAU'!$D95,'Energy Prices'!$C$12:$C$17,0),MATCH('Data Input - BAU'!CB$7,'Energy Prices'!$F$11:$CR$11,0))/100000,"") ->  | CC95: =IFERROR(CC87*INDEX('Energy Prices'!$F$12:$CR$17,MATCH('Data Input - BAU'!$D95,'Energy Prices'!$C$12:$C$17,0),MATCH('Data Input - BAU'!CC$7,'Energy Prices'!$F$11:$CR$11,0))/100000,"") ->  | CD95: =IFERROR(CD87*INDEX('Energy Prices'!$F$12:$CR$17,MATCH('Data Input - BAU'!$D95,'Energy Prices'!$C$12:$C$17,0),MATCH('Data Input - BAU'!CD$7,'Energy Prices'!$F$11:$CR$11,0))/100000,"") ->  | CE95: =IFERROR(CE87*INDEX('Energy Prices'!$F$12:$CR$17,MATCH('Data Input - BAU'!$D95,'Energy Prices'!$C$12:$C$17,0),MATCH('Data Input - BAU'!CE$7,'Energy Prices'!$F$11:$CR$11,0))/100000,"") ->  | CF95: =IFERROR(CF87*INDEX('Energy Prices'!$F$12:$CR$17,MATCH('Data Input - BAU'!$D95,'Energy Prices'!$C$12:$C$17,0),MATCH('Data Input - BAU'!CF$7,'Energy Prices'!$F$11:$CR$11,0))/100000,"") ->  | CG95: =IFERROR(CG87*INDEX('Energy Prices'!$F$12:$CR$17,MATCH('Data Input - BAU'!$D95,'Energy Prices'!$C$12:$C$17,0),MATCH('Data Input - BAU'!CG$7,'Energy Prices'!$F$11:$CR$11,0))/100000,"") ->  | CH95: =IFERROR(CH87*INDEX('Energy Prices'!$F$12:$CR$17,MATCH('Data Input - BAU'!$D95,'Energy Prices'!$C$12:$C$17,0),MATCH('Data Input - BAU'!CH$7,'Energy Prices'!$F$11:$CR$11,0))/100000,"") ->  | CI95: =IFERROR(CI87*INDEX('Energy Prices'!$F$12:$CR$17,MATCH('Data Input - BAU'!$D95,'Energy Prices'!$C$12:$C$17,0),MATCH('Data Input - BAU'!CI$7,'Energy Prices'!$F$11:$CR$11,0))/100000,"") ->  | CJ95: =IFERROR(CJ87*INDEX('Energy Prices'!$F$12:$CR$17,MATCH('Data Input - BAU'!$D95,'Energy Prices'!$C$12:$C$17,0),MATCH('Data Input - BAU'!CJ$7,'Energy Prices'!$F$11:$CR$11,0))/100000,"") ->  | CK95: =IFERROR(CK87*INDEX('Energy Prices'!$F$12:$CR$17,MATCH('Data Input - BAU'!$D95,'Energy Prices'!$C$12:$C$17,0),MATCH('Data Input - BAU'!CK$7,'Energy Prices'!$F$11:$CR$11,0))/100000,"") ->  | CL95: =IFERROR(CL87*INDEX('Energy Prices'!$F$12:$CR$17,MATCH('Data Input - BAU'!$D95,'Energy Prices'!$C$12:$C$17,0),MATCH('Data Input - BAU'!CL$7,'Energy Prices'!$F$11:$CR$11,0))/100000,"") ->  | CM95: =IFERROR(CM87*INDEX('Energy Prices'!$F$12:$CR$17,MATCH('Data Input - BAU'!$D95,'Energy Prices'!$C$12:$C$17,0),MATCH('Data Input - BAU'!CM$7,'Energy Prices'!$F$11:$CR$11,0))/100000,"") ->  | CN95: =IFERROR(CN87*INDEX('Energy Prices'!$F$12:$CR$17,MATCH('Data Input - BAU'!$D95,'Energy Prices'!$C$12:$C$17,0),MATCH('Data Input - BAU'!CN$7,'Energy Prices'!$F$11:$CR$11,0))/100000,"") ->  | CO95: =IFERROR(CO87*INDEX('Energy Prices'!$F$12:$CR$17,MATCH('Data Input - BAU'!$D95,'Energy Prices'!$C$12:$C$17,0),MATCH('Data Input - BAU'!CO$7,'Energy Prices'!$F$11:$CR$11,0))/100000,"") ->  | CP95: =IFERROR(CP87*INDEX('Energy Prices'!$F$12:$CR$17,MATCH('Data Input - BAU'!$D95,'Energy Prices'!$C$12:$C$17,0),MATCH('Data Input - BAU'!CP$7,'Energy Prices'!$F$11:$CR$11,0))/100000,"") ->  | CQ95: =IFERROR(CQ87*INDEX('Energy Prices'!$F$12:$CR$17,MATCH('Data Input - BAU'!$D95,'Energy Prices'!$C$12:$C$17,0),MATCH('Data Input - BAU'!CQ$7,'Energy Prices'!$F$11:$CR$11,0))/100000,"") ->  | CR95: =IFERROR(CR87*INDEX('Energy Prices'!$F$12:$CR$17,MATCH('Data Input - BAU'!$D95,'Energy Prices'!$C$12:$C$17,0),MATCH('Data Input - BAU'!CR$7,'Energy Prices'!$F$11:$CR$11,0))/100000,"") ->  | CS95: =IFERROR(CS87*INDEX('Energy Prices'!$F$12:$CR$17,MATCH('Data Input - BAU'!$D95,'Energy Prices'!$C$12:$C$17,0),MATCH('Data Input - BAU'!CS$7,'Energy Prices'!$F$11:$CR$11,0))/100000,"") ->  | CT95: =IFERROR(CT87*INDEX('Energy Prices'!$F$12:$CR$17,MATCH('Data Input - BAU'!$D95,'Energy Prices'!$C$12:$C$17,0),MATCH('Data Input - BAU'!CT$7,'Energy Prices'!$F$11:$CR$11,0))/100000,"") ->  | CU95: =IFERROR(CU87*INDEX('Energy Prices'!$F$12:$CR$17,MATCH('Data Input - BAU'!$D95,'Energy Prices'!$C$12:$C$17,0),MATCH('Data Input - BAU'!CU$7,'Energy Prices'!$F$11:$CR$11,0))/100000,"") ->  | CV95: =IFERROR(CV87*INDEX('Energy Prices'!$F$12:$CR$17,MATCH('Data Input - BAU'!$D95,'Energy Prices'!$C$12:$C$17,0),MATCH('Data Input - BAU'!CV$7,'Energy Prices'!$F$11:$CR$11,0))/100000,"") ->  | CW95: =IFERROR(CW87*INDEX('Energy Prices'!$F$12:$CR$17,MATCH('Data Input - BAU'!$D95,'Energy Prices'!$C$12:$C$17,0),MATCH('Data Input - BAU'!CW$7,'Energy Prices'!$F$11:$CR$11,0))/100000,"") ->  | CX95: =IFERROR(CX87*INDEX('Energy Prices'!$F$12:$CR$17,MATCH('Data Input - BAU'!$D95,'Energy Prices'!$C$12:$C$17,0),MATCH('Data Input - BAU'!CX$7,'Energy Prices'!$F$11:$CR$11,0))/100000,"") ->  | CY95: =IFERROR(CY87*INDEX('Energy Prices'!$F$12:$CR$17,MATCH('Data Input - BAU'!$D95,'Energy Prices'!$C$12:$C$17,0),MATCH('Data Input - BAU'!CY$7,'Energy Prices'!$F$11:$CR$11,0))/100000,"") ->  | CZ95: =IFERROR(CZ87*INDEX('Energy Prices'!$F$12:$CR$17,MATCH('Data Input - BAU'!$D95,'Energy Prices'!$C$12:$C$17,0),MATCH('Data Input - BAU'!CZ$7,'Energy Prices'!$F$11:$CR$11,0))/100000,"") ->  | DA95: =IFERROR(DA87*INDEX('Energy Prices'!$F$12:$CR$17,MATCH('Data Input - BAU'!$D95,'Energy Prices'!$C$12:$C$17,0),MATCH('Data Input - BAU'!DA$7,'Energy Prices'!$F$11:$CR$11,0))/100000,"") ->  | DB95: =IFERROR(DB87*INDEX('Energy Prices'!$F$12:$CR$17,MATCH('Data Input - BAU'!$D95,'Energy Prices'!$C$12:$C$17,0),MATCH('Data Input - BAU'!DB$7,'Energy Prices'!$F$11:$CR$11,0))/100000,"") ->  | DC95: =IFERROR(DC87*INDEX('Energy Prices'!$F$12:$CR$17,MATCH('Data Input - BAU'!$D95,'Energy Prices'!$C$12:$C$17,0),MATCH('Data Input - BAU'!DC$7,'Energy Prices'!$F$11:$CR$11,0))/100000,"") -> 
D96: Road - Petrol | E96: £000's | F96: (Auto calculated value) | H96: =IFERROR(H88*INDEX('Energy Prices'!$F$12:$CR$17,MATCH('Data Input - BAU'!$D96,'Energy Prices'!$C$12:$C$17,0),MATCH('Data Input - BAU'!H$7,'Energy Prices'!$F$11:$CR$11,0))/100000,"") -> 0 | I96: =IFERROR(I88*INDEX('Energy Prices'!$F$12:$CR$17,MATCH('Data Input - BAU'!$D96,'Energy Prices'!$C$12:$C$17,0),MATCH('Data Input - BAU'!I$7,'Energy Prices'!$F$11:$CR$11,0))/100000,"") -> 0 | J96: =IFERROR(J88*INDEX('Energy Prices'!$F$12:$CR$17,MATCH('Data Input - BAU'!$D96,'Energy Prices'!$C$12:$C$17,0),MATCH('Data Input - BAU'!J$7,'Energy Prices'!$F$11:$CR$11,0))/100000,"") -> 0 | K96: =IFERROR(K88*INDEX('Energy Prices'!$F$12:$CR$17,MATCH('Data Input - BAU'!$D96,'Energy Prices'!$C$12:$C$17,0),MATCH('Data Input - BAU'!K$7,'Energy Prices'!$F$11:$CR$11,0))/100000,"") -> 0 | L96: =IFERROR(L88*INDEX('Energy Prices'!$F$12:$CR$17,MATCH('Data Input - BAU'!$D96,'Energy Prices'!$C$12:$C$17,0),MATCH('Data Input - BAU'!L$7,'Energy Prices'!$F$11:$CR$11,0))/100000,"") -> 0 | M96: =IFERROR(M88*INDEX('Energy Prices'!$F$12:$CR$17,MATCH('Data Input - BAU'!$D96,'Energy Prices'!$C$12:$C$17,0),MATCH('Data Input - BAU'!M$7,'Energy Prices'!$F$11:$CR$11,0))/100000,"") -> 0 | N96: =IFERROR(N88*INDEX('Energy Prices'!$F$12:$CR$17,MATCH('Data Input - BAU'!$D96,'Energy Prices'!$C$12:$C$17,0),MATCH('Data Input - BAU'!N$7,'Energy Prices'!$F$11:$CR$11,0))/100000,"") -> 0 | O96: =IFERROR(O88*INDEX('Energy Prices'!$F$12:$CR$17,MATCH('Data Input - BAU'!$D96,'Energy Prices'!$C$12:$C$17,0),MATCH('Data Input - BAU'!O$7,'Energy Prices'!$F$11:$CR$11,0))/100000,"") -> 0 | P96: =IFERROR(P88*INDEX('Energy Prices'!$F$12:$CR$17,MATCH('Data Input - BAU'!$D96,'Energy Prices'!$C$12:$C$17,0),MATCH('Data Input - BAU'!P$7,'Energy Prices'!$F$11:$CR$11,0))/100000,"") -> 0 | Q96: =IFERROR(Q88*INDEX('Energy Prices'!$F$12:$CR$17,MATCH('Data Input - BAU'!$D96,'Energy Prices'!$C$12:$C$17,0),MATCH('Data Input - BAU'!Q$7,'Energy Prices'!$F$11:$CR$11,0))/100000,"") -> 0 | R96: =IFERROR(R88*INDEX('Energy Prices'!$F$12:$CR$17,MATCH('Data Input - BAU'!$D96,'Energy Prices'!$C$12:$C$17,0),MATCH('Data Input - BAU'!R$7,'Energy Prices'!$F$11:$CR$11,0))/100000,"") -> 0 | S96: =IFERROR(S88*INDEX('Energy Prices'!$F$12:$CR$17,MATCH('Data Input - BAU'!$D96,'Energy Prices'!$C$12:$C$17,0),MATCH('Data Input - BAU'!S$7,'Energy Prices'!$F$11:$CR$11,0))/100000,"") -> 0 | T96: =IFERROR(T88*INDEX('Energy Prices'!$F$12:$CR$17,MATCH('Data Input - BAU'!$D96,'Energy Prices'!$C$12:$C$17,0),MATCH('Data Input - BAU'!T$7,'Energy Prices'!$F$11:$CR$11,0))/100000,"") -> 0 | U96: =IFERROR(U88*INDEX('Energy Prices'!$F$12:$CR$17,MATCH('Data Input - BAU'!$D96,'Energy Prices'!$C$12:$C$17,0),MATCH('Data Input - BAU'!U$7,'Energy Prices'!$F$11:$CR$11,0))/100000,"") -> 0 | V96: =IFERROR(V88*INDEX('Energy Prices'!$F$12:$CR$17,MATCH('Data Input - BAU'!$D96,'Energy Prices'!$C$12:$C$17,0),MATCH('Data Input - BAU'!V$7,'Energy Prices'!$F$11:$CR$11,0))/100000,"") -> 0 | W96: =IFERROR(W88*INDEX('Energy Prices'!$F$12:$CR$17,MATCH('Data Input - BAU'!$D96,'Energy Prices'!$C$12:$C$17,0),MATCH('Data Input - BAU'!W$7,'Energy Prices'!$F$11:$CR$11,0))/100000,"") -> 0 | X96: =IFERROR(X88*INDEX('Energy Prices'!$F$12:$CR$17,MATCH('Data Input - BAU'!$D96,'Energy Prices'!$C$12:$C$17,0),MATCH('Data Input - BAU'!X$7,'Energy Prices'!$F$11:$CR$11,0))/100000,"") -> 0 | Y96: =IFERROR(Y88*INDEX('Energy Prices'!$F$12:$CR$17,MATCH('Data Input - BAU'!$D96,'Energy Prices'!$C$12:$C$17,0),MATCH('Data Input - BAU'!Y$7,'Energy Prices'!$F$11:$CR$11,0))/100000,"") -> 0 | Z96: =IFERROR(Z88*INDEX('Energy Prices'!$F$12:$CR$17,MATCH('Data Input - BAU'!$D96,'Energy Prices'!$C$12:$C$17,0),MATCH('Data Input - BAU'!Z$7,'Energy Prices'!$F$11:$CR$11,0))/100000,"") -> 0 | AA96: =IFERROR(AA88*INDEX('Energy Prices'!$F$12:$CR$17,MATCH('Data Input - BAU'!$D96,'Energy Prices'!$C$12:$C$17,0),MATCH('Data Input - BAU'!AA$7,'Energy Prices'!$F$11:$CR$11,0))/100000,"") -> 0 | AB96: =IFERROR(AB88*INDEX('Energy Prices'!$F$12:$CR$17,MATCH('Data Input - BAU'!$D96,'Energy Prices'!$C$12:$C$17,0),MATCH('Data Input - BAU'!AB$7,'Energy Prices'!$F$11:$CR$11,0))/100000,"") -> 0 | AC96: =IFERROR(AC88*INDEX('Energy Prices'!$F$12:$CR$17,MATCH('Data Input - BAU'!$D96,'Energy Prices'!$C$12:$C$17,0),MATCH('Data Input - BAU'!AC$7,'Energy Prices'!$F$11:$CR$11,0))/100000,"") -> 0 | AD96: =IFERROR(AD88*INDEX('Energy Prices'!$F$12:$CR$17,MATCH('Data Input - BAU'!$D96,'Energy Prices'!$C$12:$C$17,0),MATCH('Data Input - BAU'!AD$7,'Energy Prices'!$F$11:$CR$11,0))/100000,"") -> 0 | AE96: =IFERROR(AE88*INDEX('Energy Prices'!$F$12:$CR$17,MATCH('Data Input - BAU'!$D96,'Energy Prices'!$C$12:$C$17,0),MATCH('Data Input - BAU'!AE$7,'Energy Prices'!$F$11:$CR$11,0))/100000,"") -> 0 | AF96: =IFERROR(AF88*INDEX('Energy Prices'!$F$12:$CR$17,MATCH('Data Input - BAU'!$D96,'Energy Prices'!$C$12:$C$17,0),MATCH('Data Input - BAU'!AF$7,'Energy Prices'!$F$11:$CR$11,0))/100000,"") -> 0 | AG96: =IFERROR(AG88*INDEX('Energy Prices'!$F$12:$CR$17,MATCH('Data Input - BAU'!$D96,'Energy Prices'!$C$12:$C$17,0),MATCH('Data Input - BAU'!AG$7,'Energy Prices'!$F$11:$CR$11,0))/100000,"") -> 0 | AH96: =IFERROR(AH88*INDEX('Energy Prices'!$F$12:$CR$17,MATCH('Data Input - BAU'!$D96,'Energy Prices'!$C$12:$C$17,0),MATCH('Data Input - BAU'!AH$7,'Energy Prices'!$F$11:$CR$11,0))/100000,"") -> 0 | AI96: =IFERROR(AI88*INDEX('Energy Prices'!$F$12:$CR$17,MATCH('Data Input - BAU'!$D96,'Energy Prices'!$C$12:$C$17,0),MATCH('Data Input - BAU'!AI$7,'Energy Prices'!$F$11:$CR$11,0))/100000,"") -> 0 | AJ96: =IFERROR(AJ88*INDEX('Energy Prices'!$F$12:$CR$17,MATCH('Data Input - BAU'!$D96,'Energy Prices'!$C$12:$C$17,0),MATCH('Data Input - BAU'!AJ$7,'Energy Prices'!$F$11:$CR$11,0))/100000,"") -> 0 | AK96: =IFERROR(AK88*INDEX('Energy Prices'!$F$12:$CR$17,MATCH('Data Input - BAU'!$D96,'Energy Prices'!$C$12:$C$17,0),MATCH('Data Input - BAU'!AK$7,'Energy Prices'!$F$11:$CR$11,0))/100000,"") -> 0 | AL96: =IFERROR(AL88*INDEX('Energy Prices'!$F$12:$CR$17,MATCH('Data Input - BAU'!$D96,'Energy Prices'!$C$12:$C$17,0),MATCH('Data Input - BAU'!AL$7,'Energy Prices'!$F$11:$CR$11,0))/100000,"") -> 0 | AM96: =IFERROR(AM88*INDEX('Energy Prices'!$F$12:$CR$17,MATCH('Data Input - BAU'!$D96,'Energy Prices'!$C$12:$C$17,0),MATCH('Data Input - BAU'!AM$7,'Energy Prices'!$F$11:$CR$11,0))/100000,"") ->  | AN96: =IFERROR(AN88*INDEX('Energy Prices'!$F$12:$CR$17,MATCH('Data Input - BAU'!$D96,'Energy Prices'!$C$12:$C$17,0),MATCH('Data Input - BAU'!AN$7,'Energy Prices'!$F$11:$CR$11,0))/100000,"") ->  | AO96: =IFERROR(AO88*INDEX('Energy Prices'!$F$12:$CR$17,MATCH('Data Input - BAU'!$D96,'Energy Prices'!$C$12:$C$17,0),MATCH('Data Input - BAU'!AO$7,'Energy Prices'!$F$11:$CR$11,0))/100000,"") ->  | AP96: =IFERROR(AP88*INDEX('Energy Prices'!$F$12:$CR$17,MATCH('Data Input - BAU'!$D96,'Energy Prices'!$C$12:$C$17,0),MATCH('Data Input - BAU'!AP$7,'Energy Prices'!$F$11:$CR$11,0))/100000,"") ->  | AQ96: =IFERROR(AQ88*INDEX('Energy Prices'!$F$12:$CR$17,MATCH('Data Input - BAU'!$D96,'Energy Prices'!$C$12:$C$17,0),MATCH('Data Input - BAU'!AQ$7,'Energy Prices'!$F$11:$CR$11,0))/100000,"") ->  | AR96: =IFERROR(AR88*INDEX('Energy Prices'!$F$12:$CR$17,MATCH('Data Input - BAU'!$D96,'Energy Prices'!$C$12:$C$17,0),MATCH('Data Input - BAU'!AR$7,'Energy Prices'!$F$11:$CR$11,0))/100000,"") ->  | AS96: =IFERROR(AS88*INDEX('Energy Prices'!$F$12:$CR$17,MATCH('Data Input - BAU'!$D96,'Energy Prices'!$C$12:$C$17,0),MATCH('Data Input - BAU'!AS$7,'Energy Prices'!$F$11:$CR$11,0))/100000,"") ->  | AT96: =IFERROR(AT88*INDEX('Energy Prices'!$F$12:$CR$17,MATCH('Data Input - BAU'!$D96,'Energy Prices'!$C$12:$C$17,0),MATCH('Data Input - BAU'!AT$7,'Energy Prices'!$F$11:$CR$11,0))/100000,"") ->  | AU96: =IFERROR(AU88*INDEX('Energy Prices'!$F$12:$CR$17,MATCH('Data Input - BAU'!$D96,'Energy Prices'!$C$12:$C$17,0),MATCH('Data Input - BAU'!AU$7,'Energy Prices'!$F$11:$CR$11,0))/100000,"") ->  | AV96: =IFERROR(AV88*INDEX('Energy Prices'!$F$12:$CR$17,MATCH('Data Input - BAU'!$D96,'Energy Prices'!$C$12:$C$17,0),MATCH('Data Input - BAU'!AV$7,'Energy Prices'!$F$11:$CR$11,0))/100000,"") ->  | AW96: =IFERROR(AW88*INDEX('Energy Prices'!$F$12:$CR$17,MATCH('Data Input - BAU'!$D96,'Energy Prices'!$C$12:$C$17,0),MATCH('Data Input - BAU'!AW$7,'Energy Prices'!$F$11:$CR$11,0))/100000,"") ->  | AX96: =IFERROR(AX88*INDEX('Energy Prices'!$F$12:$CR$17,MATCH('Data Input - BAU'!$D96,'Energy Prices'!$C$12:$C$17,0),MATCH('Data Input - BAU'!AX$7,'Energy Prices'!$F$11:$CR$11,0))/100000,"") ->  | AY96: =IFERROR(AY88*INDEX('Energy Prices'!$F$12:$CR$17,MATCH('Data Input - BAU'!$D96,'Energy Prices'!$C$12:$C$17,0),MATCH('Data Input - BAU'!AY$7,'Energy Prices'!$F$11:$CR$11,0))/100000,"") ->  | AZ96: =IFERROR(AZ88*INDEX('Energy Prices'!$F$12:$CR$17,MATCH('Data Input - BAU'!$D96,'Energy Prices'!$C$12:$C$17,0),MATCH('Data Input - BAU'!AZ$7,'Energy Prices'!$F$11:$CR$11,0))/100000,"") ->  | BA96: =IFERROR(BA88*INDEX('Energy Prices'!$F$12:$CR$17,MATCH('Data Input - BAU'!$D96,'Energy Prices'!$C$12:$C$17,0),MATCH('Data Input - BAU'!BA$7,'Energy Prices'!$F$11:$CR$11,0))/100000,"") ->  | BB96: =IFERROR(BB88*INDEX('Energy Prices'!$F$12:$CR$17,MATCH('Data Input - BAU'!$D96,'Energy Prices'!$C$12:$C$17,0),MATCH('Data Input - BAU'!BB$7,'Energy Prices'!$F$11:$CR$11,0))/100000,"") ->  | BC96: =IFERROR(BC88*INDEX('Energy Prices'!$F$12:$CR$17,MATCH('Data Input - BAU'!$D96,'Energy Prices'!$C$12:$C$17,0),MATCH('Data Input - BAU'!BC$7,'Energy Prices'!$F$11:$CR$11,0))/100000,"") ->  | BD96: =IFERROR(BD88*INDEX('Energy Prices'!$F$12:$CR$17,MATCH('Data Input - BAU'!$D96,'Energy Prices'!$C$12:$C$17,0),MATCH('Data Input - BAU'!BD$7,'Energy Prices'!$F$11:$CR$11,0))/100000,"") ->  | BE96: =IFERROR(BE88*INDEX('Energy Prices'!$F$12:$CR$17,MATCH('Data Input - BAU'!$D96,'Energy Prices'!$C$12:$C$17,0),MATCH('Data Input - BAU'!BE$7,'Energy Prices'!$F$11:$CR$11,0))/100000,"") ->  | BF96: =IFERROR(BF88*INDEX('Energy Prices'!$F$12:$CR$17,MATCH('Data Input - BAU'!$D96,'Energy Prices'!$C$12:$C$17,0),MATCH('Data Input - BAU'!BF$7,'Energy Prices'!$F$11:$CR$11,0))/100000,"") ->  | BG96: =IFERROR(BG88*INDEX('Energy Prices'!$F$12:$CR$17,MATCH('Data Input - BAU'!$D96,'Energy Prices'!$C$12:$C$17,0),MATCH('Data Input - BAU'!BG$7,'Energy Prices'!$F$11:$CR$11,0))/100000,"") ->  | BH96: =IFERROR(BH88*INDEX('Energy Prices'!$F$12:$CR$17,MATCH('Data Input - BAU'!$D96,'Energy Prices'!$C$12:$C$17,0),MATCH('Data Input - BAU'!BH$7,'Energy Prices'!$F$11:$CR$11,0))/100000,"") ->  | BI96: =IFERROR(BI88*INDEX('Energy Prices'!$F$12:$CR$17,MATCH('Data Input - BAU'!$D96,'Energy Prices'!$C$12:$C$17,0),MATCH('Data Input - BAU'!BI$7,'Energy Prices'!$F$11:$CR$11,0))/100000,"") ->  | BJ96: =IFERROR(BJ88*INDEX('Energy Prices'!$F$12:$CR$17,MATCH('Data Input - BAU'!$D96,'Energy Prices'!$C$12:$C$17,0),MATCH('Data Input - BAU'!BJ$7,'Energy Prices'!$F$11:$CR$11,0))/100000,"") ->  | BK96: =IFERROR(BK88*INDEX('Energy Prices'!$F$12:$CR$17,MATCH('Data Input - BAU'!$D96,'Energy Prices'!$C$12:$C$17,0),MATCH('Data Input - BAU'!BK$7,'Energy Prices'!$F$11:$CR$11,0))/100000,"") ->  | BL96: =IFERROR(BL88*INDEX('Energy Prices'!$F$12:$CR$17,MATCH('Data Input - BAU'!$D96,'Energy Prices'!$C$12:$C$17,0),MATCH('Data Input - BAU'!BL$7,'Energy Prices'!$F$11:$CR$11,0))/100000,"") ->  | BM96: =IFERROR(BM88*INDEX('Energy Prices'!$F$12:$CR$17,MATCH('Data Input - BAU'!$D96,'Energy Prices'!$C$12:$C$17,0),MATCH('Data Input - BAU'!BM$7,'Energy Prices'!$F$11:$CR$11,0))/100000,"") ->  | BN96: =IFERROR(BN88*INDEX('Energy Prices'!$F$12:$CR$17,MATCH('Data Input - BAU'!$D96,'Energy Prices'!$C$12:$C$17,0),MATCH('Data Input - BAU'!BN$7,'Energy Prices'!$F$11:$CR$11,0))/100000,"") ->  | BO96: =IFERROR(BO88*INDEX('Energy Prices'!$F$12:$CR$17,MATCH('Data Input - BAU'!$D96,'Energy Prices'!$C$12:$C$17,0),MATCH('Data Input - BAU'!BO$7,'Energy Prices'!$F$11:$CR$11,0))/100000,"") ->  | BP96: =IFERROR(BP88*INDEX('Energy Prices'!$F$12:$CR$17,MATCH('Data Input - BAU'!$D96,'Energy Prices'!$C$12:$C$17,0),MATCH('Data Input - BAU'!BP$7,'Energy Prices'!$F$11:$CR$11,0))/100000,"") ->  | BQ96: =IFERROR(BQ88*INDEX('Energy Prices'!$F$12:$CR$17,MATCH('Data Input - BAU'!$D96,'Energy Prices'!$C$12:$C$17,0),MATCH('Data Input - BAU'!BQ$7,'Energy Prices'!$F$11:$CR$11,0))/100000,"") ->  | BR96: =IFERROR(BR88*INDEX('Energy Prices'!$F$12:$CR$17,MATCH('Data Input - BAU'!$D96,'Energy Prices'!$C$12:$C$17,0),MATCH('Data Input - BAU'!BR$7,'Energy Prices'!$F$11:$CR$11,0))/100000,"") ->  | BS96: =IFERROR(BS88*INDEX('Energy Prices'!$F$12:$CR$17,MATCH('Data Input - BAU'!$D96,'Energy Prices'!$C$12:$C$17,0),MATCH('Data Input - BAU'!BS$7,'Energy Prices'!$F$11:$CR$11,0))/100000,"") ->  | BT96: =IFERROR(BT88*INDEX('Energy Prices'!$F$12:$CR$17,MATCH('Data Input - BAU'!$D96,'Energy Prices'!$C$12:$C$17,0),MATCH('Data Input - BAU'!BT$7,'Energy Prices'!$F$11:$CR$11,0))/100000,"") ->  | BU96: =IFERROR(BU88*INDEX('Energy Prices'!$F$12:$CR$17,MATCH('Data Input - BAU'!$D96,'Energy Prices'!$C$12:$C$17,0),MATCH('Data Input - BAU'!BU$7,'Energy Prices'!$F$11:$CR$11,0))/100000,"") ->  | BV96: =IFERROR(BV88*INDEX('Energy Prices'!$F$12:$CR$17,MATCH('Data Input - BAU'!$D96,'Energy Prices'!$C$12:$C$17,0),MATCH('Data Input - BAU'!BV$7,'Energy Prices'!$F$11:$CR$11,0))/100000,"") ->  | BW96: =IFERROR(BW88*INDEX('Energy Prices'!$F$12:$CR$17,MATCH('Data Input - BAU'!$D96,'Energy Prices'!$C$12:$C$17,0),MATCH('Data Input - BAU'!BW$7,'Energy Prices'!$F$11:$CR$11,0))/100000,"") ->  | BX96: =IFERROR(BX88*INDEX('Energy Prices'!$F$12:$CR$17,MATCH('Data Input - BAU'!$D96,'Energy Prices'!$C$12:$C$17,0),MATCH('Data Input - BAU'!BX$7,'Energy Prices'!$F$11:$CR$11,0))/100000,"") ->  | BY96: =IFERROR(BY88*INDEX('Energy Prices'!$F$12:$CR$17,MATCH('Data Input - BAU'!$D96,'Energy Prices'!$C$12:$C$17,0),MATCH('Data Input - BAU'!BY$7,'Energy Prices'!$F$11:$CR$11,0))/100000,"") ->  | BZ96: =IFERROR(BZ88*INDEX('Energy Prices'!$F$12:$CR$17,MATCH('Data Input - BAU'!$D96,'Energy Prices'!$C$12:$C$17,0),MATCH('Data Input - BAU'!BZ$7,'Energy Prices'!$F$11:$CR$11,0))/100000,"") ->  | CA96: =IFERROR(CA88*INDEX('Energy Prices'!$F$12:$CR$17,MATCH('Data Input - BAU'!$D96,'Energy Prices'!$C$12:$C$17,0),MATCH('Data Input - BAU'!CA$7,'Energy Prices'!$F$11:$CR$11,0))/100000,"") ->  | CB96: =IFERROR(CB88*INDEX('Energy Prices'!$F$12:$CR$17,MATCH('Data Input - BAU'!$D96,'Energy Prices'!$C$12:$C$17,0),MATCH('Data Input - BAU'!CB$7,'Energy Prices'!$F$11:$CR$11,0))/100000,"") ->  | CC96: =IFERROR(CC88*INDEX('Energy Prices'!$F$12:$CR$17,MATCH('Data Input - BAU'!$D96,'Energy Prices'!$C$12:$C$17,0),MATCH('Data Input - BAU'!CC$7,'Energy Prices'!$F$11:$CR$11,0))/100000,"") ->  | CD96: =IFERROR(CD88*INDEX('Energy Prices'!$F$12:$CR$17,MATCH('Data Input - BAU'!$D96,'Energy Prices'!$C$12:$C$17,0),MATCH('Data Input - BAU'!CD$7,'Energy Prices'!$F$11:$CR$11,0))/100000,"") ->  | CE96: =IFERROR(CE88*INDEX('Energy Prices'!$F$12:$CR$17,MATCH('Data Input - BAU'!$D96,'Energy Prices'!$C$12:$C$17,0),MATCH('Data Input - BAU'!CE$7,'Energy Prices'!$F$11:$CR$11,0))/100000,"") ->  | CF96: =IFERROR(CF88*INDEX('Energy Prices'!$F$12:$CR$17,MATCH('Data Input - BAU'!$D96,'Energy Prices'!$C$12:$C$17,0),MATCH('Data Input - BAU'!CF$7,'Energy Prices'!$F$11:$CR$11,0))/100000,"") ->  | CG96: =IFERROR(CG88*INDEX('Energy Prices'!$F$12:$CR$17,MATCH('Data Input - BAU'!$D96,'Energy Prices'!$C$12:$C$17,0),MATCH('Data Input - BAU'!CG$7,'Energy Prices'!$F$11:$CR$11,0))/100000,"") ->  | CH96: =IFERROR(CH88*INDEX('Energy Prices'!$F$12:$CR$17,MATCH('Data Input - BAU'!$D96,'Energy Prices'!$C$12:$C$17,0),MATCH('Data Input - BAU'!CH$7,'Energy Prices'!$F$11:$CR$11,0))/100000,"") ->  | CI96: =IFERROR(CI88*INDEX('Energy Prices'!$F$12:$CR$17,MATCH('Data Input - BAU'!$D96,'Energy Prices'!$C$12:$C$17,0),MATCH('Data Input - BAU'!CI$7,'Energy Prices'!$F$11:$CR$11,0))/100000,"") ->  | CJ96: =IFERROR(CJ88*INDEX('Energy Prices'!$F$12:$CR$17,MATCH('Data Input - BAU'!$D96,'Energy Prices'!$C$12:$C$17,0),MATCH('Data Input - BAU'!CJ$7,'Energy Prices'!$F$11:$CR$11,0))/100000,"") ->  | CK96: =IFERROR(CK88*INDEX('Energy Prices'!$F$12:$CR$17,MATCH('Data Input - BAU'!$D96,'Energy Prices'!$C$12:$C$17,0),MATCH('Data Input - BAU'!CK$7,'Energy Prices'!$F$11:$CR$11,0))/100000,"") ->  | CL96: =IFERROR(CL88*INDEX('Energy Prices'!$F$12:$CR$17,MATCH('Data Input - BAU'!$D96,'Energy Prices'!$C$12:$C$17,0),MATCH('Data Input - BAU'!CL$7,'Energy Prices'!$F$11:$CR$11,0))/100000,"") ->  | CM96: =IFERROR(CM88*INDEX('Energy Prices'!$F$12:$CR$17,MATCH('Data Input - BAU'!$D96,'Energy Prices'!$C$12:$C$17,0),MATCH('Data Input - BAU'!CM$7,'Energy Prices'!$F$11:$CR$11,0))/100000,"") ->  | CN96: =IFERROR(CN88*INDEX('Energy Prices'!$F$12:$CR$17,MATCH('Data Input - BAU'!$D96,'Energy Prices'!$C$12:$C$17,0),MATCH('Data Input - BAU'!CN$7,'Energy Prices'!$F$11:$CR$11,0))/100000,"") ->  | CO96: =IFERROR(CO88*INDEX('Energy Prices'!$F$12:$CR$17,MATCH('Data Input - BAU'!$D96,'Energy Prices'!$C$12:$C$17,0),MATCH('Data Input - BAU'!CO$7,'Energy Prices'!$F$11:$CR$11,0))/100000,"") ->  | CP96: =IFERROR(CP88*INDEX('Energy Prices'!$F$12:$CR$17,MATCH('Data Input - BAU'!$D96,'Energy Prices'!$C$12:$C$17,0),MATCH('Data Input - BAU'!CP$7,'Energy Prices'!$F$11:$CR$11,0))/100000,"") ->  | CQ96: =IFERROR(CQ88*INDEX('Energy Prices'!$F$12:$CR$17,MATCH('Data Input - BAU'!$D96,'Energy Prices'!$C$12:$C$17,0),MATCH('Data Input - BAU'!CQ$7,'Energy Prices'!$F$11:$CR$11,0))/100000,"") ->  | CR96: =IFERROR(CR88*INDEX('Energy Prices'!$F$12:$CR$17,MATCH('Data Input - BAU'!$D96,'Energy Prices'!$C$12:$C$17,0),MATCH('Data Input - BAU'!CR$7,'Energy Prices'!$F$11:$CR$11,0))/100000,"") ->  | CS96: =IFERROR(CS88*INDEX('Energy Prices'!$F$12:$CR$17,MATCH('Data Input - BAU'!$D96,'Energy Prices'!$C$12:$C$17,0),MATCH('Data Input - BAU'!CS$7,'Energy Prices'!$F$11:$CR$11,0))/100000,"") ->  | CT96: =IFERROR(CT88*INDEX('Energy Prices'!$F$12:$CR$17,MATCH('Data Input - BAU'!$D96,'Energy Prices'!$C$12:$C$17,0),MATCH('Data Input - BAU'!CT$7,'Energy Prices'!$F$11:$CR$11,0))/100000,"") ->  | CU96: =IFERROR(CU88*INDEX('Energy Prices'!$F$12:$CR$17,MATCH('Data Input - BAU'!$D96,'Energy Prices'!$C$12:$C$17,0),MATCH('Data Input - BAU'!CU$7,'Energy Prices'!$F$11:$CR$11,0))/100000,"") ->  | CV96: =IFERROR(CV88*INDEX('Energy Prices'!$F$12:$CR$17,MATCH('Data Input - BAU'!$D96,'Energy Prices'!$C$12:$C$17,0),MATCH('Data Input - BAU'!CV$7,'Energy Prices'!$F$11:$CR$11,0))/100000,"") ->  | CW96: =IFERROR(CW88*INDEX('Energy Prices'!$F$12:$CR$17,MATCH('Data Input - BAU'!$D96,'Energy Prices'!$C$12:$C$17,0),MATCH('Data Input - BAU'!CW$7,'Energy Prices'!$F$11:$CR$11,0))/100000,"") ->  | CX96: =IFERROR(CX88*INDEX('Energy Prices'!$F$12:$CR$17,MATCH('Data Input - BAU'!$D96,'Energy Prices'!$C$12:$C$17,0),MATCH('Data Input - BAU'!CX$7,'Energy Prices'!$F$11:$CR$11,0))/100000,"") ->  | CY96: =IFERROR(CY88*INDEX('Energy Prices'!$F$12:$CR$17,MATCH('Data Input - BAU'!$D96,'Energy Prices'!$C$12:$C$17,0),MATCH('Data Input - BAU'!CY$7,'Energy Prices'!$F$11:$CR$11,0))/100000,"") ->  | CZ96: =IFERROR(CZ88*INDEX('Energy Prices'!$F$12:$CR$17,MATCH('Data Input - BAU'!$D96,'Energy Prices'!$C$12:$C$17,0),MATCH('Data Input - BAU'!CZ$7,'Energy Prices'!$F$11:$CR$11,0))/100000,"") ->  | DA96: =IFERROR(DA88*INDEX('Energy Prices'!$F$12:$CR$17,MATCH('Data Input - BAU'!$D96,'Energy Prices'!$C$12:$C$17,0),MATCH('Data Input - BAU'!DA$7,'Energy Prices'!$F$11:$CR$11,0))/100000,"") ->  | DB96: =IFERROR(DB88*INDEX('Energy Prices'!$F$12:$CR$17,MATCH('Data Input - BAU'!$D96,'Energy Prices'!$C$12:$C$17,0),MATCH('Data Input - BAU'!DB$7,'Energy Prices'!$F$11:$CR$11,0))/100000,"") ->  | DC96: =IFERROR(DC88*INDEX('Energy Prices'!$F$12:$CR$17,MATCH('Data Input - BAU'!$D96,'Energy Prices'!$C$12:$C$17,0),MATCH('Data Input - BAU'!DC$7,'Energy Prices'!$F$11:$CR$11,0))/100000,"") -> 
D97: Road - Diesel | E97: £000's | F97: (Auto calculated value) | H97: =IFERROR(H89*INDEX('Energy Prices'!$F$12:$CR$17,MATCH('Data Input - BAU'!$D97,'Energy Prices'!$C$12:$C$17,0),MATCH('Data Input - BAU'!H$7,'Energy Prices'!$F$11:$CR$11,0))/100000,"") -> 0 | I97: =IFERROR(I89*INDEX('Energy Prices'!$F$12:$CR$17,MATCH('Data Input - BAU'!$D97,'Energy Prices'!$C$12:$C$17,0),MATCH('Data Input - BAU'!I$7,'Energy Prices'!$F$11:$CR$11,0))/100000,"") -> 0 | J97: =IFERROR(J89*INDEX('Energy Prices'!$F$12:$CR$17,MATCH('Data Input - BAU'!$D97,'Energy Prices'!$C$12:$C$17,0),MATCH('Data Input - BAU'!J$7,'Energy Prices'!$F$11:$CR$11,0))/100000,"") -> 0 | K97: =IFERROR(K89*INDEX('Energy Prices'!$F$12:$CR$17,MATCH('Data Input - BAU'!$D97,'Energy Prices'!$C$12:$C$17,0),MATCH('Data Input - BAU'!K$7,'Energy Prices'!$F$11:$CR$11,0))/100000,"") -> 0 | L97: =IFERROR(L89*INDEX('Energy Prices'!$F$12:$CR$17,MATCH('Data Input - BAU'!$D97,'Energy Prices'!$C$12:$C$17,0),MATCH('Data Input - BAU'!L$7,'Energy Prices'!$F$11:$CR$11,0))/100000,"") -> 0 | M97: =IFERROR(M89*INDEX('Energy Prices'!$F$12:$CR$17,MATCH('Data Input - BAU'!$D97,'Energy Prices'!$C$12:$C$17,0),MATCH('Data Input - BAU'!M$7,'Energy Prices'!$F$11:$CR$11,0))/100000,"") -> 0 | N97: =IFERROR(N89*INDEX('Energy Prices'!$F$12:$CR$17,MATCH('Data Input - BAU'!$D97,'Energy Prices'!$C$12:$C$17,0),MATCH('Data Input - BAU'!N$7,'Energy Prices'!$F$11:$CR$11,0))/100000,"") -> 0 | O97: =IFERROR(O89*INDEX('Energy Prices'!$F$12:$CR$17,MATCH('Data Input - BAU'!$D97,'Energy Prices'!$C$12:$C$17,0),MATCH('Data Input - BAU'!O$7,'Energy Prices'!$F$11:$CR$11,0))/100000,"") -> 0 | P97: =IFERROR(P89*INDEX('Energy Prices'!$F$12:$CR$17,MATCH('Data Input - BAU'!$D97,'Energy Prices'!$C$12:$C$17,0),MATCH('Data Input - BAU'!P$7,'Energy Prices'!$F$11:$CR$11,0))/100000,"") -> 0 | Q97: =IFERROR(Q89*INDEX('Energy Prices'!$F$12:$CR$17,MATCH('Data Input - BAU'!$D97,'Energy Prices'!$C$12:$C$17,0),MATCH('Data Input - BAU'!Q$7,'Energy Prices'!$F$11:$CR$11,0))/100000,"") -> 0 | R97: =IFERROR(R89*INDEX('Energy Prices'!$F$12:$CR$17,MATCH('Data Input - BAU'!$D97,'Energy Prices'!$C$12:$C$17,0),MATCH('Data Input - BAU'!R$7,'Energy Prices'!$F$11:$CR$11,0))/100000,"") -> 0 | S97: =IFERROR(S89*INDEX('Energy Prices'!$F$12:$CR$17,MATCH('Data Input - BAU'!$D97,'Energy Prices'!$C$12:$C$17,0),MATCH('Data Input - BAU'!S$7,'Energy Prices'!$F$11:$CR$11,0))/100000,"") -> 0 | T97: =IFERROR(T89*INDEX('Energy Prices'!$F$12:$CR$17,MATCH('Data Input - BAU'!$D97,'Energy Prices'!$C$12:$C$17,0),MATCH('Data Input - BAU'!T$7,'Energy Prices'!$F$11:$CR$11,0))/100000,"") -> 0 | U97: =IFERROR(U89*INDEX('Energy Prices'!$F$12:$CR$17,MATCH('Data Input - BAU'!$D97,'Energy Prices'!$C$12:$C$17,0),MATCH('Data Input - BAU'!U$7,'Energy Prices'!$F$11:$CR$11,0))/100000,"") -> 0 | V97: =IFERROR(V89*INDEX('Energy Prices'!$F$12:$CR$17,MATCH('Data Input - BAU'!$D97,'Energy Prices'!$C$12:$C$17,0),MATCH('Data Input - BAU'!V$7,'Energy Prices'!$F$11:$CR$11,0))/100000,"") -> 0 | W97: =IFERROR(W89*INDEX('Energy Prices'!$F$12:$CR$17,MATCH('Data Input - BAU'!$D97,'Energy Prices'!$C$12:$C$17,0),MATCH('Data Input - BAU'!W$7,'Energy Prices'!$F$11:$CR$11,0))/100000,"") -> 0 | X97: =IFERROR(X89*INDEX('Energy Prices'!$F$12:$CR$17,MATCH('Data Input - BAU'!$D97,'Energy Prices'!$C$12:$C$17,0),MATCH('Data Input - BAU'!X$7,'Energy Prices'!$F$11:$CR$11,0))/100000,"") -> 0 | Y97: =IFERROR(Y89*INDEX('Energy Prices'!$F$12:$CR$17,MATCH('Data Input - BAU'!$D97,'Energy Prices'!$C$12:$C$17,0),MATCH('Data Input - BAU'!Y$7,'Energy Prices'!$F$11:$CR$11,0))/100000,"") -> 0 | Z97: =IFERROR(Z89*INDEX('Energy Prices'!$F$12:$CR$17,MATCH('Data Input - BAU'!$D97,'Energy Prices'!$C$12:$C$17,0),MATCH('Data Input - BAU'!Z$7,'Energy Prices'!$F$11:$CR$11,0))/100000,"") -> 0 | AA97: =IFERROR(AA89*INDEX('Energy Prices'!$F$12:$CR$17,MATCH('Data Input - BAU'!$D97,'Energy Prices'!$C$12:$C$17,0),MATCH('Data Input - BAU'!AA$7,'Energy Prices'!$F$11:$CR$11,0))/100000,"") -> 0 | AB97: =IFERROR(AB89*INDEX('Energy Prices'!$F$12:$CR$17,MATCH('Data Input - BAU'!$D97,'Energy Prices'!$C$12:$C$17,0),MATCH('Data Input - BAU'!AB$7,'Energy Prices'!$F$11:$CR$11,0))/100000,"") -> 0 | AC97: =IFERROR(AC89*INDEX('Energy Prices'!$F$12:$CR$17,MATCH('Data Input - BAU'!$D97,'Energy Prices'!$C$12:$C$17,0),MATCH('Data Input - BAU'!AC$7,'Energy Prices'!$F$11:$CR$11,0))/100000,"") -> 0 | AD97: =IFERROR(AD89*INDEX('Energy Prices'!$F$12:$CR$17,MATCH('Data Input - BAU'!$D97,'Energy Prices'!$C$12:$C$17,0),MATCH('Data Input - BAU'!AD$7,'Energy Prices'!$F$11:$CR$11,0))/100000,"") -> 0 | AE97: =IFERROR(AE89*INDEX('Energy Prices'!$F$12:$CR$17,MATCH('Data Input - BAU'!$D97,'Energy Prices'!$C$12:$C$17,0),MATCH('Data Input - BAU'!AE$7,'Energy Prices'!$F$11:$CR$11,0))/100000,"") -> 0 | AF97: =IFERROR(AF89*INDEX('Energy Prices'!$F$12:$CR$17,MATCH('Data Input - BAU'!$D97,'Energy Prices'!$C$12:$C$17,0),MATCH('Data Input - BAU'!AF$7,'Energy Prices'!$F$11:$CR$11,0))/100000,"") -> 0 | AG97: =IFERROR(AG89*INDEX('Energy Prices'!$F$12:$CR$17,MATCH('Data Input - BAU'!$D97,'Energy Prices'!$C$12:$C$17,0),MATCH('Data Input - BAU'!AG$7,'Energy Prices'!$F$11:$CR$11,0))/100000,"") -> 0 | AH97: =IFERROR(AH89*INDEX('Energy Prices'!$F$12:$CR$17,MATCH('Data Input - BAU'!$D97,'Energy Prices'!$C$12:$C$17,0),MATCH('Data Input - BAU'!AH$7,'Energy Prices'!$F$11:$CR$11,0))/100000,"") -> 0 | AI97: =IFERROR(AI89*INDEX('Energy Prices'!$F$12:$CR$17,MATCH('Data Input - BAU'!$D97,'Energy Prices'!$C$12:$C$17,0),MATCH('Data Input - BAU'!AI$7,'Energy Prices'!$F$11:$CR$11,0))/100000,"") -> 0 | AJ97: =IFERROR(AJ89*INDEX('Energy Prices'!$F$12:$CR$17,MATCH('Data Input - BAU'!$D97,'Energy Prices'!$C$12:$C$17,0),MATCH('Data Input - BAU'!AJ$7,'Energy Prices'!$F$11:$CR$11,0))/100000,"") -> 0 | AK97: =IFERROR(AK89*INDEX('Energy Prices'!$F$12:$CR$17,MATCH('Data Input - BAU'!$D97,'Energy Prices'!$C$12:$C$17,0),MATCH('Data Input - BAU'!AK$7,'Energy Prices'!$F$11:$CR$11,0))/100000,"") -> 0 | AL97: =IFERROR(AL89*INDEX('Energy Prices'!$F$12:$CR$17,MATCH('Data Input - BAU'!$D97,'Energy Prices'!$C$12:$C$17,0),MATCH('Data Input - BAU'!AL$7,'Energy Prices'!$F$11:$CR$11,0))/100000,"") -> 0 | AM97: =IFERROR(AM89*INDEX('Energy Prices'!$F$12:$CR$17,MATCH('Data Input - BAU'!$D97,'Energy Prices'!$C$12:$C$17,0),MATCH('Data Input - BAU'!AM$7,'Energy Prices'!$F$11:$CR$11,0))/100000,"") ->  | AN97: =IFERROR(AN89*INDEX('Energy Prices'!$F$12:$CR$17,MATCH('Data Input - BAU'!$D97,'Energy Prices'!$C$12:$C$17,0),MATCH('Data Input - BAU'!AN$7,'Energy Prices'!$F$11:$CR$11,0))/100000,"") ->  | AO97: =IFERROR(AO89*INDEX('Energy Prices'!$F$12:$CR$17,MATCH('Data Input - BAU'!$D97,'Energy Prices'!$C$12:$C$17,0),MATCH('Data Input - BAU'!AO$7,'Energy Prices'!$F$11:$CR$11,0))/100000,"") ->  | AP97: =IFERROR(AP89*INDEX('Energy Prices'!$F$12:$CR$17,MATCH('Data Input - BAU'!$D97,'Energy Prices'!$C$12:$C$17,0),MATCH('Data Input - BAU'!AP$7,'Energy Prices'!$F$11:$CR$11,0))/100000,"") ->  | AQ97: =IFERROR(AQ89*INDEX('Energy Prices'!$F$12:$CR$17,MATCH('Data Input - BAU'!$D97,'Energy Prices'!$C$12:$C$17,0),MATCH('Data Input - BAU'!AQ$7,'Energy Prices'!$F$11:$CR$11,0))/100000,"") ->  | AR97: =IFERROR(AR89*INDEX('Energy Prices'!$F$12:$CR$17,MATCH('Data Input - BAU'!$D97,'Energy Prices'!$C$12:$C$17,0),MATCH('Data Input - BAU'!AR$7,'Energy Prices'!$F$11:$CR$11,0))/100000,"") ->  | AS97: =IFERROR(AS89*INDEX('Energy Prices'!$F$12:$CR$17,MATCH('Data Input - BAU'!$D97,'Energy Prices'!$C$12:$C$17,0),MATCH('Data Input - BAU'!AS$7,'Energy Prices'!$F$11:$CR$11,0))/100000,"") ->  | AT97: =IFERROR(AT89*INDEX('Energy Prices'!$F$12:$CR$17,MATCH('Data Input - BAU'!$D97,'Energy Prices'!$C$12:$C$17,0),MATCH('Data Input - BAU'!AT$7,'Energy Prices'!$F$11:$CR$11,0))/100000,"") ->  | AU97: =IFERROR(AU89*INDEX('Energy Prices'!$F$12:$CR$17,MATCH('Data Input - BAU'!$D97,'Energy Prices'!$C$12:$C$17,0),MATCH('Data Input - BAU'!AU$7,'Energy Prices'!$F$11:$CR$11,0))/100000,"") ->  | AV97: =IFERROR(AV89*INDEX('Energy Prices'!$F$12:$CR$17,MATCH('Data Input - BAU'!$D97,'Energy Prices'!$C$12:$C$17,0),MATCH('Data Input - BAU'!AV$7,'Energy Prices'!$F$11:$CR$11,0))/100000,"") ->  | AW97: =IFERROR(AW89*INDEX('Energy Prices'!$F$12:$CR$17,MATCH('Data Input - BAU'!$D97,'Energy Prices'!$C$12:$C$17,0),MATCH('Data Input - BAU'!AW$7,'Energy Prices'!$F$11:$CR$11,0))/100000,"") ->  | AX97: =IFERROR(AX89*INDEX('Energy Prices'!$F$12:$CR$17,MATCH('Data Input - BAU'!$D97,'Energy Prices'!$C$12:$C$17,0),MATCH('Data Input - BAU'!AX$7,'Energy Prices'!$F$11:$CR$11,0))/100000,"") ->  | AY97: =IFERROR(AY89*INDEX('Energy Prices'!$F$12:$CR$17,MATCH('Data Input - BAU'!$D97,'Energy Prices'!$C$12:$C$17,0),MATCH('Data Input - BAU'!AY$7,'Energy Prices'!$F$11:$CR$11,0))/100000,"") ->  | AZ97: =IFERROR(AZ89*INDEX('Energy Prices'!$F$12:$CR$17,MATCH('Data Input - BAU'!$D97,'Energy Prices'!$C$12:$C$17,0),MATCH('Data Input - BAU'!AZ$7,'Energy Prices'!$F$11:$CR$11,0))/100000,"") ->  | BA97: =IFERROR(BA89*INDEX('Energy Prices'!$F$12:$CR$17,MATCH('Data Input - BAU'!$D97,'Energy Prices'!$C$12:$C$17,0),MATCH('Data Input - BAU'!BA$7,'Energy Prices'!$F$11:$CR$11,0))/100000,"") ->  | BB97: =IFERROR(BB89*INDEX('Energy Prices'!$F$12:$CR$17,MATCH('Data Input - BAU'!$D97,'Energy Prices'!$C$12:$C$17,0),MATCH('Data Input - BAU'!BB$7,'Energy Prices'!$F$11:$CR$11,0))/100000,"") ->  | BC97: =IFERROR(BC89*INDEX('Energy Prices'!$F$12:$CR$17,MATCH('Data Input - BAU'!$D97,'Energy Prices'!$C$12:$C$17,0),MATCH('Data Input - BAU'!BC$7,'Energy Prices'!$F$11:$CR$11,0))/100000,"") ->  | BD97: =IFERROR(BD89*INDEX('Energy Prices'!$F$12:$CR$17,MATCH('Data Input - BAU'!$D97,'Energy Prices'!$C$12:$C$17,0),MATCH('Data Input - BAU'!BD$7,'Energy Prices'!$F$11:$CR$11,0))/100000,"") ->  | BE97: =IFERROR(BE89*INDEX('Energy Prices'!$F$12:$CR$17,MATCH('Data Input - BAU'!$D97,'Energy Prices'!$C$12:$C$17,0),MATCH('Data Input - BAU'!BE$7,'Energy Prices'!$F$11:$CR$11,0))/100000,"") ->  | BF97: =IFERROR(BF89*INDEX('Energy Prices'!$F$12:$CR$17,MATCH('Data Input - BAU'!$D97,'Energy Prices'!$C$12:$C$17,0),MATCH('Data Input - BAU'!BF$7,'Energy Prices'!$F$11:$CR$11,0))/100000,"") ->  | BG97: =IFERROR(BG89*INDEX('Energy Prices'!$F$12:$CR$17,MATCH('Data Input - BAU'!$D97,'Energy Prices'!$C$12:$C$17,0),MATCH('Data Input - BAU'!BG$7,'Energy Prices'!$F$11:$CR$11,0))/100000,"") ->  | BH97: =IFERROR(BH89*INDEX('Energy Prices'!$F$12:$CR$17,MATCH('Data Input - BAU'!$D97,'Energy Prices'!$C$12:$C$17,0),MATCH('Data Input - BAU'!BH$7,'Energy Prices'!$F$11:$CR$11,0))/100000,"") ->  | BI97: =IFERROR(BI89*INDEX('Energy Prices'!$F$12:$CR$17,MATCH('Data Input - BAU'!$D97,'Energy Prices'!$C$12:$C$17,0),MATCH('Data Input - BAU'!BI$7,'Energy Prices'!$F$11:$CR$11,0))/100000,"") ->  | BJ97: =IFERROR(BJ89*INDEX('Energy Prices'!$F$12:$CR$17,MATCH('Data Input - BAU'!$D97,'Energy Prices'!$C$12:$C$17,0),MATCH('Data Input - BAU'!BJ$7,'Energy Prices'!$F$11:$CR$11,0))/100000,"") ->  | BK97: =IFERROR(BK89*INDEX('Energy Prices'!$F$12:$CR$17,MATCH('Data Input - BAU'!$D97,'Energy Prices'!$C$12:$C$17,0),MATCH('Data Input - BAU'!BK$7,'Energy Prices'!$F$11:$CR$11,0))/100000,"") ->  | BL97: =IFERROR(BL89*INDEX('Energy Prices'!$F$12:$CR$17,MATCH('Data Input - BAU'!$D97,'Energy Prices'!$C$12:$C$17,0),MATCH('Data Input - BAU'!BL$7,'Energy Prices'!$F$11:$CR$11,0))/100000,"") ->  | BM97: =IFERROR(BM89*INDEX('Energy Prices'!$F$12:$CR$17,MATCH('Data Input - BAU'!$D97,'Energy Prices'!$C$12:$C$17,0),MATCH('Data Input - BAU'!BM$7,'Energy Prices'!$F$11:$CR$11,0))/100000,"") ->  | BN97: =IFERROR(BN89*INDEX('Energy Prices'!$F$12:$CR$17,MATCH('Data Input - BAU'!$D97,'Energy Prices'!$C$12:$C$17,0),MATCH('Data Input - BAU'!BN$7,'Energy Prices'!$F$11:$CR$11,0))/100000,"") ->  | BO97: =IFERROR(BO89*INDEX('Energy Prices'!$F$12:$CR$17,MATCH('Data Input - BAU'!$D97,'Energy Prices'!$C$12:$C$17,0),MATCH('Data Input - BAU'!BO$7,'Energy Prices'!$F$11:$CR$11,0))/100000,"") ->  | BP97: =IFERROR(BP89*INDEX('Energy Prices'!$F$12:$CR$17,MATCH('Data Input - BAU'!$D97,'Energy Prices'!$C$12:$C$17,0),MATCH('Data Input - BAU'!BP$7,'Energy Prices'!$F$11:$CR$11,0))/100000,"") ->  | BQ97: =IFERROR(BQ89*INDEX('Energy Prices'!$F$12:$CR$17,MATCH('Data Input - BAU'!$D97,'Energy Prices'!$C$12:$C$17,0),MATCH('Data Input - BAU'!BQ$7,'Energy Prices'!$F$11:$CR$11,0))/100000,"") ->  | BR97: =IFERROR(BR89*INDEX('Energy Prices'!$F$12:$CR$17,MATCH('Data Input - BAU'!$D97,'Energy Prices'!$C$12:$C$17,0),MATCH('Data Input - BAU'!BR$7,'Energy Prices'!$F$11:$CR$11,0))/100000,"") ->  | BS97: =IFERROR(BS89*INDEX('Energy Prices'!$F$12:$CR$17,MATCH('Data Input - BAU'!$D97,'Energy Prices'!$C$12:$C$17,0),MATCH('Data Input - BAU'!BS$7,'Energy Prices'!$F$11:$CR$11,0))/100000,"") ->  | BT97: =IFERROR(BT89*INDEX('Energy Prices'!$F$12:$CR$17,MATCH('Data Input - BAU'!$D97,'Energy Prices'!$C$12:$C$17,0),MATCH('Data Input - BAU'!BT$7,'Energy Prices'!$F$11:$CR$11,0))/100000,"") ->  | BU97: =IFERROR(BU89*INDEX('Energy Prices'!$F$12:$CR$17,MATCH('Data Input - BAU'!$D97,'Energy Prices'!$C$12:$C$17,0),MATCH('Data Input - BAU'!BU$7,'Energy Prices'!$F$11:$CR$11,0))/100000,"") ->  | BV97: =IFERROR(BV89*INDEX('Energy Prices'!$F$12:$CR$17,MATCH('Data Input - BAU'!$D97,'Energy Prices'!$C$12:$C$17,0),MATCH('Data Input - BAU'!BV$7,'Energy Prices'!$F$11:$CR$11,0))/100000,"") ->  | BW97: =IFERROR(BW89*INDEX('Energy Prices'!$F$12:$CR$17,MATCH('Data Input - BAU'!$D97,'Energy Prices'!$C$12:$C$17,0),MATCH('Data Input - BAU'!BW$7,'Energy Prices'!$F$11:$CR$11,0))/100000,"") ->  | BX97: =IFERROR(BX89*INDEX('Energy Prices'!$F$12:$CR$17,MATCH('Data Input - BAU'!$D97,'Energy Prices'!$C$12:$C$17,0),MATCH('Data Input - BAU'!BX$7,'Energy Prices'!$F$11:$CR$11,0))/100000,"") ->  | BY97: =IFERROR(BY89*INDEX('Energy Prices'!$F$12:$CR$17,MATCH('Data Input - BAU'!$D97,'Energy Prices'!$C$12:$C$17,0),MATCH('Data Input - BAU'!BY$7,'Energy Prices'!$F$11:$CR$11,0))/100000,"") ->  | BZ97: =IFERROR(BZ89*INDEX('Energy Prices'!$F$12:$CR$17,MATCH('Data Input - BAU'!$D97,'Energy Prices'!$C$12:$C$17,0),MATCH('Data Input - BAU'!BZ$7,'Energy Prices'!$F$11:$CR$11,0))/100000,"") ->  | CA97: =IFERROR(CA89*INDEX('Energy Prices'!$F$12:$CR$17,MATCH('Data Input - BAU'!$D97,'Energy Prices'!$C$12:$C$17,0),MATCH('Data Input - BAU'!CA$7,'Energy Prices'!$F$11:$CR$11,0))/100000,"") ->  | CB97: =IFERROR(CB89*INDEX('Energy Prices'!$F$12:$CR$17,MATCH('Data Input - BAU'!$D97,'Energy Prices'!$C$12:$C$17,0),MATCH('Data Input - BAU'!CB$7,'Energy Prices'!$F$11:$CR$11,0))/100000,"") ->  | CC97: =IFERROR(CC89*INDEX('Energy Prices'!$F$12:$CR$17,MATCH('Data Input - BAU'!$D97,'Energy Prices'!$C$12:$C$17,0),MATCH('Data Input - BAU'!CC$7,'Energy Prices'!$F$11:$CR$11,0))/100000,"") ->  | CD97: =IFERROR(CD89*INDEX('Energy Prices'!$F$12:$CR$17,MATCH('Data Input - BAU'!$D97,'Energy Prices'!$C$12:$C$17,0),MATCH('Data Input - BAU'!CD$7,'Energy Prices'!$F$11:$CR$11,0))/100000,"") ->  | CE97: =IFERROR(CE89*INDEX('Energy Prices'!$F$12:$CR$17,MATCH('Data Input - BAU'!$D97,'Energy Prices'!$C$12:$C$17,0),MATCH('Data Input - BAU'!CE$7,'Energy Prices'!$F$11:$CR$11,0))/100000,"") ->  | CF97: =IFERROR(CF89*INDEX('Energy Prices'!$F$12:$CR$17,MATCH('Data Input - BAU'!$D97,'Energy Prices'!$C$12:$C$17,0),MATCH('Data Input - BAU'!CF$7,'Energy Prices'!$F$11:$CR$11,0))/100000,"") ->  | CG97: =IFERROR(CG89*INDEX('Energy Prices'!$F$12:$CR$17,MATCH('Data Input - BAU'!$D97,'Energy Prices'!$C$12:$C$17,0),MATCH('Data Input - BAU'!CG$7,'Energy Prices'!$F$11:$CR$11,0))/100000,"") ->  | CH97: =IFERROR(CH89*INDEX('Energy Prices'!$F$12:$CR$17,MATCH('Data Input - BAU'!$D97,'Energy Prices'!$C$12:$C$17,0),MATCH('Data Input - BAU'!CH$7,'Energy Prices'!$F$11:$CR$11,0))/100000,"") ->  | CI97: =IFERROR(CI89*INDEX('Energy Prices'!$F$12:$CR$17,MATCH('Data Input - BAU'!$D97,'Energy Prices'!$C$12:$C$17,0),MATCH('Data Input - BAU'!CI$7,'Energy Prices'!$F$11:$CR$11,0))/100000,"") ->  | CJ97: =IFERROR(CJ89*INDEX('Energy Prices'!$F$12:$CR$17,MATCH('Data Input - BAU'!$D97,'Energy Prices'!$C$12:$C$17,0),MATCH('Data Input - BAU'!CJ$7,'Energy Prices'!$F$11:$CR$11,0))/100000,"") ->  | CK97: =IFERROR(CK89*INDEX('Energy Prices'!$F$12:$CR$17,MATCH('Data Input - BAU'!$D97,'Energy Prices'!$C$12:$C$17,0),MATCH('Data Input - BAU'!CK$7,'Energy Prices'!$F$11:$CR$11,0))/100000,"") ->  | CL97: =IFERROR(CL89*INDEX('Energy Prices'!$F$12:$CR$17,MATCH('Data Input - BAU'!$D97,'Energy Prices'!$C$12:$C$17,0),MATCH('Data Input - BAU'!CL$7,'Energy Prices'!$F$11:$CR$11,0))/100000,"") ->  | CM97: =IFERROR(CM89*INDEX('Energy Prices'!$F$12:$CR$17,MATCH('Data Input - BAU'!$D97,'Energy Prices'!$C$12:$C$17,0),MATCH('Data Input - BAU'!CM$7,'Energy Prices'!$F$11:$CR$11,0))/100000,"") ->  | CN97: =IFERROR(CN89*INDEX('Energy Prices'!$F$12:$CR$17,MATCH('Data Input - BAU'!$D97,'Energy Prices'!$C$12:$C$17,0),MATCH('Data Input - BAU'!CN$7,'Energy Prices'!$F$11:$CR$11,0))/100000,"") ->  | CO97: =IFERROR(CO89*INDEX('Energy Prices'!$F$12:$CR$17,MATCH('Data Input - BAU'!$D97,'Energy Prices'!$C$12:$C$17,0),MATCH('Data Input - BAU'!CO$7,'Energy Prices'!$F$11:$CR$11,0))/100000,"") ->  | CP97: =IFERROR(CP89*INDEX('Energy Prices'!$F$12:$CR$17,MATCH('Data Input - BAU'!$D97,'Energy Prices'!$C$12:$C$17,0),MATCH('Data Input - BAU'!CP$7,'Energy Prices'!$F$11:$CR$11,0))/100000,"") ->  | CQ97: =IFERROR(CQ89*INDEX('Energy Prices'!$F$12:$CR$17,MATCH('Data Input - BAU'!$D97,'Energy Prices'!$C$12:$C$17,0),MATCH('Data Input - BAU'!CQ$7,'Energy Prices'!$F$11:$CR$11,0))/100000,"") ->  | CR97: =IFERROR(CR89*INDEX('Energy Prices'!$F$12:$CR$17,MATCH('Data Input - BAU'!$D97,'Energy Prices'!$C$12:$C$17,0),MATCH('Data Input - BAU'!CR$7,'Energy Prices'!$F$11:$CR$11,0))/100000,"") ->  | CS97: =IFERROR(CS89*INDEX('Energy Prices'!$F$12:$CR$17,MATCH('Data Input - BAU'!$D97,'Energy Prices'!$C$12:$C$17,0),MATCH('Data Input - BAU'!CS$7,'Energy Prices'!$F$11:$CR$11,0))/100000,"") ->  | CT97: =IFERROR(CT89*INDEX('Energy Prices'!$F$12:$CR$17,MATCH('Data Input - BAU'!$D97,'Energy Prices'!$C$12:$C$17,0),MATCH('Data Input - BAU'!CT$7,'Energy Prices'!$F$11:$CR$11,0))/100000,"") ->  | CU97: =IFERROR(CU89*INDEX('Energy Prices'!$F$12:$CR$17,MATCH('Data Input - BAU'!$D97,'Energy Prices'!$C$12:$C$17,0),MATCH('Data Input - BAU'!CU$7,'Energy Prices'!$F$11:$CR$11,0))/100000,"") ->  | CV97: =IFERROR(CV89*INDEX('Energy Prices'!$F$12:$CR$17,MATCH('Data Input - BAU'!$D97,'Energy Prices'!$C$12:$C$17,0),MATCH('Data Input - BAU'!CV$7,'Energy Prices'!$F$11:$CR$11,0))/100000,"") ->  | CW97: =IFERROR(CW89*INDEX('Energy Prices'!$F$12:$CR$17,MATCH('Data Input - BAU'!$D97,'Energy Prices'!$C$12:$C$17,0),MATCH('Data Input - BAU'!CW$7,'Energy Prices'!$F$11:$CR$11,0))/100000,"") ->  | CX97: =IFERROR(CX89*INDEX('Energy Prices'!$F$12:$CR$17,MATCH('Data Input - BAU'!$D97,'Energy Prices'!$C$12:$C$17,0),MATCH('Data Input - BAU'!CX$7,'Energy Prices'!$F$11:$CR$11,0))/100000,"") ->  | CY97: =IFERROR(CY89*INDEX('Energy Prices'!$F$12:$CR$17,MATCH('Data Input - BAU'!$D97,'Energy Prices'!$C$12:$C$17,0),MATCH('Data Input - BAU'!CY$7,'Energy Prices'!$F$11:$CR$11,0))/100000,"") ->  | CZ97: =IFERROR(CZ89*INDEX('Energy Prices'!$F$12:$CR$17,MATCH('Data Input - BAU'!$D97,'Energy Prices'!$C$12:$C$17,0),MATCH('Data Input - BAU'!CZ$7,'Energy Prices'!$F$11:$CR$11,0))/100000,"") ->  | DA97: =IFERROR(DA89*INDEX('Energy Prices'!$F$12:$CR$17,MATCH('Data Input - BAU'!$D97,'Energy Prices'!$C$12:$C$17,0),MATCH('Data Input - BAU'!DA$7,'Energy Prices'!$F$11:$CR$11,0))/100000,"") ->  | DB97: =IFERROR(DB89*INDEX('Energy Prices'!$F$12:$CR$17,MATCH('Data Input - BAU'!$D97,'Energy Prices'!$C$12:$C$17,0),MATCH('Data Input - BAU'!DB$7,'Energy Prices'!$F$11:$CR$11,0))/100000,"") ->  | DC97: =IFERROR(DC89*INDEX('Energy Prices'!$F$12:$CR$17,MATCH('Data Input - BAU'!$D97,'Energy Prices'!$C$12:$C$17,0),MATCH('Data Input - BAU'!DC$7,'Energy Prices'!$F$11:$CR$11,0))/100000,"") -> 
C98: 4.48 | D98: 0 | E98: £000's
D100: Total cost of energy | E100: £000's | F100: (Auto calculated value) | H100: =SUM(H92:H99) -> 1485.700561 | I100: =SUM(I92:I99) -> 1541.531149 | J100: =SUM(J92:J99) -> 1610.491882 | K100: 1657.478068 | L100: 1704.575442 | M100: 1776.9735 | N100: 1837.220212 | O100: 1870.485229 | P100: 0 | Q100: 0 | R100: 0 | S100: 0 | T100: 0 | U100: 0 | V100: 0 | W100: 0 | X100: 0 | Y100: 0 | Z100: 0 | AA100: 0 | AB100: 0 | AC100: 0 | AD100: 0 | AE100: 0 | AF100: 0 | AG100: 0 | AH100: 0 | AI100: 0 | AJ100: 0 | AK100: 0 | AL100: 0 | AM100: 0 | AN100: 0 | AO100: 0 | AP100: 0 | AQ100: 0 | AR100: 0 | AS100: 0 | AT100: 0 | AU100: 0 | AV100: 0 | AW100: 0 | AX100: 0 | AY100: 0 | AZ100: 0 | BA100: 0 | BB100: 0 | BC100: 0 | BD100: 0 | BE100: 0 | BF100: 0 | BG100: 0 | BH100: 0 | BI100: 0 | BJ100: 0 | BK100: 0 | BL100: 0 | BM100: 0 | BN100: 0 | BO100: 0 | BP100: 0 | BQ100: 0 | BR100: 0 | BS100: 0 | BT100: 0 | BU100: 0 | BV100: =SUM(BV92:BV99) -> 0 | BW100: 0 | BX100: 0 | BY100: 0 | BZ100: 0 | CA100: 0 | CB100: 0 | CC100: 0 | CD100: 0 | CE100: 0 | CF100: 0 | CG100: 0 | CH100: 0 | CI100: 0 | CJ100: 0 | CK100: 0 | CL100: 0 | CM100: 0 | CN100: 0 | CO100: 0 | CP100: 0 | CQ100: 0 | CR100: 0 | CS100: 0 | CT100: 0 | CU100: 0 | CV100: 0 | CW100: 0 | CX100: 0 | CY100: 0 | CZ100: 0 | DA100: 0 | DB100: 0 | DC100: 0
C102: Environmental impacts
D104: Air pollutant emissions | E104: (?)
C105: 4.49 | D105: Sox 2019 | E105: Tonnes | F105: <(Select from dropdown) | H105: 1 | I105: 1 | J105: 1 | K105: 1 | L105: 1 | M105: 1 | N105: 1
E106: Tonnes | F106: <(Select from dropdown)
E107: Tonnes | F107: <(Select from dropdown)
E108: Tonnes | F108: <(Select from dropdown)
E109: Tonnes | F109: <(Select from dropdown)
E110: Tonnes | F110: <(Select from dropdown)
D112: 'Process-related' GHG emissions
C113: 4.50 | D113: CO2 | E113: Tonnes | F113: <(Select from dropdown) | H113: 45000 | I113: 45000 | J113: 45000 | K113: 45000 | L113: 45000 | M113: 45000 | N113: 45000
C115: 4.51 | D115: Additional emission type (please specify) | E115: tCO2e | F115: (?)
D117: Total process GHG Emissions | E117: tCO2e | F117: (Auto calculated value) | H117: =IFERROR(IF(ISBLANK(H113),0,H113*INDEX(Assumptions!$D$20:$D$53,MATCH('Data Input - BAU'!$D$113,lkpGreenHouseGases,0)))+IF(ISBLANK(H115),0,H115),0) -> 45000 | I117: =IFERROR(IF(ISBLANK(I113),0,I113*INDEX(Assumptions!$D$20:$D$53,MATCH('Data Input - BAU'!$D$113,lkpGreenHouseGases,0)))+IF(ISBLANK(I115),0,I115),0) -> 45000 | J117: =IFERROR(IF(ISBLANK(J113),0,J113*INDEX(Assumptions!$D$20:$D$53,MATCH('Data Input - BAU'!$D$113,lkpGreenHouseGases,0)))+IF(ISBLANK(J115),0,J115),0) -> 45000 | K117: =IFERROR(IF(ISBLANK(K113),0,K113*INDEX(Assumptions!$D$20:$D$53,MATCH('Data Input - BAU'!$D$113,lkpGreenHouseGases,0)))+IF(ISBLANK(K115),0,K115),0) -> 45000 | L117: =IFERROR(IF(ISBLANK(L113),0,L113*INDEX(Assumptions!$D$20:$D$53,MATCH('Data Input - BAU'!$D$113,lkpGreenHouseGases,0)))+IF(ISBLANK(L115),0,L115),0) -> 45000 | M117: =IFERROR(IF(ISBLANK(M113),0,M113*INDEX(Assumptions!$D$20:$D$53,MATCH('Data Input - BAU'!$D$113,lkpGreenHouseGases,0)))+IF(ISBLANK(M115),0,M115),0) -> 45000 | N117: =IFERROR(IF(ISBLANK(N113),0,N113*INDEX(Assumptions!$D$20:$D$53,MATCH('Data Input - BAU'!$D$113,lkpGreenHouseGases,0)))+IF(ISBLANK(N115),0,N115),0) -> 45000 | O117: =IFERROR(IF(ISBLANK(O113),0,O113*INDEX(Assumptions!$D$20:$D$53,MATCH('Data Input - BAU'!$D$113,lkpGreenHouseGases,0)))+IF(ISBLANK(O115),0,O115),0) -> 0 | P117: =IFERROR(IF(ISBLANK(P113),0,P113*INDEX(Assumptions!$D$20:$D$53,MATCH('Data Input - BAU'!$D$113,lkpGreenHouseGases,0)))+IF(ISBLANK(P115),0,P115),0) -> 0 | Q117: =IFERROR(IF(ISBLANK(Q113),0,Q113*INDEX(Assumptions!$D$20:$D$53,MATCH('Data Input - BAU'!$D$113,lkpGreenHouseGases,0)))+IF(ISBLANK(Q115),0,Q115),0) -> 0 | R117: =IFERROR(IF(ISBLANK(R113),0,R113*INDEX(Assumptions!$D$20:$D$53,MATCH('Data Input - BAU'!$D$113,lkpGreenHouseGases,0)))+IF(ISBLANK(R115),0,R115),0) -> 0 | S117: =IFERROR(IF(ISBLANK(S113),0,S113*INDEX(Assumptions!$D$20:$D$53,MATCH('Data Input - BAU'!$D$113,lkpGreenHouseGases,0)))+IF(ISBLANK(S115),0,S115),0) -> 0 | T117: =IFERROR(IF(ISBLANK(T113),0,T113*INDEX(Assumptions!$D$20:$D$53,MATCH('Data Input - BAU'!$D$113,lkpGreenHouseGases,0)))+IF(ISBLANK(T115),0,T115),0) -> 0 | U117: =IFERROR(IF(ISBLANK(U113),0,U113*INDEX(Assumptions!$D$20:$D$53,MATCH('Data Input - BAU'!$D$113,lkpGreenHouseGases,0)))+IF(ISBLANK(U115),0,U115),0) -> 0 | V117: =IFERROR(IF(ISBLANK(V113),0,V113*INDEX(Assumptions!$D$20:$D$53,MATCH('Data Input - BAU'!$D$113,lkpGreenHouseGases,0)))+IF(ISBLANK(V115),0,V115),0) -> 0 | W117: =IFERROR(IF(ISBLANK(W113),0,W113*INDEX(Assumptions!$D$20:$D$53,MATCH('Data Input - BAU'!$D$113,lkpGreenHouseGases,0)))+IF(ISBLANK(W115),0,W115),0) -> 0 | X117: =IFERROR(IF(ISBLANK(X113),0,X113*INDEX(Assumptions!$D$20:$D$53,MATCH('Data Input - BAU'!$D$113,lkpGreenHouseGases,0)))+IF(ISBLANK(X115),0,X115),0) -> 0 | Y117: =IFERROR(IF(ISBLANK(Y113),0,Y113*INDEX(Assumptions!$D$20:$D$53,MATCH('Data Input - BAU'!$D$113,lkpGreenHouseGases,0)))+IF(ISBLANK(Y115),0,Y115),0) -> 0 | Z117: =IFERROR(IF(ISBLANK(Z113),0,Z113*INDEX(Assumptions!$D$20:$D$53,MATCH('Data Input - BAU'!$D$113,lkpGreenHouseGases,0)))+IF(ISBLANK(Z115),0,Z115),0) -> 0 | AA117: =IFERROR(IF(ISBLANK(AA113),0,AA113*INDEX(Assumptions!$D$20:$D$53,MATCH('Data Input - BAU'!$D$113,lkpGreenHouseGases,0)))+IF(ISBLANK(AA115),0,AA115),0) -> 0 | AB117: =IFERROR(IF(ISBLANK(AB113),0,AB113*INDEX(Assumptions!$D$20:$D$53,MATCH('Data Input - BAU'!$D$113,lkpGreenHouseGases,0)))+IF(ISBLANK(AB115),0,AB115),0) -> 0 | AC117: =IFERROR(IF(ISBLANK(AC113),0,AC113*INDEX(Assumptions!$D$20:$D$53,MATCH('Data Input - BAU'!$D$113,lkpGreenHouseGases,0)))+IF(ISBLANK(AC115),0,AC115),0) -> 0 | AD117: =IFERROR(IF(ISBLANK(AD113),0,AD113*INDEX(Assumptions!$D$20:$D$53,MATCH('Data Input - BAU'!$D$113,lkpGreenHouseGases,0)))+IF(ISBLANK(AD115),0,AD115),0) -> 0 | AE117: =IFERROR(IF(ISBLANK(AE113),0,AE113*INDEX(Assumptions!$D$20:$D$53,MATCH('Data Input - BAU'!$D$113,lkpGreenHouseGases,0)))+IF(ISBLANK(AE115),0,AE115),0) -> 0 | AF117: =IFERROR(IF(ISBLANK(AF113),0,AF113*INDEX(Assumptions!$D$20:$D$53,MATCH('Data Input - BAU'!$D$113,lkpGreenHouseGases,0)))+IF(ISBLANK(AF115),0,AF115),0) -> 0 | AG117: =IFERROR(IF(ISBLANK(AG113),0,AG113*INDEX(Assumptions!$D$20:$D$53,MATCH('Data Input - BAU'!$D$113,lkpGreenHouseGases,0)))+IF(ISBLANK(AG115),0,AG115),0) -> 0 | AH117: =IFERROR(IF(ISBLANK(AH113),0,AH113*INDEX(Assumptions!$D$20:$D$53,MATCH('Data Input - BAU'!$D$113,lkpGreenHouseGases,0)))+IF(ISBLANK(AH115),0,AH115),0) -> 0 | AI117: =IFERROR(IF(ISBLANK(AI113),0,AI113*INDEX(Assumptions!$D$20:$D$53,MATCH('Data Input - BAU'!$D$113,lkpGreenHouseGases,0)))+IF(ISBLANK(AI115),0,AI115),0) -> 0 | AJ117: =IFERROR(IF(ISBLANK(AJ113),0,AJ113*INDEX(Assumptions!$D$20:$D$53,MATCH('Data Input - BAU'!$D$113,lkpGreenHouseGases,0)))+IF(ISBLANK(AJ115),0,AJ115),0) -> 0 | AK117: =IFERROR(IF(ISBLANK(AK113),0,AK113*INDEX(Assumptions!$D$20:$D$53,MATCH('Data Input - BAU'!$D$113,lkpGreenHouseGases,0)))+IF(ISBLANK(AK115),0,AK115),0) -> 0 | AL117: =IFERROR(IF(ISBLANK(AL113),0,AL113*INDEX(Assumptions!$D$20:$D$53,MATCH('Data Input - BAU'!$D$113,lkpGreenHouseGases,0)))+IF(ISBLANK(AL115),0,AL115),0) -> 0 | AM117: =IFERROR(IF(ISBLANK(AM113),0,AM113*INDEX(Assumptions!$D$20:$D$53,MATCH('Data Input - BAU'!$D$113,lkpGreenHouseGases,0)))+IF(ISBLANK(AM115),0,AM115),0) -> 0 | AN117: =IFERROR(IF(ISBLANK(AN113),0,AN113*INDEX(Assumptions!$D$20:$D$53,MATCH('Data Input - BAU'!$D$113,lkpGreenHouseGases,0)))+IF(ISBLANK(AN115),0,AN115),0) -> 0 | AO117: =IFERROR(IF(ISBLANK(AO113),0,AO113*INDEX(Assumptions!$D$20:$D$53,MATCH('Data Input - BAU'!$D$113,lkpGreenHouseGases,0)))+IF(ISBLANK(AO115),0,AO115),0) -> 0 | AP117: =IFERROR(IF(ISBLANK(AP113),0,AP113*INDEX(Assumptions!$D$20:$D$53,MATCH('Data Input - BAU'!$D$113,lkpGreenHouseGases,0)))+IF(ISBLANK(AP115),0,AP115),0) -> 0 | AQ117: =IFERROR(IF(ISBLANK(AQ113),0,AQ113*INDEX(Assumptions!$D$20:$D$53,MATCH('Data Input - BAU'!$D$113,lkpGreenHouseGases,0)))+IF(ISBLANK(AQ115),0,AQ115),0) -> 0 | AR117: =IFERROR(IF(ISBLANK(AR113),0,AR113*INDEX(Assumptions!$D$20:$D$53,MATCH('Data Input - BAU'!$D$113,lkpGreenHouseGases,0)))+IF(ISBLANK(AR115),0,AR115),0) -> 0 | AS117: =IFERROR(IF(ISBLANK(AS113),0,AS113*INDEX(Assumptions!$D$20:$D$53,MATCH('Data Input - BAU'!$D$113,lkpGreenHouseGases,0)))+IF(ISBLANK(AS115),0,AS115),0) -> 0 | AT117: =IFERROR(IF(ISBLANK(AT113),0,AT113*INDEX(Assumptions!$D$20:$D$53,MATCH('Data Input - BAU'!$D$113,lkpGreenHouseGases,0)))+IF(ISBLANK(AT115),0,AT115),0) -> 0 | AU117: =IFERROR(IF(ISBLANK(AU113),0,AU113*INDEX(Assumptions!$D$20:$D$53,MATCH('Data Input - BAU'!$D$113,lkpGreenHouseGases,0)))+IF(ISBLANK(AU115),0,AU115),0) -> 0 | AV117: =IFERROR(IF(ISBLANK(AV113),0,AV113*INDEX(Assumptions!$D$20:$D$53,MATCH('Data Input - BAU'!$D$113,lkpGreenHouseGases,0)))+IF(ISBLANK(AV115),0,AV115),0) -> 0 | AW117: =IFERROR(IF(ISBLANK(AW113),0,AW113*INDEX(Assumptions!$D$20:$D$53,MATCH('Data Input - BAU'!$D$113,lkpGreenHouseGases,0)))+IF(ISBLANK(AW115),0,AW115),0) -> 0 | AX117: =IFERROR(IF(ISBLANK(AX113),0,AX113*INDEX(Assumptions!$D$20:$D$53,MATCH('Data Input - BAU'!$D$113,lkpGreenHouseGases,0)))+IF(ISBLANK(AX115),0,AX115),0) -> 0 | AY117: =IFERROR(IF(ISBLANK(AY113),0,AY113*INDEX(Assumptions!$D$20:$D$53,MATCH('Data Input - BAU'!$D$113,lkpGreenHouseGases,0)))+IF(ISBLANK(AY115),0,AY115),0) -> 0 | AZ117: =IFERROR(IF(ISBLANK(AZ113),0,AZ113*INDEX(Assumptions!$D$20:$D$53,MATCH('Data Input - BAU'!$D$113,lkpGreenHouseGases,0)))+IF(ISBLANK(AZ115),0,AZ115),0) -> 0 | BA117: =IFERROR(IF(ISBLANK(BA113),0,BA113*INDEX(Assumptions!$D$20:$D$53,MATCH('Data Input - BAU'!$D$113,lkpGreenHouseGases,0)))+IF(ISBLANK(BA115),0,BA115),0) -> 0 | BB117: =IFERROR(IF(ISBLANK(BB113),0,BB113*INDEX(Assumptions!$D$20:$D$53,MATCH('Data Input - BAU'!$D$113,lkpGreenHouseGases,0)))+IF(ISBLANK(BB115),0,BB115),0) -> 0 | BC117: =IFERROR(IF(ISBLANK(BC113),0,BC113*INDEX(Assumptions!$D$20:$D$53,MATCH('Data Input - BAU'!$D$113,lkpGreenHouseGases,0)))+IF(ISBLANK(BC115),0,BC115),0) -> 0 | BD117: =IFERROR(IF(ISBLANK(BD113),0,BD113*INDEX(Assumptions!$D$20:$D$53,MATCH('Data Input - BAU'!$D$113,lkpGreenHouseGases,0)))+IF(ISBLANK(BD115),0,BD115),0) -> 0 | BE117: =IFERROR(IF(ISBLANK(BE113),0,BE113*INDEX(Assumptions!$D$20:$D$53,MATCH('Data Input - BAU'!$D$113,lkpGreenHouseGases,0)))+IF(ISBLANK(BE115),0,BE115),0) -> 0 | BF117: =IFERROR(IF(ISBLANK(BF113),0,BF113*INDEX(Assumptions!$D$20:$D$53,MATCH('Data Input - BAU'!$D$113,lkpGreenHouseGases,0)))+IF(ISBLANK(BF115),0,BF115),0) -> 0 | BG117: =IFERROR(IF(ISBLANK(BG113),0,BG113*INDEX(Assumptions!$D$20:$D$53,MATCH('Data Input - BAU'!$D$113,lkpGreenHouseGases,0)))+IF(ISBLANK(BG115),0,BG115),0) -> 0 | BH117: =IFERROR(IF(ISBLANK(BH113),0,BH113*INDEX(Assumptions!$D$20:$D$53,MATCH('Data Input - BAU'!$D$113,lkpGreenHouseGases,0)))+IF(ISBLANK(BH115),0,BH115),0) -> 0 | BI117: =IFERROR(IF(ISBLANK(BI113),0,BI113*INDEX(Assumptions!$D$20:$D$53,MATCH('Data Input - BAU'!$D$113,lkpGreenHouseGases,0)))+IF(ISBLANK(BI115),0,BI115),0) -> 0 | BJ117: =IFERROR(IF(ISBLANK(BJ113),0,BJ113*INDEX(Assumptions!$D$20:$D$53,MATCH('Data Input - BAU'!$D$113,lkpGreenHouseGases,0)))+IF(ISBLANK(BJ115),0,BJ115),0) -> 0 | BK117: =IFERROR(IF(ISBLANK(BK113),0,BK113*INDEX(Assumptions!$D$20:$D$53,MATCH('Data Input - BAU'!$D$113,lkpGreenHouseGases,0)))+IF(ISBLANK(BK115),0,BK115),0) -> 0 | BL117: =IFERROR(IF(ISBLANK(BL113),0,BL113*INDEX(Assumptions!$D$20:$D$53,MATCH('Data Input - BAU'!$D$113,lkpGreenHouseGases,0)))+IF(ISBLANK(BL115),0,BL115),0) -> 0 | BM117: =IFERROR(IF(ISBLANK(BM113),0,BM113*INDEX(Assumptions!$D$20:$D$53,MATCH('Data Input - BAU'!$D$113,lkpGreenHouseGases,0)))+IF(ISBLANK(BM115),0,BM115),0) -> 0 | BN117: =IFERROR(IF(ISBLANK(BN113),0,BN113*INDEX(Assumptions!$D$20:$D$53,MATCH('Data Input - BAU'!$D$113,lkpGreenHouseGases,0)))+IF(ISBLANK(BN115),0,BN115),0) -> 0 | BO117: =IFERROR(IF(ISBLANK(BO113),0,BO113*INDEX(Assumptions!$D$20:$D$53,MATCH('Data Input - BAU'!$D$113,lkpGreenHouseGases,0)))+IF(ISBLANK(BO115),0,BO115),0) -> 0 | BP117: =IFERROR(IF(ISBLANK(BP113),0,BP113*INDEX(Assumptions!$D$20:$D$53,MATCH('Data Input - BAU'!$D$113,lkpGreenHouseGases,0)))+IF(ISBLANK(BP115),0,BP115),0) -> 0 | BQ117: =IFERROR(IF(ISBLANK(BQ113),0,BQ113*INDEX(Assumptions!$D$20:$D$53,MATCH('Data Input - BAU'!$D$113,lkpGreenHouseGases,0)))+IF(ISBLANK(BQ115),0,BQ115),0) -> 0 | BR117: =IFERROR(IF(ISBLANK(BR113),0,BR113*INDEX(Assumptions!$D$20:$D$53,MATCH('Data Input - BAU'!$D$113,lkpGreenHouseGases,0)))+IF(ISBLANK(BR115),0,BR115),0) -> 0 | BS117: =IFERROR(IF(ISBLANK(BS113),0,BS113*INDEX(Assumptions!$D$20:$D$53,MATCH('Data Input - BAU'!$D$113,lkpGreenHouseGases,0)))+IF(ISBLANK(BS115),0,BS115),0) -> 0 | BT117: =IFERROR(IF(ISBLANK(BT113),0,BT113*INDEX(Assumptions!$D$20:$D$53,MATCH('Data Input - BAU'!$D$113,lkpGreenHouseGases,0)))+IF(ISBLANK(BT115),0,BT115),0) -> 0 | BU117: =IFERROR(IF(ISBLANK(BU113),0,BU113*INDEX(Assumptions!$D$20:$D$53,MATCH('Data Input - BAU'!$D$113,lkpGreenHouseGases,0)))+IF(ISBLANK(BU115),0,BU115),0) -> 0 | BV117: =IFERROR(IF(ISBLANK(BV113),0,BV113*INDEX(Assumptions!$D$20:$D$53,MATCH('Data Input - BAU'!$D$113,lkpGreenHouseGases,0)))+IF(ISBLANK(BV115),0,BV115),0) -> 0 | BW117: =IFERROR(IF(ISBLANK(BW113),0,BW113*INDEX(Assumptions!$D$20:$D$53,MATCH('Data Input - BAU'!$D$113,lkpGreenHouseGases,0)))+IF(ISBLANK(BW115),0,BW115),0) -> 0 | BX117: =IFERROR(IF(ISBLANK(BX113),0,BX113*INDEX(Assumptions!$D$20:$D$53,MATCH('Data Input - BAU'!$D$113,lkpGreenHouseGases,0)))+IF(ISBLANK(BX115),0,BX115),0) -> 0 | BY117: =IFERROR(IF(ISBLANK(BY113),0,BY113*INDEX(Assumptions!$D$20:$D$53,MATCH('Data Input - BAU'!$D$113,lkpGreenHouseGases,0)))+IF(ISBLANK(BY115),0,BY115),0) -> 0 | BZ117: =IFERROR(IF(ISBLANK(BZ113),0,BZ113*INDEX(Assumptions!$D$20:$D$53,MATCH('Data Input - BAU'!$D$113,lkpGreenHouseGases,0)))+IF(ISBLANK(BZ115),0,BZ115),0) -> 0 | CA117: =IFERROR(IF(ISBLANK(CA113),0,CA113*INDEX(Assumptions!$D$20:$D$53,MATCH('Data Input - BAU'!$D$113,lkpGreenHouseGases,0)))+IF(ISBLANK(CA115),0,CA115),0) -> 0 | CB117: =IFERROR(IF(ISBLANK(CB113),0,CB113*INDEX(Assumptions!$D$20:$D$53,MATCH('Data Input - BAU'!$D$113,lkpGreenHouseGases,0)))+IF(ISBLANK(CB115),0,CB115),0) -> 0 | CC117: =IFERROR(IF(ISBLANK(CC113),0,CC113*INDEX(Assumptions!$D$20:$D$53,MATCH('Data Input - BAU'!$D$113,lkpGreenHouseGases,0)))+IF(ISBLANK(CC115),0,CC115),0) -> 0 | CD117: =IFERROR(IF(ISBLANK(CD113),0,CD113*INDEX(Assumptions!$D$20:$D$53,MATCH('Data Input - BAU'!$D$113,lkpGreenHouseGases,0)))+IF(ISBLANK(CD115),0,CD115),0) -> 0 | CE117: =IFERROR(IF(ISBLANK(CE113),0,CE113*INDEX(Assumptions!$D$20:$D$53,MATCH('Data Input - BAU'!$D$113,lkpGreenHouseGases,0)))+IF(ISBLANK(CE115),0,CE115),0) -> 0 | CF117: =IFERROR(IF(ISBLANK(CF113),0,CF113*INDEX(Assumptions!$D$20:$D$53,MATCH('Data Input - BAU'!$D$113,lkpGreenHouseGases,0)))+IF(ISBLANK(CF115),0,CF115),0) -> 0 | CG117: =IFERROR(IF(ISBLANK(CG113),0,CG113*INDEX(Assumptions!$D$20:$D$53,MATCH('Data Input - BAU'!$D$113,lkpGreenHouseGases,0)))+IF(ISBLANK(CG115),0,CG115),0) -> 0 | CH117: =IFERROR(IF(ISBLANK(CH113),0,CH113*INDEX(Assumptions!$D$20:$D$53,MATCH('Data Input - BAU'!$D$113,lkpGreenHouseGases,0)))+IF(ISBLANK(CH115),0,CH115),0) -> 0 | CI117: =IFERROR(IF(ISBLANK(CI113),0,CI113*INDEX(Assumptions!$D$20:$D$53,MATCH('Data Input - BAU'!$D$113,lkpGreenHouseGases,0)))+IF(ISBLANK(CI115),0,CI115),0) -> 0 | CJ117: =IFERROR(IF(ISBLANK(CJ113),0,CJ113*INDEX(Assumptions!$D$20:$D$53,MATCH('Data Input - BAU'!$D$113,lkpGreenHouseGases,0)))+IF(ISBLANK(CJ115),0,CJ115),0) -> 0 | CK117: =IFERROR(IF(ISBLANK(CK113),0,CK113*INDEX(Assumptions!$D$20:$D$53,MATCH('Data Input - BAU'!$D$113,lkpGreenHouseGases,0)))+IF(ISBLANK(CK115),0,CK115),0) -> 0 | CL117: =IFERROR(IF(ISBLANK(CL113),0,CL113*INDEX(Assumptions!$D$20:$D$53,MATCH('Data Input - BAU'!$D$113,lkpGreenHouseGases,0)))+IF(ISBLANK(CL115),0,CL115),0) -> 0 | CM117: =IFERROR(IF(ISBLANK(CM113),0,CM113*INDEX(Assumptions!$D$20:$D$53,MATCH('Data Input - BAU'!$D$113,lkpGreenHouseGases,0)))+IF(ISBLANK(CM115),0,CM115),0) -> 0 | CN117: =IFERROR(IF(ISBLANK(CN113),0,CN113*INDEX(Assumptions!$D$20:$D$53,MATCH('Data Input - BAU'!$D$113,lkpGreenHouseGases,0)))+IF(ISBLANK(CN115),0,CN115),0) -> 0 | CO117: =IFERROR(IF(ISBLANK(CO113),0,CO113*INDEX(Assumptions!$D$20:$D$53,MATCH('Data Input - BAU'!$D$113,lkpGreenHouseGases,0)))+IF(ISBLANK(CO115),0,CO115),0) -> 0 | CP117: =IFERROR(IF(ISBLANK(CP113),0,CP113*INDEX(Assumptions!$D$20:$D$53,MATCH('Data Input - BAU'!$D$113,lkpGreenHouseGases,0)))+IF(ISBLANK(CP115),0,CP115),0) -> 0 | CQ117: =IFERROR(IF(ISBLANK(CQ113),0,CQ113*INDEX(Assumptions!$D$20:$D$53,MATCH('Data Input - BAU'!$D$113,lkpGreenHouseGases,0)))+IF(ISBLANK(CQ115),0,CQ115),0) -> 0 | CR117: =IFERROR(IF(ISBLANK(CR113),0,CR113*INDEX(Assumptions!$D$20:$D$53,MATCH('Data Input - BAU'!$D$113,lkpGreenHouseGases,0)))+IF(ISBLANK(CR115),0,CR115),0) -> 0 | CS117: =IFERROR(IF(ISBLANK(CS113),0,CS113*INDEX(Assumptions!$D$20:$D$53,MATCH('Data Input - BAU'!$D$113,lkpGreenHouseGases,0)))+IF(ISBLANK(CS115),0,CS115),0) -> 0 | CT117: =IFERROR(IF(ISBLANK(CT113),0,CT113*INDEX(Assumptions!$D$20:$D$53,MATCH('Data Input - BAU'!$D$113,lkpGreenHouseGases,0)))+IF(ISBLANK(CT115),0,CT115),0) -> 0 | CU117: =IFERROR(IF(ISBLANK(CU113),0,CU113*INDEX(Assumptions!$D$20:$D$53,MATCH('Data Input - BAU'!$D$113,lkpGreenHouseGases,0)))+IF(ISBLANK(CU115),0,CU115),0) -> 0 | CV117: =IFERROR(IF(ISBLANK(CV113),0,CV113*INDEX(Assumptions!$D$20:$D$53,MATCH('Data Input - BAU'!$D$113,lkpGreenHouseGases,0)))+IF(ISBLANK(CV115),0,CV115),0) -> 0 | CW117: =IFERROR(IF(ISBLANK(CW113),0,CW113*INDEX(Assumptions!$D$20:$D$53,MATCH('Data Input - BAU'!$D$113,lkpGreenHouseGases,0)))+IF(ISBLANK(CW115),0,CW115),0) -> 0 | CX117: =IFERROR(IF(ISBLANK(CX113),0,CX113*INDEX(Assumptions!$D$20:$D$53,MATCH('Data Input - BAU'!$D$113,lkpGreenHouseGases,0)))+IF(ISBLANK(CX115),0,CX115),0) -> 0 | CY117: =IFERROR(IF(ISBLANK(CY113),0,CY113*INDEX(Assumptions!$D$20:$D$53,MATCH('Data Input - BAU'!$D$113,lkpGreenHouseGases,0)))+IF(ISBLANK(CY115),0,CY115),0) -> 0 | CZ117: =IFERROR(IF(ISBLANK(CZ113),0,CZ113*INDEX(Assumptions!$D$20:$D$53,MATCH('Data Input - BAU'!$D$113,lkpGreenHouseGases,0)))+IF(ISBLANK(CZ115),0,CZ115),0) -> 0 | DA117: =IFERROR(IF(ISBLANK(DA113),0,DA113*INDEX(Assumptions!$D$20:$D$53,MATCH('Data Input - BAU'!$D$113,lkpGreenHouseGases,0)))+IF(ISBLANK(DA115),0,DA115),0) -> 0 | DB117: =IFERROR(IF(ISBLANK(DB113),0,DB113*INDEX(Assumptions!$D$20:$D$53,MATCH('Data Input - BAU'!$D$113,lkpGreenHouseGases,0)))+IF(ISBLANK(DB115),0,DB115),0) -> 0 | DC117: =IFERROR(IF(ISBLANK(DC113),0,DC113*INDEX(Assumptions!$D$20:$D$53,MATCH('Data Input - BAU'!$D$113,lkpGreenHouseGases,0)))+IF(ISBLANK(DC115),0,DC115),0) -> 0
D119: 'Fuel-related' GHG emissions | E119: (?)
D120: =D84 -> Electricity | E120: tCO2e | F120: (Auto calculated value) | H120: =IFERROR(H84*INDEX('Emissions factors'!$F$5:$CR$10,MATCH('Data Input - BAU'!$D120,'Emissions factors'!$C$5:$C$10,0),MATCH('Data Input - BAU'!H$7,'Emissions factors'!$F$4:$CR$4,0))/1000,0) -> 1147.910206 | I120: =IFERROR(I84*INDEX('Emissions factors'!$F$5:$CR$10,MATCH('Data Input - BAU'!$D120,'Emissions factors'!$C$5:$C$10,0),MATCH('Data Input - BAU'!I$7,'Emissions factors'!$F$4:$CR$4,0))/1000,0) -> 1022.750904 | J120: =IFERROR(J84*INDEX('Emissions factors'!$F$5:$CR$10,MATCH('Data Input - BAU'!$D120,'Emissions factors'!$C$5:$C$10,0),MATCH('Data Input - BAU'!J$7,'Emissions factors'!$F$4:$CR$4,0))/1000,0) -> 900.7052302 | K120: =IFERROR(K84*INDEX('Emissions factors'!$F$5:$CR$10,MATCH('Data Input - BAU'!$D120,'Emissions factors'!$C$5:$C$10,0),MATCH('Data Input - BAU'!K$7,'Emissions factors'!$F$4:$CR$4,0))/1000,0) -> 829.5117135 | L120: =IFERROR(L84*INDEX('Emissions factors'!$F$5:$CR$10,MATCH('Data Input - BAU'!$D120,'Emissions factors'!$C$5:$C$10,0),MATCH('Data Input - BAU'!L$7,'Emissions factors'!$F$4:$CR$4,0))/1000,0) -> 706.2923933 | M120: =IFERROR(M84*INDEX('Emissions factors'!$F$5:$CR$10,MATCH('Data Input - BAU'!$D120,'Emissions factors'!$C$5:$C$10,0),MATCH('Data Input - BAU'!M$7,'Emissions factors'!$F$4:$CR$4,0))/1000,0) -> 741.6825878 | N120: =IFERROR(N84*INDEX('Emissions factors'!$F$5:$CR$10,MATCH('Data Input - BAU'!$D120,'Emissions factors'!$C$5:$C$10,0),MATCH('Data Input - BAU'!N$7,'Emissions factors'!$F$4:$CR$4,0))/1000,0) -> 695.1035686 | O120: =IFERROR(O84*INDEX('Emissions factors'!$F$5:$CR$10,MATCH('Data Input - BAU'!$D120,'Emissions factors'!$C$5:$C$10,0),MATCH('Data Input - BAU'!O$7,'Emissions factors'!$F$4:$CR$4,0))/1000,0) -> 617.9056139 | P120: =IFERROR(P84*INDEX('Emissions factors'!$F$5:$CR$10,MATCH('Data Input - BAU'!$D120,'Emissions factors'!$C$5:$C$10,0),MATCH('Data Input - BAU'!P$7,'Emissions factors'!$F$4:$CR$4,0))/1000,0) -> 0 | Q120: =IFERROR(Q84*INDEX('Emissions factors'!$F$5:$CR$10,MATCH('Data Input - BAU'!$D120,'Emissions factors'!$C$5:$C$10,0),MATCH('Data Input - BAU'!Q$7,'Emissions factors'!$F$4:$CR$4,0))/1000,0) -> 0 | R120: =IFERROR(R84*INDEX('Emissions factors'!$F$5:$CR$10,MATCH('Data Input - BAU'!$D120,'Emissions factors'!$C$5:$C$10,0),MATCH('Data Input - BAU'!R$7,'Emissions factors'!$F$4:$CR$4,0))/1000,0) -> 0 | S120: =IFERROR(S84*INDEX('Emissions factors'!$F$5:$CR$10,MATCH('Data Input - BAU'!$D120,'Emissions factors'!$C$5:$C$10,0),MATCH('Data Input - BAU'!S$7,'Emissions factors'!$F$4:$CR$4,0))/1000,0) -> 0 | T120: =IFERROR(T84*INDEX('Emissions factors'!$F$5:$CR$10,MATCH('Data Input - BAU'!$D120,'Emissions factors'!$C$5:$C$10,0),MATCH('Data Input - BAU'!T$7,'Emissions factors'!$F$4:$CR$4,0))/1000,0) -> 0 | U120: =IFERROR(U84*INDEX('Emissions factors'!$F$5:$CR$10,MATCH('Data Input - BAU'!$D120,'Emissions factors'!$C$5:$C$10,0),MATCH('Data Input - BAU'!U$7,'Emissions factors'!$F$4:$CR$4,0))/1000,0) -> 0 | V120: =IFERROR(V84*INDEX('Emissions factors'!$F$5:$CR$10,MATCH('Data Input - BAU'!$D120,'Emissions factors'!$C$5:$C$10,0),MATCH('Data Input - BAU'!V$7,'Emissions factors'!$F$4:$CR$4,0))/1000,0) -> 0 | W120: =IFERROR(W84*INDEX('Emissions factors'!$F$5:$CR$10,MATCH('Data Input - BAU'!$D120,'Emissions factors'!$C$5:$C$10,0),MATCH('Data Input - BAU'!W$7,'Emissions factors'!$F$4:$CR$4,0))/1000,0) -> 0 | X120: =IFERROR(X84*INDEX('Emissions factors'!$F$5:$CR$10,MATCH('Data Input - BAU'!$D120,'Emissions factors'!$C$5:$C$10,0),MATCH('Data Input - BAU'!X$7,'Emissions factors'!$F$4:$CR$4,0))/1000,0) -> 0 | Y120: =IFERROR(Y84*INDEX('Emissions factors'!$F$5:$CR$10,MATCH('Data Input - BAU'!$D120,'Emissions factors'!$C$5:$C$10,0),MATCH('Data Input - BAU'!Y$7,'Emissions factors'!$F$4:$CR$4,0))/1000,0) -> 0 | Z120: =IFERROR(Z84*INDEX('Emissions factors'!$F$5:$CR$10,MATCH('Data Input - BAU'!$D120,'Emissions factors'!$C$5:$C$10,0),MATCH('Data Input - BAU'!Z$7,'Emissions factors'!$F$4:$CR$4,0))/1000,0) -> 0 | AA120: =IFERROR(AA84*INDEX('Emissions factors'!$F$5:$CR$10,MATCH('Data Input - BAU'!$D120,'Emissions factors'!$C$5:$C$10,0),MATCH('Data Input - BAU'!AA$7,'Emissions factors'!$F$4:$CR$4,0))/1000,0) -> 0 | AB120: =IFERROR(AB84*INDEX('Emissions factors'!$F$5:$CR$10,MATCH('Data Input - BAU'!$D120,'Emissions factors'!$C$5:$C$10,0),MATCH('Data Input - BAU'!AB$7,'Emissions factors'!$F$4:$CR$4,0))/1000,0) -> 0 | AC120: =IFERROR(AC84*INDEX('Emissions factors'!$F$5:$CR$10,MATCH('Data Input - BAU'!$D120,'Emissions factors'!$C$5:$C$10,0),MATCH('Data Input - BAU'!AC$7,'Emissions factors'!$F$4:$CR$4,0))/1000,0) -> 0 | AD120: =IFERROR(AD84*INDEX('Emissions factors'!$F$5:$CR$10,MATCH('Data Input - BAU'!$D120,'Emissions factors'!$C$5:$C$10,0),MATCH('Data Input - BAU'!AD$7,'Emissions factors'!$F$4:$CR$4,0))/1000,0) -> 0 | AE120: =IFERROR(AE84*INDEX('Emissions factors'!$F$5:$CR$10,MATCH('Data Input - BAU'!$D120,'Emissions factors'!$C$5:$C$10,0),MATCH('Data Input - BAU'!AE$7,'Emissions factors'!$F$4:$CR$4,0))/1000,0) -> 0 | AF120: =IFERROR(AF84*INDEX('Emissions factors'!$F$5:$CR$10,MATCH('Data Input - BAU'!$D120,'Emissions factors'!$C$5:$C$10,0),MATCH('Data Input - BAU'!AF$7,'Emissions factors'!$F$4:$CR$4,0))/1000,0) -> 0 | AG120: =IFERROR(AG84*INDEX('Emissions factors'!$F$5:$CR$10,MATCH('Data Input - BAU'!$D120,'Emissions factors'!$C$5:$C$10,0),MATCH('Data Input - BAU'!AG$7,'Emissions factors'!$F$4:$CR$4,0))/1000,0) -> 0 | AH120: =IFERROR(AH84*INDEX('Emissions factors'!$F$5:$CR$10,MATCH('Data Input - BAU'!$D120,'Emissions factors'!$C$5:$C$10,0),MATCH('Data Input - BAU'!AH$7,'Emissions factors'!$F$4:$CR$4,0))/1000,0) -> 0 | AI120: =IFERROR(AI84*INDEX('Emissions factors'!$F$5:$CR$10,MATCH('Data Input - BAU'!$D120,'Emissions factors'!$C$5:$C$10,0),MATCH('Data Input - BAU'!AI$7,'Emissions factors'!$F$4:$CR$4,0))/1000,0) -> 0 | AJ120: =IFERROR(AJ84*INDEX('Emissions factors'!$F$5:$CR$10,MATCH('Data Input - BAU'!$D120,'Emissions factors'!$C$5:$C$10,0),MATCH('Data Input - BAU'!AJ$7,'Emissions factors'!$F$4:$CR$4,0))/1000,0) -> 0 | AK120: =IFERROR(AK84*INDEX('Emissions factors'!$F$5:$CR$10,MATCH('Data Input - BAU'!$D120,'Emissions factors'!$C$5:$C$10,0),MATCH('Data Input - BAU'!AK$7,'Emissions factors'!$F$4:$CR$4,0))/1000,0) -> 0 | AL120: =IFERROR(AL84*INDEX('Emissions factors'!$F$5:$CR$10,MATCH('Data Input - BAU'!$D120,'Emissions factors'!$C$5:$C$10,0),MATCH('Data Input - BAU'!AL$7,'Emissions factors'!$F$4:$CR$4,0))/1000,0) -> 0 | AM120: =IFERROR(AM84*INDEX('Emissions factors'!$F$5:$CR$10,MATCH('Data Input - BAU'!$D120,'Emissions factors'!$C$5:$C$10,0),MATCH('Data Input - BAU'!AM$7,'Emissions factors'!$F$4:$CR$4,0))/1000,0) -> 0 | AN120: =IFERROR(AN84*INDEX('Emissions factors'!$F$5:$CR$10,MATCH('Data Input - BAU'!$D120,'Emissions factors'!$C$5:$C$10,0),MATCH('Data Input - BAU'!AN$7,'Emissions factors'!$F$4:$CR$4,0))/1000,0) -> 0 | AO120: =IFERROR(AO84*INDEX('Emissions factors'!$F$5:$CR$10,MATCH('Data Input - BAU'!$D120,'Emissions factors'!$C$5:$C$10,0),MATCH('Data Input - BAU'!AO$7,'Emissions factors'!$F$4:$CR$4,0))/1000,0) -> 0 | AP120: =IFERROR(AP84*INDEX('Emissions factors'!$F$5:$CR$10,MATCH('Data Input - BAU'!$D120,'Emissions factors'!$C$5:$C$10,0),MATCH('Data Input - BAU'!AP$7,'Emissions factors'!$F$4:$CR$4,0))/1000,0) -> 0 | AQ120: =IFERROR(AQ84*INDEX('Emissions factors'!$F$5:$CR$10,MATCH('Data Input - BAU'!$D120,'Emissions factors'!$C$5:$C$10,0),MATCH('Data Input - BAU'!AQ$7,'Emissions factors'!$F$4:$CR$4,0))/1000,0) -> 0 | AR120: =IFERROR(AR84*INDEX('Emissions factors'!$F$5:$CR$10,MATCH('Data Input - BAU'!$D120,'Emissions factors'!$C$5:$C$10,0),MATCH('Data Input - BAU'!AR$7,'Emissions factors'!$F$4:$CR$4,0))/1000,0) -> 0 | AS120: =IFERROR(AS84*INDEX('Emissions factors'!$F$5:$CR$10,MATCH('Data Input - BAU'!$D120,'Emissions factors'!$C$5:$C$10,0),MATCH('Data Input - BAU'!AS$7,'Emissions factors'!$F$4:$CR$4,0))/1000,0) -> 0 | AT120: =IFERROR(AT84*INDEX('Emissions factors'!$F$5:$CR$10,MATCH('Data Input - BAU'!$D120,'Emissions factors'!$C$5:$C$10,0),MATCH('Data Input - BAU'!AT$7,'Emissions factors'!$F$4:$CR$4,0))/1000,0) -> 0 | AU120: =IFERROR(AU84*INDEX('Emissions factors'!$F$5:$CR$10,MATCH('Data Input - BAU'!$D120,'Emissions factors'!$C$5:$C$10,0),MATCH('Data Input - BAU'!AU$7,'Emissions factors'!$F$4:$CR$4,0))/1000,0) -> 0 | AV120: =IFERROR(AV84*INDEX('Emissions factors'!$F$5:$CR$10,MATCH('Data Input - BAU'!$D120,'Emissions factors'!$C$5:$C$10,0),MATCH('Data Input - BAU'!AV$7,'Emissions factors'!$F$4:$CR$4,0))/1000,0) -> 0 | AW120: =IFERROR(AW84*INDEX('Emissions factors'!$F$5:$CR$10,MATCH('Data Input - BAU'!$D120,'Emissions factors'!$C$5:$C$10,0),MATCH('Data Input - BAU'!AW$7,'Emissions factors'!$F$4:$CR$4,0))/1000,0) -> 0 | AX120: =IFERROR(AX84*INDEX('Emissions factors'!$F$5:$CR$10,MATCH('Data Input - BAU'!$D120,'Emissions factors'!$C$5:$C$10,0),MATCH('Data Input - BAU'!AX$7,'Emissions factors'!$F$4:$CR$4,0))/1000,0) -> 0 | AY120: =IFERROR(AY84*INDEX('Emissions factors'!$F$5:$CR$10,MATCH('Data Input - BAU'!$D120,'Emissions factors'!$C$5:$C$10,0),MATCH('Data Input - BAU'!AY$7,'Emissions factors'!$F$4:$CR$4,0))/1000,0) -> 0 | AZ120: =IFERROR(AZ84*INDEX('Emissions factors'!$F$5:$CR$10,MATCH('Data Input - BAU'!$D120,'Emissions factors'!$C$5:$C$10,0),MATCH('Data Input - BAU'!AZ$7,'Emissions factors'!$F$4:$CR$4,0))/1000,0) -> 0 | BA120: =IFERROR(BA84*INDEX('Emissions factors'!$F$5:$CR$10,MATCH('Data Input - BAU'!$D120,'Emissions factors'!$C$5:$C$10,0),MATCH('Data Input - BAU'!BA$7,'Emissions factors'!$F$4:$CR$4,0))/1000,0) -> 0 | BB120: =IFERROR(BB84*INDEX('Emissions factors'!$F$5:$CR$10,MATCH('Data Input - BAU'!$D120,'Emissions factors'!$C$5:$C$10,0),MATCH('Data Input - BAU'!BB$7,'Emissions factors'!$F$4:$CR$4,0))/1000,0) -> 0 | BC120: =IFERROR(BC84*INDEX('Emissions factors'!$F$5:$CR$10,MATCH('Data Input - BAU'!$D120,'Emissions factors'!$C$5:$C$10,0),MATCH('Data Input - BAU'!BC$7,'Emissions factors'!$F$4:$CR$4,0))/1000,0) -> 0 | BD120: =IFERROR(BD84*INDEX('Emissions factors'!$F$5:$CR$10,MATCH('Data Input - BAU'!$D120,'Emissions factors'!$C$5:$C$10,0),MATCH('Data Input - BAU'!BD$7,'Emissions factors'!$F$4:$CR$4,0))/1000,0) -> 0 | BE120: =IFERROR(BE84*INDEX('Emissions factors'!$F$5:$CR$10,MATCH('Data Input - BAU'!$D120,'Emissions factors'!$C$5:$C$10,0),MATCH('Data Input - BAU'!BE$7,'Emissions factors'!$F$4:$CR$4,0))/1000,0) -> 0 | BF120: =IFERROR(BF84*INDEX('Emissions factors'!$F$5:$CR$10,MATCH('Data Input - BAU'!$D120,'Emissions factors'!$C$5:$C$10,0),MATCH('Data Input - BAU'!BF$7,'Emissions factors'!$F$4:$CR$4,0))/1000,0) -> 0 | BG120: =IFERROR(BG84*INDEX('Emissions factors'!$F$5:$CR$10,MATCH('Data Input - BAU'!$D120,'Emissions factors'!$C$5:$C$10,0),MATCH('Data Input - BAU'!BG$7,'Emissions factors'!$F$4:$CR$4,0))/1000,0) -> 0 | BH120: =IFERROR(BH84*INDEX('Emissions factors'!$F$5:$CR$10,MATCH('Data Input - BAU'!$D120,'Emissions factors'!$C$5:$C$10,0),MATCH('Data Input - BAU'!BH$7,'Emissions factors'!$F$4:$CR$4,0))/1000,0) -> 0 | BI120: =IFERROR(BI84*INDEX('Emissions factors'!$F$5:$CR$10,MATCH('Data Input - BAU'!$D120,'Emissions factors'!$C$5:$C$10,0),MATCH('Data Input - BAU'!BI$7,'Emissions factors'!$F$4:$CR$4,0))/1000,0) -> 0 | BJ120: =IFERROR(BJ84*INDEX('Emissions factors'!$F$5:$CR$10,MATCH('Data Input - BAU'!$D120,'Emissions factors'!$C$5:$C$10,0),MATCH('Data Input - BAU'!BJ$7,'Emissions factors'!$F$4:$CR$4,0))/1000,0) -> 0 | BK120: =IFERROR(BK84*INDEX('Emissions factors'!$F$5:$CR$10,MATCH('Data Input - BAU'!$D120,'Emissions factors'!$C$5:$C$10,0),MATCH('Data Input - BAU'!BK$7,'Emissions factors'!$F$4:$CR$4,0))/1000,0) -> 0 | BL120: =IFERROR(BL84*INDEX('Emissions factors'!$F$5:$CR$10,MATCH('Data Input - BAU'!$D120,'Emissions factors'!$C$5:$C$10,0),MATCH('Data Input - BAU'!BL$7,'Emissions factors'!$F$4:$CR$4,0))/1000,0) -> 0 | BM120: =IFERROR(BM84*INDEX('Emissions factors'!$F$5:$CR$10,MATCH('Data Input - BAU'!$D120,'Emissions factors'!$C$5:$C$10,0),MATCH('Data Input - BAU'!BM$7,'Emissions factors'!$F$4:$CR$4,0))/1000,0) -> 0 | BN120: =IFERROR(BN84*INDEX('Emissions factors'!$F$5:$CR$10,MATCH('Data Input - BAU'!$D120,'Emissions factors'!$C$5:$C$10,0),MATCH('Data Input - BAU'!BN$7,'Emissions factors'!$F$4:$CR$4,0))/1000,0) -> 0 | BO120: =IFERROR(BO84*INDEX('Emissions factors'!$F$5:$CR$10,MATCH('Data Input - BAU'!$D120,'Emissions factors'!$C$5:$C$10,0),MATCH('Data Input - BAU'!BO$7,'Emissions factors'!$F$4:$CR$4,0))/1000,0) -> 0 | BP120: =IFERROR(BP84*INDEX('Emissions factors'!$F$5:$CR$10,MATCH('Data Input - BAU'!$D120,'Emissions factors'!$C$5:$C$10,0),MATCH('Data Input - BAU'!BP$7,'Emissions factors'!$F$4:$CR$4,0))/1000,0) -> 0 | BQ120: =IFERROR(BQ84*INDEX('Emissions factors'!$F$5:$CR$10,MATCH('Data Input - BAU'!$D120,'Emissions factors'!$C$5:$C$10,0),MATCH('Data Input - BAU'!BQ$7,'Emissions factors'!$F$4:$CR$4,0))/1000,0) -> 0 | BR120: =IFERROR(BR84*INDEX('Emissions factors'!$F$5:$CR$10,MATCH('Data Input - BAU'!$D120,'Emissions factors'!$C$5:$C$10,0),MATCH('Data Input - BAU'!BR$7,'Emissions factors'!$F$4:$CR$4,0))/1000,0) -> 0 | BS120: =IFERROR(BS84*INDEX('Emissions factors'!$F$5:$CR$10,MATCH('Data Input - BAU'!$D120,'Emissions factors'!$C$5:$C$10,0),MATCH('Data Input - BAU'!BS$7,'Emissions factors'!$F$4:$CR$4,0))/1000,0) -> 0 | BT120: =IFERROR(BT84*INDEX('Emissions factors'!$F$5:$CR$10,MATCH('Data Input - BAU'!$D120,'Emissions factors'!$C$5:$C$10,0),MATCH('Data Input - BAU'!BT$7,'Emissions factors'!$F$4:$CR$4,0))/1000,0) -> 0 | BU120: =IFERROR(BU84*INDEX('Emissions factors'!$F$5:$CR$10,MATCH('Data Input - BAU'!$D120,'Emissions factors'!$C$5:$C$10,0),MATCH('Data Input - BAU'!BU$7,'Emissions factors'!$F$4:$CR$4,0))/1000,0) -> 0 | BV120: =IFERROR(BV84*INDEX('Emissions factors'!$F$5:$CR$10,MATCH('Data Input - BAU'!$D120,'Emissions factors'!$C$5:$C$10,0),MATCH('Data Input - BAU'!BV$7,'Emissions factors'!$F$4:$CR$4,0))/1000,0) -> 0 | BW120: =IFERROR(BW84*INDEX('Emissions factors'!$F$5:$CR$10,MATCH('Data Input - BAU'!$D120,'Emissions factors'!$C$5:$C$10,0),MATCH('Data Input - BAU'!BW$7,'Emissions factors'!$F$4:$CR$4,0))/1000,0) -> 0 | BX120: =IFERROR(BX84*INDEX('Emissions factors'!$F$5:$CR$10,MATCH('Data Input - BAU'!$D120,'Emissions factors'!$C$5:$C$10,0),MATCH('Data Input - BAU'!BX$7,'Emissions factors'!$F$4:$CR$4,0))/1000,0) -> 0 | BY120: =IFERROR(BY84*INDEX('Emissions factors'!$F$5:$CR$10,MATCH('Data Input - BAU'!$D120,'Emissions factors'!$C$5:$C$10,0),MATCH('Data Input - BAU'!BY$7,'Emissions factors'!$F$4:$CR$4,0))/1000,0) -> 0 | BZ120: =IFERROR(BZ84*INDEX('Emissions factors'!$F$5:$CR$10,MATCH('Data Input - BAU'!$D120,'Emissions factors'!$C$5:$C$10,0),MATCH('Data Input - BAU'!BZ$7,'Emissions factors'!$F$4:$CR$4,0))/1000,0) -> 0 | CA120: =IFERROR(CA84*INDEX('Emissions factors'!$F$5:$CR$10,MATCH('Data Input - BAU'!$D120,'Emissions factors'!$C$5:$C$10,0),MATCH('Data Input - BAU'!CA$7,'Emissions factors'!$F$4:$CR$4,0))/1000,0) -> 0 | CB120: =IFERROR(CB84*INDEX('Emissions factors'!$F$5:$CR$10,MATCH('Data Input - BAU'!$D120,'Emissions factors'!$C$5:$C$10,0),MATCH('Data Input - BAU'!CB$7,'Emissions factors'!$F$4:$CR$4,0))/1000,0) -> 0 | CC120: =IFERROR(CC84*INDEX('Emissions factors'!$F$5:$CR$10,MATCH('Data Input - BAU'!$D120,'Emissions factors'!$C$5:$C$10,0),MATCH('Data Input - BAU'!CC$7,'Emissions factors'!$F$4:$CR$4,0))/1000,0) -> 0 | CD120: =IFERROR(CD84*INDEX('Emissions factors'!$F$5:$CR$10,MATCH('Data Input - BAU'!$D120,'Emissions factors'!$C$5:$C$10,0),MATCH('Data Input - BAU'!CD$7,'Emissions factors'!$F$4:$CR$4,0))/1000,0) -> 0 | CE120: =IFERROR(CE84*INDEX('Emissions factors'!$F$5:$CR$10,MATCH('Data Input - BAU'!$D120,'Emissions factors'!$C$5:$C$10,0),MATCH('Data Input - BAU'!CE$7,'Emissions factors'!$F$4:$CR$4,0))/1000,0) -> 0 | CF120: =IFERROR(CF84*INDEX('Emissions factors'!$F$5:$CR$10,MATCH('Data Input - BAU'!$D120,'Emissions factors'!$C$5:$C$10,0),MATCH('Data Input - BAU'!CF$7,'Emissions factors'!$F$4:$CR$4,0))/1000,0) -> 0 | CG120: =IFERROR(CG84*INDEX('Emissions factors'!$F$5:$CR$10,MATCH('Data Input - BAU'!$D120,'Emissions factors'!$C$5:$C$10,0),MATCH('Data Input - BAU'!CG$7,'Emissions factors'!$F$4:$CR$4,0))/1000,0) -> 0 | CH120: =IFERROR(CH84*INDEX('Emissions factors'!$F$5:$CR$10,MATCH('Data Input - BAU'!$D120,'Emissions factors'!$C$5:$C$10,0),MATCH('Data Input - BAU'!CH$7,'Emissions factors'!$F$4:$CR$4,0))/1000,0) -> 0 | CI120: =IFERROR(CI84*INDEX('Emissions factors'!$F$5:$CR$10,MATCH('Data Input - BAU'!$D120,'Emissions factors'!$C$5:$C$10,0),MATCH('Data Input - BAU'!CI$7,'Emissions factors'!$F$4:$CR$4,0))/1000,0) -> 0 | CJ120: =IFERROR(CJ84*INDEX('Emissions factors'!$F$5:$CR$10,MATCH('Data Input - BAU'!$D120,'Emissions factors'!$C$5:$C$10,0),MATCH('Data Input - BAU'!CJ$7,'Emissions factors'!$F$4:$CR$4,0))/1000,0) -> 0 | CK120: =IFERROR(CK84*INDEX('Emissions factors'!$F$5:$CR$10,MATCH('Data Input - BAU'!$D120,'Emissions factors'!$C$5:$C$10,0),MATCH('Data Input - BAU'!CK$7,'Emissions factors'!$F$4:$CR$4,0))/1000,0) -> 0 | CL120: =IFERROR(CL84*INDEX('Emissions factors'!$F$5:$CR$10,MATCH('Data Input - BAU'!$D120,'Emissions factors'!$C$5:$C$10,0),MATCH('Data Input - BAU'!CL$7,'Emissions factors'!$F$4:$CR$4,0))/1000,0) -> 0 | CM120: =IFERROR(CM84*INDEX('Emissions factors'!$F$5:$CR$10,MATCH('Data Input - BAU'!$D120,'Emissions factors'!$C$5:$C$10,0),MATCH('Data Input - BAU'!CM$7,'Emissions factors'!$F$4:$CR$4,0))/1000,0) -> 0 | CN120: =IFERROR(CN84*INDEX('Emissions factors'!$F$5:$CR$10,MATCH('Data Input - BAU'!$D120,'Emissions factors'!$C$5:$C$10,0),MATCH('Data Input - BAU'!CN$7,'Emissions factors'!$F$4:$CR$4,0))/1000,0) -> 0 | CO120: =IFERROR(CO84*INDEX('Emissions factors'!$F$5:$CR$10,MATCH('Data Input - BAU'!$D120,'Emissions factors'!$C$5:$C$10,0),MATCH('Data Input - BAU'!CO$7,'Emissions factors'!$F$4:$CR$4,0))/1000,0) -> 0 | CP120: =IFERROR(CP84*INDEX('Emissions factors'!$F$5:$CR$10,MATCH('Data Input - BAU'!$D120,'Emissions factors'!$C$5:$C$10,0),MATCH('Data Input - BAU'!CP$7,'Emissions factors'!$F$4:$CR$4,0))/1000,0) -> 0 | CQ120: =IFERROR(CQ84*INDEX('Emissions factors'!$F$5:$CR$10,MATCH('Data Input - BAU'!$D120,'Emissions factors'!$C$5:$C$10,0),MATCH('Data Input - BAU'!CQ$7,'Emissions factors'!$F$4:$CR$4,0))/1000,0) -> 0 | CR120: =IFERROR(CR84*INDEX('Emissions factors'!$F$5:$CR$10,MATCH('Data Input - BAU'!$D120,'Emissions factors'!$C$5:$C$10,0),MATCH('Data Input - BAU'!CR$7,'Emissions factors'!$F$4:$CR$4,0))/1000,0) -> 0 | CS120: =IFERROR(CS84*INDEX('Emissions factors'!$F$5:$CR$10,MATCH('Data Input - BAU'!$D120,'Emissions factors'!$C$5:$C$10,0),MATCH('Data Input - BAU'!CS$7,'Emissions factors'!$F$4:$CR$4,0))/1000,0) -> 0 | CT120: =IFERROR(CT84*INDEX('Emissions factors'!$F$5:$CR$10,MATCH('Data Input - BAU'!$D120,'Emissions factors'!$C$5:$C$10,0),MATCH('Data Input - BAU'!CT$7,'Emissions factors'!$F$4:$CR$4,0))/1000,0) -> 0 | CU120: =IFERROR(CU84*INDEX('Emissions factors'!$F$5:$CR$10,MATCH('Data Input - BAU'!$D120,'Emissions factors'!$C$5:$C$10,0),MATCH('Data Input - BAU'!CU$7,'Emissions factors'!$F$4:$CR$4,0))/1000,0) -> 0 | CV120: =IFERROR(CV84*INDEX('Emissions factors'!$F$5:$CR$10,MATCH('Data Input - BAU'!$D120,'Emissions factors'!$C$5:$C$10,0),MATCH('Data Input - BAU'!CV$7,'Emissions factors'!$F$4:$CR$4,0))/1000,0) -> 0 | CW120: =IFERROR(CW84*INDEX('Emissions factors'!$F$5:$CR$10,MATCH('Data Input - BAU'!$D120,'Emissions factors'!$C$5:$C$10,0),MATCH('Data Input - BAU'!CW$7,'Emissions factors'!$F$4:$CR$4,0))/1000,0) -> 0 | CX120: =IFERROR(CX84*INDEX('Emissions factors'!$F$5:$CR$10,MATCH('Data Input - BAU'!$D120,'Emissions factors'!$C$5:$C$10,0),MATCH('Data Input - BAU'!CX$7,'Emissions factors'!$F$4:$CR$4,0))/1000,0) -> 0 | CY120: =IFERROR(CY84*INDEX('Emissions factors'!$F$5:$CR$10,MATCH('Data Input - BAU'!$D120,'Emissions factors'!$C$5:$C$10,0),MATCH('Data Input - BAU'!CY$7,'Emissions factors'!$F$4:$CR$4,0))/1000,0) -> 0 | CZ120: =IFERROR(CZ84*INDEX('Emissions factors'!$F$5:$CR$10,MATCH('Data Input - BAU'!$D120,'Emissions factors'!$C$5:$C$10,0),MATCH('Data Input - BAU'!CZ$7,'Emissions factors'!$F$4:$CR$4,0))/1000,0) -> 0 | DA120: =IFERROR(DA84*INDEX('Emissions factors'!$F$5:$CR$10,MATCH('Data Input - BAU'!$D120,'Emissions factors'!$C$5:$C$10,0),MATCH('Data Input - BAU'!DA$7,'Emissions factors'!$F$4:$CR$4,0))/1000,0) -> 0 | DB120: =IFERROR(DB84*INDEX('Emissions factors'!$F$5:$CR$10,MATCH('Data Input - BAU'!$D120,'Emissions factors'!$C$5:$C$10,0),MATCH('Data Input - BAU'!DB$7,'Emissions factors'!$F$4:$CR$4,0))/1000,0) -> 0 | DC120: =IFERROR(DC84*INDEX('Emissions factors'!$F$5:$CR$10,MATCH('Data Input - BAU'!$D120,'Emissions factors'!$C$5:$C$10,0),MATCH('Data Input - BAU'!DC$7,'Emissions factors'!$F$4:$CR$4,0))/1000,0) -> 0
D121: Natural Gas | E121: tCO2e | F121: (Auto calculated value) | H121: =IFERROR(H85*INDEX('Emissions factors'!$F$5:$CR$10,MATCH('Data Input - BAU'!$D121,'Emissions factors'!$C$5:$C$10,0),MATCH('Data Input - BAU'!H$7,'Emissions factors'!$F$4:$CR$4,0))/1000,0) -> 0 | I121: =IFERROR(I85*INDEX('Emissions factors'!$F$5:$CR$10,MATCH('Data Input - BAU'!$D121,'Emissions factors'!$C$5:$C$10,0),MATCH('Data Input - BAU'!I$7,'Emissions factors'!$F$4:$CR$4,0))/1000,0) -> 0 | J121: =IFERROR(J85*INDEX('Emissions factors'!$F$5:$CR$10,MATCH('Data Input - BAU'!$D121,'Emissions factors'!$C$5:$C$10,0),MATCH('Data Input - BAU'!J$7,'Emissions factors'!$F$4:$CR$4,0))/1000,0) -> 0 | K121: =IFERROR(K85*INDEX('Emissions factors'!$F$5:$CR$10,MATCH('Data Input - BAU'!$D121,'Emissions factors'!$C$5:$C$10,0),MATCH('Data Input - BAU'!K$7,'Emissions factors'!$F$4:$CR$4,0))/1000,0) -> 0 | L121: =IFERROR(L85*INDEX('Emissions factors'!$F$5:$CR$10,MATCH('Data Input - BAU'!$D121,'Emissions factors'!$C$5:$C$10,0),MATCH('Data Input - BAU'!L$7,'Emissions factors'!$F$4:$CR$4,0))/1000,0) -> 0 | M121: =IFERROR(M85*INDEX('Emissions factors'!$F$5:$CR$10,MATCH('Data Input - BAU'!$D121,'Emissions factors'!$C$5:$C$10,0),MATCH('Data Input - BAU'!M$7,'Emissions factors'!$F$4:$CR$4,0))/1000,0) -> 0 | N121: =IFERROR(N85*INDEX('Emissions factors'!$F$5:$CR$10,MATCH('Data Input - BAU'!$D121,'Emissions factors'!$C$5:$C$10,0),MATCH('Data Input - BAU'!N$7,'Emissions factors'!$F$4:$CR$4,0))/1000,0) -> 0 | O121: =IFERROR(O85*INDEX('Emissions factors'!$F$5:$CR$10,MATCH('Data Input - BAU'!$D121,'Emissions factors'!$C$5:$C$10,0),MATCH('Data Input - BAU'!O$7,'Emissions factors'!$F$4:$CR$4,0))/1000,0) -> 0 | P121: =IFERROR(P85*INDEX('Emissions factors'!$F$5:$CR$10,MATCH('Data Input - BAU'!$D121,'Emissions factors'!$C$5:$C$10,0),MATCH('Data Input - BAU'!P$7,'Emissions factors'!$F$4:$CR$4,0))/1000,0) -> 0 | Q121: =IFERROR(Q85*INDEX('Emissions factors'!$F$5:$CR$10,MATCH('Data Input - BAU'!$D121,'Emissions factors'!$C$5:$C$10,0),MATCH('Data Input - BAU'!Q$7,'Emissions factors'!$F$4:$CR$4,0))/1000,0) -> 0 | R121: =IFERROR(R85*INDEX('Emissions factors'!$F$5:$CR$10,MATCH('Data Input - BAU'!$D121,'Emissions factors'!$C$5:$C$10,0),MATCH('Data Input - BAU'!R$7,'Emissions factors'!$F$4:$CR$4,0))/1000,0) -> 0 | S121: =IFERROR(S85*INDEX('Emissions factors'!$F$5:$CR$10,MATCH('Data Input - BAU'!$D121,'Emissions factors'!$C$5:$C$10,0),MATCH('Data Input - BAU'!S$7,'Emissions factors'!$F$4:$CR$4,0))/1000,0) -> 0 | T121: =IFERROR(T85*INDEX('Emissions factors'!$F$5:$CR$10,MATCH('Data Input - BAU'!$D121,'Emissions factors'!$C$5:$C$10,0),MATCH('Data Input - BAU'!T$7,'Emissions factors'!$F$4:$CR$4,0))/1000,0) -> 0 | U121: =IFERROR(U85*INDEX('Emissions factors'!$F$5:$CR$10,MATCH('Data Input - BAU'!$D121,'Emissions factors'!$C$5:$C$10,0),MATCH('Data Input - BAU'!U$7,'Emissions factors'!$F$4:$CR$4,0))/1000,0) -> 0 | V121: =IFERROR(V85*INDEX('Emissions factors'!$F$5:$CR$10,MATCH('Data Input - BAU'!$D121,'Emissions factors'!$C$5:$C$10,0),MATCH('Data Input - BAU'!V$7,'Emissions factors'!$F$4:$CR$4,0))/1000,0) -> 0 | W121: =IFERROR(W85*INDEX('Emissions factors'!$F$5:$CR$10,MATCH('Data Input - BAU'!$D121,'Emissions factors'!$C$5:$C$10,0),MATCH('Data Input - BAU'!W$7,'Emissions factors'!$F$4:$CR$4,0))/1000,0) -> 0 | X121: =IFERROR(X85*INDEX('Emissions factors'!$F$5:$CR$10,MATCH('Data Input - BAU'!$D121,'Emissions factors'!$C$5:$C$10,0),MATCH('Data Input - BAU'!X$7,'Emissions factors'!$F$4:$CR$4,0))/1000,0) -> 0 | Y121: =IFERROR(Y85*INDEX('Emissions factors'!$F$5:$CR$10,MATCH('Data Input - BAU'!$D121,'Emissions factors'!$C$5:$C$10,0),MATCH('Data Input - BAU'!Y$7,'Emissions factors'!$F$4:$CR$4,0))/1000,0) -> 0 | Z121: =IFERROR(Z85*INDEX('Emissions factors'!$F$5:$CR$10,MATCH('Data Input - BAU'!$D121,'Emissions factors'!$C$5:$C$10,0),MATCH('Data Input - BAU'!Z$7,'Emissions factors'!$F$4:$CR$4,0))/1000,0) -> 0 | AA121: =IFERROR(AA85*INDEX('Emissions factors'!$F$5:$CR$10,MATCH('Data Input - BAU'!$D121,'Emissions factors'!$C$5:$C$10,0),MATCH('Data Input - BAU'!AA$7,'Emissions factors'!$F$4:$CR$4,0))/1000,0) -> 0 | AB121: =IFERROR(AB85*INDEX('Emissions factors'!$F$5:$CR$10,MATCH('Data Input - BAU'!$D121,'Emissions factors'!$C$5:$C$10,0),MATCH('Data Input - BAU'!AB$7,'Emissions factors'!$F$4:$CR$4,0))/1000,0) -> 0 | AC121: =IFERROR(AC85*INDEX('Emissions factors'!$F$5:$CR$10,MATCH('Data Input - BAU'!$D121,'Emissions factors'!$C$5:$C$10,0),MATCH('Data Input - BAU'!AC$7,'Emissions factors'!$F$4:$CR$4,0))/1000,0) -> 0 | AD121: =IFERROR(AD85*INDEX('Emissions factors'!$F$5:$CR$10,MATCH('Data Input - BAU'!$D121,'Emissions factors'!$C$5:$C$10,0),MATCH('Data Input - BAU'!AD$7,'Emissions factors'!$F$4:$CR$4,0))/1000,0) -> 0 | AE121: =IFERROR(AE85*INDEX('Emissions factors'!$F$5:$CR$10,MATCH('Data Input - BAU'!$D121,'Emissions factors'!$C$5:$C$10,0),MATCH('Data Input - BAU'!AE$7,'Emissions factors'!$F$4:$CR$4,0))/1000,0) -> 0 | AF121: =IFERROR(AF85*INDEX('Emissions factors'!$F$5:$CR$10,MATCH('Data Input - BAU'!$D121,'Emissions factors'!$C$5:$C$10,0),MATCH('Data Input - BAU'!AF$7,'Emissions factors'!$F$4:$CR$4,0))/1000,0) -> 0 | AG121: =IFERROR(AG85*INDEX('Emissions factors'!$F$5:$CR$10,MATCH('Data Input - BAU'!$D121,'Emissions factors'!$C$5:$C$10,0),MATCH('Data Input - BAU'!AG$7,'Emissions factors'!$F$4:$CR$4,0))/1000,0) -> 0 | AH121: =IFERROR(AH85*INDEX('Emissions factors'!$F$5:$CR$10,MATCH('Data Input - BAU'!$D121,'Emissions factors'!$C$5:$C$10,0),MATCH('Data Input - BAU'!AH$7,'Emissions factors'!$F$4:$CR$4,0))/1000,0) -> 0 | AI121: =IFERROR(AI85*INDEX('Emissions factors'!$F$5:$CR$10,MATCH('Data Input - BAU'!$D121,'Emissions factors'!$C$5:$C$10,0),MATCH('Data Input - BAU'!AI$7,'Emissions factors'!$F$4:$CR$4,0))/1000,0) -> 0 | AJ121: =IFERROR(AJ85*INDEX('Emissions factors'!$F$5:$CR$10,MATCH('Data Input - BAU'!$D121,'Emissions factors'!$C$5:$C$10,0),MATCH('Data Input - BAU'!AJ$7,'Emissions factors'!$F$4:$CR$4,0))/1000,0) -> 0 | AK121: =IFERROR(AK85*INDEX('Emissions factors'!$F$5:$CR$10,MATCH('Data Input - BAU'!$D121,'Emissions factors'!$C$5:$C$10,0),MATCH('Data Input - BAU'!AK$7,'Emissions factors'!$F$4:$CR$4,0))/1000,0) -> 0 | AL121: =IFERROR(AL85*INDEX('Emissions factors'!$F$5:$CR$10,MATCH('Data Input - BAU'!$D121,'Emissions factors'!$C$5:$C$10,0),MATCH('Data Input - BAU'!AL$7,'Emissions factors'!$F$4:$CR$4,0))/1000,0) -> 0 | AM121: =IFERROR(AM85*INDEX('Emissions factors'!$F$5:$CR$10,MATCH('Data Input - BAU'!$D121,'Emissions factors'!$C$5:$C$10,0),MATCH('Data Input - BAU'!AM$7,'Emissions factors'!$F$4:$CR$4,0))/1000,0) -> 0 | AN121: =IFERROR(AN85*INDEX('Emissions factors'!$F$5:$CR$10,MATCH('Data Input - BAU'!$D121,'Emissions factors'!$C$5:$C$10,0),MATCH('Data Input - BAU'!AN$7,'Emissions factors'!$F$4:$CR$4,0))/1000,0) -> 0 | AO121: =IFERROR(AO85*INDEX('Emissions factors'!$F$5:$CR$10,MATCH('Data Input - BAU'!$D121,'Emissions factors'!$C$5:$C$10,0),MATCH('Data Input - BAU'!AO$7,'Emissions factors'!$F$4:$CR$4,0))/1000,0) -> 0 | AP121: =IFERROR(AP85*INDEX('Emissions factors'!$F$5:$CR$10,MATCH('Data Input - BAU'!$D121,'Emissions factors'!$C$5:$C$10,0),MATCH('Data Input - BAU'!AP$7,'Emissions factors'!$F$4:$CR$4,0))/1000,0) -> 0 | AQ121: =IFERROR(AQ85*INDEX('Emissions factors'!$F$5:$CR$10,MATCH('Data Input - BAU'!$D121,'Emissions factors'!$C$5:$C$10,0),MATCH('Data Input - BAU'!AQ$7,'Emissions factors'!$F$4:$CR$4,0))/1000,0) -> 0 | AR121: =IFERROR(AR85*INDEX('Emissions factors'!$F$5:$CR$10,MATCH('Data Input - BAU'!$D121,'Emissions factors'!$C$5:$C$10,0),MATCH('Data Input - BAU'!AR$7,'Emissions factors'!$F$4:$CR$4,0))/1000,0) -> 0 | AS121: =IFERROR(AS85*INDEX('Emissions factors'!$F$5:$CR$10,MATCH('Data Input - BAU'!$D121,'Emissions factors'!$C$5:$C$10,0),MATCH('Data Input - BAU'!AS$7,'Emissions factors'!$F$4:$CR$4,0))/1000,0) -> 0 | AT121: =IFERROR(AT85*INDEX('Emissions factors'!$F$5:$CR$10,MATCH('Data Input - BAU'!$D121,'Emissions factors'!$C$5:$C$10,0),MATCH('Data Input - BAU'!AT$7,'Emissions factors'!$F$4:$CR$4,0))/1000,0) -> 0 | AU121: =IFERROR(AU85*INDEX('Emissions factors'!$F$5:$CR$10,MATCH('Data Input - BAU'!$D121,'Emissions factors'!$C$5:$C$10,0),MATCH('Data Input - BAU'!AU$7,'Emissions factors'!$F$4:$CR$4,0))/1000,0) -> 0 | AV121: =IFERROR(AV85*INDEX('Emissions factors'!$F$5:$CR$10,MATCH('Data Input - BAU'!$D121,'Emissions factors'!$C$5:$C$10,0),MATCH('Data Input - BAU'!AV$7,'Emissions factors'!$F$4:$CR$4,0))/1000,0) -> 0 | AW121: =IFERROR(AW85*INDEX('Emissions factors'!$F$5:$CR$10,MATCH('Data Input - BAU'!$D121,'Emissions factors'!$C$5:$C$10,0),MATCH('Data Input - BAU'!AW$7,'Emissions factors'!$F$4:$CR$4,0))/1000,0) -> 0 | AX121: =IFERROR(AX85*INDEX('Emissions factors'!$F$5:$CR$10,MATCH('Data Input - BAU'!$D121,'Emissions factors'!$C$5:$C$10,0),MATCH('Data Input - BAU'!AX$7,'Emissions factors'!$F$4:$CR$4,0))/1000,0) -> 0 | AY121: =IFERROR(AY85*INDEX('Emissions factors'!$F$5:$CR$10,MATCH('Data Input - BAU'!$D121,'Emissions factors'!$C$5:$C$10,0),MATCH('Data Input - BAU'!AY$7,'Emissions factors'!$F$4:$CR$4,0))/1000,0) -> 0 | AZ121: =IFERROR(AZ85*INDEX('Emissions factors'!$F$5:$CR$10,MATCH('Data Input - BAU'!$D121,'Emissions factors'!$C$5:$C$10,0),MATCH('Data Input - BAU'!AZ$7,'Emissions factors'!$F$4:$CR$4,0))/1000,0) -> 0 | BA121: =IFERROR(BA85*INDEX('Emissions factors'!$F$5:$CR$10,MATCH('Data Input - BAU'!$D121,'Emissions factors'!$C$5:$C$10,0),MATCH('Data Input - BAU'!BA$7,'Emissions factors'!$F$4:$CR$4,0))/1000,0) -> 0 | BB121: =IFERROR(BB85*INDEX('Emissions factors'!$F$5:$CR$10,MATCH('Data Input - BAU'!$D121,'Emissions factors'!$C$5:$C$10,0),MATCH('Data Input - BAU'!BB$7,'Emissions factors'!$F$4:$CR$4,0))/1000,0) -> 0 | BC121: =IFERROR(BC85*INDEX('Emissions factors'!$F$5:$CR$10,MATCH('Data Input - BAU'!$D121,'Emissions factors'!$C$5:$C$10,0),MATCH('Data Input - BAU'!BC$7,'Emissions factors'!$F$4:$CR$4,0))/1000,0) -> 0 | BD121: =IFERROR(BD85*INDEX('Emissions factors'!$F$5:$CR$10,MATCH('Data Input - BAU'!$D121,'Emissions factors'!$C$5:$C$10,0),MATCH('Data Input - BAU'!BD$7,'Emissions factors'!$F$4:$CR$4,0))/1000,0) -> 0 | BE121: =IFERROR(BE85*INDEX('Emissions factors'!$F$5:$CR$10,MATCH('Data Input - BAU'!$D121,'Emissions factors'!$C$5:$C$10,0),MATCH('Data Input - BAU'!BE$7,'Emissions factors'!$F$4:$CR$4,0))/1000,0) -> 0 | BF121: =IFERROR(BF85*INDEX('Emissions factors'!$F$5:$CR$10,MATCH('Data Input - BAU'!$D121,'Emissions factors'!$C$5:$C$10,0),MATCH('Data Input - BAU'!BF$7,'Emissions factors'!$F$4:$CR$4,0))/1000,0) -> 0 | BG121: =IFERROR(BG85*INDEX('Emissions factors'!$F$5:$CR$10,MATCH('Data Input - BAU'!$D121,'Emissions factors'!$C$5:$C$10,0),MATCH('Data Input - BAU'!BG$7,'Emissions factors'!$F$4:$CR$4,0))/1000,0) -> 0 | BH121: =IFERROR(BH85*INDEX('Emissions factors'!$F$5:$CR$10,MATCH('Data Input - BAU'!$D121,'Emissions factors'!$C$5:$C$10,0),MATCH('Data Input - BAU'!BH$7,'Emissions factors'!$F$4:$CR$4,0))/1000,0) -> 0 | BI121: =IFERROR(BI85*INDEX('Emissions factors'!$F$5:$CR$10,MATCH('Data Input - BAU'!$D121,'Emissions factors'!$C$5:$C$10,0),MATCH('Data Input - BAU'!BI$7,'Emissions factors'!$F$4:$CR$4,0))/1000,0) -> 0 | BJ121: =IFERROR(BJ85*INDEX('Emissions factors'!$F$5:$CR$10,MATCH('Data Input - BAU'!$D121,'Emissions factors'!$C$5:$C$10,0),MATCH('Data Input - BAU'!BJ$7,'Emissions factors'!$F$4:$CR$4,0))/1000,0) -> 0 | BK121: =IFERROR(BK85*INDEX('Emissions factors'!$F$5:$CR$10,MATCH('Data Input - BAU'!$D121,'Emissions factors'!$C$5:$C$10,0),MATCH('Data Input - BAU'!BK$7,'Emissions factors'!$F$4:$CR$4,0))/1000,0) -> 0 | BL121: =IFERROR(BL85*INDEX('Emissions factors'!$F$5:$CR$10,MATCH('Data Input - BAU'!$D121,'Emissions factors'!$C$5:$C$10,0),MATCH('Data Input - BAU'!BL$7,'Emissions factors'!$F$4:$CR$4,0))/1000,0) -> 0 | BM121: =IFERROR(BM85*INDEX('Emissions factors'!$F$5:$CR$10,MATCH('Data Input - BAU'!$D121,'Emissions factors'!$C$5:$C$10,0),MATCH('Data Input - BAU'!BM$7,'Emissions factors'!$F$4:$CR$4,0))/1000,0) -> 0 | BN121: =IFERROR(BN85*INDEX('Emissions factors'!$F$5:$CR$10,MATCH('Data Input - BAU'!$D121,'Emissions factors'!$C$5:$C$10,0),MATCH('Data Input - BAU'!BN$7,'Emissions factors'!$F$4:$CR$4,0))/1000,0) -> 0 | BO121: =IFERROR(BO85*INDEX('Emissions factors'!$F$5:$CR$10,MATCH('Data Input - BAU'!$D121,'Emissions factors'!$C$5:$C$10,0),MATCH('Data Input - BAU'!BO$7,'Emissions factors'!$F$4:$CR$4,0))/1000,0) -> 0 | BP121: =IFERROR(BP85*INDEX('Emissions factors'!$F$5:$CR$10,MATCH('Data Input - BAU'!$D121,'Emissions factors'!$C$5:$C$10,0),MATCH('Data Input - BAU'!BP$7,'Emissions factors'!$F$4:$CR$4,0))/1000,0) -> 0 | BQ121: =IFERROR(BQ85*INDEX('Emissions factors'!$F$5:$CR$10,MATCH('Data Input - BAU'!$D121,'Emissions factors'!$C$5:$C$10,0),MATCH('Data Input - BAU'!BQ$7,'Emissions factors'!$F$4:$CR$4,0))/1000,0) -> 0 | BR121: =IFERROR(BR85*INDEX('Emissions factors'!$F$5:$CR$10,MATCH('Data Input - BAU'!$D121,'Emissions factors'!$C$5:$C$10,0),MATCH('Data Input - BAU'!BR$7,'Emissions factors'!$F$4:$CR$4,0))/1000,0) -> 0 | BS121: =IFERROR(BS85*INDEX('Emissions factors'!$F$5:$CR$10,MATCH('Data Input - BAU'!$D121,'Emissions factors'!$C$5:$C$10,0),MATCH('Data Input - BAU'!BS$7,'Emissions factors'!$F$4:$CR$4,0))/1000,0) -> 0 | BT121: =IFERROR(BT85*INDEX('Emissions factors'!$F$5:$CR$10,MATCH('Data Input - BAU'!$D121,'Emissions factors'!$C$5:$C$10,0),MATCH('Data Input - BAU'!BT$7,'Emissions factors'!$F$4:$CR$4,0))/1000,0) -> 0 | BU121: =IFERROR(BU85*INDEX('Emissions factors'!$F$5:$CR$10,MATCH('Data Input - BAU'!$D121,'Emissions factors'!$C$5:$C$10,0),MATCH('Data Input - BAU'!BU$7,'Emissions factors'!$F$4:$CR$4,0))/1000,0) -> 0 | BV121: =IFERROR(BV85*INDEX('Emissions factors'!$F$5:$CR$10,MATCH('Data Input - BAU'!$D121,'Emissions factors'!$C$5:$C$10,0),MATCH('Data Input - BAU'!BV$7,'Emissions factors'!$F$4:$CR$4,0))/1000,0) -> 0 | BW121: =IFERROR(BW85*INDEX('Emissions factors'!$F$5:$CR$10,MATCH('Data Input - BAU'!$D121,'Emissions factors'!$C$5:$C$10,0),MATCH('Data Input - BAU'!BW$7,'Emissions factors'!$F$4:$CR$4,0))/1000,0) -> 0 | BX121: =IFERROR(BX85*INDEX('Emissions factors'!$F$5:$CR$10,MATCH('Data Input - BAU'!$D121,'Emissions factors'!$C$5:$C$10,0),MATCH('Data Input - BAU'!BX$7,'Emissions factors'!$F$4:$CR$4,0))/1000,0) -> 0 | BY121: =IFERROR(BY85*INDEX('Emissions factors'!$F$5:$CR$10,MATCH('Data Input - BAU'!$D121,'Emissions factors'!$C$5:$C$10,0),MATCH('Data Input - BAU'!BY$7,'Emissions factors'!$F$4:$CR$4,0))/1000,0) -> 0 | BZ121: =IFERROR(BZ85*INDEX('Emissions factors'!$F$5:$CR$10,MATCH('Data Input - BAU'!$D121,'Emissions factors'!$C$5:$C$10,0),MATCH('Data Input - BAU'!BZ$7,'Emissions factors'!$F$4:$CR$4,0))/1000,0) -> 0 | CA121: =IFERROR(CA85*INDEX('Emissions factors'!$F$5:$CR$10,MATCH('Data Input - BAU'!$D121,'Emissions factors'!$C$5:$C$10,0),MATCH('Data Input - BAU'!CA$7,'Emissions factors'!$F$4:$CR$4,0))/1000,0) -> 0 | CB121: =IFERROR(CB85*INDEX('Emissions factors'!$F$5:$CR$10,MATCH('Data Input - BAU'!$D121,'Emissions factors'!$C$5:$C$10,0),MATCH('Data Input - BAU'!CB$7,'Emissions factors'!$F$4:$CR$4,0))/1000,0) -> 0 | CC121: =IFERROR(CC85*INDEX('Emissions factors'!$F$5:$CR$10,MATCH('Data Input - BAU'!$D121,'Emissions factors'!$C$5:$C$10,0),MATCH('Data Input - BAU'!CC$7,'Emissions factors'!$F$4:$CR$4,0))/1000,0) -> 0 | CD121: =IFERROR(CD85*INDEX('Emissions factors'!$F$5:$CR$10,MATCH('Data Input - BAU'!$D121,'Emissions factors'!$C$5:$C$10,0),MATCH('Data Input - BAU'!CD$7,'Emissions factors'!$F$4:$CR$4,0))/1000,0) -> 0 | CE121: =IFERROR(CE85*INDEX('Emissions factors'!$F$5:$CR$10,MATCH('Data Input - BAU'!$D121,'Emissions factors'!$C$5:$C$10,0),MATCH('Data Input - BAU'!CE$7,'Emissions factors'!$F$4:$CR$4,0))/1000,0) -> 0 | CF121: =IFERROR(CF85*INDEX('Emissions factors'!$F$5:$CR$10,MATCH('Data Input - BAU'!$D121,'Emissions factors'!$C$5:$C$10,0),MATCH('Data Input - BAU'!CF$7,'Emissions factors'!$F$4:$CR$4,0))/1000,0) -> 0 | CG121: =IFERROR(CG85*INDEX('Emissions factors'!$F$5:$CR$10,MATCH('Data Input - BAU'!$D121,'Emissions factors'!$C$5:$C$10,0),MATCH('Data Input - BAU'!CG$7,'Emissions factors'!$F$4:$CR$4,0))/1000,0) -> 0 | CH121: =IFERROR(CH85*INDEX('Emissions factors'!$F$5:$CR$10,MATCH('Data Input - BAU'!$D121,'Emissions factors'!$C$5:$C$10,0),MATCH('Data Input - BAU'!CH$7,'Emissions factors'!$F$4:$CR$4,0))/1000,0) -> 0 | CI121: =IFERROR(CI85*INDEX('Emissions factors'!$F$5:$CR$10,MATCH('Data Input - BAU'!$D121,'Emissions factors'!$C$5:$C$10,0),MATCH('Data Input - BAU'!CI$7,'Emissions factors'!$F$4:$CR$4,0))/1000,0) -> 0 | CJ121: =IFERROR(CJ85*INDEX('Emissions factors'!$F$5:$CR$10,MATCH('Data Input - BAU'!$D121,'Emissions factors'!$C$5:$C$10,0),MATCH('Data Input - BAU'!CJ$7,'Emissions factors'!$F$4:$CR$4,0))/1000,0) -> 0 | CK121: =IFERROR(CK85*INDEX('Emissions factors'!$F$5:$CR$10,MATCH('Data Input - BAU'!$D121,'Emissions factors'!$C$5:$C$10,0),MATCH('Data Input - BAU'!CK$7,'Emissions factors'!$F$4:$CR$4,0))/1000,0) -> 0 | CL121: =IFERROR(CL85*INDEX('Emissions factors'!$F$5:$CR$10,MATCH('Data Input - BAU'!$D121,'Emissions factors'!$C$5:$C$10,0),MATCH('Data Input - BAU'!CL$7,'Emissions factors'!$F$4:$CR$4,0))/1000,0) -> 0 | CM121: =IFERROR(CM85*INDEX('Emissions factors'!$F$5:$CR$10,MATCH('Data Input - BAU'!$D121,'Emissions factors'!$C$5:$C$10,0),MATCH('Data Input - BAU'!CM$7,'Emissions factors'!$F$4:$CR$4,0))/1000,0) -> 0 | CN121: =IFERROR(CN85*INDEX('Emissions factors'!$F$5:$CR$10,MATCH('Data Input - BAU'!$D121,'Emissions factors'!$C$5:$C$10,0),MATCH('Data Input - BAU'!CN$7,'Emissions factors'!$F$4:$CR$4,0))/1000,0) -> 0 | CO121: =IFERROR(CO85*INDEX('Emissions factors'!$F$5:$CR$10,MATCH('Data Input - BAU'!$D121,'Emissions factors'!$C$5:$C$10,0),MATCH('Data Input - BAU'!CO$7,'Emissions factors'!$F$4:$CR$4,0))/1000,0) -> 0 | CP121: =IFERROR(CP85*INDEX('Emissions factors'!$F$5:$CR$10,MATCH('Data Input - BAU'!$D121,'Emissions factors'!$C$5:$C$10,0),MATCH('Data Input - BAU'!CP$7,'Emissions factors'!$F$4:$CR$4,0))/1000,0) -> 0 | CQ121: =IFERROR(CQ85*INDEX('Emissions factors'!$F$5:$CR$10,MATCH('Data Input - BAU'!$D121,'Emissions factors'!$C$5:$C$10,0),MATCH('Data Input - BAU'!CQ$7,'Emissions factors'!$F$4:$CR$4,0))/1000,0) -> 0 | CR121: =IFERROR(CR85*INDEX('Emissions factors'!$F$5:$CR$10,MATCH('Data Input - BAU'!$D121,'Emissions factors'!$C$5:$C$10,0),MATCH('Data Input - BAU'!CR$7,'Emissions factors'!$F$4:$CR$4,0))/1000,0) -> 0 | CS121: =IFERROR(CS85*INDEX('Emissions factors'!$F$5:$CR$10,MATCH('Data Input - BAU'!$D121,'Emissions factors'!$C$5:$C$10,0),MATCH('Data Input - BAU'!CS$7,'Emissions factors'!$F$4:$CR$4,0))/1000,0) -> 0 | CT121: =IFERROR(CT85*INDEX('Emissions factors'!$F$5:$CR$10,MATCH('Data Input - BAU'!$D121,'Emissions factors'!$C$5:$C$10,0),MATCH('Data Input - BAU'!CT$7,'Emissions factors'!$F$4:$CR$4,0))/1000,0) -> 0 | CU121: =IFERROR(CU85*INDEX('Emissions factors'!$F$5:$CR$10,MATCH('Data Input - BAU'!$D121,'Emissions factors'!$C$5:$C$10,0),MATCH('Data Input - BAU'!CU$7,'Emissions factors'!$F$4:$CR$4,0))/1000,0) -> 0 | CV121: =IFERROR(CV85*INDEX('Emissions factors'!$F$5:$CR$10,MATCH('Data Input - BAU'!$D121,'Emissions factors'!$C$5:$C$10,0),MATCH('Data Input - BAU'!CV$7,'Emissions factors'!$F$4:$CR$4,0))/1000,0) -> 0 | CW121: =IFERROR(CW85*INDEX('Emissions factors'!$F$5:$CR$10,MATCH('Data Input - BAU'!$D121,'Emissions factors'!$C$5:$C$10,0),MATCH('Data Input - BAU'!CW$7,'Emissions factors'!$F$4:$CR$4,0))/1000,0) -> 0 | CX121: =IFERROR(CX85*INDEX('Emissions factors'!$F$5:$CR$10,MATCH('Data Input - BAU'!$D121,'Emissions factors'!$C$5:$C$10,0),MATCH('Data Input - BAU'!CX$7,'Emissions factors'!$F$4:$CR$4,0))/1000,0) -> 0 | CY121: =IFERROR(CY85*INDEX('Emissions factors'!$F$5:$CR$10,MATCH('Data Input - BAU'!$D121,'Emissions factors'!$C$5:$C$10,0),MATCH('Data Input - BAU'!CY$7,'Emissions factors'!$F$4:$CR$4,0))/1000,0) -> 0 | CZ121: =IFERROR(CZ85*INDEX('Emissions factors'!$F$5:$CR$10,MATCH('Data Input - BAU'!$D121,'Emissions factors'!$C$5:$C$10,0),MATCH('Data Input - BAU'!CZ$7,'Emissions factors'!$F$4:$CR$4,0))/1000,0) -> 0 | DA121: =IFERROR(DA85*INDEX('Emissions factors'!$F$5:$CR$10,MATCH('Data Input - BAU'!$D121,'Emissions factors'!$C$5:$C$10,0),MATCH('Data Input - BAU'!DA$7,'Emissions factors'!$F$4:$CR$4,0))/1000,0) -> 0 | DB121: =IFERROR(DB85*INDEX('Emissions factors'!$F$5:$CR$10,MATCH('Data Input - BAU'!$D121,'Emissions factors'!$C$5:$C$10,0),MATCH('Data Input - BAU'!DB$7,'Emissions factors'!$F$4:$CR$4,0))/1000,0) -> 0 | DC121: =IFERROR(DC85*INDEX('Emissions factors'!$F$5:$CR$10,MATCH('Data Input - BAU'!$D121,'Emissions factors'!$C$5:$C$10,0),MATCH('Data Input - BAU'!DC$7,'Emissions factors'!$F$4:$CR$4,0))/1000,0) -> 0
